Workbook

Sheet General
B1: Módulo de Ingreso de Información
B5: Código | C5: 3
B6: Nombre | C6: Prueba 1 | E6: Permisos Ambiental obtenida | F6: NO
B7: Fecha Radicación | C7: 2022-02-08
B8: Hora Radicación | C8: 12:35:00
B9: Capacidad (MW) | C9: 50
B10: Tecnología | C10: Solar FV | E10: Costo Activos de Uso ($COP) | F10: 0
B11: Barra 1 | C11: Chinú | E11: Delta pérdidas (GWh) | F11: 100
B12: Código Asociado | E12: Reducción Marginal VPN ($COP) | F12: 1000000
B13: FPO | C13: 2025-12-31
B14: FPO 2 | C14: 2026-12-31
B15: Obligaciones | C15: NO
B16: Requiere Expansión | C16: NO
B17: Área Eléctrica | C17: Antioquia

Sheet Tablas
B1: Tecnologia | C1: Factor de planta | D1: Iflex | E1: IE-RP | F1: Factor ENFICC | G1: Factor emisiones | H1: Oferta promedio | I1: Comentarios | J1: Area Eléctrica | N1: FPO | P1: Fecha Radicacion | Q1: Hora Radicacion | S1: Gestion Ambiental | U1: Consulta Previa | W1: Permiso Arquelogico
B2: Solar FV | C2: 0.26 | D2: 0 | E2: 0.3190502279 | F2: 0.15 | G2: 0 | H2: 83577.2 | I2: Los parámetros fueron calculados conforme a la metodología presentada en la Circular UPME 057 de 2022. | J2: Altántico | L2: SI | N2: 2023-01-01 | P2: 2022-01-01 | Q2: 00:00:00 | S2: No hay avances | U2: No hay avances | W2: No hay avances
B3: Eólico Onshore | C3: 0.57 | D3: 0 | E3: 0.3190502279 | F3: 0.06 | G3: 0 | H3: 83577.2 | I3: Los parámetros fueron calculados conforme a la metodología presentada en la Circular UPME 057 de 2022. | J3: Bolívar | L3: NO | N3: 2037-12-31 | P3: 2022-03-31 | Q3: 23:59:59 | S3: EIA | U3: Resolución. No Procede | W3: Aprobado
B4: Eólico Offshore | C4: 0.57 | D4: 0 | E4: 0.3190502279 | F4: 0.06 | G4: 0 | H4: 83577.2 | I4: Los parámetros fueron calculados conforme a la metodología presentada en la Circular UPME 057 de 2022. | J4: Córdoba - Sucre, Chinú | S4: LA | U4: Resolución. Si Procede | W4: No Aplica
B5: Biomasa y Residuos | C5: 0.7 | D5: 0.25 | E5: 0.3190502279 | F5: 0.83 | G5: 0.37 | H5: 83577.2 | I5: Los parámetros fueron calculados conforme a la metodología presentada en la Circular UPME 057 de 2022. | J5: Córdoba - Sucre, Cerromatoso | S5: PA | U5: Finalizada
B6: Geotérmica | C6: 0.8 | D6: 0.25 | E6: 0.3190502279 | F6: 0.7 | G6: 0 | H6: 83577.2 | I6: Los parámetros fueron calculados conforme a la metodología presentada en la Circular UPME 057 de 2022. | J6: Guajira - Cesar - Madgalena | S6: No Aplica
B7: PCH | C7: 0.54 | D7: 0.61 | E7: 0.1550930337 | F7: 0.15 | G7: 0 | H7: 158280.5 | I7: Los parámetros fueron calculados conforme a la metodología presentada en la Circular UPME 057 de 2022. | J7: Santander
B8: Termica - Ciclo abierto | C8: 0.85 | D8: 0.4 | E8: -0.5761741581 | F8: 0.83 | G8: 0.95 | H8: 267152.5 | I8: Los parámetros fueron calculados conforme a la metodología presentada en la Circular UPME 057 de 2022. | J8: Norte de Santander
B9: Termica - Ciclo combinado | C9: 0.85 | D9: 0.27 | E9: -0.5761741581 | F9: 0.83 | G9: 0.95 | H9: 267152.5 | I9: Los parámetros fueron calculados conforme a la metodología presentada en la Circular UPME 057 de 2022. | J9: Boyacá - Casanare
B10: Termica a vapor | C10: 0.85 | D10: 0.25 | E10: -0.5761741581 | F10: 0.83 | G10: 0.37 | H10: 267152.5 | I10: Los parámetros fueron calculados conforme a la metodología presentada en la Circular UPME 057 de 2022. | J10: Arauca
B11: Termica - diesel | C11: 0.85 | D11: 0.6 | E11: -4.282826571 | F11: 0.83 | G11: 0.77 | H11: 709472.9 | I11: Los parámetros fueron calculados conforme a la metodología presentada en la Circular UPME 057 de 2022. | J11: Antioquia
B12: Hidraulica | C12: 0.6 | D12: 0.61 | E12: 0.1550930337 | F12: 0.31 | G12: 0 | H12: 158280.5 | I12: Los parámetros fueron calculados conforme a la metodología presentada en la Circular UPME 057 de 2022. | J12: Chocó
B13: Cogeneracion | C13: 0.85 | D13: 0.1 | E13: 0.3190502279 | F13: 0.83 | G13: 0.37 | H13: 83577.2 | I13: Los parámetros fueron calculados conforme a la metodología presentada en la Circular UPME 057 de 2022. | J13: Bogotá
J14: Meta - Guaviare
J15: Caldas - Quidio - Risaralda
J16: Valle
J17: Cauca - Nariño
J18: Tolima - Huila Caquetá
J19: Putumayo

Sheet InfoPro
A1: Código | B1: Nombre | C1: Fecha Radicación | D1: Hora Radicación | E1: Capacidad | F1: Tipo | G1: Barra 1 | H1: Código Asociado | I1: FPO | J1: FPO 2 | K1: Obligaciones | L1: Requiere Expansión | M1: Area Eléctrica | N1: Permisos Ambiental obtenida | O1: Costo Activos de Uso | P1: Pérdidas reportadas
A2: SC_44_A1 | B2: El Floral 1 | C2: 2022-04-13 | D2: 5:41 pm | E2: 19.9 | F2: Solar FV | G2: Toluviejo 110 | H2: SC_44 | I2: 2025-12-31 | J2: 2025-12-31 | K2: NO | L2: NO | M2: Córdoba - Sucre | N2: NO | O2: 0 | P2: -3.78
A3: SC_47_A1 | B3: El Floral II - 19.9 MW | C3: 2022-04-13 | D3: 5:48 pm | E3: 19.9 | F3: Solar FV | G3: Toluviejo 110 | H3: SC_47 | I3: 2025-12-31 | J3: 2025-12-31 | K3: NO | L3: NO | M3: Córdoba - Sucre | N3: NO | O3: 0 | P3: -3.78
A4: SC_408_A1 | B4: El Jardín 40 MW | C4: 2022-05-06 | D4: 5:54 pm | E4: 40 | F4: Solar FV | G4: San Marcos 110 | H4: SC_408 | I4: 2025-12-31 | J4: 2025-12-31 | K4: NO | L4: NO | M4: Córdoba - Sucre | N4: NO | O4: 0 | P4: -23.99196
A5: SC_454_A1 | B5: PARQUE SOLAR SAN RAFAEL - 300 MW | C5: 2022-05-18 | D5: 14:59:00 | E5: 300 | F5: Solar FV | G5: Chinu 220 | H5: SC_454 | I5: 2026-12-31 | J5: 2026-12-31 | K5: NO | L5: SI | M5: Córdoba - Sucre | N5: NO | O5: 82590000000 | P5: -16.1937
A6: SC_454_A2 | B6: PARQUE SOLAR SAN RAFAEL - 300 MW | C6: 2022-05-18 | D6: 14:59:00 | E6: 300 | F6: Solar FV | G6: Chinu 500 | H6: SC_454 | I6: 2026-12-31 | J6: 2026-12-31 | K6: NO | L6: NO | M6: Córdoba - Sucre | N6: NO | O6: 0 | P6: -15.65443
A7: SC_483_A1 | B7: PARQUE SOLAR LOMAS 39.9 MW | C7: 2022-05-21 | D7: 2:02 pm | E7: 39.9 | F7: Solar FV | G7: Nva Monteria 110 | H7: SC_483 | I7: 2025-12-31 | J7: 2025-12-31 | K7: NO | L7: NO | M7: Córdoba - Sucre | N7: NO | O7: 0 | P7: -11.079632
A8: SC_586_A1 | B8: Orquídea del Sucre - Sierra Flor 60 MW | C8: 2022-06-24 | D8: 4:46 pm | E8: 60 | F8: Solar FV | G8: Sierra Flor 110 | H8: SC_586 | I8: 2027-12-31 | J8: 2027-12-31 | K8: NO | L8: NO | M8: Córdoba - Sucre | N8: NO | O8: 0 | P8: -7.30285
A9: SC_586_A2 | B9: Orquídea del Sucre - Sierra Flor 60 MW | C9: 2022-06-24 | D9: 4:46 pm | E9: 60 | F9: Solar FV | G9: Nva Toluviejo 110 | H9: SC_586 | I9: 2027-12-31 | J9: 2027-12-31 | K9: NO | L9: NO | M9: Córdoba - Sucre | N9: NO | O9: 0 | P9: -7.36163
A10: SC_681_A1 | B10: PARQUE SOLARLAS LAS PALMAS de 90MW | C10: 2022-06-28 | D10: 5:31 pm | E10: 90 | F10: Solar FV | G10: Chinu 110 | H10: SC_681 | I10: 2025-12-31 | J10: 2025-12-31 | K10: NO | L10: NO | M10: Córdoba - Sucre | N10: NO | O10: 0 | P10: -11.14
A11: SC_681_A2 | B11: PARQUE SOLARLAS LAS PALMAS de 90MW | C11: 2022-06-28 | D11: 5:31 pm | E11: 90 | F11: Solar FV | G11: Chinu 220 | H11: SC_681 | I11: 2025-12-31 | J11: 2025-12-31 | K11: NO | L11: NO | M11: Córdoba - Sucre | N11: NO | O11: 0 | P11: -11.46
A12: SC_720_A1 | B12: El Jazmín | C12: 2022-07-01 | D12: 12:57 pm | E12: 19.9 | F12: Solar FV | G12: Tierralta 110 | H12: SC_720 | I12: 2025-12-31 | J12: 2025-12-31 | K12: NO | L12: NO | M12: Córdoba - Sucre | N12: NO | O12: 0 | P12: -2.27114
A13: SC_720_A2 | B13: El Jazmín | C13: 2022-07-01 | D13: 12:57 pm | E13: 19.9 | F13: Solar FV | G13: Tierra Alta 34.5 | H13: SC_720 | I13: 2025-12-31 | J13: 2025-12-31 | K13: NO | L13: NO | M13: Córdoba - Sucre | N13: NO | O13: 0 | P13: -2.26447
A14: SC_713_A1 | B14: Crucero - 300MW | C14: 2022-07-01 | D14: 1:56 pm | E14: 300 | F14: Solar FV | G14: Sahagun 500 kV | H14: SC_713 | I14: 2027-12-31 | J14: 2027-12-31 | K14: NO | L14: NO | M14: Córdoba - Sucre | N14: NO | O14: 0 | P14: -37.68
A15: SC_836_A1 | B15: BONGO DEL SINÚ DE 19.9 MW | C15: 2022-07-09 | D15: 6:03 pm | E15: 19.9 | F15: Solar FV | G15: Tierra Alta 34.5 | H15: SC_836 | I15: 2025-12-31 | J15: 2025-12-31 | K15: NO | L15: NO | M15: Córdoba - Sucre | N15: NO | O15: 0 | P15: -4.98
A16: SC_836_A2 | B16: BONGO DEL SINÚ DE 19.9 MW | C16: 2022-07-09 | D16: 6:03 pm | E16: 19.9 | F16: Solar FV | G16: Tierralta 110 | H16: SC_836 | I16: 2025-12-31 | J16: 2025-12-31 | K16: NO | L16: NO | M16: Córdoba - Sucre | N16: NO | O16: 0 | P16: -5.15
A17: SC_778_A1 | B17: KOS 19.9 | C17: 2022-07-12 | D17: 3:56 pm | E17: 19.9 | F17: Solar FV | G17: Cerete 34.5 | H17: SC_778 | I17: 2025-12-31 | J17: 2025-12-31 | K17: NO | L17: NO | M17: Córdoba - Sucre | N17: NO | O17: 0 | P17: -1.45779
A18: SC_778_A2 | B18: KOS 19.9 | C18: 2022-07-12 | D18: 3:56 pm | E18: 19.9 | F18: Solar FV | G18: Cerete 13.8 | H18: SC_778 | I18: 2025-12-31 | J18: 2025-12-31 | K18: NO | L18: NO | M18: Córdoba - Sucre | N18: NO | O18: 0 | P18: -1.39846
A19: SC_942_A1 | B19: PASCUA_60MW | C19: 2022-07-12 | D19: 4:46 pm | E19: 60 | F19: Solar FV | G19: Nva Toluviejo 110 | H19: SC_942 | I19: 2026-12-31 | J19: 2026-12-31 | K19: NO | L19: NO | M19: Córdoba - Sucre | N19: NO | O19: 0 | P19: -3.03548
A20: SC_942_A2 | B20: PASCUA_60MW | C20: 2022-07-12 | D20: 4:46 pm | E20: 60 | F20: Solar FV | G20: Sierra Flor 110 | H20: SC_942 | I20: 2026-12-31 | J20: 2026-12-31 | K20: NO | L20: NO | M20: Córdoba - Sucre | N20: NO | O20: 0 | P20: -2.70371
A21: SC_1763_A1 | B21: Taurus Solar de 22MW (19,5 MW) | C21: 2022-07-12 | D21: 10:01 pm | E21: 19.5 | F21: Solar FV | G21: San Marcos 34.5 | H21: SC_1763 | I21: 2025-12-31 | J21: 2025-12-31 | K21: NO | L21: NO | M21: Córdoba - Sucre | N21: NO | O21: 0 | P21: -1.1202288
A22: SC_1763_A2 | B22: Taurus Solar de 22MW (19,5 MW) | C22: 2022-07-12 | D22: 10:01 pm | E22: 19.5 | F22: Solar FV | G22: San Marcos 110 | H22: SC_1763 | I22: 2025-12-31 | J22: 2025-12-31 | K22: NO | L22: NO | M22: Córdoba - Sucre | N22: NO | O22: 0 | P22: -0.639626
A23: SC_828_A1 | B23: PARQUE SOLAR EL VASCO | C23: 2022-07-13 | D23: 9:28:00 am | E23: 60 | F23: Solar FV | G23: Chinu Planta 110 | H23: SC_828 | I23: 2026-12-31 | J23: 2026-12-31 | K23: NO | L23: NO | M23: Córdoba - Sucre | N23: NO | O23: 0 | P23: -0.00078
A24: SC_828_A2 | B24: PARQUE SOLAR EL VASCO | C24: 2022-07-13 | D24: 9:28:00 am | E24: 60 | F24: Solar FV | G24: Chinu 110 | H24: SC_828 | I24: 2026-12-31 | J24: 2026-12-31 | K24: NO | L24: NO | M24: Córdoba - Sucre | N24: NO | O24: 0 | P24: -0.00078
A25: SC_1179_A1 | B25: Montes 90 MW | C25: 2022-07-14 | D25: 5:28 pm | E25: 90 | F25: Solar FV | G25: Chinu 220 | H25: SC_1179 | I25: 2026-12-31 | J25: 2026-12-31 | K25: NO | L25: NO | M25: Córdoba - Sucre | N25: NO | O25: 0 | P25: -8.38
A26: SC_1179_A2 | B26: Montes 90 MW | C26: 2022-07-14 | D26: 5:28 pm | E26: 90 | F26: Solar FV | G26: Chinu 110 | H26: SC_1179 | I26: 2026-12-31 | J26: 2026-12-31 | K26: NO | L26: NO | M26: Córdoba - Sucre | N26: NO | O26: 0 | P26: -7.85
A27: SC_1206_A1 | B27: Cerromatoso Solar 300 MW | C27: 2022-07-15 | D27: 8:51 am | E27: 300 | F27: Solar FV | G27: Cerromatoso 500 | H27: SC_1206 | I27: 2028-12-31 | J27: 2028-12-31 | K27: NO | L27: NO | M27: Córdoba - Sucre | N27: NO | O27: 0 | P27: -25.79
A28: SC_1206_A2 | B28: Cerromatoso Solar 300 MW | C28: 2022-07-15 | D28: 8:51 am | E28: 300 | F28: Solar FV | G28: Sahagun 500 kV | H28: SC_1206 | I28: 2028-12-31 | J28: 2028-12-31 | K28: NO | L28: NO | M28: Córdoba - Sucre | N28: NO | O28: 0 | P28: -39.72
A29: SC_1372_A1 | B29: Pétalo del Bolívar I Magangué | C29: 2022-07-15 | D29: 09:04:00 | E29: 9.9 | F29: Solar FV | G29: Magangue 13,8 kV | H29: SC_1372 | I29: 2025-12-31 | J29: 2025-12-31 | K29: NO | L29: NO | M29: Córdoba - Sucre | N29: NO | O29: 0 | P29: -0.96302
A30: SC_1372_A2 | B30: Pétalo del Bolívar I Magangué | C30: 2022-07-15 | D30: 09:04:00 | E30: 9.9 | F30: Solar FV | G30: Magangue 34,5 kV | H30: SC_1372 | I30: 2025-12-31 | J30: 2025-12-31 | K30: NO | L30: NO | M30: Córdoba - Sucre | N30: NO | O30: 0 | P30: -0.94679
A31: SC_692_A1 | B31: TermoJobo | C31: 2022-07-15 | D31: 9:28 am | E31: 9.9 | F31: Termica a vapor | G31: El Viajano 34.5 | H31: SC_692 | I31: 2024-12-31 | J31: 2024-12-31 | K31: NO | L31: NO | M31: Córdoba - Sucre | N31: NO | O31: 0 | P31: -6.34594
A32: SC_1057_A1 | B32: Río Sinú Solar I 9,9 MW | C32: 2022-07-15 | D32: 9:29 am | E32: 9.9 | F32: Solar FV | G32: Rio Sinu 13.8 | H32: SC_1057 | I32: 2025-12-31 | J32: 2025-12-31 | K32: NO | L32: NO | M32: Córdoba - Sucre | N32: NO | O32: 0 | P32: -0.64
A33: SC_1057_A2 | B33: Río Sinú Solar I 9,9 MW | C33: 2022-07-15 | D33: 9:29 am | E33: 9.9 | F33: Solar FV | G33: Rio sinu 34.5 | H33: SC_1057 | I33: 2025-12-31 | J33: 2025-12-31 | K33: NO | L33: NO | M33: Córdoba - Sucre | N33: NO | O33: 0 | P33: -0.69
A34: SC_1058_A1 | B34: Río Sinú Solar II 9,9 MW | C34: 2022-07-15 | D34: 9:29 am | E34: 9.9 | F34: Solar FV | G34: Rio Sinu 13.8 | H34: SC_1058 | I34: 2025-12-31 | J34: 2025-12-31 | K34: NO | L34: NO | M34: Córdoba - Sucre | N34: NO | O34: 0 | P34: -0.64
A35: SC_1058_A2 | B35: Río Sinú Solar II 9,9 MW | C35: 2022-07-15 | D35: 9:29 am | E35: 9.9 | F35: Solar FV | G35: Rio sinu 34.5 | H35: SC_1058 | I35: 2025-12-31 | J35: 2025-12-31 | K35: NO | L35: NO | M35: Córdoba - Sucre | N35: NO | O35: 0 | P35: -0.69
A36: SC_855_A1 | B36: El Lirio | C36: 2022-07-15 | D36: 9:30 am | E36: 19.9 | F36: Solar FV | G36: Cerete 34.5 | H36: SC_855 | I36: 2025-12-31 | J36: 2025-12-31 | K36: NO | L36: NO | M36: Córdoba - Sucre | N36: NO | O36: 0 | P36: -0.82684
A37: SC_855_A2 | B37: El Lirio | C37: 2022-07-15 | D37: 9:30 am | E37: 19.9 | F37: Solar FV | G37: Cerete 110 | H37: SC_855 | I37: 2025-12-31 | J37: 2025-12-31 | K37: NO | L37: NO | M37: Córdoba - Sucre | N37: NO | O37: 0 | P37: -0.83831
A38: SC_630_A1 | B38: TR Solar 14 | C38: 2022-07-15 | D38: 12:52 pm | E38: 99.9 | F38: Solar FV | G38: Sierra Flor 110 | H38: SC_630 | I38: 2026-08-31 | J38: 2026-08-31 | K38: NO | L38: NO | M38: Córdoba - Sucre | N38: NO | O38: 0 | P38: -78.22
A39: SC_1269_A1 | B39: Centro Solar II 4 MW | C39: 2022-07-15 | D39: 2:27 pm | E39: 4 | F39: Solar FV | G39: Centro Alegre 34.5 | H39: SC_1269 | I39: 2023-12-31 | J39: 2023-12-31 | K39: NO | L39: NO | M39: Córdoba - Sucre | N39: NO | O39: 0 | P39: -3.832
A40: SC_1268_A1 | B40: Sol de Ayapel II de 7 MW | C40: 2022-07-15 | D40: 2:29 pm | E40: 7 | F40: Solar FV | G40: Ayapel 34.5 | H40: SC_1268 | I40: 2024-12-31 | J40: 2024-12-31 | K40: NO | L40: NO | M40: Córdoba - Sucre | N40: NO | O40: 0 | P40: -6.835
A41: SC_1268_A2 | B41: Sol de Ayapel II de 7 MW | C41: 2022-07-15 | D41: 2:29 pm | E41: 7 | F41: Solar FV | G41: Ayapel 13.8 | H41: SC_1268 | I41: 2024-12-31 | J41: 2024-12-31 | K41: NO | L41: NO | M41: Córdoba - Sucre | N41: NO | O41: 0 | P41: -6.833
A42: SC_1118_A1 | B42: Boston 9,9 MW | C42: 2022-07-15 | D42: 3:58 pm | E42: 9.9 | F42: Solar FV | G42: Boston 13.8 | H42: SC_1118 | I42: 2025-12-31 | J42: 2025-12-31 | K42: NO | L42: NO | M42: Córdoba - Sucre | N42: NO | O42: 0 | P42: -0.09991
A43: SC_1118_A2 | B43: Boston 9,9 MW | C43: 2022-07-15 | D43: 3:58 pm | E43: 9.9 | F43: Solar FV | G43: Boston 34.5 | H43: SC_1118 | I43: 2025-12-31 | J43: 2025-12-31 | K43: NO | L43: NO | M43: Córdoba - Sucre | N43: NO | O43: 0 | P43: -0.10303
A44: SC_632_A1 | B44: TR Solar 5 | C44: 2022-07-15 | D44: 4:22 pm | E44: 19.9 | F44: Solar FV | G44: Toluviejo 110 | H44: SC_632 | I44: 2026-12-31 | J44: 2026-12-31 | K44: NO | L44: NO | M44: Córdoba - Sucre | N44: NO | O44: 0 | P44: -4.690812465
A45: SC_632_A2 | B45: TR Solar 5 | C45: 2022-07-15 | D45: 4:22 pm | E45: 19.9 | F45: Solar FV | G45: Sierra Flor 110 | H45: SC_632 | I45: 2026-12-31 | J45: 2026-12-31 | K45: NO | L45: NO | M45: Córdoba - Sucre | N45: NO | O45: 0 | P45: -4.273762735
A46: SC_1415_A1 | B46: Efigen C03 99 MW | C46: 2022-07-16 | D46: 1:24 pm | E46: 99 | F46: Solar FV | G46: Sahagun 500 kV | H46: SC_1415 | I46: 2025-12-31 | J46: 2025-12-31 | K46: NO | L46: SI | M46: Córdoba - Sucre | N46: NO | O46: 54189464587 | P46: -0.03
A47: SC_1415_A2 | B47: Efigen C03 99 MW | C47: 2022-07-16 | D47: 1:24 pm | E47: 99 | F47: Solar FV | G47: Chinu 500 | H47: SC_1415 | I47: 2025-12-31 | J47: 2025-12-31 | K47: NO | L47: SI | M47: Córdoba - Sucre | N47: NO | O47: 54189464587 | P47: -0.03
A48: SC_1420_A1 | B48: Efigen C04 99 MW | C48: 2022-07-16 | D48: 1:25 pm | E48: 99 | F48: Solar FV | G48: Sahagun 500 kV | H48: SC_1420 | I48: 2025-12-31 | J48: 2025-12-31 | K48: NO | L48: SI | M48: Córdoba - Sucre | N48: NO | O48: 54189464587 | P48: -0.03
A49: SC_1420_A2 | B49: Efigen C04 99 MW | C49: 2022-07-16 | D49: 1:25 pm | E49: 99 | F49: Solar FV | G49: Chinu 500 | H49: SC_1420 | I49: 2025-12-31 | J49: 2025-12-31 | K49: NO | L49: SI | M49: Córdoba - Sucre | N49: NO | O49: 54189464587 | P49: -0.03
A50: SC_1435_A1 | B50: Parque Solar Las Brisas | C50: 2022-07-16 | D50: 4:03 pm | E50: 9.9 | F50: Solar FV | G50: Sierra Flor 34.5 | H50: SC_1435 | I50: 2024-12-31 | J50: 2024-12-31 | K50: NO | L50: NO | M50: Córdoba - Sucre | N50: NO | O50: 0 | P50: -0.937
A51: SC_978_A1 | B51: Borugo Solar | C51: 2022-07-16 | D51: 4:38 pm | E51: 99.9 | F51: Solar FV | G51: Boston 110 | H51: SC_978 | I51: 2026-12-31 | J51: 2026-12-31 | K51: NO | L51: NO | M51: Córdoba - Sucre | N51: NO | O51: 0 | P51: -0.01262
A52: SC_1520_A1 | B52: Autogenerador Solar Argos Tolcemento - 19.9 MW | C52: 2022-07-17 | D52: 3:57 pm | E52: 19.9 | F52: Solar FV | G52: Toluviejo 220 | H52: SC_1520 | I52: 2024-12-31 | J52: 2024-12-31 | K52: NO | L52: NO | M52: Córdoba - Sucre | N52: NO | O52: 0 | P52: -1.8237
A53: SC_1520_A2 | B53: Autogenerador Solar Argos Tolcemento - 19.9 MW | C53: 2022-07-17 | D53: 3:57 pm | E53: 19.9 | F53: Solar FV | G53: Toluviejo 220 | H53: SC_1520 | I53: 2024-12-31 | J53: 2024-12-31 | K53: NO | L53: NO | M53: Córdoba - Sucre | N53: NO | O53: 0 | P53: -1.8237
A54: SC_1527_A1 | B54: Nueva Montería Solar III _9,9 MW | C54: 2022-07-17 | D54: 5:00 pm | E54: 9.9 | F54: Solar FV | G54: Nva Monteria 34.5 | H54: SC_1527 | I54: 2025-12-31 | J54: 2025-12-31 | K54: NO | L54: NO | M54: Córdoba - Sucre | N54: NO | O54: 0 | P54: -0.187
A55: SC_1527_A2 | B55: Nueva Montería Solar III _9,9 MW | C55: 2022-07-17 | D55: 5:00 pm | E55: 9.9 | F55: Solar FV | G55: Nva Monetria 13.8 | H55: SC_1527 | I55: 2025-12-31 | J55: 2025-12-31 | K55: NO | L55: NO | M55: Córdoba - Sucre | N55: NO | O55: 0 | P55: -0.189
A56: SC_1395_A1 | B56: San Marcos I 19.9 | C56: 2022-07-17 | D56: 10:23 pm | E56: 19.9 | F56: Solar FV | G56: San Marcos 110 | H56: SC_1395 | I56: 2026-12-01 | J56: 2026-12-01 | K56: NO | L56: NO | M56: Córdoba - Sucre | N56: NO | O56: 0 | P56: 0.301
A57: SC_1396_A1 | B57: San Marcos II 19.9 | C57: 2022-07-18 | D57: 6:17 am | E57: 19.9 | F57: Solar FV | G57: San Marcos 110 | H57: SC_1396 | I57: 2026-12-01 | J57: 2026-12-01 | K57: NO | L57: NO | M57: Córdoba - Sucre | N57: NO | O57: 0 | P57: 0.301
A58: SC_1359_A1 | B58: El Corozo_250MW | C58: 2022-07-18 | D58: 9:42 am | E58: 250 | F58: Solar FV | G58: Sahagun 500 kV | H58: SC_1359 | I58: 2027-12-31 | J58: 2027-12-31 | K58: NO | L58: SI | M58: Córdoba - Sucre | N58: NO | O58: 54189464587 | P58: -0.1
A59: SC_1359_A2 | B59: El Corozo_250MW | C59: 2022-07-18 | D59: 9:42 am | E59: 250 | F59: Solar FV | G59: Chinu 500 | H59: SC_1359 | I59: 2027-12-31 | J59: 2027-12-31 | K59: NO | L59: SI | M59: Córdoba - Sucre | N59: NO | O59: 54189464587 | P59: -0.09
A60: SC_1598_A1 | B60: PARQUE SOLAR FOTOVOLTAICO MATIMBA de 150MW | C60: 2022-07-18 | D60: 11:16 am | E60: 150 | F60: Solar FV | G60: Chinu 220 | H60: SC_1598 | I60: 2026-12-31 | J60: 2026-12-31 | K60: NO | L60: NO | M60: Córdoba - Sucre | N60: NO | O60: 0 | P60: -38.28
A61: SC_1598_A2 | B61: PARQUE SOLAR FOTOVOLTAICO MATIMBA de 150MW | C61: 2022-07-18 | D61: 11:16 am | E61: 150 | F61: Solar FV | G61: Chinu 500 | H61: SC_1598 | I61: 2026-12-31 | J61: 2026-12-31 | K61: NO | L61: NO | M61: Córdoba - Sucre | N61: NO | O61: 0 | P61: -37.22
A62: SC_981_A1 | B62: Yaguarundi Solar | C62: 2022-07-18 | D62: 1:43 pm | E62: 40 | F62: Solar FV | G62: San Marcos 110 | H62: SC_981 | I62: 2026-12-31 | J62: 2026-12-31 | K62: NO | L62: NO | M62: Córdoba - Sucre | N62: NO | O62: 0 | P62: -6.7524
A63: SC_981_A2 | B63: Yaguarundi Solar | C63: 2022-07-18 | D63: 1:43 pm | E63: 40 | F63: Solar FV | G63: Toluviejo 110 | H63: SC_981 | I63: 2026-12-31 | J63: 2026-12-31 | K63: NO | L63: NO | M63: Córdoba - Sucre | N63: NO | O63: 0 | P63: -7.3873
A64: SC_1634_A1 | B64: El Tapir Solar 99.9 MW | C64: 2022-07-18 | D64: 3:24 pm | E64: 99.9 | F64: Solar FV | G64: Boston 110 | H64: SC_1634 | I64: 2026-12-31 | J64: 2026-12-31 | K64: NO | L64: NO | M64: Córdoba - Sucre | N64: NO | O64: 0 | P64: -13.289
A65: SC_782_A1 | B65: Parque Solar El Corozo 60 MW | C65: 2022-07-18 | D65: 10:24 pm | E65: 60 | F65: Solar FV | G65: Sierra Flor 110 | H65: SC_782 | I65: 2026-12-31 | J65: 2026-12-31 | K65: NO | L65: NO | M65: Córdoba - Sucre | N65: NO | O65: 0 | P65: -0.00075505
A66: SC_782_A2 | B66: Parque Solar El Corozo 60 MW | C66: 2022-07-18 | D66: 10:24 pm | E66: 60 | F66: Solar FV | G66: Toluviejo 110 | H66: SC_782 | I66: 2026-12-31 | J66: 2026-12-31 | K66: NO | L66: NO | M66: Córdoba - Sucre | N66: NO | O66: 0 | P66: -0.00086105
A67: SC_1762_A1 | B67: SPK CERETÉ SOLAR_19.9MW | C67: 2022-07-19 | D67: 4:33 pm | E67: 19.9 | F67: Solar FV | G67: Cerete 34.5 | H67: SC_1762 | I67: 2026-12-31 | J67: 2026-12-31 | K67: NO | L67: NO | M67: Córdoba - Sucre | N67: NO | O67: 0 | P67: -0.82684
A68: SC_1762_A2 | B68: SPK CERETÉ SOLAR_19.9MW | C68: 2022-07-19 | D68: 4:33 pm | E68: 19.9 | F68: Solar FV | G68: Cerete 110 | H68: SC_1762 | I68: 2026-12-31 | J68: 2026-12-31 | K68: NO | L68: NO | M68: Córdoba - Sucre | N68: NO | O68: 0 | P68: -0.83831
A69: SC_1782_A1 | B69: Orquídea del Sucre - Toluviejo | C69: 2022-07-22 | D69: 2:20 pm | E69: 112 | F69: Solar FV | G69: Nva Toluviejo 110 | H69: SC_1782 | I69: 2027-12-31 | J69: 2027-12-31 | K69: NO | L69: NO | M69: Córdoba - Sucre | N69: NO | O69: 0 | P69: -48.0892
A70: SC_1782_A2 | B70: Orquídea del Sucre - Toluviejo | C70: 2022-07-22 | D70: 2:20 pm | E70: 112 | F70: Solar FV | G70: Toluviejo 220 | H70: SC_1782 | I70: 2027-12-31 | J70: 2027-12-31 | K70: NO | L70: NO | M70: Córdoba - Sucre | N70: NO | O70: 0 | P70: -46.31163
A71: SC_1784_A1 | B71: Pétalo del Sucre - Sierra Flor 9,9 MW | C71: 2022-07-22 | D71: 2:47 pm | E71: 9.9 | F71: Solar FV | G71: Sierra Flor 13.8 | H71: SC_1784 | I71: 2026-01-31 | J71: 2026-01-31 | K71: NO | L71: NO | M71: Córdoba - Sucre | N71: NO | O71: 0 | P71: -0.70829
A72: SC_1784_A2 | B72: Pétalo del Sucre - Sierra Flor 9,9 MW | C72: 2022-07-22 | D72: 2:47 pm | E72: 9.9 | F72: Solar FV | G72: Sierra Flor 34.5 | H72: SC_1784 | I72: 2026-01-31 | J72: 2026-01-31 | K72: NO | L72: NO | M72: Córdoba - Sucre | N72: NO | O72: 0 | P72: -0.72756
A73: SC_1715_A1 | B73: Andrómeda Solar de 50 MW (entrega 41 MW) | C73: 2022-07-22 | D73: 5:03 pm | E73: 41 | F73: Solar FV | G73: Toluviejo 110 | H73: SC_1715 | I73: 2026-12-31 | J73: 2026-12-31 | K73: NO | L73: NO | M73: Córdoba - Sucre | N73: NO | O73: 0 | P73: -3.0894184
A74: SC_1715_A2 | B74: Andrómeda Solar de 50 MW (entrega 41 MW) | C74: 2022-07-22 | D74: 5:03 pm | E74: 41 | F74: Solar FV | G74: Sierra Flor 110 | H74: SC_1715 | I74: 2026-12-31 | J74: 2026-12-31 | K74: NO | L74: NO | M74: Córdoba - Sucre | N74: NO | O74: 0 | P74: -1.7282312
A75: SC_1809_A1 | B75: DSE COVEÑAS | C75: 2022-07-26 | D75: 9:37 am | E75: 9.9 | F75: Solar FV | G75: Coveñas 110 | H75: SC_1809 | I75: 2025-11-30 | J75: 2025-11-30 | K75: NO | L75: NO | M75: Córdoba - Sucre | N75: NO | O75: 0 | P75: -0.33595
A76: SC_1809_A2 | B76: DSE COVEÑAS | C76: 2022-07-26 | D76: 9:37 am | E76: 9.9 | F76: Solar FV | G76: Coveñas 34.5 | H76: SC_1809 | I76: 2025-11-30 | J76: 2025-11-30 | K76: NO | L76: NO | M76: Córdoba - Sucre | N76: NO | O76: 0 | P76: -0.33615
A77: SC_1838_A1 | B77: Since Solar I 9,9 MW | C77: 2022-07-28 | D77: 3:03 pm | E77: 9.9 | F77: Solar FV | G77: Since 13.8 | H77: SC_1838 | I77: 2025-12-31 | J77: 2025-12-31 | K77: NO | L77: NO | M77: Córdoba - Sucre | N77: NO | O77: 0 | P77: -0.9798
A78: SC_1838_A2 | B78: Since Solar I 9,9 MW | C78: 2022-07-28 | D78: 3:03 pm | E78: 9.9 | F78: Solar FV | G78: Corozal 13.8 | H78: SC_1838 | I78: 2025-12-31 | J78: 2025-12-31 | K78: NO | L78: NO | M78: Córdoba - Sucre | N78: NO | O78: 0 | P78: -0.70227
A79: SC_1853_A1 | B79: Tolú Solar 9,9 MW | C79: 2022-07-28 | D79: 3:08 pm | E79: 9.9 | F79: Solar FV | G79: Tolu 13.8 | H79: SC_1853 | I79: 2025-12-31 | J79: 2025-12-31 | K79: NO | L79: NO | M79: Córdoba - Sucre | N79: NO | O79: 0 | P79: -0.65049
A80: SC_1853_A2 | B80: Tolú Solar 9,9 MW | C80: 2022-07-28 | D80: 3:08 pm | E80: 9.9 | F80: Solar FV | G80: Tolu 34.5 | H80: SC_1853 | I80: 2025-12-31 | J80: 2025-12-31 | K80: NO | L80: NO | M80: Córdoba - Sucre | N80: NO | O80: 0 | P80: -0.66494
A81: SC_1882_A1 | B81: Proyecto Solar Oviedo | C81: 2022-07-28 | D81: 4:24 pm | E81: 9.9 | F81: Solar FV | G81: Since 13.8 | H81: SC_1882 | I81: 2025-12-31 | J81: 2025-12-31 | K81: NO | L81: NO | M81: Córdoba - Sucre | N81: NO | O81: 0 | P81: -0.9798
A82: SC_1882_A2 | B82: Proyecto Solar Oviedo | C82: 2022-07-28 | D82: 4:24 pm | E82: 9.9 | F82: Solar FV | G82: Corozal 13.8 | H82: SC_1882 | I82: 2025-12-31 | J82: 2025-12-31 | K82: NO | L82: NO | M82: Córdoba - Sucre | N82: NO | O82: 0 | P82: -0.70227
A83: SC_1913_A1 | B83: PS Noe | C83: 2022-07-29 | D83: 10:49 am | E83: 9.9 | F83: Solar FV | G83: Cienaga de Oro 34.5 | H83: SC_1913 | I83: 2025-12-31 | J83: 2025-12-31 | K83: NO | L83: NO | M83: Córdoba - Sucre | N83: NO | O83: 0 | P83: 0.53992
A84: SC_1913_A2 | B84: PS Noe | C84: 2022-07-29 | D84: 10:49 am | E84: 9.9 | F84: Solar FV | G84: Cerete 34.5 | H84: SC_1913 | I84: 2025-12-31 | J84: 2025-12-31 | K84: NO | L84: NO | M84: Córdoba - Sucre | N84: NO | O84: 0 | P84: -0.36766
A85: SC_1491_A1 | B85: SABANA SOLAR_90MW | C85: 2022-07-31 | D85: 9:17 pm | E85: 90 | F85: Solar FV | G85: Chinu 110 | H85: SC_1491 | I85: 2025-12-31 | J85: 2025-12-31 | K85: NO | L85: NO | M85: Córdoba - Sucre | N85: NO | O85: 0 | P85: -11.2
A86: SC_1491_A2 | B86: SABANA SOLAR_90MW | C86: 2022-07-31 | D86: 9:17 pm | E86: 90 | F86: Solar FV | G86: Chinu 220 | H86: SC_1491 | I86: 2025-12-31 | J86: 2025-12-31 | K86: NO | L86: NO | M86: Córdoba - Sucre | N86: NO | O86: 0 | P86: -11.5
A87: SC_1894_A1 | B87: Aquila Solar | C87: 2022-08-01 | D87: 9:57 am | E87: 47 | F87: Solar FV | G87: Sierra Flor 110 | H87: SC_1894 | I87: 2025-12-31 | J87: 2025-12-31 | K87: NO | L87: NO | M87: Córdoba - Sucre | N87: NO | O87: 0 | P87: -2.5540656
A88: SC_1894_A2 | B88: Aquila Solar | C88: 2022-08-01 | D88: 9:57 am | E88: 47 | F88: Solar FV | G88: Boston 110 | H88: SC_1894 | I88: 2025-12-31 | J88: 2025-12-31 | K88: NO | L88: NO | M88: Córdoba - Sucre | N88: NO | O88: 0 | P88: -2.0046384
A89: SC_1887_A1 | B89: Boston Solar | C89: 2022-08-01 | D89: 11:17 am | E89: 100 | F89: Solar FV | G89: Boston 110 | H89: SC_1887 | I89: 2026-12-31 | J89: 2026-12-31 | K89: NO | L89: NO | M89: Córdoba - Sucre | N89: NO | O89: 0 | P89: -11.83904
A90: SC_1887_A2 | B90: Boston Solar | C90: 2022-08-01 | D90: 11:17 am | E90: 100 | F90: Solar FV | G90: Sierra Flor 110 | H90: SC_1887 | I90: 2026-12-31 | J90: 2026-12-31 | K90: NO | L90: NO | M90: Córdoba - Sucre | N90: NO | O90: 0 | P90: -12.05657
A91: SC_2104_A1 | B91: El Dorado - 300 MW | C91: 2022-08-03 | D91: 5:42 pm | E91: 300 | F91: Solar FV | G91: Sahagun 500 kV | H91: SC_2104 | I91: 2026-12-31 | J91: 2026-12-31 | K91: NO | L91: NO | M91: Córdoba - Sucre | N91: NO | O91: 0 | P91: -16.74709
A92: SC_2104_A2 | B92: El Dorado - 300 MW | C92: 2022-08-03 | D92: 5:42 pm | E92: 300 | F92: Solar FV | G92: Chinu 500 | H92: SC_2104 | I92: 2026-12-31 | J92: 2026-12-31 | K92: NO | L92: NO | M92: Córdoba - Sucre | N92: NO | O92: 0 | P92: -15.47419
A93: SC_2028_A1 | B93: Parque Solar Fandango | C93: 2022-08-05 | D93: 11:45 am | E93: 19.9 | F93: Solar FV | G93: Sierra Flor 110 | H93: SC_2028 | I93: 2025-01-31 | J93: 2025-01-31 | K93: NO | L93: NO | M93: Córdoba - Sucre | N93: NO | O93: 0 | P93: -1.813
A94: SC_2028_A2 | B94: Parque Solar Fandango | C94: 2022-08-05 | D94: 11:45 am | E94: 19.9 | F94: Solar FV | G94: Sierra Flor 34.5 | H94: SC_2028 | I94: 2025-01-31 | J94: 2025-01-31 | K94: NO | L94: NO | M94: Córdoba - Sucre | N94: NO | O94: 0 | P94: -1.761
A95: SC_2015_A1 | B95: Parque Solar El Bongo | C95: 2022-08-05 | D95: 11:51 am | E95: 19.9 | F95: Solar FV | G95: Tierralta 110 | H95: SC_2015 | I95: 2025-01-31 | J95: 2025-01-31 | K95: NO | L95: NO | M95: Córdoba - Sucre | N95: NO | O95: 0 | P95: -2.271
A96: SC_2015_A2 | B96: Parque Solar El Bongo | C96: 2022-08-05 | D96: 11:51 am | E96: 19.9 | F96: Solar FV | G96: Tierra Alta 34.5 | H96: SC_2015 | I96: 2025-01-31 | J96: 2025-01-31 | K96: NO | L96: NO | M96: Córdoba - Sucre | N96: NO | O96: 0 | P96: -2.264
A97: SC_2049_A1 | B97: Parque Solar Sinú | C97: 2022-08-05 | D97: 11:55 am | E97: 9.9 | F97: Solar FV | G97: Rio sinu 34.5 | H97: SC_2049 | I97: 2025-12-31 | J97: 2025-12-31 | K97: NO | L97: NO | M97: Córdoba - Sucre | N97: NO | O97: 0 | P97: -0.37373
A98: SC_2049_A2 | B98: Parque Solar Sinú | C98: 2022-08-05 | D98: 11:55 am | E98: 9.9 | F98: Solar FV | G98: Rio Sinu 110 | H98: SC_2049 | I98: 2025-12-31 | J98: 2025-12-31 | K98: NO | L98: NO | M98: Córdoba - Sucre | N98: NO | O98: 0 | P98: -0.3627
A99: SC_2042_A1 | B99: Parque Solar La Uvita | C99: 2022-08-05 | D99: 11:58 am | E99: 19.9 | F99: Solar FV | G99: Coveñas 34.5 | H99: SC_2042 | I99: 2025-12-31 | J99: 2025-12-31 | K99: NO | L99: NO | M99: Córdoba - Sucre | N99: NO | O99: 0 | P99: -1.732
A100: SC_2042_A2 | B100: Parque Solar La Uvita | C100: 2022-08-05 | D100: 11:58 am | E100: 19.9 | F100: Solar FV | G100: Coveñas 110 | H100: SC_2042 | I100: 2025-12-31 | J100: 2025-12-31 | K100: NO | L100: NO | M100: Córdoba - Sucre | N100: NO | O100: 0 | P100: -1.774
A101: SC_2111_A1 | B101: PROYECTO QUIMARÍ SOLAR_90MW | C101: 2022-08-07 | D101: 12:03 am | E101: 90 | F101: Solar FV | G101: Urra 220 | H101: SC_2111 | I101: 2025-12-31 | J101: 2025-12-31 | K101: NO | L101: SI | M101: Córdoba - Sucre | N101: NO | O101: 7181670000 | P101: -17.809
A102: SC_2111_A2 | B102: PROYECTO QUIMARÍ SOLAR_90MW | C102: 2022-08-07 | D102: 12:03 am | E102: 90 | F102: Solar FV | G102: Uraba 220 | H102: SC_2111 | I102: 2025-12-31 | J102: 2025-12-31 | K102: NO | L102: SI | M102: Córdoba - Sucre | N102: NO | O102: 7181670000 | P102: -17.805
A103: SC_2173_A1 | B103: Nueva Montería Solar I 9,9 MW | C103: 2022-08-08 | D103: 11:08 am | E103: 9.9 | F103: Solar FV | G103: Nva Monetria 13.8 | H103: SC_2173 | I103: 2025-12-31 | J103: 2025-12-31 | K103: NO | L103: NO | M103: Córdoba - Sucre | N103: NO | O103: 0 | P103: -1.08019
A104: SC_2173_A2 | B104: Nueva Montería Solar I 9,9 MW | C104: 2022-08-08 | D104: 11:08 am | E104: 9.9 | F104: Solar FV | G104: Nva Monteria 34.5 | H104: SC_2173 | I104: 2025-12-31 | J104: 2025-12-31 | K104: NO | L104: NO | M104: Córdoba - Sucre | N104: NO | O104: 0 | P104: -1.524
A105: SC_2174_A1 | B105: Nueva Montería Solar I 9,9 MW | C105: 2022-08-08 | D105: 11:10 am | E105: 9.9 | F105: Solar FV | G105: Nva Monetria 13.8 | H105: SC_2174 | I105: 2025-12-31 | J105: 2025-12-31 | K105: NO | L105: NO | M105: Córdoba - Sucre | N105: NO | O105: 0 | P105: -1.08019
A106: SC_2174_A2 | B106: Nueva Montería Solar I 9,9 MW | C106: 2022-08-08 | D106: 11:10 am | E106: 9.9 | F106: Solar FV | G106: Nva Monteria 34.5 | H106: SC_2174 | I106: 2025-12-31 | J106: 2025-12-31 | K106: NO | L106: NO | M106: Córdoba - Sucre | N106: NO | O106: 0 | P106: -1.524
A107: SC_2016_A1 | B107: Hidalgo Solar 80 MW | C107: 2022-08-08 | D107: 4:01 pm | E107: 80 | F107: Solar FV | G107: Coveñas 110 | H107: SC_2016 | I107: 2025-12-31 | J107: 2025-12-31 | K107: NO | L107: NO | M107: Córdoba - Sucre | N107: NO | O107: 0 | P107: -0.9736787
A108: SC_2016_A2 | B108: Hidalgo Solar 80 MW | C108: 2022-08-08 | D108: 4:01 pm | E108: 80 | F108: Solar FV | G108: Sierra Flor 110 | H108: SC_2016 | I108: 2025-12-31 | J108: 2025-12-31 | K108: NO | L108: NO | M108: Córdoba - Sucre | N108: NO | O108: 0 | P108: -0.9439704
A109: SC_2016_A3 | B109: Hidalgo Solar 80 MW | C109: 2022-08-08 | D109: 4:01 pm | E109: 80 | F109: Solar FV | G109: Toluviejo 110 | H109: SC_2016 | I109: 2025-12-31 | J109: 2025-12-31 | K109: NO | L109: NO | M109: Córdoba - Sucre | N109: NO | O109: 0 | P109: -0.9439704
A110: SC_2135_A1 | B110: DSE SIERRAFLOR | C110: 2022-08-09 | D110: 1:27 pm | E110: 99.9 | F110: Solar FV | G110: Sierra Flor 110 | H110: SC_2135 | I110: 2026-12-31 | J110: 2026-12-31 | K110: NO | L110: NO | M110: Córdoba - Sucre | N110: NO | O110: 0 | P110: -5.93
A111: SC_2135_A2 | B111: DSE SIERRAFLOR | C111: 2022-08-09 | D111: 1:27 pm | E111: 99.9 | F111: Solar FV | G111: Nva Toluviejo 110 | H111: SC_2135 | I111: 2026-12-31 | J111: 2026-12-31 | K111: NO | L111: NO | M111: Córdoba - Sucre | N111: NO | O111: 0 | P111: -7.26
A112: SC_1821_A1 | B112: Balay Solar | C112: 2022-08-10 | D112: 3:11 pm | E112: 70 | F112: Solar FV | G112: Tierralta 110 | H112: SC_1821 | I112: 2027-12-31 | J112: 2027-12-31 | K112: NO | L112: NO | M112: Córdoba - Sucre | N112: NO | O112: 0 | P112: -5.1447
A113: SC_1821_A2 | B113: Balay Solar | C113: 2022-08-10 | D113: 3:11 pm | E113: 70 | F113: Solar FV | G113: Nva Monteria 110 | H113: SC_1821 | I113: 2027-12-31 | J113: 2027-12-31 | K113: NO | L113: NO | M113: Córdoba - Sucre | N113: NO | O113: 0 | P113: 6.032
A114: SC_1859_A1 | B114: PV Altamira_99MW | C114: 2022-08-10 | D114: 3:14 pm | E114: 99 | F114: Solar FV | G114: Rio Sinu 110 | H114: SC_1859 | I114: 2027-12-31 | J114: 2027-12-31 | K114: NO | L114: NO | M114: Córdoba - Sucre | N114: NO | O114: 0 | P114: -5.866
A115: SC_1859_A2 | B115: PV Altamira_99MW | C115: 2022-08-10 | D115: 3:14 pm | E115: 99 | F115: Solar FV | G115: Nva Monteria 110 | H115: SC_1859 | I115: 2027-12-31 | J115: 2027-12-31 | K115: NO | L115: NO | M115: Córdoba - Sucre | N115: NO | O115: 0 | P115: -5.488
A116: SC_1843_A1 | B116: KOS de 19.9 MW | C116: 2022-08-11 | D116: 9:54 am | E116: 19.9 | F116: Solar FV | G116: Cerete 34.5 | H116: SC_1843 | I116: 2025-12-31 | J116: 2025-12-31 | K116: NO | L116: NO | M116: Córdoba - Sucre | N116: NO | O116: 0 | P116: -1.42536
A117: SC_1843_A2 | B117: KOS de 19.9 MW | C117: 2022-08-11 | D117: 9:54 am | E117: 19.9 | F117: Solar FV | G117: Cerete 13.8 | H117: SC_1843 | I117: 2025-12-31 | J117: 2025-12-31 | K117: NO | L117: NO | M117: Córdoba - Sucre | N117: NO | O117: 0 | P117: -1.3659
A118: SC_2012_A1 | B118: Parqu Solar Fotovoltaico Rocio del Sol 50 MW | C118: 2022-08-11 | D118: 20:06:00 | E118: 50 | F118: Solar FV | G118: Magangue 110 kV | H118: SC_2012 | I118: 2026-12-31 | J118: 2026-12-31 | K118: NO | L118: NO | M118: Córdoba - Sucre | N118: NO | O118: 0 | P118: -1.85
A119: SC_2012_A2 | B119: Parqu Solar Fotovoltaico Rocio del Sol 50 MW | C119: 2022-08-11 | D119: 20:06:00 | E119: 50 | F119: Solar FV | G119: Since 110 | H119: SC_2012 | I119: 2026-12-31 | J119: 2026-12-31 | K119: NO | L119: NO | M119: Córdoba - Sucre | N119: NO | O119: 0 | P119: -2.02
A120: SC_1807_A1 | B120: Parque Solar Canis 49,9 MW | C120: 2022-08-12 | D120: 1:41 pm | E120: 49.9 | F120: Solar FV | G120: Nva Monteria 110 | H120: SC_1807 | I120: 2025-12-31 | J120: 2025-12-31 | K120: NO | L120: NO | M120: Córdoba - Sucre | N120: NO | O120: 0 | P120: -19.54983
A121: SC_1807_A2 | B121: Parque Solar Canis 49,9 MW | C121: 2022-08-12 | D121: 1:41 pm | E121: 49.9 | F121: Solar FV | G121: Rio Sinu 110 | H121: SC_1807 | I121: 2025-12-31 | J121: 2025-12-31 | K121: NO | L121: NO | M121: Córdoba - Sucre | N121: NO | O121: 0 | P121: -18.78987
A122: SC_1918_A1 | B122: Casiopea 40 MW | C122: 2022-08-16 | D122: 11:09 am | E122: 40 | F122: Solar FV | G122: Chinu 110 | H122: SC_1918 | I122: 2025-12-31 | J122: 2025-12-31 | K122: NO | L122: NO | M122: Córdoba - Sucre | N122: NO | O122: 0 | P122: -9.689
A123: SC_1918_A2 | B123: Casiopea 40 MW | C123: 2022-08-16 | D123: 11:09 am | E123: 40 | F123: Solar FV | G123: Boston 110 | H123: SC_1918 | I123: 2025-12-31 | J123: 2025-12-31 | K123: NO | L123: NO | M123: Córdoba - Sucre | N123: NO | O123: 0 | P123: -10.164
A124: SC_1813_A1 | B124: Parque de generación Cefeo | C124: 2022-08-16 | D124: 11:40:00 | E124: 19.9 | F124: Solar FV | G124: Mompox 110 kV | H124: SC_1813 | I124: 2025-12-28 | J124: 2025-12-28 | K124: NO | L124: NO | M124: Córdoba - Sucre | N124: NO | O124: 0 | P124: -9.9533
A125: SC_1813_A2 | B125: Parque de generación Cefeo | C125: 2022-08-16 | D125: 11:40:00 | E125: 19.9 | F125: Solar FV | G125: Mompox 34,5 kV | H125: SC_1813 | I125: 2025-12-28 | J125: 2025-12-28 | K125: NO | L125: NO | M125: Córdoba - Sucre | N125: NO | O125: 0 | P125: -9.71326
A126: SC_1949_A1 | B126: Solar Planeta Rica | C126: 2022-08-16 | D126: 2:06 pm | E126: 19.9 | F126: Solar FV | G126: Planeta 110 | H126: SC_1949 | I126: 2026-12-31 | J126: 2026-12-31 | K126: NO | L126: NO | M126: Córdoba - Sucre | N126: NO | O126: 0 | P126: -2.71
A127: SC_1949_A2 | B127: Solar Planeta Rica | C127: 2022-08-16 | D127: 2:06 pm | E127: 19.9 | F127: Solar FV | G127: Cerromatoso 110 | H127: SC_1949 | I127: 2026-12-31 | J127: 2026-12-31 | K127: NO | L127: NO | M127: Córdoba - Sucre | N127: NO | O127: 0 | P127: -1.04
A128: SC_1970_A1 | B128: Parque Solar Montería | C128: 2022-08-16 | D128: 2:30 pm | E128: 99 | F128: Solar FV | G128: Rio Sinu 110 | H128: SC_1970 | I128: 2026-12-31 | J128: 2026-12-31 | K128: NO | L128: NO | M128: Córdoba - Sucre | N128: NO | O128: 0 | P128: -5.641
A129: SC_1970_A2 | B129: Parque Solar Montería | C129: 2022-08-16 | D129: 2:30 pm | E129: 99 | F129: Solar FV | G129: Nva Monteria 110 | H129: SC_1970 | I129: 2026-12-31 | J129: 2026-12-31 | K129: NO | L129: NO | M129: Córdoba - Sucre | N129: NO | O129: 0 | P129: 5.631
A130: SC_2072_A1 | B130: Porvenir - 9.9 MW | C130: 2022-08-16 | D130: 9:50 pm | E130: 9.9 | F130: Solar FV | G130: Coveñas 34.5 | H130: SC_2072 | I130: 2025-12-31 | J130: 2025-12-31 | K130: NO | L130: NO | M130: Córdoba - Sucre | N130: NO | O130: 0 | P130: -2.13
A131: SC_2204_A1 | B131: Parque Solar Ciénaga Grande - 19.9 MW | C131: 2022-08-17 | D131: 16:16:00 | E131: 19.9 | F131: Solar FV | G131: Magangue 13,8 kV | H131: SC_2204 | I131: 2025-12-31 | J131: 2025-12-31 | K131: NO | L131: NO | M131: Córdoba - Sucre | N131: NO | O131: 0 | P131: -0.96
A132: SC_2204_A2 | B132: Parque Solar Ciénaga Grande - 19.9 MW | C132: 2022-08-17 | D132: 16:16:00 | E132: 19.9 | F132: Solar FV | G132: Magangue 34,5 kV | H132: SC_2204 | I132: 2025-12-31 | J132: 2025-12-31 | K132: NO | L132: NO | M132: Córdoba - Sucre | N132: NO | O132: 0 | P132: -0.94
A133: SC_2166_A1 | B133: Parque fotovoltaico Delphinus | C133: 2022-08-19 | D133: 2:10 pm | E133: 19.9 | F133: Solar FV | G133: Tierralta 110 | H133: SC_2166 | I133: 2025-12-24 | J133: 2025-12-24 | K133: NO | L133: NO | M133: Córdoba - Sucre | N133: NO | O133: 0 | P133: -1.15
A134: SC_2166_A2 | B134: Parque fotovoltaico Delphinus | C134: 2022-08-19 | D134: 2:10 pm | E134: 19.9 | F134: Solar FV | G134: Tierra Alta 34.5 | H134: SC_2166 | I134: 2025-12-24 | J134: 2025-12-24 | K134: NO | L134: NO | M134: Córdoba - Sucre | N134: NO | O134: 0 | P134: -1.37
A135: SC_1923_A1 | B135: Parque Solar Fotovoltaico Chunú I 50 MW | C135: 2022-08-22 | D135: 11:12 am | E135: 50 | F135: Solar FV | G135: Chinu 220 | H135: SC_1923 | I135: 2027-12-31 | J135: 2027-12-31 | K135: NO | L135: NO | M135: Córdoba - Sucre | N135: NO | O135: 0 | P135: -4.92
A136: SC_1923_A2 | B136: Parque Solar Fotovoltaico Chunú I 50 MW | C136: 2022-08-22 | D136: 11:12 am | E136: 50 | F136: Solar FV | G136: Chinu 500 | H136: SC_1923 | I136: 2027-12-31 | J136: 2027-12-31 | K136: NO | L136: NO | M136: Córdoba - Sucre | N136: NO | O136: 0 | P136: -4.86
A137: SC_1937_A1 | B137: Parque Solar Fotovoltaico ChInú II 50 MW | C137: 2022-08-22 | D137: 11:14 am | E137: 50 | F137: Solar FV | G137: Chinu 220 | H137: SC_1937 | I137: 2027-12-31 | J137: 2027-12-31 | K137: NO | L137: NO | M137: Córdoba - Sucre | N137: NO | O137: 0 | P137: -4.92
A138: SC_1937_A2 | B138: Parque Solar Fotovoltaico ChInú II 50 MW | C138: 2022-08-22 | D138: 11:14 am | E138: 50 | F138: Solar FV | G138: Chinu 500 | H138: SC_1937 | I138: 2027-12-31 | J138: 2027-12-31 | K138: NO | L138: NO | M138: Córdoba - Sucre | N138: NO | O138: 0 | P138: -4.86
A139: SC_1810_A1 | B139: Parque Solar Coveñas 50 MW | C139: 2022-08-22 | D139: 11:29 am | E139: 50 | F139: Solar FV | G139: Coveñas 110 | H139: SC_1810 | I139: 2027-12-31 | J139: 2027-12-31 | K139: NO | L139: NO | M139: Córdoba - Sucre | N139: NO | O139: 0 | P139: -5.67
A140: SC_1810_A2 | B140: Parque Solar Coveñas 50 MW | C140: 2022-08-22 | D140: 11:29 am | E140: 50 | F140: Solar FV | G140: Nva Toluviejo 110 | H140: SC_1810 | I140: 2027-12-31 | J140: 2027-12-31 | K140: NO | L140: NO | M140: Córdoba - Sucre | N140: NO | O140: 0 | P140: -6.83
A141: SC_1835_A1 | B141: Parque Solar Coveñas II 50 MW | C141: 2022-08-22 | D141: 11:30 am | E141: 50 | F141: Solar FV | G141: Coveñas 110 | H141: SC_1835 | I141: 2027-12-31 | J141: 2027-12-31 | K141: NO | L141: NO | M141: Córdoba - Sucre | N141: NO | O141: 0 | P141: -5.67
A142: SC_1835_A2 | B142: Parque Solar Coveñas II 50 MW | C142: 2022-08-22 | D142: 11:30 am | E142: 50 | F142: Solar FV | G142: Nva Toluviejo 110 | H142: SC_1835 | I142: 2027-12-31 | J142: 2027-12-31 | K142: NO | L142: NO | M142: Córdoba - Sucre | N142: NO | O142: 0 | P142: -6.83
A143: SC_1873_A1 | B143: Cusumbo Solar | C143: 2022-08-22 | D143: 12:37 pm | E143: 99.9 | F143: Solar FV | G143: Chinu 220 | H143: SC_1873 | I143: 2026-12-31 | J143: 2026-12-31 | K143: NO | L143: NO | M143: Córdoba - Sucre | N143: NO | O143: 0 | P143: -37.09
A144: SC_1873_A2 | B144: Cusumbo Solar | C144: 2022-08-22 | D144: 12:37 pm | E144: 99.9 | F144: Solar FV | G144: Toluviejo 220 | H144: SC_1873 | I144: 2026-12-31 | J144: 2026-12-31 | K144: NO | L144: NO | M144: Córdoba - Sucre | N144: NO | O144: 0 | P144: -52.35
A145: SC_2067_A1 | B145: TIERRALTA 70 MW | C145: 2022-08-22 | D145: 9:18 pm | E145: 70 | F145: Solar FV | G145: Tierralta 110 | H145: SC_2067 | I145: 2027-12-31 | J145: 2027-12-31 | K145: NO | L145: NO | M145: Córdoba - Sucre | N145: NO | O145: 0 | P145: -5.14473
A146: SC_2067_A2 | B146: TIERRALTA 70 MW | C146: 2022-08-22 | D146: 9:18 pm | E146: 70 | F146: Solar FV | G146: Nva Monteria 110 | H146: SC_2067 | I146: 2027-12-31 | J146: 2027-12-31 | K146: NO | L146: NO | M146: Córdoba - Sucre | N146: NO | O146: 0 | P146: -4.61625
A147: SC_1942_A1 | B147: San Jorge Fotovoltaico 135 MW | C147: 2022-08-23 | D147: 3:30 pm | E147: 135 | F147: Solar FV | G147: Cerromatoso 110 | H147: SC_1942 | I147: 2025-12-31 | J147: 2025-12-31 | K147: NO | L147: NO | M147: Córdoba - Sucre | N147: NO | O147: 0 | P147: -18.213
A148: SC_1942_A2 | B148: San Jorge Fotovoltaico 135 MW | C148: 2022-08-23 | D148: 3:30 pm | E148: 135 | F148: Solar FV | G148: Cerromatoso 500 | H148: SC_1942 | I148: 2025-12-31 | J148: 2025-12-31 | K148: NO | L148: NO | M148: Córdoba - Sucre | N148: NO | O148: 0 | P148: -38.468
A149: SC_2107_A1 | B149: Parque Solar Aries | C149: 2022-08-23 | D149: 5:06 pm | E149: 175 | F149: Solar FV | G149: Chinu 220 | H149: SC_2107 | I149: 2026-12-18 | J149: 2026-12-18 | K149: NO | L149: NO | M149: Córdoba - Sucre | N149: NO | O149: 0 | P149: -21.96
A150: SC_2107_A2 | B150: Parque Solar Aries | C150: 2022-08-23 | D150: 5:06 pm | E150: 175 | F150: Solar FV | G150: Monteria 220 | H150: SC_2107 | I150: 2026-12-18 | J150: 2026-12-18 | K150: NO | L150: NO | M150: Córdoba - Sucre | N150: NO | O150: 0 | P150: -27.536
A151: SC_2031 _A1 | B151: PSF Cispata_70MW | C151: 2022-08-23 | D151: 8:28 pm | E151: 70 | F151: Solar FV | G151: Coveñas 110 | H151: SC_2031 | I151: 2026-12-31 | J151: 2026-12-31 | K151: NO | L151: NO | M151: Córdoba - Sucre | N151: NO | O151: 0 | P151: -8.42
A152: SC_2136_A1 | B152: Yaguarundi Solar II 40 MW | C152: 2022-08-24 | D152: 4:30 pm | E152: 40 | F152: Solar FV | G152: San Marcos 110 | H152: SC_2136 | I152: 2026-12-31 | J152: 2026-12-31 | K152: NO | L152: NO | M152: Córdoba - Sucre | N152: NO | O152: 0 | P152: -6.7524
A153: SC_2136_A2 | B153: Yaguarundi Solar II 40 MW | C153: 2022-08-24 | D153: 4:30 pm | E153: 40 | F153: Solar FV | G153: Toluviejo 110 | H153: SC_2136 | I153: 2026-12-31 | J153: 2026-12-31 | K153: NO | L153: NO | M153: Córdoba - Sucre | N153: NO | O153: 0 | P153: -4.8771
A154: SC_2180_A1 | B154: Yaguarundi Solar III 40 MW | C154: 2022-08-24 | D154: 4:32 pm | E154: 40 | F154: Solar FV | G154: San Marcos 110 | H154: SC_2180 | I154: 2026-12-31 | J154: 2026-12-31 | K154: NO | L154: NO | M154: Córdoba - Sucre | N154: NO | O154: 0 | P154: -6.7524
A155: SC_2180_A2 | B155: Yaguarundi Solar III 40 MW | C155: 2022-08-24 | D155: 4:32 pm | E155: 40 | F155: Solar FV | G155: Toluviejo 110 | H155: SC_2180 | I155: 2026-12-31 | J155: 2026-12-31 | K155: NO | L155: NO | M155: Córdoba - Sucre | N155: NO | O155: 0 | P155: -4.8771
A156: SC_2185_A1 | B156: Yaguarundi Solar IV 40 MW | C156: 2022-08-24 | D156: 4:34 pm | E156: 40 | F156: Solar FV | G156: San Marcos 110 | H156: SC_2185 | I156: 2026-12-31 | J156: 2026-12-31 | K156: NO | L156: NO | M156: Córdoba - Sucre | N156: NO | O156: 0 | P156: -6.7524
A157: SC_2185_A2 | B157: Yaguarundi Solar IV 40 MW | C157: 2022-08-24 | D157: 4:34 pm | E157: 40 | F157: Solar FV | G157: Toluviejo 110 | H157: SC_2185 | I157: 2026-12-31 | J157: 2026-12-31 | K157: NO | L157: NO | M157: Córdoba - Sucre | N157: NO | O157: 0 | P157: -4.8771
A158: SC_1926_A1 | B158: Bongos I 9.90 MW | C158: 2022-08-24 | D158: 9:23 pm | E158: 9.9 | F158: Solar FV | G158: Tierra Alta 34.5 | H158: SC_1926 | I158: 2024-12-31 | J158: 2024-12-31 | K158: NO | L158: NO | M158: Córdoba - Sucre | N158: NO | O158: 0 | P158: -5.93
A159: SC_1926_A2 | B159: Bongos I 9.90 MW | C159: 2022-08-24 | D159: 9:23 pm | E159: 9.9 | F159: Solar FV | G159: Valencia 34.5 | H159: SC_1926 | I159: 2024-12-31 | J159: 2024-12-31 | K159: NO | L159: NO | M159: Córdoba - Sucre | N159: NO | O159: 0 | P159: -6.3
A160: SC_1825_A1 | B160: PROYECTO DE GENERACIÓN ELÉCTRICA EL JOBO_200MW | C160: 2022-08-26 | D160: 3:18 pm | E160: 200 | F160: Termica a vapor | G160: Sahagun 500 kV | H160: SC_1825 | I160: 2026-12-01 | J160: 2026-12-01 | K160: NO | L160: NO | M160: Córdoba - Sucre | N160: NO | O160: 0 | P160: -79.023
A161: SC_1897_A1 | B161: La Florecita 90 MW | C161: 2022-08-26 | D161: 20:37:00 | E161: 90 | F161: Solar FV | G161: Sierra Flor 110 | H161: SC_1897 | I161: 2026-12-31 | J161: 2026-12-31 | K161: NO | L161: NO | M161: Córdoba - Sucre | N161: NO | O161: 0 | P161: -2.67544
A162: SC_1897_A2 | B162: La Florecita 90 MW | C162: 2022-08-26 | D162: 20:37:00 | E162: 90 | F162: Solar FV | G162: Boston 110 | H162: SC_1897 | I162: 2026-12-31 | J162: 2026-12-31 | K162: NO | L162: NO | M162: Córdoba - Sucre | N162: NO | O162: 0 | P162: -2.29106
A163: SC_2014_A1 | B163: Lotería 2 | C163: 2022-08-29 | D163: 12:49 pm | E163: 9.9 | F163: Solar FV | G163: Chinu Planta 34.5 | H163: SC_2014 | I163: 2024-12-31 | J163: 2024-12-31 | K163: NO | L163: NO | M163: Córdoba - Sucre | N163: NO | O163: 0 | P163: 6.367
A164: SC_2014_A2 | B164: Lotería 2 | C164: 2022-08-29 | D164: 12:49 pm | E164: 9.9 | F164: Solar FV | G164: Sahagun 34.5 | H164: SC_2014 | I164: 2024-12-31 | J164: 2024-12-31 | K164: NO | L164: NO | M164: Córdoba - Sucre | N164: NO | O164: 0 | P164: 3.902
A165: SC_2017_A1 | B165: LOTERÍA 1 | C165: 2022-08-29 | D165: 12:58 pm | E165: 9.9 | F165: Solar FV | G165: Chinu Planta 34.5 | H165: SC_2017 | I165: 2024-12-31 | J165: 2024-12-31 | K165: NO | L165: NO | M165: Córdoba - Sucre | N165: NO | O165: 0 | P165: 6.367
A166: SC_2017_A2 | B166: LOTERÍA 1 | C166: 2022-08-29 | D166: 12:58 pm | E166: 9.9 | F166: Solar FV | G166: Sahagun 34.5 | H166: SC_2017 | I166: 2024-12-31 | J166: 2024-12-31 | K166: NO | L166: NO | M166: Córdoba - Sucre | N166: NO | O166: 0 | P166: 3.902
A167: SC_2165_A1 | B167: Autogeneración Solar Fotovoltaica 9.9 MW (entrega de excedentes de 0) | C167: 2022-08-30 | D167: 11:20 am | E167: 0 | F167: Solar FV | G167: Ure 110 | H167: SC_2165 | I167: 2023-12-31 | J167: 2023-12-31 | K167: NO | L167: NO | M167: Córdoba - Sucre | N167: NO | O167: 0 | P167: 0.475
A168: SC_1820 _A1 | B168: NAIOT | C168: 2022-08-31 | D168: 8:46 am | E168: 19.9 | F168: Solar FV | G168: Lorica 34.5 | H168: SC_1820 | I168: 2024-12-16 | J168: 2024-12-16 | K168: NO | L168: NO | M168: Córdoba - Sucre | N168: NO | O168: 0 | P168: 0.835422
A169: SC_1820 _A2 | B169: NAIOT | C169: 2022-08-31 | D169: 8:46 am | E169: 19.9 | F169: Solar FV | G169: San Bernardo 34.5 | H169: SC_1820 | I169: 2024-12-16 | J169: 2024-12-16 | K169: NO | L169: NO | M169: Córdoba - Sucre | N169: NO | O169: 0 | P169: -1.930059
A170: SC_2325_A1 | B170: PROYECTO FOTOVOLTAICO MONTERROSO DE 99,9 MW | C170: 2022-09-01 | D170: 2:58 pm | E170: 99.9 | F170: Solar FV | G170: San Marcos 110 | H170: SC_2325 | I170: 2026-12-31 | J170: 2026-12-31 | K170: NO | L170: NO | M170: Córdoba - Sucre | N170: NO | O170: 0 | P170: -3.3288
A171: SC_2325_A2 | B171: PROYECTO FOTOVOLTAICO MONTERROSO DE 99,9 MW | C171: 2022-09-01 | D171: 2:58 pm | E171: 99.9 | F171: Solar FV | G171: Since 110 | H171: SC_2325 | I171: 2026-12-31 | J171: 2026-12-31 | K171: NO | L171: NO | M171: Córdoba - Sucre | N171: NO | O171: 0 | P171: -3.7317

Sheet IT-TA
B1: Codigo | C1: Nombre | D1: Capacidad | E1: Licencia Ambiental obtenida | F1: Año de entrada | G1: P | H1: Total | J1: Año de Referencia
B2: =IF(ISBLANK(InfoPro!A2),"",InfoPro!A2) -> SC_44_A1 | C2: =IF(ISBLANK(InfoPro!B2),"",InfoPro!B2) -> El Floral 1 | D2: =IF(ISBLANK(InfoPro!E2),"",InfoPro!E2) -> 19.9 | E2: =IF(ISBLANK(InfoPro!N2),"",InfoPro!N2) -> NO | F2: =IF(ISBLANK(InfoPro!I2),"",YEAR(InfoPro!I2)-$J$2) -> 2 | G2: =IF(E2="SI",100,IF(E2="NO",0,"")) -> 0 | H2: =IF(G2="","",(G2)) -> 0 | J2: 2023
B3: =IF(ISBLANK(InfoPro!A3),"",InfoPro!A3) -> SC_47_A1 | C3: =IF(ISBLANK(InfoPro!B3),"",InfoPro!B3) -> El Floral II - 19.9 MW | D3: =IF(ISBLANK(InfoPro!E3),"",InfoPro!E3) -> 19.9 | E3: =IF(ISBLANK(InfoPro!N3),"",InfoPro!N3) -> NO | F3: =IF(ISBLANK(InfoPro!I3),"",YEAR(InfoPro!I3)-$J$2) -> 2 | G3: =IF(E3="SI",100,IF(E3="NO",0,"")) -> 0 | H3: =IF(G3="","",(G3)) -> 0
B4: =IF(ISBLANK(InfoPro!A4),"",InfoPro!A4) -> SC_408_A1 | C4: =IF(ISBLANK(InfoPro!B4),"",InfoPro!B4) -> El Jardín 40 MW | D4: =IF(ISBLANK(InfoPro!E4),"",InfoPro!E4) -> 40 | E4: =IF(ISBLANK(InfoPro!N4),"",InfoPro!N4) -> NO | F4: =IF(ISBLANK(InfoPro!I4),"",YEAR(InfoPro!I4)-$J$2) -> 2 | G4: 0 | H4: 0
B5: =IF(ISBLANK(InfoPro!A5),"",InfoPro!A5) -> SC_454_A1 | C5: =IF(ISBLANK(InfoPro!B5),"",InfoPro!B5) -> PARQUE SOLAR SAN RAFAEL - 300 MW | D5: =IF(ISBLANK(InfoPro!E5),"",InfoPro!E5) -> 300 | E5: =IF(ISBLANK(InfoPro!N5),"",InfoPro!N5) -> NO | F5: =IF(ISBLANK(InfoPro!I5),"",YEAR(InfoPro!I5)-$J$2) -> 3 | G5: 0 | H5: 0
B6: =IF(ISBLANK(InfoPro!A6),"",InfoPro!A6) -> SC_454_A2 | C6: =IF(ISBLANK(InfoPro!B6),"",InfoPro!B6) -> PARQUE SOLAR SAN RAFAEL - 300 MW | D6: =IF(ISBLANK(InfoPro!E6),"",InfoPro!E6) -> 300 | E6: =IF(ISBLANK(InfoPro!N6),"",InfoPro!N6) -> NO | F6: =IF(ISBLANK(InfoPro!I6),"",YEAR(InfoPro!I6)-$J$2) -> 3 | G6: 0 | H6: 0
B7: =IF(ISBLANK(InfoPro!A7),"",InfoPro!A7) -> SC_483_A1 | C7: =IF(ISBLANK(InfoPro!B7),"",InfoPro!B7) -> PARQUE SOLAR LOMAS 39.9 MW | D7: =IF(ISBLANK(InfoPro!E7),"",InfoPro!E7) -> 39.9 | E7: =IF(ISBLANK(InfoPro!N7),"",InfoPro!N7) -> NO | F7: =IF(ISBLANK(InfoPro!I7),"",YEAR(InfoPro!I7)-$J$2) -> 2 | G7: 0 | H7: 0
B8: =IF(ISBLANK(InfoPro!A8),"",InfoPro!A8) -> SC_586_A1 | C8: =IF(ISBLANK(InfoPro!B8),"",InfoPro!B8) -> Orquídea del Sucre - Sierra Flor 60 MW | D8: =IF(ISBLANK(InfoPro!E8),"",InfoPro!E8) -> 60 | E8: =IF(ISBLANK(InfoPro!N8),"",InfoPro!N8) -> NO | F8: =IF(ISBLANK(InfoPro!I8),"",YEAR(InfoPro!I8)-$J$2) -> 4 | G8: 0 | H8: 0
B9: =IF(ISBLANK(InfoPro!A9),"",InfoPro!A9) -> SC_586_A2 | C9: =IF(ISBLANK(InfoPro!B9),"",InfoPro!B9) -> Orquídea del Sucre - Sierra Flor 60 MW | D9: =IF(ISBLANK(InfoPro!E9),"",InfoPro!E9) -> 60 | E9: =IF(ISBLANK(InfoPro!N9),"",InfoPro!N9) -> NO | F9: =IF(ISBLANK(InfoPro!I9),"",YEAR(InfoPro!I9)-$J$2) -> 4 | G9: 0 | H9: 0
B10: =IF(ISBLANK(InfoPro!A10),"",InfoPro!A10) -> SC_681_A1 | C10: =IF(ISBLANK(InfoPro!B10),"",InfoPro!B10) -> PARQUE SOLARLAS LAS PALMAS de 90MW | D10: =IF(ISBLANK(InfoPro!E10),"",InfoPro!E10) -> 90 | E10: =IF(ISBLANK(InfoPro!N10),"",InfoPro!N10) -> NO | F10: =IF(ISBLANK(InfoPro!I10),"",YEAR(InfoPro!I10)-$J$2) -> 2 | G10: 0 | H10: 0
B11: =IF(ISBLANK(InfoPro!A11),"",InfoPro!A11) -> SC_681_A2 | C11: =IF(ISBLANK(InfoPro!B11),"",InfoPro!B11) -> PARQUE SOLARLAS LAS PALMAS de 90MW | D11: =IF(ISBLANK(InfoPro!E11),"",InfoPro!E11) -> 90 | E11: =IF(ISBLANK(InfoPro!N11),"",InfoPro!N11) -> NO | F11: =IF(ISBLANK(InfoPro!I11),"",YEAR(InfoPro!I11)-$J$2) -> 2 | G11: 0 | H11: 0
B12: =IF(ISBLANK(InfoPro!A12),"",InfoPro!A12) -> SC_720_A1 | C12: =IF(ISBLANK(InfoPro!B12),"",InfoPro!B12) -> El Jazmín | D12: =IF(ISBLANK(InfoPro!E12),"",InfoPro!E12) -> 19.9 | E12: =IF(ISBLANK(InfoPro!N12),"",InfoPro!N12) -> NO | F12: =IF(ISBLANK(InfoPro!I12),"",YEAR(InfoPro!I12)-$J$2) -> 2 | G12: 0 | H12: 0
B13: =IF(ISBLANK(InfoPro!A13),"",InfoPro!A13) -> SC_720_A2 | C13: =IF(ISBLANK(InfoPro!B13),"",InfoPro!B13) -> El Jazmín | D13: =IF(ISBLANK(InfoPro!E13),"",InfoPro!E13) -> 19.9 | E13: =IF(ISBLANK(InfoPro!N13),"",InfoPro!N13) -> NO | F13: =IF(ISBLANK(InfoPro!I13),"",YEAR(InfoPro!I13)-$J$2) -> 2 | G13: 0 | H13: 0
B14: =IF(ISBLANK(InfoPro!A14),"",InfoPro!A14) -> SC_713_A1 | C14: =IF(ISBLANK(InfoPro!B14),"",InfoPro!B14) -> Crucero - 300MW | D14: =IF(ISBLANK(InfoPro!E14),"",InfoPro!E14) -> 300 | E14: =IF(ISBLANK(InfoPro!N14),"",InfoPro!N14) -> NO | F14: =IF(ISBLANK(InfoPro!I14),"",YEAR(InfoPro!I14)-$J$2) -> 4 | G14: 0 | H14: 0
B15: =IF(ISBLANK(InfoPro!A15),"",InfoPro!A15) -> SC_836_A1 | C15: =IF(ISBLANK(InfoPro!B15),"",InfoPro!B15) -> BONGO DEL SINÚ DE 19.9 MW | D15: =IF(ISBLANK(InfoPro!E15),"",InfoPro!E15) -> 19.9 | E15: =IF(ISBLANK(InfoPro!N15),"",InfoPro!N15) -> NO | F15: =IF(ISBLANK(InfoPro!I15),"",YEAR(InfoPro!I15)-$J$2) -> 2 | G15: 0 | H15: 0
B16: =IF(ISBLANK(InfoPro!A16),"",InfoPro!A16) -> SC_836_A2 | C16: =IF(ISBLANK(InfoPro!B16),"",InfoPro!B16) -> BONGO DEL SINÚ DE 19.9 MW | D16: =IF(ISBLANK(InfoPro!E16),"",InfoPro!E16) -> 19.9 | E16: =IF(ISBLANK(InfoPro!N16),"",InfoPro!N16) -> NO | F16: =IF(ISBLANK(InfoPro!I16),"",YEAR(InfoPro!I16)-$J$2) -> 2 | G16: 0 | H16: 0
B17: =IF(ISBLANK(InfoPro!A17),"",InfoPro!A17) -> SC_778_A1 | C17: =IF(ISBLANK(InfoPro!B17),"",InfoPro!B17) -> KOS 19.9 | D17: =IF(ISBLANK(InfoPro!E17),"",InfoPro!E17) -> 19.9 | E17: =IF(ISBLANK(InfoPro!N17),"",InfoPro!N17) -> NO | F17: =IF(ISBLANK(InfoPro!I17),"",YEAR(InfoPro!I17)-$J$2) -> 2 | G17: 0 | H17: 0
B18: =IF(ISBLANK(InfoPro!A18),"",InfoPro!A18) -> SC_778_A2 | C18: =IF(ISBLANK(InfoPro!B18),"",InfoPro!B18) -> KOS 19.9 | D18: =IF(ISBLANK(InfoPro!E18),"",InfoPro!E18) -> 19.9 | E18: =IF(ISBLANK(InfoPro!N18),"",InfoPro!N18) -> NO | F18: =IF(ISBLANK(InfoPro!I18),"",YEAR(InfoPro!I18)-$J$2) -> 2 | G18: 0 | H18: 0
B19: =IF(ISBLANK(InfoPro!A19),"",InfoPro!A19) -> SC_942_A1 | C19: =IF(ISBLANK(InfoPro!B19),"",InfoPro!B19) -> PASCUA_60MW | D19: =IF(ISBLANK(InfoPro!E19),"",InfoPro!E19) -> 60 | E19: =IF(ISBLANK(InfoPro!N19),"",InfoPro!N19) -> NO | F19: =IF(ISBLANK(InfoPro!I19),"",YEAR(InfoPro!I19)-$J$2) -> 3 | G19: 0 | H19: 0
B20: =IF(ISBLANK(InfoPro!A20),"",InfoPro!A20) -> SC_942_A2 | C20: =IF(ISBLANK(InfoPro!B20),"",InfoPro!B20) -> PASCUA_60MW | D20: =IF(ISBLANK(InfoPro!E20),"",InfoPro!E20) -> 60 | E20: =IF(ISBLANK(InfoPro!N20),"",InfoPro!N20) -> NO | F20: =IF(ISBLANK(InfoPro!I20),"",YEAR(InfoPro!I20)-$J$2) -> 3 | G20: 0 | H20: 0
B21: =IF(ISBLANK(InfoPro!A21),"",InfoPro!A21) -> SC_1763_A1 | C21: =IF(ISBLANK(InfoPro!B21),"",InfoPro!B21) -> Taurus Solar de 22MW (19,5 MW) | D21: =IF(ISBLANK(InfoPro!E21),"",InfoPro!E21) -> 19.5 | E21: =IF(ISBLANK(InfoPro!N21),"",InfoPro!N21) -> NO | F21: =IF(ISBLANK(InfoPro!I21),"",YEAR(InfoPro!I21)-$J$2) -> 2 | G21: 0 | H21: 0
B22: =IF(ISBLANK(InfoPro!A22),"",InfoPro!A22) -> SC_1763_A2 | C22: =IF(ISBLANK(InfoPro!B22),"",InfoPro!B22) -> Taurus Solar de 22MW (19,5 MW) | D22: =IF(ISBLANK(InfoPro!E22),"",InfoPro!E22) -> 19.5 | E22: =IF(ISBLANK(InfoPro!N22),"",InfoPro!N22) -> NO | F22: =IF(ISBLANK(InfoPro!I22),"",YEAR(InfoPro!I22)-$J$2) -> 2 | G22: 0 | H22: 0
B23: =IF(ISBLANK(InfoPro!A23),"",InfoPro!A23) -> SC_828_A1 | C23: =IF(ISBLANK(InfoPro!B23),"",InfoPro!B23) -> PARQUE SOLAR EL VASCO | D23: =IF(ISBLANK(InfoPro!E23),"",InfoPro!E23) -> 60 | E23: =IF(ISBLANK(InfoPro!N23),"",InfoPro!N23) -> NO | F23: =IF(ISBLANK(InfoPro!I23),"",YEAR(InfoPro!I23)-$J$2) -> 3 | G23: 0 | H23: 0
B24: =IF(ISBLANK(InfoPro!A24),"",InfoPro!A24) -> SC_828_A2 | C24: =IF(ISBLANK(InfoPro!B24),"",InfoPro!B24) -> PARQUE SOLAR EL VASCO | D24: =IF(ISBLANK(InfoPro!E24),"",InfoPro!E24) -> 60 | E24: =IF(ISBLANK(InfoPro!N24),"",InfoPro!N24) -> NO | F24: =IF(ISBLANK(InfoPro!I24),"",YEAR(InfoPro!I24)-$J$2) -> 3 | G24: 0 | H24: 0
B25: =IF(ISBLANK(InfoPro!A25),"",InfoPro!A25) -> SC_1179_A1 | C25: =IF(ISBLANK(InfoPro!B25),"",InfoPro!B25) -> Montes 90 MW | D25: =IF(ISBLANK(InfoPro!E25),"",InfoPro!E25) -> 90 | E25: =IF(ISBLANK(InfoPro!N25),"",InfoPro!N25) -> NO | F25: =IF(ISBLANK(InfoPro!I25),"",YEAR(InfoPro!I25)-$J$2) -> 3 | G25: 0 | H25: 0
B26: =IF(ISBLANK(InfoPro!A26),"",InfoPro!A26) -> SC_1179_A2 | C26: =IF(ISBLANK(InfoPro!B26),"",InfoPro!B26) -> Montes 90 MW | D26: =IF(ISBLANK(InfoPro!E26),"",InfoPro!E26) -> 90 | E26: =IF(ISBLANK(InfoPro!N26),"",InfoPro!N26) -> NO | F26: =IF(ISBLANK(InfoPro!I26),"",YEAR(InfoPro!I26)-$J$2) -> 3 | G26: 0 | H26: 0
B27: =IF(ISBLANK(InfoPro!A27),"",InfoPro!A27) -> SC_1206_A1 | C27: =IF(ISBLANK(InfoPro!B27),"",InfoPro!B27) -> Cerromatoso Solar 300 MW | D27: =IF(ISBLANK(InfoPro!E27),"",InfoPro!E27) -> 300 | E27: =IF(ISBLANK(InfoPro!N27),"",InfoPro!N27) -> NO | F27: =IF(ISBLANK(InfoPro!I27),"",YEAR(InfoPro!I27)-$J$2) -> 5 | G27: 0 | H27: 0
B28: =IF(ISBLANK(InfoPro!A28),"",InfoPro!A28) -> SC_1206_A2 | C28: =IF(ISBLANK(InfoPro!B28),"",InfoPro!B28) -> Cerromatoso Solar 300 MW | D28: =IF(ISBLANK(InfoPro!E28),"",InfoPro!E28) -> 300 | E28: =IF(ISBLANK(InfoPro!N28),"",InfoPro!N28) -> NO | F28: =IF(ISBLANK(InfoPro!I28),"",YEAR(InfoPro!I28)-$J$2) -> 5 | G28: 0 | H28: 0
B29: =IF(ISBLANK(InfoPro!A29),"",InfoPro!A29) -> SC_1372_A1 | C29: =IF(ISBLANK(InfoPro!B29),"",InfoPro!B29) -> Pétalo del Bolívar I Magangué | D29: =IF(ISBLANK(InfoPro!E29),"",InfoPro!E29) -> 9.9 | E29: =IF(ISBLANK(InfoPro!N29),"",InfoPro!N29) -> NO | F29: =IF(ISBLANK(InfoPro!I29),"",YEAR(InfoPro!I29)-$J$2) -> 2 | G29: 0 | H29: 0
B30: =IF(ISBLANK(InfoPro!A30),"",InfoPro!A30) -> SC_1372_A2 | C30: =IF(ISBLANK(InfoPro!B30),"",InfoPro!B30) -> Pétalo del Bolívar I Magangué | D30: =IF(ISBLANK(InfoPro!E30),"",InfoPro!E30) -> 9.9 | E30: =IF(ISBLANK(InfoPro!N30),"",InfoPro!N30) -> NO | F30: =IF(ISBLANK(InfoPro!I30),"",YEAR(InfoPro!I30)-$J$2) -> 2 | G30: 0 | H30: 0
B31: =IF(ISBLANK(InfoPro!A31),"",InfoPro!A31) -> SC_692_A1 | C31: =IF(ISBLANK(InfoPro!B31),"",InfoPro!B31) -> TermoJobo | D31: =IF(ISBLANK(InfoPro!E31),"",InfoPro!E31) -> 9.9 | E31: =IF(ISBLANK(InfoPro!N31),"",InfoPro!N31) -> NO | F31: =IF(ISBLANK(InfoPro!I31),"",YEAR(InfoPro!I31)-$J$2) -> 1 | G31: 0 | H31: 0
B32: =IF(ISBLANK(InfoPro!A32),"",InfoPro!A32) -> SC_1057_A1 | C32: =IF(ISBLANK(InfoPro!B32),"",InfoPro!B32) -> Río Sinú Solar I 9,9 MW | D32: =IF(ISBLANK(InfoPro!E32),"",InfoPro!E32) -> 9.9 | E32: =IF(ISBLANK(InfoPro!N32),"",InfoPro!N32) -> NO | F32: =IF(ISBLANK(InfoPro!I32),"",YEAR(InfoPro!I32)-$J$2) -> 2 | G32: 0 | H32: 0
B33: =IF(ISBLANK(InfoPro!A33),"",InfoPro!A33) -> SC_1057_A2 | C33: =IF(ISBLANK(InfoPro!B33),"",InfoPro!B33) -> Río Sinú Solar I 9,9 MW | D33: =IF(ISBLANK(InfoPro!E33),"",InfoPro!E33) -> 9.9 | E33: =IF(ISBLANK(InfoPro!N33),"",InfoPro!N33) -> NO | F33: =IF(ISBLANK(InfoPro!I33),"",YEAR(InfoPro!I33)-$J$2) -> 2 | G33: 0 | H33: 0
B34: =IF(ISBLANK(InfoPro!A34),"",InfoPro!A34) -> SC_1058_A1 | C34: =IF(ISBLANK(InfoPro!B34),"",InfoPro!B34) -> Río Sinú Solar II 9,9 MW | D34: =IF(ISBLANK(InfoPro!E34),"",InfoPro!E34) -> 9.9 | E34: =IF(ISBLANK(InfoPro!N34),"",InfoPro!N34) -> NO | F34: =IF(ISBLANK(InfoPro!I34),"",YEAR(InfoPro!I34)-$J$2) -> 2 | G34: 0 | H34: 0
B35: =IF(ISBLANK(InfoPro!A35),"",InfoPro!A35) -> SC_1058_A2 | C35: =IF(ISBLANK(InfoPro!B35),"",InfoPro!B35) -> Río Sinú Solar II 9,9 MW | D35: =IF(ISBLANK(InfoPro!E35),"",InfoPro!E35) -> 9.9 | E35: =IF(ISBLANK(InfoPro!N35),"",InfoPro!N35) -> NO | F35: =IF(ISBLANK(InfoPro!I35),"",YEAR(InfoPro!I35)-$J$2) -> 2 | G35: 0 | H35: 0
B36: =IF(ISBLANK(InfoPro!A36),"",InfoPro!A36) -> SC_855_A1 | C36: =IF(ISBLANK(InfoPro!B36),"",InfoPro!B36) -> El Lirio | D36: =IF(ISBLANK(InfoPro!E36),"",InfoPro!E36) -> 19.9 | E36: =IF(ISBLANK(InfoPro!N36),"",InfoPro!N36) -> NO | F36: =IF(ISBLANK(InfoPro!I36),"",YEAR(InfoPro!I36)-$J$2) -> 2 | G36: 0 | H36: 0
B37: =IF(ISBLANK(InfoPro!A37),"",InfoPro!A37) -> SC_855_A2 | C37: =IF(ISBLANK(InfoPro!B37),"",InfoPro!B37) -> El Lirio | D37: =IF(ISBLANK(InfoPro!E37),"",InfoPro!E37) -> 19.9 | E37: =IF(ISBLANK(InfoPro!N37),"",InfoPro!N37) -> NO | F37: =IF(ISBLANK(InfoPro!I37),"",YEAR(InfoPro!I37)-$J$2) -> 2 | G37: 0 | H37: 0
B38: =IF(ISBLANK(InfoPro!A38),"",InfoPro!A38) -> SC_630_A1 | C38: =IF(ISBLANK(InfoPro!B38),"",InfoPro!B38) -> TR Solar 14 | D38: =IF(ISBLANK(InfoPro!E38),"",InfoPro!E38) -> 99.9 | E38: =IF(ISBLANK(InfoPro!N38),"",InfoPro!N38) -> NO | F38: =IF(ISBLANK(InfoPro!I38),"",YEAR(InfoPro!I38)-$J$2) -> 3 | G38: 0 | H38: 0
B39: =IF(ISBLANK(InfoPro!A39),"",InfoPro!A39) -> SC_1269_A1 | C39: =IF(ISBLANK(InfoPro!B39),"",InfoPro!B39) -> Centro Solar II 4 MW | D39: =IF(ISBLANK(InfoPro!E39),"",InfoPro!E39) -> 4 | E39: =IF(ISBLANK(InfoPro!N39),"",InfoPro!N39) -> NO | F39: =IF(ISBLANK(InfoPro!I39),"",YEAR(InfoPro!I39)-$J$2) -> 0 | G39: 0 | H39: 0
B40: =IF(ISBLANK(InfoPro!A40),"",InfoPro!A40) -> SC_1268_A1 | C40: =IF(ISBLANK(InfoPro!B40),"",InfoPro!B40) -> Sol de Ayapel II de 7 MW | D40: =IF(ISBLANK(InfoPro!E40),"",InfoPro!E40) -> 7 | E40: =IF(ISBLANK(InfoPro!N40),"",InfoPro!N40) -> NO | F40: =IF(ISBLANK(InfoPro!I40),"",YEAR(InfoPro!I40)-$J$2) -> 1 | G40: 0 | H40: 0
B41: =IF(ISBLANK(InfoPro!A41),"",InfoPro!A41) -> SC_1268_A2 | C41: =IF(ISBLANK(InfoPro!B41),"",InfoPro!B41) -> Sol de Ayapel II de 7 MW | D41: =IF(ISBLANK(InfoPro!E41),"",InfoPro!E41) -> 7 | E41: =IF(ISBLANK(InfoPro!N41),"",InfoPro!N41) -> NO | F41: =IF(ISBLANK(InfoPro!I41),"",YEAR(InfoPro!I41)-$J$2) -> 1 | G41: 0 | H41: 0
B42: =IF(ISBLANK(InfoPro!A42),"",InfoPro!A42) -> SC_1118_A1 | C42: =IF(ISBLANK(InfoPro!B42),"",InfoPro!B42) -> Boston 9,9 MW | D42: =IF(ISBLANK(InfoPro!E42),"",InfoPro!E42) -> 9.9 | E42: =IF(ISBLANK(InfoPro!N42),"",InfoPro!N42) -> NO | F42: =IF(ISBLANK(InfoPro!I42),"",YEAR(InfoPro!I42)-$J$2) -> 2 | G42: 0 | H42: 0
B43: =IF(ISBLANK(InfoPro!A43),"",InfoPro!A43) -> SC_1118_A2 | C43: =IF(ISBLANK(InfoPro!B43),"",InfoPro!B43) -> Boston 9,9 MW | D43: =IF(ISBLANK(InfoPro!E43),"",InfoPro!E43) -> 9.9 | E43: =IF(ISBLANK(InfoPro!N43),"",InfoPro!N43) -> NO | F43: =IF(ISBLANK(InfoPro!I43),"",YEAR(InfoPro!I43)-$J$2) -> 2 | G43: 0 | H43: 0
B44: =IF(ISBLANK(InfoPro!A44),"",InfoPro!A44) -> SC_632_A1 | C44: =IF(ISBLANK(InfoPro!B44),"",InfoPro!B44) -> TR Solar 5 | D44: =IF(ISBLANK(InfoPro!E44),"",InfoPro!E44) -> 19.9 | E44: =IF(ISBLANK(InfoPro!N44),"",InfoPro!N44) -> NO | F44: =IF(ISBLANK(InfoPro!I44),"",YEAR(InfoPro!I44)-$J$2) -> 3 | G44: 0 | H44: 0
B45: =IF(ISBLANK(InfoPro!A45),"",InfoPro!A45) -> SC_632_A2 | C45: =IF(ISBLANK(InfoPro!B45),"",InfoPro!B45) -> TR Solar 5 | D45: =IF(ISBLANK(InfoPro!E45),"",InfoPro!E45) -> 19.9 | E45: =IF(ISBLANK(InfoPro!N45),"",InfoPro!N45) -> NO | F45: =IF(ISBLANK(InfoPro!I45),"",YEAR(InfoPro!I45)-$J$2) -> 3 | G45: 0 | H45: 0
B46: =IF(ISBLANK(InfoPro!A46),"",InfoPro!A46) -> SC_1415_A1 | C46: =IF(ISBLANK(InfoPro!B46),"",InfoPro!B46) -> Efigen C03 99 MW | D46: =IF(ISBLANK(InfoPro!E46),"",InfoPro!E46) -> 99 | E46: =IF(ISBLANK(InfoPro!N46),"",InfoPro!N46) -> NO | F46: =IF(ISBLANK(InfoPro!I46),"",YEAR(InfoPro!I46)-$J$2) -> 2 | G46: 0 | H46: 0
B47: =IF(ISBLANK(InfoPro!A47),"",InfoPro!A47) -> SC_1415_A2 | C47: =IF(ISBLANK(InfoPro!B47),"",InfoPro!B47) -> Efigen C03 99 MW | D47: =IF(ISBLANK(InfoPro!E47),"",InfoPro!E47) -> 99 | E47: =IF(ISBLANK(InfoPro!N47),"",InfoPro!N47) -> NO | F47: =IF(ISBLANK(InfoPro!I47),"",YEAR(InfoPro!I47)-$J$2) -> 2 | G47: 0 | H47: 0
B48: =IF(ISBLANK(InfoPro!A48),"",InfoPro!A48) -> SC_1420_A1 | C48: =IF(ISBLANK(InfoPro!B48),"",InfoPro!B48) -> Efigen C04 99 MW | D48: =IF(ISBLANK(InfoPro!E48),"",InfoPro!E48) -> 99 | E48: =IF(ISBLANK(InfoPro!N48),"",InfoPro!N48) -> NO | F48: =IF(ISBLANK(InfoPro!I48),"",YEAR(InfoPro!I48)-$J$2) -> 2 | G48: 0 | H48: 0
B49: =IF(ISBLANK(InfoPro!A49),"",InfoPro!A49) -> SC_1420_A2 | C49: =IF(ISBLANK(InfoPro!B49),"",InfoPro!B49) -> Efigen C04 99 MW | D49: =IF(ISBLANK(InfoPro!E49),"",InfoPro!E49) -> 99 | E49: =IF(ISBLANK(InfoPro!N49),"",InfoPro!N49) -> NO | F49: =IF(ISBLANK(InfoPro!I49),"",YEAR(InfoPro!I49)-$J$2) -> 2 | G49: 0 | H49: 0
B50: =IF(ISBLANK(InfoPro!A50),"",InfoPro!A50) -> SC_1435_A1 | C50: =IF(ISBLANK(InfoPro!B50),"",InfoPro!B50) -> Parque Solar Las Brisas | D50: =IF(ISBLANK(InfoPro!E50),"",InfoPro!E50) -> 9.9 | E50: =IF(ISBLANK(InfoPro!N50),"",InfoPro!N50) -> NO | F50: =IF(ISBLANK(InfoPro!I50),"",YEAR(InfoPro!I50)-$J$2) -> 1 | G50: 0 | H50: 0
B51: =IF(ISBLANK(InfoPro!A51),"",InfoPro!A51) -> SC_978_A1 | C51: =IF(ISBLANK(InfoPro!B51),"",InfoPro!B51) -> Borugo Solar | D51: =IF(ISBLANK(InfoPro!E51),"",InfoPro!E51) -> 99.9 | E51: =IF(ISBLANK(InfoPro!N51),"",InfoPro!N51) -> NO | F51: =IF(ISBLANK(InfoPro!I51),"",YEAR(InfoPro!I51)-$J$2) -> 3 | G51: 0 | H51: 0
B52: =IF(ISBLANK(InfoPro!A52),"",InfoPro!A52) -> SC_1520_A1 | C52: =IF(ISBLANK(InfoPro!B52),"",InfoPro!B52) -> Autogenerador Solar Argos Tolcemento - 19.9 MW | D52: =IF(ISBLANK(InfoPro!E52),"",InfoPro!E52) -> 19.9 | E52: =IF(ISBLANK(InfoPro!N52),"",InfoPro!N52) -> NO | F52: =IF(ISBLANK(InfoPro!I52),"",YEAR(InfoPro!I52)-$J$2) -> 1 | G52: 0 | H52: 0
B53: =IF(ISBLANK(InfoPro!A53),"",InfoPro!A53) -> SC_1520_A2 | C53: =IF(ISBLANK(InfoPro!B53),"",InfoPro!B53) -> Autogenerador Solar Argos Tolcemento - 19.9 MW | D53: =IF(ISBLANK(InfoPro!E53),"",InfoPro!E53) -> 19.9 | E53: =IF(ISBLANK(InfoPro!N53),"",InfoPro!N53) -> NO | F53: =IF(ISBLANK(InfoPro!I53),"",YEAR(InfoPro!I53)-$J$2) -> 1 | G53: 0 | H53: 0
B54: =IF(ISBLANK(InfoPro!A54),"",InfoPro!A54) -> SC_1527_A1 | C54: =IF(ISBLANK(InfoPro!B54),"",InfoPro!B54) -> Nueva Montería Solar III _9,9 MW | D54: =IF(ISBLANK(InfoPro!E54),"",InfoPro!E54) -> 9.9 | E54: =IF(ISBLANK(InfoPro!N54),"",InfoPro!N54) -> NO | F54: =IF(ISBLANK(InfoPro!I54),"",YEAR(InfoPro!I54)-$J$2) -> 2 | G54: 0 | H54: 0
B55: =IF(ISBLANK(InfoPro!A55),"",InfoPro!A55) -> SC_1527_A2 | C55: =IF(ISBLANK(InfoPro!B55),"",InfoPro!B55) -> Nueva Montería Solar III _9,9 MW | D55: =IF(ISBLANK(InfoPro!E55),"",InfoPro!E55) -> 9.9 | E55: =IF(ISBLANK(InfoPro!N55),"",InfoPro!N55) -> NO | F55: =IF(ISBLANK(InfoPro!I55),"",YEAR(InfoPro!I55)-$J$2) -> 2 | G55: 0 | H55: 0
B56: =IF(ISBLANK(InfoPro!A56),"",InfoPro!A56) -> SC_1395_A1 | C56: =IF(ISBLANK(InfoPro!B56),"",InfoPro!B56) -> San Marcos I 19.9 | D56: =IF(ISBLANK(InfoPro!E56),"",InfoPro!E56) -> 19.9 | E56: =IF(ISBLANK(InfoPro!N56),"",InfoPro!N56) -> NO | F56: =IF(ISBLANK(InfoPro!I56),"",YEAR(InfoPro!I56)-$J$2) -> 3 | G56: 0 | H56: 0
B57: =IF(ISBLANK(InfoPro!A57),"",InfoPro!A57) -> SC_1396_A1 | C57: =IF(ISBLANK(InfoPro!B57),"",InfoPro!B57) -> San Marcos II 19.9 | D57: =IF(ISBLANK(InfoPro!E57),"",InfoPro!E57) -> 19.9 | E57: =IF(ISBLANK(InfoPro!N57),"",InfoPro!N57) -> NO | F57: =IF(ISBLANK(InfoPro!I57),"",YEAR(InfoPro!I57)-$J$2) -> 3 | G57: 0 | H57: 0
B58: =IF(ISBLANK(InfoPro!A58),"",InfoPro!A58) -> SC_1359_A1 | C58: =IF(ISBLANK(InfoPro!B58),"",InfoPro!B58) -> El Corozo_250MW | D58: =IF(ISBLANK(InfoPro!E58),"",InfoPro!E58) -> 250 | E58: =IF(ISBLANK(InfoPro!N58),"",InfoPro!N58) -> NO | F58: =IF(ISBLANK(InfoPro!I58),"",YEAR(InfoPro!I58)-$J$2) -> 4 | G58: 0 | H58: 0
B59: =IF(ISBLANK(InfoPro!A59),"",InfoPro!A59) -> SC_1359_A2 | C59: =IF(ISBLANK(InfoPro!B59),"",InfoPro!B59) -> El Corozo_250MW | D59: =IF(ISBLANK(InfoPro!E59),"",InfoPro!E59) -> 250 | E59: =IF(ISBLANK(InfoPro!N59),"",InfoPro!N59) -> NO | F59: =IF(ISBLANK(InfoPro!I59),"",YEAR(InfoPro!I59)-$J$2) -> 4 | G59: 0 | H59: 0
B60: =IF(ISBLANK(InfoPro!A60),"",InfoPro!A60) -> SC_1598_A1 | C60: =IF(ISBLANK(InfoPro!B60),"",InfoPro!B60) -> PARQUE SOLAR FOTOVOLTAICO MATIMBA de 150MW | D60: =IF(ISBLANK(InfoPro!E60),"",InfoPro!E60) -> 150 | E60: =IF(ISBLANK(InfoPro!N60),"",InfoPro!N60) -> NO | F60: =IF(ISBLANK(InfoPro!I60),"",YEAR(InfoPro!I60)-$J$2) -> 3 | G60: 0 | H60: 0
B61: =IF(ISBLANK(InfoPro!A61),"",InfoPro!A61) -> SC_1598_A2 | C61: =IF(ISBLANK(InfoPro!B61),"",InfoPro!B61) -> PARQUE SOLAR FOTOVOLTAICO MATIMBA de 150MW | D61: =IF(ISBLANK(InfoPro!E61),"",InfoPro!E61) -> 150 | E61: =IF(ISBLANK(InfoPro!N61),"",InfoPro!N61) -> NO | F61: =IF(ISBLANK(InfoPro!I61),"",YEAR(InfoPro!I61)-$J$2) -> 3 | G61: 0 | H61: 0
B62: =IF(ISBLANK(InfoPro!A62),"",InfoPro!A62) -> SC_981_A1 | C62: =IF(ISBLANK(InfoPro!B62),"",InfoPro!B62) -> Yaguarundi Solar | D62: =IF(ISBLANK(InfoPro!E62),"",InfoPro!E62) -> 40 | E62: =IF(ISBLANK(InfoPro!N62),"",InfoPro!N62) -> NO | F62: =IF(ISBLANK(InfoPro!I62),"",YEAR(InfoPro!I62)-$J$2) -> 3 | G62: 0 | H62: 0
B63: =IF(ISBLANK(InfoPro!A63),"",InfoPro!A63) -> SC_981_A2 | C63: =IF(ISBLANK(InfoPro!B63),"",InfoPro!B63) -> Yaguarundi Solar | D63: =IF(ISBLANK(InfoPro!E63),"",InfoPro!E63) -> 40 | E63: =IF(ISBLANK(InfoPro!N63),"",InfoPro!N63) -> NO | F63: =IF(ISBLANK(InfoPro!I63),"",YEAR(InfoPro!I63)-$J$2) -> 3 | G63: 0 | H63: 0
B64: =IF(ISBLANK(InfoPro!A64),"",InfoPro!A64) -> SC_1634_A1 | C64: =IF(ISBLANK(InfoPro!B64),"",InfoPro!B64) -> El Tapir Solar 99.9 MW | D64: =IF(ISBLANK(InfoPro!E64),"",InfoPro!E64) -> 99.9 | E64: =IF(ISBLANK(InfoPro!N64),"",InfoPro!N64) -> NO | F64: =IF(ISBLANK(InfoPro!I64),"",YEAR(InfoPro!I64)-$J$2) -> 3 | G64: 0 | H64: 0
B65: =IF(ISBLANK(InfoPro!A65),"",InfoPro!A65) -> SC_782_A1 | C65: =IF(ISBLANK(InfoPro!B65),"",InfoPro!B65) -> Parque Solar El Corozo 60 MW | D65: =IF(ISBLANK(InfoPro!E65),"",InfoPro!E65) -> 60 | E65: =IF(ISBLANK(InfoPro!N65),"",InfoPro!N65) -> NO | F65: =IF(ISBLANK(InfoPro!I65),"",YEAR(InfoPro!I65)-$J$2) -> 3 | G65: 0 | H65: 0
B66: =IF(ISBLANK(InfoPro!A66),"",InfoPro!A66) -> SC_782_A2 | C66: =IF(ISBLANK(InfoPro!B66),"",InfoPro!B66) -> Parque Solar El Corozo 60 MW | D66: =IF(ISBLANK(InfoPro!E66),"",InfoPro!E66) -> 60 | E66: =IF(ISBLANK(InfoPro!N66),"",InfoPro!N66) -> NO | F66: =IF(ISBLANK(InfoPro!I66),"",YEAR(InfoPro!I66)-$J$2) -> 3 | G66: 0 | H66: 0
B67: =IF(ISBLANK(InfoPro!A67),"",InfoPro!A67) -> SC_1762_A1 | C67: =IF(ISBLANK(InfoPro!B67),"",InfoPro!B67) -> SPK CERETÉ SOLAR_19.9MW | D67: =IF(ISBLANK(InfoPro!E67),"",InfoPro!E67) -> 19.9 | E67: =IF(ISBLANK(InfoPro!N67),"",InfoPro!N67) -> NO | F67: =IF(ISBLANK(InfoPro!I67),"",YEAR(InfoPro!I67)-$J$2) -> 3 | G67: =IF(E67="SI",100,IF(E67="NO",0,"")) -> 0 | H67: =IF(G67="","",(G67)) -> 0
B68: =IF(ISBLANK(InfoPro!A68),"",InfoPro!A68) -> SC_1762_A2 | C68: =IF(ISBLANK(InfoPro!B68),"",InfoPro!B68) -> SPK CERETÉ SOLAR_19.9MW | D68: =IF(ISBLANK(InfoPro!E68),"",InfoPro!E68) -> 19.9 | E68: =IF(ISBLANK(InfoPro!N68),"",InfoPro!N68) -> NO | F68: =IF(ISBLANK(InfoPro!I68),"",YEAR(InfoPro!I68)-$J$2) -> 3 | G68: 0 | H68: 0
B69: =IF(ISBLANK(InfoPro!A69),"",InfoPro!A69) -> SC_1782_A1 | C69: =IF(ISBLANK(InfoPro!B69),"",InfoPro!B69) -> Orquídea del Sucre - Toluviejo | D69: =IF(ISBLANK(InfoPro!E69),"",InfoPro!E69) -> 112 | E69: =IF(ISBLANK(InfoPro!N69),"",InfoPro!N69) -> NO | F69: =IF(ISBLANK(InfoPro!I69),"",YEAR(InfoPro!I69)-$J$2) -> 4 | G69: 0 | H69: 0
B70: =IF(ISBLANK(InfoPro!A70),"",InfoPro!A70) -> SC_1782_A2 | C70: =IF(ISBLANK(InfoPro!B70),"",InfoPro!B70) -> Orquídea del Sucre - Toluviejo | D70: =IF(ISBLANK(InfoPro!E70),"",InfoPro!E70) -> 112 | E70: =IF(ISBLANK(InfoPro!N70),"",InfoPro!N70) -> NO | F70: =IF(ISBLANK(InfoPro!I70),"",YEAR(InfoPro!I70)-$J$2) -> 4 | G70: 0 | H70: 0
B71: =IF(ISBLANK(InfoPro!A71),"",InfoPro!A71) -> SC_1784_A1 | C71: =IF(ISBLANK(InfoPro!B71),"",InfoPro!B71) -> Pétalo del Sucre - Sierra Flor 9,9 MW | D71: =IF(ISBLANK(InfoPro!E71),"",InfoPro!E71) -> 9.9 | E71: =IF(ISBLANK(InfoPro!N71),"",InfoPro!N71) -> NO | F71: =IF(ISBLANK(InfoPro!I71),"",YEAR(InfoPro!I71)-$J$2) -> 3 | G71: 0 | H71: 0
B72: =IF(ISBLANK(InfoPro!A72),"",InfoPro!A72) -> SC_1784_A2 | C72: =IF(ISBLANK(InfoPro!B72),"",InfoPro!B72) -> Pétalo del Sucre - Sierra Flor 9,9 MW | D72: =IF(ISBLANK(InfoPro!E72),"",InfoPro!E72) -> 9.9 | E72: =IF(ISBLANK(InfoPro!N72),"",InfoPro!N72) -> NO | F72: =IF(ISBLANK(InfoPro!I72),"",YEAR(InfoPro!I72)-$J$2) -> 3 | G72: 0 | H72: 0
B73: =IF(ISBLANK(InfoPro!A73),"",InfoPro!A73) -> SC_1715_A1 | C73: =IF(ISBLANK(InfoPro!B73),"",InfoPro!B73) -> Andrómeda Solar de 50 MW (entrega 41 MW) | D73: =IF(ISBLANK(InfoPro!E73),"",InfoPro!E73) -> 41 | E73: =IF(ISBLANK(InfoPro!N73),"",InfoPro!N73) -> NO | F73: =IF(ISBLANK(InfoPro!I73),"",YEAR(InfoPro!I73)-$J$2) -> 3 | G73: 0 | H73: 0
B74: =IF(ISBLANK(InfoPro!A74),"",InfoPro!A74) -> SC_1715_A2 | C74: =IF(ISBLANK(InfoPro!B74),"",InfoPro!B74) -> Andrómeda Solar de 50 MW (entrega 41 MW) | D74: =IF(ISBLANK(InfoPro!E74),"",InfoPro!E74) -> 41 | E74: =IF(ISBLANK(InfoPro!N74),"",InfoPro!N74) -> NO | F74: =IF(ISBLANK(InfoPro!I74),"",YEAR(InfoPro!I74)-$J$2) -> 3 | G74: 0 | H74: 0
B75: =IF(ISBLANK(InfoPro!A75),"",InfoPro!A75) -> SC_1809_A1 | C75: =IF(ISBLANK(InfoPro!B75),"",InfoPro!B75) -> DSE COVEÑAS | D75: =IF(ISBLANK(InfoPro!E75),"",InfoPro!E75) -> 9.9 | E75: =IF(ISBLANK(InfoPro!N75),"",InfoPro!N75) -> NO | F75: =IF(ISBLANK(InfoPro!I75),"",YEAR(InfoPro!I75)-$J$2) -> 2 | G75: 0 | H75: 0
B76: =IF(ISBLANK(InfoPro!A76),"",InfoPro!A76) -> SC_1809_A2 | C76: =IF(ISBLANK(InfoPro!B76),"",InfoPro!B76) -> DSE COVEÑAS | D76: =IF(ISBLANK(InfoPro!E76),"",InfoPro!E76) -> 9.9 | E76: =IF(ISBLANK(InfoPro!N76),"",InfoPro!N76) -> NO | F76: =IF(ISBLANK(InfoPro!I76),"",YEAR(InfoPro!I76)-$J$2) -> 2 | G76: 0 | H76: 0
B77: =IF(ISBLANK(InfoPro!A77),"",InfoPro!A77) -> SC_1838_A1 | C77: =IF(ISBLANK(InfoPro!B77),"",InfoPro!B77) -> Since Solar I 9,9 MW | D77: =IF(ISBLANK(InfoPro!E77),"",InfoPro!E77) -> 9.9 | E77: =IF(ISBLANK(InfoPro!N77),"",InfoPro!N77) -> NO | F77: =IF(ISBLANK(InfoPro!I77),"",YEAR(InfoPro!I77)-$J$2) -> 2 | G77: 0 | H77: 0
B78: =IF(ISBLANK(InfoPro!A78),"",InfoPro!A78) -> SC_1838_A2 | C78: =IF(ISBLANK(InfoPro!B78),"",InfoPro!B78) -> Since Solar I 9,9 MW | D78: =IF(ISBLANK(InfoPro!E78),"",InfoPro!E78) -> 9.9 | E78: =IF(ISBLANK(InfoPro!N78),"",InfoPro!N78) -> NO | F78: =IF(ISBLANK(InfoPro!I78),"",YEAR(InfoPro!I78)-$J$2) -> 2 | G78: 0 | H78: 0
B79: =IF(ISBLANK(InfoPro!A79),"",InfoPro!A79) -> SC_1853_A1 | C79: =IF(ISBLANK(InfoPro!B79),"",InfoPro!B79) -> Tolú Solar 9,9 MW | D79: =IF(ISBLANK(InfoPro!E79),"",InfoPro!E79) -> 9.9 | E79: =IF(ISBLANK(InfoPro!N79),"",InfoPro!N79) -> NO | F79: =IF(ISBLANK(InfoPro!I79),"",YEAR(InfoPro!I79)-$J$2) -> 2 | G79: 0 | H79: 0
B80: =IF(ISBLANK(InfoPro!A80),"",InfoPro!A80) -> SC_1853_A2 | C80: =IF(ISBLANK(InfoPro!B80),"",InfoPro!B80) -> Tolú Solar 9,9 MW | D80: =IF(ISBLANK(InfoPro!E80),"",InfoPro!E80) -> 9.9 | E80: =IF(ISBLANK(InfoPro!N80),"",InfoPro!N80) -> NO | F80: =IF(ISBLANK(InfoPro!I80),"",YEAR(InfoPro!I80)-$J$2) -> 2 | G80: 0 | H80: 0
B81: =IF(ISBLANK(InfoPro!A81),"",InfoPro!A81) -> SC_1882_A1 | C81: =IF(ISBLANK(InfoPro!B81),"",InfoPro!B81) -> Proyecto Solar Oviedo | D81: =IF(ISBLANK(InfoPro!E81),"",InfoPro!E81) -> 9.9 | E81: =IF(ISBLANK(InfoPro!N81),"",InfoPro!N81) -> NO | F81: =IF(ISBLANK(InfoPro!I81),"",YEAR(InfoPro!I81)-$J$2) -> 2 | G81: 0 | H81: 0
B82: =IF(ISBLANK(InfoPro!A82),"",InfoPro!A82) -> SC_1882_A2 | C82: =IF(ISBLANK(InfoPro!B82),"",InfoPro!B82) -> Proyecto Solar Oviedo | D82: =IF(ISBLANK(InfoPro!E82),"",InfoPro!E82) -> 9.9 | E82: =IF(ISBLANK(InfoPro!N82),"",InfoPro!N82) -> NO | F82: =IF(ISBLANK(InfoPro!I82),"",YEAR(InfoPro!I82)-$J$2) -> 2 | G82: 0 | H82: 0
B83: =IF(ISBLANK(InfoPro!A83),"",InfoPro!A83) -> SC_1913_A1 | C83: =IF(ISBLANK(InfoPro!B83),"",InfoPro!B83) -> PS Noe | D83: =IF(ISBLANK(InfoPro!E83),"",InfoPro!E83) -> 9.9 | E83: =IF(ISBLANK(InfoPro!N83),"",InfoPro!N83) -> NO | F83: =IF(ISBLANK(InfoPro!I83),"",YEAR(InfoPro!I83)-$J$2) -> 2 | G83: 0 | H83: 0
B84: =IF(ISBLANK(InfoPro!A84),"",InfoPro!A84) -> SC_1913_A2 | C84: =IF(ISBLANK(InfoPro!B84),"",InfoPro!B84) -> PS Noe | D84: =IF(ISBLANK(InfoPro!E84),"",InfoPro!E84) -> 9.9 | E84: =IF(ISBLANK(InfoPro!N84),"",InfoPro!N84) -> NO | F84: =IF(ISBLANK(InfoPro!I84),"",YEAR(InfoPro!I84)-$J$2) -> 2 | G84: 0 | H84: 0
B85: =IF(ISBLANK(InfoPro!A85),"",InfoPro!A85) -> SC_1491_A1 | C85: =IF(ISBLANK(InfoPro!B85),"",InfoPro!B85) -> SABANA SOLAR_90MW | D85: =IF(ISBLANK(InfoPro!E85),"",InfoPro!E85) -> 90 | E85: =IF(ISBLANK(InfoPro!N85),"",InfoPro!N85) -> NO | F85: =IF(ISBLANK(InfoPro!I85),"",YEAR(InfoPro!I85)-$J$2) -> 2 | G85: 0 | H85: 0
B86: =IF(ISBLANK(InfoPro!A86),"",InfoPro!A86) -> SC_1491_A2 | C86: =IF(ISBLANK(InfoPro!B86),"",InfoPro!B86) -> SABANA SOLAR_90MW | D86: =IF(ISBLANK(InfoPro!E86),"",InfoPro!E86) -> 90 | E86: =IF(ISBLANK(InfoPro!N86),"",InfoPro!N86) -> NO | F86: =IF(ISBLANK(InfoPro!I86),"",YEAR(InfoPro!I86)-$J$2) -> 2 | G86: 0 | H86: 0
B87: =IF(ISBLANK(InfoPro!A87),"",InfoPro!A87) -> SC_1894_A1 | C87: =IF(ISBLANK(InfoPro!B87),"",InfoPro!B87) -> Aquila Solar | D87: =IF(ISBLANK(InfoPro!E87),"",InfoPro!E87) -> 47 | E87: =IF(ISBLANK(InfoPro!N87),"",InfoPro!N87) -> NO | F87: =IF(ISBLANK(InfoPro!I87),"",YEAR(InfoPro!I87)-$J$2) -> 2 | G87: 0 | H87: 0
B88: =IF(ISBLANK(InfoPro!A88),"",InfoPro!A88) -> SC_1894_A2 | C88: =IF(ISBLANK(InfoPro!B88),"",InfoPro!B88) -> Aquila Solar | D88: =IF(ISBLANK(InfoPro!E88),"",InfoPro!E88) -> 47 | E88: =IF(ISBLANK(InfoPro!N88),"",InfoPro!N88) -> NO | F88: =IF(ISBLANK(InfoPro!I88),"",YEAR(InfoPro!I88)-$J$2) -> 2 | G88: 0 | H88: 0
B89: =IF(ISBLANK(InfoPro!A89),"",InfoPro!A89) -> SC_1887_A1 | C89: =IF(ISBLANK(InfoPro!B89),"",InfoPro!B89) -> Boston Solar | D89: =IF(ISBLANK(InfoPro!E89),"",InfoPro!E89) -> 100 | E89: =IF(ISBLANK(InfoPro!N89),"",InfoPro!N89) -> NO | F89: =IF(ISBLANK(InfoPro!I89),"",YEAR(InfoPro!I89)-$J$2) -> 3 | G89: 0 | H89: 0
B90: =IF(ISBLANK(InfoPro!A90),"",InfoPro!A90) -> SC_1887_A2 | C90: =IF(ISBLANK(InfoPro!B90),"",InfoPro!B90) -> Boston Solar | D90: =IF(ISBLANK(InfoPro!E90),"",InfoPro!E90) -> 100 | E90: =IF(ISBLANK(InfoPro!N90),"",InfoPro!N90) -> NO | F90: =IF(ISBLANK(InfoPro!I90),"",YEAR(InfoPro!I90)-$J$2) -> 3 | G90: 0 | H90: 0
B91: =IF(ISBLANK(InfoPro!A91),"",InfoPro!A91) -> SC_2104_A1 | C91: =IF(ISBLANK(InfoPro!B91),"",InfoPro!B91) -> El Dorado - 300 MW | D91: =IF(ISBLANK(InfoPro!E91),"",InfoPro!E91) -> 300 | E91: =IF(ISBLANK(InfoPro!N91),"",InfoPro!N91) -> NO | F91: =IF(ISBLANK(InfoPro!I91),"",YEAR(InfoPro!I91)-$J$2) -> 3 | G91: 0 | H91: 0
B92: =IF(ISBLANK(InfoPro!A92),"",InfoPro!A92) -> SC_2104_A2 | C92: =IF(ISBLANK(InfoPro!B92),"",InfoPro!B92) -> El Dorado - 300 MW | D92: =IF(ISBLANK(InfoPro!E92),"",InfoPro!E92) -> 300 | E92: =IF(ISBLANK(InfoPro!N92),"",InfoPro!N92) -> NO | F92: =IF(ISBLANK(InfoPro!I92),"",YEAR(InfoPro!I92)-$J$2) -> 3 | G92: 0 | H92: 0
B93: =IF(ISBLANK(InfoPro!A93),"",InfoPro!A93) -> SC_2028_A1 | C93: =IF(ISBLANK(InfoPro!B93),"",InfoPro!B93) -> Parque Solar Fandango | D93: =IF(ISBLANK(InfoPro!E93),"",InfoPro!E93) -> 19.9 | E93: =IF(ISBLANK(InfoPro!N93),"",InfoPro!N93) -> NO | F93: =IF(ISBLANK(InfoPro!I93),"",YEAR(InfoPro!I93)-$J$2) -> 2 | G93: 0 | H93: 0
B94: =IF(ISBLANK(InfoPro!A94),"",InfoPro!A94) -> SC_2028_A2 | C94: =IF(ISBLANK(InfoPro!B94),"",InfoPro!B94) -> Parque Solar Fandango | D94: =IF(ISBLANK(InfoPro!E94),"",InfoPro!E94) -> 19.9 | E94: =IF(ISBLANK(InfoPro!N94),"",InfoPro!N94) -> NO | F94: =IF(ISBLANK(InfoPro!I94),"",YEAR(InfoPro!I94)-$J$2) -> 2 | G94: 0 | H94: 0
B95: =IF(ISBLANK(InfoPro!A95),"",InfoPro!A95) -> SC_2015_A1 | C95: =IF(ISBLANK(InfoPro!B95),"",InfoPro!B95) -> Parque Solar El Bongo | D95: =IF(ISBLANK(InfoPro!E95),"",InfoPro!E95) -> 19.9 | E95: =IF(ISBLANK(InfoPro!N95),"",InfoPro!N95) -> NO | F95: =IF(ISBLANK(InfoPro!I95),"",YEAR(InfoPro!I95)-$J$2) -> 2 | G95: 0 | H95: 0
B96: =IF(ISBLANK(InfoPro!A96),"",InfoPro!A96) -> SC_2015_A2 | C96: =IF(ISBLANK(InfoPro!B96),"",InfoPro!B96) -> Parque Solar El Bongo | D96: =IF(ISBLANK(InfoPro!E96),"",InfoPro!E96) -> 19.9 | E96: =IF(ISBLANK(InfoPro!N96),"",InfoPro!N96) -> NO | F96: =IF(ISBLANK(InfoPro!I96),"",YEAR(InfoPro!I96)-$J$2) -> 2 | G96: 0 | H96: 0
B97: =IF(ISBLANK(InfoPro!A97),"",InfoPro!A97) -> SC_2049_A1 | C97: =IF(ISBLANK(InfoPro!B97),"",InfoPro!B97) -> Parque Solar Sinú | D97: =IF(ISBLANK(InfoPro!E97),"",InfoPro!E97) -> 9.9 | E97: =IF(ISBLANK(InfoPro!N97),"",InfoPro!N97) -> NO | F97: =IF(ISBLANK(InfoPro!I97),"",YEAR(InfoPro!I97)-$J$2) -> 2 | G97: 0 | H97: 0
B98: =IF(ISBLANK(InfoPro!A98),"",InfoPro!A98) -> SC_2049_A2 | C98: =IF(ISBLANK(InfoPro!B98),"",InfoPro!B98) -> Parque Solar Sinú | D98: =IF(ISBLANK(InfoPro!E98),"",InfoPro!E98) -> 9.9 | E98: =IF(ISBLANK(InfoPro!N98),"",InfoPro!N98) -> NO | F98: =IF(ISBLANK(InfoPro!I98),"",YEAR(InfoPro!I98)-$J$2) -> 2 | G98: 0 | H98: 0
B99: =IF(ISBLANK(InfoPro!A99),"",InfoPro!A99) -> SC_2042_A1 | C99: =IF(ISBLANK(InfoPro!B99),"",InfoPro!B99) -> Parque Solar La Uvita | D99: =IF(ISBLANK(InfoPro!E99),"",InfoPro!E99) -> 19.9 | E99: =IF(ISBLANK(InfoPro!N99),"",InfoPro!N99) -> NO | F99: =IF(ISBLANK(InfoPro!I99),"",YEAR(InfoPro!I99)-$J$2) -> 2 | G99: 0 | H99: 0
B100: =IF(ISBLANK(InfoPro!A100),"",InfoPro!A100) -> SC_2042_A2 | C100: =IF(ISBLANK(InfoPro!B100),"",InfoPro!B100) -> Parque Solar La Uvita | D100: =IF(ISBLANK(InfoPro!E100),"",InfoPro!E100) -> 19.9 | E100: =IF(ISBLANK(InfoPro!N100),"",InfoPro!N100) -> NO | F100: =IF(ISBLANK(InfoPro!I100),"",YEAR(InfoPro!I100)-$J$2) -> 2 | G100: 0 | H100: 0
B101: =IF(ISBLANK(InfoPro!A101),"",InfoPro!A101) -> SC_2111_A1 | C101: =IF(ISBLANK(InfoPro!B101),"",InfoPro!B101) -> PROYECTO QUIMARÍ SOLAR_90MW | D101: =IF(ISBLANK(InfoPro!E101),"",InfoPro!E101) -> 90 | E101: =IF(ISBLANK(InfoPro!N101),"",InfoPro!N101) -> NO | F101: =IF(ISBLANK(InfoPro!I101),"",YEAR(InfoPro!I101)-$J$2) -> 2 | G101: 0 | H101: 0
B102: =IF(ISBLANK(InfoPro!A102),"",InfoPro!A102) -> SC_2111_A2 | C102: =IF(ISBLANK(InfoPro!B102),"",InfoPro!B102) -> PROYECTO QUIMARÍ SOLAR_90MW | D102: =IF(ISBLANK(InfoPro!E102),"",InfoPro!E102) -> 90 | E102: =IF(ISBLANK(InfoPro!N102),"",InfoPro!N102) -> NO | F102: =IF(ISBLANK(InfoPro!I102),"",YEAR(InfoPro!I102)-$J$2) -> 2 | G102: 0 | H102: 0
B103: =IF(ISBLANK(InfoPro!A103),"",InfoPro!A103) -> SC_2173_A1 | C103: =IF(ISBLANK(InfoPro!B103),"",InfoPro!B103) -> Nueva Montería Solar I 9,9 MW | D103: =IF(ISBLANK(InfoPro!E103),"",InfoPro!E103) -> 9.9 | E103: =IF(ISBLANK(InfoPro!N103),"",InfoPro!N103) -> NO | F103: =IF(ISBLANK(InfoPro!I103),"",YEAR(InfoPro!I103)-$J$2) -> 2 | G103: 0 | H103: 0
B104: =IF(ISBLANK(InfoPro!A104),"",InfoPro!A104) -> SC_2173_A2 | C104: =IF(ISBLANK(InfoPro!B104),"",InfoPro!B104) -> Nueva Montería Solar I 9,9 MW | D104: =IF(ISBLANK(InfoPro!E104),"",InfoPro!E104) -> 9.9 | E104: =IF(ISBLANK(InfoPro!N104),"",InfoPro!N104) -> NO | F104: =IF(ISBLANK(InfoPro!I104),"",YEAR(InfoPro!I104)-$J$2) -> 2 | G104: 0 | H104: 0
B105: =IF(ISBLANK(InfoPro!A105),"",InfoPro!A105) -> SC_2174_A1 | C105: =IF(ISBLANK(InfoPro!B105),"",InfoPro!B105) -> Nueva Montería Solar I 9,9 MW | D105: =IF(ISBLANK(InfoPro!E105),"",InfoPro!E105) -> 9.9 | E105: =IF(ISBLANK(InfoPro!N105),"",InfoPro!N105) -> NO | F105: =IF(ISBLANK(InfoPro!I105),"",YEAR(InfoPro!I105)-$J$2) -> 2 | G105: 0 | H105: 0
B106: =IF(ISBLANK(InfoPro!A106),"",InfoPro!A106) -> SC_2174_A2 | C106: =IF(ISBLANK(InfoPro!B106),"",InfoPro!B106) -> Nueva Montería Solar I 9,9 MW | D106: =IF(ISBLANK(InfoPro!E106),"",InfoPro!E106) -> 9.9 | E106: =IF(ISBLANK(InfoPro!N106),"",InfoPro!N106) -> NO | F106: =IF(ISBLANK(InfoPro!I106),"",YEAR(InfoPro!I106)-$J$2) -> 2 | G106: 0 | H106: 0
B107: =IF(ISBLANK(InfoPro!A107),"",InfoPro!A107) -> SC_2016_A1 | C107: =IF(ISBLANK(InfoPro!B107),"",InfoPro!B107) -> Hidalgo Solar 80 MW | D107: =IF(ISBLANK(InfoPro!E107),"",InfoPro!E107) -> 80 | E107: =IF(ISBLANK(InfoPro!N107),"",InfoPro!N107) -> NO | F107: =IF(ISBLANK(InfoPro!I107),"",YEAR(InfoPro!I107)-$J$2) -> 2 | G107: 0 | H107: 0
B108: =IF(ISBLANK(InfoPro!A108),"",InfoPro!A108) -> SC_2016_A2 | C108: =IF(ISBLANK(InfoPro!B108),"",InfoPro!B108) -> Hidalgo Solar 80 MW | D108: =IF(ISBLANK(InfoPro!E108),"",InfoPro!E108) -> 80 | E108: =IF(ISBLANK(InfoPro!N108),"",InfoPro!N108) -> NO | F108: =IF(ISBLANK(InfoPro!I108),"",YEAR(InfoPro!I108)-$J$2) -> 2 | G108: 0 | H108: 0
B109: =IF(ISBLANK(InfoPro!A109),"",InfoPro!A109) -> SC_2016_A3 | C109: =IF(ISBLANK(InfoPro!B109),"",InfoPro!B109) -> Hidalgo Solar 80 MW | D109: =IF(ISBLANK(InfoPro!E109),"",InfoPro!E109) -> 80 | E109: =IF(ISBLANK(InfoPro!N109),"",InfoPro!N109) -> NO | F109: =IF(ISBLANK(InfoPro!I109),"",YEAR(InfoPro!I109)-$J$2) -> 2 | G109: 0 | H109: 0
B110: =IF(ISBLANK(InfoPro!A110),"",InfoPro!A110) -> SC_2135_A1 | C110: =IF(ISBLANK(InfoPro!B110),"",InfoPro!B110) -> DSE SIERRAFLOR | D110: =IF(ISBLANK(InfoPro!E110),"",InfoPro!E110) -> 99.9 | E110: =IF(ISBLANK(InfoPro!N110),"",InfoPro!N110) -> NO | F110: =IF(ISBLANK(InfoPro!I110),"",YEAR(InfoPro!I110)-$J$2) -> 3 | G110: 0 | H110: 0
B111: =IF(ISBLANK(InfoPro!A111),"",InfoPro!A111) -> SC_2135_A2 | C111: =IF(ISBLANK(InfoPro!B111),"",InfoPro!B111) -> DSE SIERRAFLOR | D111: =IF(ISBLANK(InfoPro!E111),"",InfoPro!E111) -> 99.9 | E111: =IF(ISBLANK(InfoPro!N111),"",InfoPro!N111) -> NO | F111: =IF(ISBLANK(InfoPro!I111),"",YEAR(InfoPro!I111)-$J$2) -> 3 | G111: 0 | H111: 0
B112: =IF(ISBLANK(InfoPro!A112),"",InfoPro!A112) -> SC_1821_A1 | C112: =IF(ISBLANK(InfoPro!B112),"",InfoPro!B112) -> Balay Solar | D112: =IF(ISBLANK(InfoPro!E112),"",InfoPro!E112) -> 70 | E112: =IF(ISBLANK(InfoPro!N112),"",InfoPro!N112) -> NO | F112: =IF(ISBLANK(InfoPro!I112),"",YEAR(InfoPro!I112)-$J$2) -> 4 | G112: 0 | H112: 0
B113: =IF(ISBLANK(InfoPro!A113),"",InfoPro!A113) -> SC_1821_A2 | C113: =IF(ISBLANK(InfoPro!B113),"",InfoPro!B113) -> Balay Solar | D113: =IF(ISBLANK(InfoPro!E113),"",InfoPro!E113) -> 70 | E113: =IF(ISBLANK(InfoPro!N113),"",InfoPro!N113) -> NO | F113: =IF(ISBLANK(InfoPro!I113),"",YEAR(InfoPro!I113)-$J$2) -> 4 | G113: 0 | H113: 0
B114: =IF(ISBLANK(InfoPro!A114),"",InfoPro!A114) -> SC_1859_A1 | C114: =IF(ISBLANK(InfoPro!B114),"",InfoPro!B114) -> PV Altamira_99MW | D114: =IF(ISBLANK(InfoPro!E114),"",InfoPro!E114) -> 99 | E114: =IF(ISBLANK(InfoPro!N114),"",InfoPro!N114) -> NO | F114: =IF(ISBLANK(InfoPro!I114),"",YEAR(InfoPro!I114)-$J$2) -> 4 | G114: 0 | H114: 0
B115: =IF(ISBLANK(InfoPro!A115),"",InfoPro!A115) -> SC_1859_A2 | C115: =IF(ISBLANK(InfoPro!B115),"",InfoPro!B115) -> PV Altamira_99MW | D115: =IF(ISBLANK(InfoPro!E115),"",InfoPro!E115) -> 99 | E115: =IF(ISBLANK(InfoPro!N115),"",InfoPro!N115) -> NO | F115: =IF(ISBLANK(InfoPro!I115),"",YEAR(InfoPro!I115)-$J$2) -> 4 | G115: 0 | H115: 0
B116: =IF(ISBLANK(InfoPro!A116),"",InfoPro!A116) -> SC_1843_A1 | C116: =IF(ISBLANK(InfoPro!B116),"",InfoPro!B116) -> KOS de 19.9 MW | D116: =IF(ISBLANK(InfoPro!E116),"",InfoPro!E116) -> 19.9 | E116: =IF(ISBLANK(InfoPro!N116),"",InfoPro!N116) -> NO | F116: =IF(ISBLANK(InfoPro!I116),"",YEAR(InfoPro!I116)-$J$2) -> 2 | G116: 0 | H116: 0
B117: =IF(ISBLANK(InfoPro!A117),"",InfoPro!A117) -> SC_1843_A2 | C117: =IF(ISBLANK(InfoPro!B117),"",InfoPro!B117) -> KOS de 19.9 MW | D117: =IF(ISBLANK(InfoPro!E117),"",InfoPro!E117) -> 19.9 | E117: =IF(ISBLANK(InfoPro!N117),"",InfoPro!N117) -> NO | F117: =IF(ISBLANK(InfoPro!I117),"",YEAR(InfoPro!I117)-$J$2) -> 2 | G117: 0 | H117: 0
B118: =IF(ISBLANK(InfoPro!A118),"",InfoPro!A118) -> SC_2012_A1 | C118: =IF(ISBLANK(InfoPro!B118),"",InfoPro!B118) -> Parqu Solar Fotovoltaico Rocio del Sol 50 MW | D118: =IF(ISBLANK(InfoPro!E118),"",InfoPro!E118) -> 50 | E118: =IF(ISBLANK(InfoPro!N118),"",InfoPro!N118) -> NO | F118: =IF(ISBLANK(InfoPro!I118),"",YEAR(InfoPro!I118)-$J$2) -> 3 | G118: 0 | H118: 0
B119: =IF(ISBLANK(InfoPro!A119),"",InfoPro!A119) -> SC_2012_A2 | C119: =IF(ISBLANK(InfoPro!B119),"",InfoPro!B119) -> Parqu Solar Fotovoltaico Rocio del Sol 50 MW | D119: =IF(ISBLANK(InfoPro!E119),"",InfoPro!E119) -> 50 | E119: =IF(ISBLANK(InfoPro!N119),"",InfoPro!N119) -> NO | F119: =IF(ISBLANK(InfoPro!I119),"",YEAR(InfoPro!I119)-$J$2) -> 3 | G119: 0 | H119: 0
B120: =IF(ISBLANK(InfoPro!A120),"",InfoPro!A120) -> SC_1807_A1 | C120: =IF(ISBLANK(InfoPro!B120),"",InfoPro!B120) -> Parque Solar Canis 49,9 MW | D120: =IF(ISBLANK(InfoPro!E120),"",InfoPro!E120) -> 49.9 | E120: =IF(ISBLANK(InfoPro!N120),"",InfoPro!N120) -> NO | F120: =IF(ISBLANK(InfoPro!I120),"",YEAR(InfoPro!I120)-$J$2) -> 2 | G120: 0 | H120: 0
B121: =IF(ISBLANK(InfoPro!A121),"",InfoPro!A121) -> SC_1807_A2 | C121: =IF(ISBLANK(InfoPro!B121),"",InfoPro!B121) -> Parque Solar Canis 49,9 MW | D121: =IF(ISBLANK(InfoPro!E121),"",InfoPro!E121) -> 49.9 | E121: =IF(ISBLANK(InfoPro!N121),"",InfoPro!N121) -> NO | F121: =IF(ISBLANK(InfoPro!I121),"",YEAR(InfoPro!I121)-$J$2) -> 2 | G121: 0 | H121: 0
B122: =IF(ISBLANK(InfoPro!A122),"",InfoPro!A122) -> SC_1918_A1 | C122: =IF(ISBLANK(InfoPro!B122),"",InfoPro!B122) -> Casiopea 40 MW | D122: =IF(ISBLANK(InfoPro!E122),"",InfoPro!E122) -> 40 | E122: =IF(ISBLANK(InfoPro!N122),"",InfoPro!N122) -> NO | F122: =IF(ISBLANK(InfoPro!I122),"",YEAR(InfoPro!I122)-$J$2) -> 2 | G122: 0 | H122: 0
B123: =IF(ISBLANK(InfoPro!A123),"",InfoPro!A123) -> SC_1918_A2 | C123: =IF(ISBLANK(InfoPro!B123),"",InfoPro!B123) -> Casiopea 40 MW | D123: =IF(ISBLANK(InfoPro!E123),"",InfoPro!E123) -> 40 | E123: =IF(ISBLANK(InfoPro!N123),"",InfoPro!N123) -> NO | F123: =IF(ISBLANK(InfoPro!I123),"",YEAR(InfoPro!I123)-$J$2) -> 2 | G123: 0 | H123: 0
B124: =IF(ISBLANK(InfoPro!A124),"",InfoPro!A124) -> SC_1813_A1 | C124: =IF(ISBLANK(InfoPro!B124),"",InfoPro!B124) -> Parque de generación Cefeo | D124: =IF(ISBLANK(InfoPro!E124),"",InfoPro!E124) -> 19.9 | E124: =IF(ISBLANK(InfoPro!N124),"",InfoPro!N124) -> NO | F124: =IF(ISBLANK(InfoPro!I124),"",YEAR(InfoPro!I124)-$J$2) -> 2 | G124: 0 | H124: 0
B125: =IF(ISBLANK(InfoPro!A125),"",InfoPro!A125) -> SC_1813_A2 | C125: =IF(ISBLANK(InfoPro!B125),"",InfoPro!B125) -> Parque de generación Cefeo | D125: =IF(ISBLANK(InfoPro!E125),"",InfoPro!E125) -> 19.9 | E125: =IF(ISBLANK(InfoPro!N125),"",InfoPro!N125) -> NO | F125: =IF(ISBLANK(InfoPro!I125),"",YEAR(InfoPro!I125)-$J$2) -> 2 | G125: 0 | H125: 0
B126: =IF(ISBLANK(InfoPro!A126),"",InfoPro!A126) -> SC_1949_A1 | C126: =IF(ISBLANK(InfoPro!B126),"",InfoPro!B126) -> Solar Planeta Rica | D126: =IF(ISBLANK(InfoPro!E126),"",InfoPro!E126) -> 19.9 | E126: =IF(ISBLANK(InfoPro!N126),"",InfoPro!N126) -> NO | F126: =IF(ISBLANK(InfoPro!I126),"",YEAR(InfoPro!I126)-$J$2) -> 3 | G126: 0 | H126: 0
B127: =IF(ISBLANK(InfoPro!A127),"",InfoPro!A127) -> SC_1949_A2 | C127: =IF(ISBLANK(InfoPro!B127),"",InfoPro!B127) -> Solar Planeta Rica | D127: =IF(ISBLANK(InfoPro!E127),"",InfoPro!E127) -> 19.9 | E127: =IF(ISBLANK(InfoPro!N127),"",InfoPro!N127) -> NO | F127: =IF(ISBLANK(InfoPro!I127),"",YEAR(InfoPro!I127)-$J$2) -> 3 | G127: 0 | H127: 0
B128: =IF(ISBLANK(InfoPro!A128),"",InfoPro!A128) -> SC_1970_A1 | C128: =IF(ISBLANK(InfoPro!B128),"",InfoPro!B128) -> Parque Solar Montería | D128: =IF(ISBLANK(InfoPro!E128),"",InfoPro!E128) -> 99 | E128: =IF(ISBLANK(InfoPro!N128),"",InfoPro!N128) -> NO | F128: =IF(ISBLANK(InfoPro!I128),"",YEAR(InfoPro!I128)-$J$2) -> 3 | G128: 0 | H128: 0
B129: =IF(ISBLANK(InfoPro!A129),"",InfoPro!A129) -> SC_1970_A2 | C129: =IF(ISBLANK(InfoPro!B129),"",InfoPro!B129) -> Parque Solar Montería | D129: =IF(ISBLANK(InfoPro!E129),"",InfoPro!E129) -> 99 | E129: =IF(ISBLANK(InfoPro!N129),"",InfoPro!N129) -> NO | F129: =IF(ISBLANK(InfoPro!I129),"",YEAR(InfoPro!I129)-$J$2) -> 3 | G129: 0 | H129: 0
B130: =IF(ISBLANK(InfoPro!A130),"",InfoPro!A130) -> SC_2072_A1 | C130: =IF(ISBLANK(InfoPro!B130),"",InfoPro!B130) -> Porvenir - 9.9 MW | D130: =IF(ISBLANK(InfoPro!E130),"",InfoPro!E130) -> 9.9 | E130: =IF(ISBLANK(InfoPro!N130),"",InfoPro!N130) -> NO | F130: =IF(ISBLANK(InfoPro!I130),"",YEAR(InfoPro!I130)-$J$2) -> 2 | G130: 0 | H130: 0
B131: =IF(ISBLANK(InfoPro!A131),"",InfoPro!A131) -> SC_2204_A1 | C131: =IF(ISBLANK(InfoPro!B131),"",InfoPro!B131) -> Parque Solar Ciénaga Grande - 19.9 MW | D131: =IF(ISBLANK(InfoPro!E131),"",InfoPro!E131) -> 19.9 | E131: =IF(ISBLANK(InfoPro!N131),"",InfoPro!N131) -> NO | F131: =IF(ISBLANK(InfoPro!I131),"",YEAR(InfoPro!I131)-$J$2) -> 2 | G131: =IF(E131="SI",100,IF(E131="NO",0,"")) -> 0 | H131: =IF(G131="","",(G131)) -> 0
B132: =IF(ISBLANK(InfoPro!A132),"",InfoPro!A132) -> SC_2204_A2 | C132: =IF(ISBLANK(InfoPro!B132),"",InfoPro!B132) -> Parque Solar Ciénaga Grande - 19.9 MW | D132: =IF(ISBLANK(InfoPro!E132),"",InfoPro!E132) -> 19.9 | E132: =IF(ISBLANK(InfoPro!N132),"",InfoPro!N132) -> NO | F132: =IF(ISBLANK(InfoPro!I132),"",YEAR(InfoPro!I132)-$J$2) -> 2 | G132: 0 | H132: 0
B133: =IF(ISBLANK(InfoPro!A133),"",InfoPro!A133) -> SC_2166_A1 | C133: =IF(ISBLANK(InfoPro!B133),"",InfoPro!B133) -> Parque fotovoltaico Delphinus | D133: =IF(ISBLANK(InfoPro!E133),"",InfoPro!E133) -> 19.9 | E133: =IF(ISBLANK(InfoPro!N133),"",InfoPro!N133) -> NO | F133: =IF(ISBLANK(InfoPro!I133),"",YEAR(InfoPro!I133)-$J$2) -> 2 | G133: 0 | H133: 0
B134: =IF(ISBLANK(InfoPro!A134),"",InfoPro!A134) -> SC_2166_A2 | C134: =IF(ISBLANK(InfoPro!B134),"",InfoPro!B134) -> Parque fotovoltaico Delphinus | D134: =IF(ISBLANK(InfoPro!E134),"",InfoPro!E134) -> 19.9 | E134: =IF(ISBLANK(InfoPro!N134),"",InfoPro!N134) -> NO | F134: =IF(ISBLANK(InfoPro!I134),"",YEAR(InfoPro!I134)-$J$2) -> 2 | G134: 0 | H134: 0
B135: =IF(ISBLANK(InfoPro!A135),"",InfoPro!A135) -> SC_1923_A1 | C135: =IF(ISBLANK(InfoPro!B135),"",InfoPro!B135) -> Parque Solar Fotovoltaico Chunú I 50 MW | D135: =IF(ISBLANK(InfoPro!E135),"",InfoPro!E135) -> 50 | E135: =IF(ISBLANK(InfoPro!N135),"",InfoPro!N135) -> NO | F135: =IF(ISBLANK(InfoPro!I135),"",YEAR(InfoPro!I135)-$J$2) -> 4 | G135: 0 | H135: 0
B136: =IF(ISBLANK(InfoPro!A136),"",InfoPro!A136) -> SC_1923_A2 | C136: =IF(ISBLANK(InfoPro!B136),"",InfoPro!B136) -> Parque Solar Fotovoltaico Chunú I 50 MW | D136: =IF(ISBLANK(InfoPro!E136),"",InfoPro!E136) -> 50 | E136: =IF(ISBLANK(InfoPro!N136),"",InfoPro!N136) -> NO | F136: =IF(ISBLANK(InfoPro!I136),"",YEAR(InfoPro!I136)-$J$2) -> 4 | G136: 0 | H136: 0
B137: =IF(ISBLANK(InfoPro!A137),"",InfoPro!A137) -> SC_1937_A1 | C137: =IF(ISBLANK(InfoPro!B137),"",InfoPro!B137) -> Parque Solar Fotovoltaico ChInú II 50 MW | D137: =IF(ISBLANK(InfoPro!E137),"",InfoPro!E137) -> 50 | E137: =IF(ISBLANK(InfoPro!N137),"",InfoPro!N137) -> NO | F137: =IF(ISBLANK(InfoPro!I137),"",YEAR(InfoPro!I137)-$J$2) -> 4 | G137: 0 | H137: 0
B138: =IF(ISBLANK(InfoPro!A138),"",InfoPro!A138) -> SC_1937_A2 | C138: =IF(ISBLANK(InfoPro!B138),"",InfoPro!B138) -> Parque Solar Fotovoltaico ChInú II 50 MW | D138: =IF(ISBLANK(InfoPro!E138),"",InfoPro!E138) -> 50 | E138: =IF(ISBLANK(InfoPro!N138),"",InfoPro!N138) -> NO | F138: =IF(ISBLANK(InfoPro!I138),"",YEAR(InfoPro!I138)-$J$2) -> 4 | G138: 0 | H138: 0
B139: =IF(ISBLANK(InfoPro!A139),"",InfoPro!A139) -> SC_1810_A1 | C139: =IF(ISBLANK(InfoPro!B139),"",InfoPro!B139) -> Parque Solar Coveñas 50 MW | D139: =IF(ISBLANK(InfoPro!E139),"",InfoPro!E139) -> 50 | E139: =IF(ISBLANK(InfoPro!N139),"",InfoPro!N139) -> NO | F139: =IF(ISBLANK(InfoPro!I139),"",YEAR(InfoPro!I139)-$J$2) -> 4 | G139: 0 | H139: 0
B140: =IF(ISBLANK(InfoPro!A140),"",InfoPro!A140) -> SC_1810_A2 | C140: =IF(ISBLANK(InfoPro!B140),"",InfoPro!B140) -> Parque Solar Coveñas 50 MW | D140: =IF(ISBLANK(InfoPro!E140),"",InfoPro!E140) -> 50 | E140: =IF(ISBLANK(InfoPro!N140),"",InfoPro!N140) -> NO | F140: =IF(ISBLANK(InfoPro!I140),"",YEAR(InfoPro!I140)-$J$2) -> 4 | G140: 0 | H140: 0
B141: =IF(ISBLANK(InfoPro!A141),"",InfoPro!A141) -> SC_1835_A1 | C141: =IF(ISBLANK(InfoPro!B141),"",InfoPro!B141) -> Parque Solar Coveñas II 50 MW | D141: =IF(ISBLANK(InfoPro!E141),"",InfoPro!E141) -> 50 | E141: =IF(ISBLANK(InfoPro!N141),"",InfoPro!N141) -> NO | F141: =IF(ISBLANK(InfoPro!I141),"",YEAR(InfoPro!I141)-$J$2) -> 4 | G141: 0 | H141: 0
B142: =IF(ISBLANK(InfoPro!A142),"",InfoPro!A142) -> SC_1835_A2 | C142: =IF(ISBLANK(InfoPro!B142),"",InfoPro!B142) -> Parque Solar Coveñas II 50 MW | D142: =IF(ISBLANK(InfoPro!E142),"",InfoPro!E142) -> 50 | E142: =IF(ISBLANK(InfoPro!N142),"",InfoPro!N142) -> NO | F142: =IF(ISBLANK(InfoPro!I142),"",YEAR(InfoPro!I142)-$J$2) -> 4 | G142: 0 | H142: 0
B143: =IF(ISBLANK(InfoPro!A143),"",InfoPro!A143) -> SC_1873_A1 | C143: =IF(ISBLANK(InfoPro!B143),"",InfoPro!B143) -> Cusumbo Solar | D143: =IF(ISBLANK(InfoPro!E143),"",InfoPro!E143) -> 99.9 | E143: =IF(ISBLANK(InfoPro!N143),"",InfoPro!N143) -> NO | F143: =IF(ISBLANK(InfoPro!I143),"",YEAR(InfoPro!I143)-$J$2) -> 3 | G143: 0 | H143: 0
B144: =IF(ISBLANK(InfoPro!A144),"",InfoPro!A144) -> SC_1873_A2 | C144: =IF(ISBLANK(InfoPro!B144),"",InfoPro!B144) -> Cusumbo Solar | D144: =IF(ISBLANK(InfoPro!E144),"",InfoPro!E144) -> 99.9 | E144: =IF(ISBLANK(InfoPro!N144),"",InfoPro!N144) -> NO | F144: =IF(ISBLANK(InfoPro!I144),"",YEAR(InfoPro!I144)-$J$2) -> 3 | G144: 0 | H144: 0
B145: =IF(ISBLANK(InfoPro!A145),"",InfoPro!A145) -> SC_2067_A1 | C145: =IF(ISBLANK(InfoPro!B145),"",InfoPro!B145) -> TIERRALTA 70 MW | D145: =IF(ISBLANK(InfoPro!E145),"",InfoPro!E145) -> 70 | E145: =IF(ISBLANK(InfoPro!N145),"",InfoPro!N145) -> NO | F145: =IF(ISBLANK(InfoPro!I145),"",YEAR(InfoPro!I145)-$J$2) -> 4 | G145: =IF(E145="SI",100,IF(E145="NO",0,"")) -> 0 | H145: =IF(G145="","",(G145)) -> 0
B146: =IF(ISBLANK(InfoPro!A146),"",InfoPro!A146) -> SC_2067_A2 | C146: =IF(ISBLANK(InfoPro!B146),"",InfoPro!B146) -> TIERRALTA 70 MW | D146: =IF(ISBLANK(InfoPro!E146),"",InfoPro!E146) -> 70 | E146: =IF(ISBLANK(InfoPro!N146),"",InfoPro!N146) -> NO | F146: =IF(ISBLANK(InfoPro!I146),"",YEAR(InfoPro!I146)-$J$2) -> 4 | G146: 0 | H146: 0
B147: =IF(ISBLANK(InfoPro!A147),"",InfoPro!A147) -> SC_1942_A1 | C147: =IF(ISBLANK(InfoPro!B147),"",InfoPro!B147) -> San Jorge Fotovoltaico 135 MW | D147: =IF(ISBLANK(InfoPro!E147),"",InfoPro!E147) -> 135 | E147: =IF(ISBLANK(InfoPro!N147),"",InfoPro!N147) -> NO | F147: =IF(ISBLANK(InfoPro!I147),"",YEAR(InfoPro!I147)-$J$2) -> 2 | G147: 0 | H147: 0
B148: =IF(ISBLANK(InfoPro!A148),"",InfoPro!A148) -> SC_1942_A2 | C148: =IF(ISBLANK(InfoPro!B148),"",InfoPro!B148) -> San Jorge Fotovoltaico 135 MW | D148: =IF(ISBLANK(InfoPro!E148),"",InfoPro!E148) -> 135 | E148: =IF(ISBLANK(InfoPro!N148),"",InfoPro!N148) -> NO | F148: =IF(ISBLANK(InfoPro!I148),"",YEAR(InfoPro!I148)-$J$2) -> 2 | G148: =IF(E148="SI",100,IF(E148="NO",0,"")) -> 0 | H148: =IF(G148="","",(G148)) -> 0
B149: =IF(ISBLANK(InfoPro!A149),"",InfoPro!A149) -> SC_2107_A1 | C149: =IF(ISBLANK(InfoPro!B149),"",InfoPro!B149) -> Parque Solar Aries | D149: =IF(ISBLANK(InfoPro!E149),"",InfoPro!E149) -> 175 | E149: =IF(ISBLANK(InfoPro!N149),"",InfoPro!N149) -> NO | F149: =IF(ISBLANK(InfoPro!I149),"",YEAR(InfoPro!I149)-$J$2) -> 3 | G149: 0 | H149: 0
B150: =IF(ISBLANK(InfoPro!A150),"",InfoPro!A150) -> SC_2107_A2 | C150: =IF(ISBLANK(InfoPro!B150),"",InfoPro!B150) -> Parque Solar Aries | D150: =IF(ISBLANK(InfoPro!E150),"",InfoPro!E150) -> 175 | E150: =IF(ISBLANK(InfoPro!N150),"",InfoPro!N150) -> NO | F150: =IF(ISBLANK(InfoPro!I150),"",YEAR(InfoPro!I150)-$J$2) -> 3 | G150: 0 | H150: 0
B151: =IF(ISBLANK(InfoPro!A151),"",InfoPro!A151) -> SC_2031 _A1 | C151: =IF(ISBLANK(InfoPro!B151),"",InfoPro!B151) -> PSF Cispata_70MW | D151: =IF(ISBLANK(InfoPro!E151),"",InfoPro!E151) -> 70 | E151: =IF(ISBLANK(InfoPro!N151),"",InfoPro!N151) -> NO | F151: =IF(ISBLANK(InfoPro!I151),"",YEAR(InfoPro!I151)-$J$2) -> 3 | G151: 0 | H151: 0
B152: =IF(ISBLANK(InfoPro!A152),"",InfoPro!A152) -> SC_2136_A1 | C152: =IF(ISBLANK(InfoPro!B152),"",InfoPro!B152) -> Yaguarundi Solar II 40 MW | D152: =IF(ISBLANK(InfoPro!E152),"",InfoPro!E152) -> 40 | E152: =IF(ISBLANK(InfoPro!N152),"",InfoPro!N152) -> NO | F152: =IF(ISBLANK(InfoPro!I152),"",YEAR(InfoPro!I152)-$J$2) -> 3 | G152: 0 | H152: 0
B153: =IF(ISBLANK(InfoPro!A153),"",InfoPro!A153) -> SC_2136_A2 | C153: =IF(ISBLANK(InfoPro!B153),"",InfoPro!B153) -> Yaguarundi Solar II 40 MW | D153: =IF(ISBLANK(InfoPro!E153),"",InfoPro!E153) -> 40 | E153: =IF(ISBLANK(InfoPro!N153),"",InfoPro!N153) -> NO | F153: =IF(ISBLANK(InfoPro!I153),"",YEAR(InfoPro!I153)-$J$2) -> 3 | G153: 0 | H153: 0
B154: =IF(ISBLANK(InfoPro!A154),"",InfoPro!A154) -> SC_2180_A1 | C154: =IF(ISBLANK(InfoPro!B154),"",InfoPro!B154) -> Yaguarundi Solar III 40 MW | D154: =IF(ISBLANK(InfoPro!E154),"",InfoPro!E154) -> 40 | E154: =IF(ISBLANK(InfoPro!N154),"",InfoPro!N154) -> NO | F154: =IF(ISBLANK(InfoPro!I154),"",YEAR(InfoPro!I154)-$J$2) -> 3 | G154: 0 | H154: 0
B155: =IF(ISBLANK(InfoPro!A155),"",InfoPro!A155) -> SC_2180_A2 | C155: =IF(ISBLANK(InfoPro!B155),"",InfoPro!B155) -> Yaguarundi Solar III 40 MW | D155: =IF(ISBLANK(InfoPro!E155),"",InfoPro!E155) -> 40 | E155: =IF(ISBLANK(InfoPro!N155),"",InfoPro!N155) -> NO | F155: =IF(ISBLANK(InfoPro!I155),"",YEAR(InfoPro!I155)-$J$2) -> 3 | G155: 0 | H155: 0
B156: =IF(ISBLANK(InfoPro!A156),"",InfoPro!A156) -> SC_2185_A1 | C156: =IF(ISBLANK(InfoPro!B156),"",InfoPro!B156) -> Yaguarundi Solar IV 40 MW | D156: =IF(ISBLANK(InfoPro!E156),"",InfoPro!E156) -> 40 | E156: =IF(ISBLANK(InfoPro!N156),"",InfoPro!N156) -> NO | F156: =IF(ISBLANK(InfoPro!I156),"",YEAR(InfoPro!I156)-$J$2) -> 3 | G156: 0 | H156: 0
B157: =IF(ISBLANK(InfoPro!A157),"",InfoPro!A157) -> SC_2185_A2 | C157: =IF(ISBLANK(InfoPro!B157),"",InfoPro!B157) -> Yaguarundi Solar IV 40 MW | D157: =IF(ISBLANK(InfoPro!E157),"",InfoPro!E157) -> 40 | E157: =IF(ISBLANK(InfoPro!N157),"",InfoPro!N157) -> NO | F157: =IF(ISBLANK(InfoPro!I157),"",YEAR(InfoPro!I157)-$J$2) -> 3 | G157: 0 | H157: 0
B158: =IF(ISBLANK(InfoPro!A158),"",InfoPro!A158) -> SC_1926_A1 | C158: =IF(ISBLANK(InfoPro!B158),"",InfoPro!B158) -> Bongos I 9.90 MW | D158: =IF(ISBLANK(InfoPro!E158),"",InfoPro!E158) -> 9.9 | E158: =IF(ISBLANK(InfoPro!N158),"",InfoPro!N158) -> NO | F158: =IF(ISBLANK(InfoPro!I158),"",YEAR(InfoPro!I158)-$J$2) -> 1 | G158: 0 | H158: 0
B159: =IF(ISBLANK(InfoPro!A159),"",InfoPro!A159) -> SC_1926_A2 | C159: =IF(ISBLANK(InfoPro!B159),"",InfoPro!B159) -> Bongos I 9.90 MW | D159: =IF(ISBLANK(InfoPro!E159),"",InfoPro!E159) -> 9.9 | E159: =IF(ISBLANK(InfoPro!N159),"",InfoPro!N159) -> NO | F159: =IF(ISBLANK(InfoPro!I159),"",YEAR(InfoPro!I159)-$J$2) -> 1 | G159: 0 | H159: 0
B160: =IF(ISBLANK(InfoPro!A160),"",InfoPro!A160) -> SC_1825_A1 | C160: =IF(ISBLANK(InfoPro!B160),"",InfoPro!B160) -> PROYECTO DE GENERACIÓN ELÉCTRICA EL JOBO_200MW | D160: =IF(ISBLANK(InfoPro!E160),"",InfoPro!E160) -> 200 | E160: =IF(ISBLANK(InfoPro!N160),"",InfoPro!N160) -> NO | F160: =IF(ISBLANK(InfoPro!I160),"",YEAR(InfoPro!I160)-$J$2) -> 3 | G160: 0 | H160: 0
B161: =IF(ISBLANK(InfoPro!A161),"",InfoPro!A161) -> SC_1897_A1 | C161: =IF(ISBLANK(InfoPro!B161),"",InfoPro!B161) -> La Florecita 90 MW | D161: =IF(ISBLANK(InfoPro!E161),"",InfoPro!E161) -> 90 | E161: =IF(ISBLANK(InfoPro!N161),"",InfoPro!N161) -> NO | F161: =IF(ISBLANK(InfoPro!I161),"",YEAR(InfoPro!I161)-$J$2) -> 3 | G161: 0 | H161: 0
B162: =IF(ISBLANK(InfoPro!A162),"",InfoPro!A162) -> SC_1897_A2 | C162: =IF(ISBLANK(InfoPro!B162),"",InfoPro!B162) -> La Florecita 90 MW | D162: =IF(ISBLANK(InfoPro!E162),"",InfoPro!E162) -> 90 | E162: =IF(ISBLANK(InfoPro!N162),"",InfoPro!N162) -> NO | F162: =IF(ISBLANK(InfoPro!I162),"",YEAR(InfoPro!I162)-$J$2) -> 3 | G162: 0 | H162: 0
B163: =IF(ISBLANK(InfoPro!A163),"",InfoPro!A163) -> SC_2014_A1 | C163: =IF(ISBLANK(InfoPro!B163),"",InfoPro!B163) -> Lotería 2 | D163: =IF(ISBLANK(InfoPro!E163),"",InfoPro!E163) -> 9.9 | E163: =IF(ISBLANK(InfoPro!N163),"",InfoPro!N163) -> NO | F163: =IF(ISBLANK(InfoPro!I163),"",YEAR(InfoPro!I163)-$J$2) -> 1 | G163: 0 | H163: 0
B164: =IF(ISBLANK(InfoPro!A164),"",InfoPro!A164) -> SC_2014_A2 | C164: =IF(ISBLANK(InfoPro!B164),"",InfoPro!B164) -> Lotería 2 | D164: =IF(ISBLANK(InfoPro!E164),"",InfoPro!E164) -> 9.9 | E164: =IF(ISBLANK(InfoPro!N164),"",InfoPro!N164) -> NO | F164: =IF(ISBLANK(InfoPro!I164),"",YEAR(InfoPro!I164)-$J$2) -> 1 | G164: 0 | H164: 0
B165: =IF(ISBLANK(InfoPro!A165),"",InfoPro!A165) -> SC_2017_A1 | C165: =IF(ISBLANK(InfoPro!B165),"",InfoPro!B165) -> LOTERÍA 1 | D165: =IF(ISBLANK(InfoPro!E165),"",InfoPro!E165) -> 9.9 | E165: =IF(ISBLANK(InfoPro!N165),"",InfoPro!N165) -> NO | F165: =IF(ISBLANK(InfoPro!I165),"",YEAR(InfoPro!I165)-$J$2) -> 1 | G165: 0 | H165: 0
B166: =IF(ISBLANK(InfoPro!A166),"",InfoPro!A166) -> SC_2017_A2 | C166: =IF(ISBLANK(InfoPro!B166),"",InfoPro!B166) -> LOTERÍA 1 | D166: =IF(ISBLANK(InfoPro!E166),"",InfoPro!E166) -> 9.9 | E166: =IF(ISBLANK(InfoPro!N166),"",InfoPro!N166) -> NO | F166: =IF(ISBLANK(InfoPro!I166),"",YEAR(InfoPro!I166)-$J$2) -> 1 | G166: 0 | H166: 0
B167: =IF(ISBLANK(InfoPro!A167),"",InfoPro!A167) -> SC_2165_A1 | C167: =IF(ISBLANK(InfoPro!B167),"",InfoPro!B167) -> Autogeneración Solar Fotovoltaica 9.9 MW (entrega de excedentes de 0) | D167: =IF(ISBLANK(InfoPro!E167),"",InfoPro!E167) -> 0 | E167: =IF(ISBLANK(InfoPro!N167),"",InfoPro!N167) -> NO | F167: =IF(ISBLANK(InfoPro!I167),"",YEAR(InfoPro!I167)-$J$2) -> 0 | G167: 0 | H167: 0
B168: =IF(ISBLANK(InfoPro!A168),"",InfoPro!A168) -> SC_1820 _A1 | C168: =IF(ISBLANK(InfoPro!B168),"",InfoPro!B168) -> NAIOT | D168: =IF(ISBLANK(InfoPro!E168),"",InfoPro!E168) -> 19.9 | E168: =IF(ISBLANK(InfoPro!N168),"",InfoPro!N168) -> NO | F168: =IF(ISBLANK(InfoPro!I168),"",YEAR(InfoPro!I168)-$J$2) -> 1 | G168: 0 | H168: 0
B169: =IF(ISBLANK(InfoPro!A169),"",InfoPro!A169) -> SC_1820 _A2 | C169: =IF(ISBLANK(InfoPro!B169),"",InfoPro!B169) -> NAIOT | D169: =IF(ISBLANK(InfoPro!E169),"",InfoPro!E169) -> 19.9 | E169: =IF(ISBLANK(InfoPro!N169),"",InfoPro!N169) -> NO | F169: =IF(ISBLANK(InfoPro!I169),"",YEAR(InfoPro!I169)-$J$2) -> 1 | G169: 0 | H169: 0
B170: =IF(ISBLANK(InfoPro!A170),"",InfoPro!A170) -> SC_2325_A1 | C170: =IF(ISBLANK(InfoPro!B170),"",InfoPro!B170) -> PROYECTO FOTOVOLTAICO MONTERROSO DE 99,9 MW | D170: =IF(ISBLANK(InfoPro!E170),"",InfoPro!E170) -> 99.9 | E170: =IF(ISBLANK(InfoPro!N170),"",InfoPro!N170) -> NO | F170: =IF(ISBLANK(InfoPro!I170),"",YEAR(InfoPro!I170)-$J$2) -> 3 | G170: 0 | H170: 0
B171: =IF(ISBLANK(InfoPro!A171),"",InfoPro!A171) -> SC_2325_A2 | C171: =IF(ISBLANK(InfoPro!B171),"",InfoPro!B171) -> PROYECTO FOTOVOLTAICO MONTERROSO DE 99,9 MW | D171: =IF(ISBLANK(InfoPro!E171),"",InfoPro!E171) -> 99.9 | E171: =IF(ISBLANK(InfoPro!N171),"",InfoPro!N171) -> NO | F171: =IF(ISBLANK(InfoPro!I171),"",YEAR(InfoPro!I171)-$J$2) -> 3 | G171: 0 | H171: 0

Sheet EC-RE
B3: Factor emisiones sistema | C3: 0.127283 | D3: Ton/MWh | F3: Año de Referencia | G3: 2023
B4: Tasa de descuento | C4: 0.118 | F4: Mínimo | G4: =MIN(Z9:Z344) -> -4655621.683
B5: Costo emisiones Ton | C5: 91.94 | D5: USD/Ton
B6: TRM | C6: 4070 | D6: COP/USD
J7: 0 | K7: 1 | L7: 2 | M7: 3 | N7: 4 | O7: 5 | P7: 6 | Q7: 7 | R7: 8 | S7: 9 | T7: 10 | U7: 11 | V7: 12 | W7: 13 | X7: 14
A8: Codigo | B8: Nombre | C8: capacidad | D8: tipo | E8: Año de entrada | F8: FP | G8: Factor emisiones | H8: Produccion media/a MWh/a | I8: Emisiones evitadas Ton/a | J8: Flujo Descontado 0 | K8: Flujo Descontado 1 | L8: Flujo Descontado 2 | M8: Flujo Descontado 3 | N8: Flujo Descontado 4 | O8: Flujo Descontado 5 | P8: Flujo Descontado 6 | Q8: Flujo Descontado 7 | R8: Flujo Descontado 8 | S8: Flujo Descontado 9 | T8: Flujo Descontado 10 | U8: Flujo Descontado 11 | V8: Flujo Descontado 12 | W8: Flujo Descontado 13 | X8: Flujo Descontado 14 | Y8: VPN | Z8: (Beneficio)/kW
A9: =IF(ISBLANK(InfoPro!A2),"",InfoPro!A2) -> SC_44_A1 | B9: =IF(ISBLANK(InfoPro!B2),"",InfoPro!B2) -> El Floral 1 | C9: =IF(ISBLANK(InfoPro!E2),"",InfoPro!E2) -> 19.9 | D9: =IF(ISBLANK(InfoPro!F2),"",InfoPro!F2) -> Solar FV | E9: =IF(ISBLANK(InfoPro!I2),"",YEAR(InfoPro!I2)-$G$3) -> 2 | F9: =IF(B9="","",VLOOKUP(D9,Tablas!$B$2:$E$13,2,FALSE)) -> 0.26 | G9: =IF(B9="","",VLOOKUP(D9,Tablas!$B$2:$G$13,6,FALSE)) -> 0 | H9: =IF(C9="","",+C9*F9*24*365) -> 45324.24 | I9: =IF(H9="","",+H9*($C$3-G9)) -> 5769.00524 | J9: =IF($I9="","",(1/(1+$C$4)^(J$7+$E9))*$I9*$C$5) -> 424347.6737 | K9: =IF($I9="","",(1/(1+$C$4)^(K$7+$E9))*$I9*$C$5) -> 379559.6366 | L9: 339498.7805 | M9: 303666.1722 | N9: 271615.5386 | O9: 242947.709 | P9: 217305.6431 | Q9: 194369.9849 | R9: 173855.0849 | S9: 155505.4426 | T9: 139092.5247 | U9: 124411.9184 | V9: 111280.7856 | W9: 99535.58645 | X9: 89030.04154 | Y9: =IF(X9="","",SUM(J9:X9)*$C$6) -> 1.329271167e+10 | Z9: =IF(C9=0,0,IF(Y9="","",Y9/(C9*1000))) -> 667975.4607
A10: =IF(ISBLANK(InfoPro!A3),"",InfoPro!A3) -> SC_47_A1 | B10: =IF(ISBLANK(InfoPro!B3),"",InfoPro!B3) -> El Floral II - 19.9 MW | C10: =IF(ISBLANK(InfoPro!E3),"",InfoPro!E3) -> 19.9 | D10: =IF(ISBLANK(InfoPro!F3),"",InfoPro!F3) -> Solar FV | E10: =IF(ISBLANK(InfoPro!I3),"",YEAR(InfoPro!I3)-$G$3) -> 2 | F10: =IF(B10="","",VLOOKUP(D10,Tablas!$B$2:$E$13,2,FALSE)) -> 0.26 | G10: =IF(B10="","",VLOOKUP(D10,Tablas!$B$2:$G$13,6,FALSE)) -> 0 | H10: =IF(C10="","",+C10*F10*24*365) -> 45324.24 | I10: =IF(H10="","",+H10*($C$3-G10)) -> 5769.00524 | J10: 424347.6737 | K10: 379559.6366 | L10: 339498.7805 | M10: 303666.1722 | N10: 271615.5386 | O10: 242947.709 | P10: 217305.6431 | Q10: 194369.9849 | R10: 173855.0849 | S10: 155505.4426 | T10: 139092.5247 | U10: 124411.9184 | V10: 111280.7856 | W10: 99535.58645 | X10: 89030.04154 | Y10: =IF(X10="","",SUM(J10:X10)*$C$6) -> 1.329271167e+10 | Z10: =IF(C10=0,0,IF(Y10="","",Y10/(C10*1000))) -> 667975.4607
A11: =IF(ISBLANK(InfoPro!A4),"",InfoPro!A4) -> SC_408_A1 | B11: =IF(ISBLANK(InfoPro!B4),"",InfoPro!B4) -> El Jardín 40 MW | C11: =IF(ISBLANK(InfoPro!E4),"",InfoPro!E4) -> 40 | D11: =IF(ISBLANK(InfoPro!F4),"",InfoPro!F4) -> Solar FV | E11: =IF(ISBLANK(InfoPro!I4),"",YEAR(InfoPro!I4)-$G$3) -> 2 | F11: =IF(B11="","",VLOOKUP(D11,Tablas!$B$2:$E$13,2,FALSE)) -> 0.26 | G11: =IF(B11="","",VLOOKUP(D11,Tablas!$B$2:$G$13,6,FALSE)) -> 0 | H11: =IF(C11="","",+C11*F11*24*365) -> 91104 | I11: 11595.99043 | J11: 852960.1482 | K11: 762933.943 | L11: 682409.6091 | M11: 610384.2657 | N11: 545960.8817 | O11: 488337.1035 | P11: 436795.2625 | Q11: 390693.4369 | R11: 349457.457 | S11: 312573.754 | T11: 279582.9643 | U11: 250074.2077 | V11: 223679.9711 | W11: 200071.5305 | X11: 178954.8574 | Y11: 2.671901843e+10 | Z11: 667975.4607
A12: =IF(ISBLANK(InfoPro!A5),"",InfoPro!A5) -> SC_454_A1 | B12: =IF(ISBLANK(InfoPro!B5),"",InfoPro!B5) -> PARQUE SOLAR SAN RAFAEL - 300 MW | C12: =IF(ISBLANK(InfoPro!E5),"",InfoPro!E5) -> 300 | D12: =IF(ISBLANK(InfoPro!F5),"",InfoPro!F5) -> Solar FV | E12: =IF(ISBLANK(InfoPro!I5),"",YEAR(InfoPro!I5)-$G$3) -> 3 | F12: =IF(B12="","",VLOOKUP(D12,Tablas!$B$2:$E$13,2,FALSE)) -> 0.26 | G12: =IF(B12="","",VLOOKUP(D12,Tablas!$B$2:$G$13,6,FALSE)) -> 0 | H12: 683280 | I12: 86969.92824 | J12: 5722004.572 | K12: 5118072.068 | L12: 4577881.993 | M12: 4094706.613 | N12: 3662528.276 | O12: 3275964.469 | P12: 2930200.777 | Q12: 2620930.928 | R12: 2344303.155 | S12: 2096872.232 | T12: 1875556.558 | U12: 1677599.784 | V12: 1500536.479 | W12: 1342161.43 | X12: 1200502.174 | Y12: 1.792420735e+11 | Z12: 597473.5785
A13: =IF(ISBLANK(InfoPro!A6),"",InfoPro!A6) -> SC_454_A2 | B13: =IF(ISBLANK(InfoPro!B6),"",InfoPro!B6) -> PARQUE SOLAR SAN RAFAEL - 300 MW | C13: =IF(ISBLANK(InfoPro!E6),"",InfoPro!E6) -> 300 | D13: =IF(ISBLANK(InfoPro!F6),"",InfoPro!F6) -> Solar FV | E13: =IF(ISBLANK(InfoPro!I6),"",YEAR(InfoPro!I6)-$G$3) -> 3 | F13: =IF(B13="","",VLOOKUP(D13,Tablas!$B$2:$E$13,2,FALSE)) -> 0.26 | G13: =IF(B13="","",VLOOKUP(D13,Tablas!$B$2:$G$13,6,FALSE)) -> 0 | H13: 683280 | I13: 86969.92824 | J13: 5722004.572 | K13: 5118072.068 | L13: 4577881.993 | M13: 4094706.613 | N13: 3662528.276 | O13: 3275964.469 | P13: 2930200.777 | Q13: 2620930.928 | R13: 2344303.155 | S13: 2096872.232 | T13: 1875556.558 | U13: 1677599.784 | V13: 1500536.479 | W13: 1342161.43 | X13: 1200502.174 | Y13: 1.792420735e+11 | Z13: 597473.5785
A14: =IF(ISBLANK(InfoPro!A7),"",InfoPro!A7) -> SC_483_A1 | B14: =IF(ISBLANK(InfoPro!B7),"",InfoPro!B7) -> PARQUE SOLAR LOMAS 39.9 MW | C14: =IF(ISBLANK(InfoPro!E7),"",InfoPro!E7) -> 39.9 | D14: =IF(ISBLANK(InfoPro!F7),"",InfoPro!F7) -> Solar FV | E14: =IF(ISBLANK(InfoPro!I7),"",YEAR(InfoPro!I7)-$G$3) -> 2 | F14: =IF(B14="","",VLOOKUP(D14,Tablas!$B$2:$E$13,2,FALSE)) -> 0.26 | G14: =IF(B14="","",VLOOKUP(D14,Tablas!$B$2:$G$13,6,FALSE)) -> 0 | H14: 90876.24 | I14: 11567.00046 | J14: 850827.7479 | K14: 761026.6081 | L14: 680703.5851 | M14: 608858.3051 | N14: 544595.9795 | O14: 487116.2607 | P14: 435703.2744 | Q14: 389716.7034 | R14: 348583.8134 | S14: 311792.3197 | T14: 278884.0068 | U14: 249449.0222 | V14: 223120.7712 | W14: 199571.3517 | X14: 178507.4702 | Y14: 2.665222088e+10 | Z14: 667975.4607
A15: =IF(ISBLANK(InfoPro!A8),"",InfoPro!A8) -> SC_586_A1 | B15: =IF(ISBLANK(InfoPro!B8),"",InfoPro!B8) -> Orquídea del Sucre - Sierra Flor 60 MW | C15: =IF(ISBLANK(InfoPro!E8),"",InfoPro!E8) -> 60 | D15: =IF(ISBLANK(InfoPro!F8),"",InfoPro!F8) -> Solar FV | E15: =IF(ISBLANK(InfoPro!I8),"",YEAR(InfoPro!I8)-$G$3) -> 4 | F15: =IF(B15="","",VLOOKUP(D15,Tablas!$B$2:$E$13,2,FALSE)) -> 0.26 | G15: =IF(B15="","",VLOOKUP(D15,Tablas!$B$2:$G$13,6,FALSE)) -> 0 | H15: 136656 | I15: 17393.98565 | J15: 1023614.414 | K15: 915576.3986 | L15: 818941.3225 | M15: 732505.6552 | N15: 655192.8938 | O15: 586040.1554 | P15: 524186.1855 | Q15: 468860.6311 | R15: 419374.4464 | S15: 375111.3116 | T15: 335519.9567 | U15: 300107.2958 | V15: 268432.2861 | W15: 240100.4348 | X15: 214758.8862 | Y15: 3.206477165e+10 | Z15: 534412.8609
A16: =IF(ISBLANK(InfoPro!A9),"",InfoPro!A9) -> SC_586_A2 | B16: =IF(ISBLANK(InfoPro!B9),"",InfoPro!B9) -> Orquídea del Sucre - Sierra Flor 60 MW | C16: =IF(ISBLANK(InfoPro!E9),"",InfoPro!E9) -> 60 | D16: =IF(ISBLANK(InfoPro!F9),"",InfoPro!F9) -> Solar FV | E16: =IF(ISBLANK(InfoPro!I9),"",YEAR(InfoPro!I9)-$G$3) -> 4 | F16: =IF(B16="","",VLOOKUP(D16,Tablas!$B$2:$E$13,2,FALSE)) -> 0.26 | G16: =IF(B16="","",VLOOKUP(D16,Tablas!$B$2:$G$13,6,FALSE)) -> 0 | H16: 136656 | I16: 17393.98565 | J16: 1023614.414 | K16: 915576.3986 | L16: 818941.3225 | M16: 732505.6552 | N16: 655192.8938 | O16: 586040.1554 | P16: 524186.1855 | Q16: 468860.6311 | R16: 419374.4464 | S16: 375111.3116 | T16: 335519.9567 | U16: 300107.2958 | V16: 268432.2861 | W16: 240100.4348 | X16: 214758.8862 | Y16: 3.206477165e+10 | Z16: 534412.8609
A17: =IF(ISBLANK(InfoPro!A10),"",InfoPro!A10) -> SC_681_A1 | B17: =IF(ISBLANK(InfoPro!B10),"",InfoPro!B10) -> PARQUE SOLARLAS LAS PALMAS de 90MW | C17: =IF(ISBLANK(InfoPro!E10),"",InfoPro!E10) -> 90 | D17: =IF(ISBLANK(InfoPro!F10),"",InfoPro!F10) -> Solar FV | E17: =IF(ISBLANK(InfoPro!I10),"",YEAR(InfoPro!I10)-$G$3) -> 2 | F17: =IF(B17="","",VLOOKUP(D17,Tablas!$B$2:$E$13,2,FALSE)) -> 0.26 | G17: =IF(B17="","",VLOOKUP(D17,Tablas!$B$2:$G$13,6,FALSE)) -> 0 | H17: 204984 | I17: 26090.97847 | J17: 1919160.334 | K17: 1716601.372 | L17: 1535421.62 | M17: 1373364.598 | N17: 1228411.984 | O17: 1098758.483 | P17: 982789.3406 | Q17: 879060.2331 | R17: 786279.2783 | S17: 703290.9466 | T17: 629061.6696 | U17: 562666.9674 | V17: 503279.9351 | W17: 450160.9437 | X17: 402648.4291 | Y17: 6.011779146e+10 | Z17: 667975.4607
A18: =IF(ISBLANK(InfoPro!A11),"",InfoPro!A11) -> SC_681_A2 | B18: =IF(ISBLANK(InfoPro!B11),"",InfoPro!B11) -> PARQUE SOLARLAS LAS PALMAS de 90MW | C18: =IF(ISBLANK(InfoPro!E11),"",InfoPro!E11) -> 90 | D18: =IF(ISBLANK(InfoPro!F11),"",InfoPro!F11) -> Solar FV | E18: =IF(ISBLANK(InfoPro!I11),"",YEAR(InfoPro!I11)-$G$3) -> 2 | F18: =IF(B18="","",VLOOKUP(D18,Tablas!$B$2:$E$13,2,FALSE)) -> 0.26 | G18: =IF(B18="","",VLOOKUP(D18,Tablas!$B$2:$G$13,6,FALSE)) -> 0 | H18: 204984 | I18: 26090.97847 | J18: 1919160.334 | K18: 1716601.372 | L18: 1535421.62 | M18: 1373364.598 | N18: 1228411.984 | O18: 1098758.483 | P18: 982789.3406 | Q18: 879060.2331 | R18: 786279.2783 | S18: 703290.9466 | T18: 629061.6696 | U18: 562666.9674 | V18: 503279.9351 | W18: 450160.9437 | X18: 402648.4291 | Y18: 6.011779146e+10 | Z18: 667975.4607
A19: =IF(ISBLANK(InfoPro!A12),"",InfoPro!A12) -> SC_720_A1 | B19: =IF(ISBLANK(InfoPro!B12),"",InfoPro!B12) -> El Jazmín | C19: =IF(ISBLANK(InfoPro!E12),"",InfoPro!E12) -> 19.9 | D19: =IF(ISBLANK(InfoPro!F12),"",InfoPro!F12) -> Solar FV | E19: =IF(ISBLANK(InfoPro!I12),"",YEAR(InfoPro!I12)-$G$3) -> 2 | F19: =IF(B19="","",VLOOKUP(D19,Tablas!$B$2:$E$13,2,FALSE)) -> 0.26 | G19: =IF(B19="","",VLOOKUP(D19,Tablas!$B$2:$G$13,6,FALSE)) -> 0 | H19: 45324.24 | I19: 5769.00524 | J19: =IF($I19="","",(1/(1+$C$4)^(J$7+$E19))*$I19*$C$5) -> 424347.6737 | K19: 379559.6366 | L19: 339498.7805 | M19: 303666.1722 | N19: 271615.5386 | O19: 242947.709 | P19: 217305.6431 | Q19: 194369.9849 | R19: 173855.0849 | S19: 155505.4426 | T19: 139092.5247 | U19: 124411.9184 | V19: 111280.7856 | W19: 99535.58645 | X19: 89030.04154 | Y19: 1.329271167e+10 | Z19: 667975.4607
A20: =IF(ISBLANK(InfoPro!A13),"",InfoPro!A13) -> SC_720_A2 | B20: =IF(ISBLANK(InfoPro!B13),"",InfoPro!B13) -> El Jazmín | C20: =IF(ISBLANK(InfoPro!E13),"",InfoPro!E13) -> 19.9 | D20: =IF(ISBLANK(InfoPro!F13),"",InfoPro!F13) -> Solar FV | E20: =IF(ISBLANK(InfoPro!I13),"",YEAR(InfoPro!I13)-$G$3) -> 2 | F20: =IF(B20="","",VLOOKUP(D20,Tablas!$B$2:$E$13,2,FALSE)) -> 0.26 | G20: =IF(B20="","",VLOOKUP(D20,Tablas!$B$2:$G$13,6,FALSE)) -> 0 | H20: 45324.24 | I20: 5769.00524 | J20: 424347.6737 | K20: 379559.6366 | L20: 339498.7805 | M20: 303666.1722 | N20: 271615.5386 | O20: 242947.709 | P20: 217305.6431 | Q20: 194369.9849 | R20: 173855.0849 | S20: 155505.4426 | T20: 139092.5247 | U20: 124411.9184 | V20: 111280.7856 | W20: 99535.58645 | X20: 89030.04154 | Y20: 1.329271167e+10 | Z20: 667975.4607
A21: =IF(ISBLANK(InfoPro!A14),"",InfoPro!A14) -> SC_713_A1 | B21: =IF(ISBLANK(InfoPro!B14),"",InfoPro!B14) -> Crucero - 300MW | C21: =IF(ISBLANK(InfoPro!E14),"",InfoPro!E14) -> 300 | D21: =IF(ISBLANK(InfoPro!F14),"",InfoPro!F14) -> Solar FV | E21: =IF(ISBLANK(InfoPro!I14),"",YEAR(InfoPro!I14)-$G$3) -> 4 | F21: =IF(B21="","",VLOOKUP(D21,Tablas!$B$2:$E$13,2,FALSE)) -> 0.26 | G21: =IF(B21="","",VLOOKUP(D21,Tablas!$B$2:$G$13,6,FALSE)) -> 0 | H21: 683280 | I21: 86969.92824 | J21: 5118072.068 | K21: 4577881.993 | L21: 4094706.613 | M21: 3662528.276 | N21: 3275964.469 | O21: 2930200.777 | P21: 2620930.928 | Q21: 2344303.155 | R21: 2096872.232 | S21: 1875556.558 | T21: 1677599.784 | U21: 1500536.479 | V21: 1342161.43 | W21: 1200502.174 | X21: 1073794.431 | Y21: 1.603238583e+11 | Z21: 534412.8609
A22: =IF(ISBLANK(InfoPro!A15),"",InfoPro!A15) -> SC_836_A1 | B22: =IF(ISBLANK(InfoPro!B15),"",InfoPro!B15) -> BONGO DEL SINÚ DE 19.9 MW | C22: =IF(ISBLANK(InfoPro!E15),"",InfoPro!E15) -> 19.9 | D22: =IF(ISBLANK(InfoPro!F15),"",InfoPro!F15) -> Solar FV | E22: =IF(ISBLANK(InfoPro!I15),"",YEAR(InfoPro!I15)-$G$3) -> 2 | F22: =IF(B22="","",VLOOKUP(D22,Tablas!$B$2:$E$13,2,FALSE)) -> 0.26 | G22: =IF(B22="","",VLOOKUP(D22,Tablas!$B$2:$G$13,6,FALSE)) -> 0 | H22: 45324.24 | I22: 5769.00524 | J22: 424347.6737 | K22: 379559.6366 | L22: 339498.7805 | M22: 303666.1722 | N22: 271615.5386 | O22: 242947.709 | P22: 217305.6431 | Q22: 194369.9849 | R22: 173855.0849 | S22: 155505.4426 | T22: 139092.5247 | U22: 124411.9184 | V22: 111280.7856 | W22: 99535.58645 | X22: 89030.04154 | Y22: 1.329271167e+10 | Z22: 667975.4607
A23: =IF(ISBLANK(InfoPro!A16),"",InfoPro!A16) -> SC_836_A2 | B23: =IF(ISBLANK(InfoPro!B16),"",InfoPro!B16) -> BONGO DEL SINÚ DE 19.9 MW | C23: =IF(ISBLANK(InfoPro!E16),"",InfoPro!E16) -> 19.9 | D23: =IF(ISBLANK(InfoPro!F16),"",InfoPro!F16) -> Solar FV | E23: =IF(ISBLANK(InfoPro!I16),"",YEAR(InfoPro!I16)-$G$3) -> 2 | F23: =IF(B23="","",VLOOKUP(D23,Tablas!$B$2:$E$13,2,FALSE)) -> 0.26 | G23: =IF(B23="","",VLOOKUP(D23,Tablas!$B$2:$G$13,6,FALSE)) -> 0 | H23: 45324.24 | I23: 5769.00524 | J23: 424347.6737 | K23: 379559.6366 | L23: 339498.7805 | M23: 303666.1722 | N23: 271615.5386 | O23: 242947.709 | P23: 217305.6431 | Q23: 194369.9849 | R23: 173855.0849 | S23: 155505.4426 | T23: 139092.5247 | U23: 124411.9184 | V23: 111280.7856 | W23: 99535.58645 | X23: 89030.04154 | Y23: 1.329271167e+10 | Z23: 667975.4607
A24: =IF(ISBLANK(InfoPro!A17),"",InfoPro!A17) -> SC_778_A1 | B24: =IF(ISBLANK(InfoPro!B17),"",InfoPro!B17) -> KOS 19.9 | C24: =IF(ISBLANK(InfoPro!E17),"",InfoPro!E17) -> 19.9 | D24: =IF(ISBLANK(InfoPro!F17),"",InfoPro!F17) -> Solar FV | E24: =IF(ISBLANK(InfoPro!I17),"",YEAR(InfoPro!I17)-$G$3) -> 2 | F24: =IF(B24="","",VLOOKUP(D24,Tablas!$B$2:$E$13,2,FALSE)) -> 0.26 | G24: =IF(B24="","",VLOOKUP(D24,Tablas!$B$2:$G$13,6,FALSE)) -> 0 | H24: 45324.24 | I24: 5769.00524 | J24: 424347.6737 | K24: 379559.6366 | L24: 339498.7805 | M24: 303666.1722 | N24: 271615.5386 | O24: 242947.709 | P24: 217305.6431 | Q24: 194369.9849 | R24: 173855.0849 | S24: 155505.4426 | T24: 139092.5247 | U24: 124411.9184 | V24: 111280.7856 | W24: 99535.58645 | X24: 89030.04154 | Y24: 1.329271167e+10 | Z24: 667975.4607
A25: =IF(ISBLANK(InfoPro!A18),"",InfoPro!A18) -> SC_778_A2 | B25: =IF(ISBLANK(InfoPro!B18),"",InfoPro!B18) -> KOS 19.9 | C25: =IF(ISBLANK(InfoPro!E18),"",InfoPro!E18) -> 19.9 | D25: =IF(ISBLANK(InfoPro!F18),"",InfoPro!F18) -> Solar FV | E25: =IF(ISBLANK(InfoPro!I18),"",YEAR(InfoPro!I18)-$G$3) -> 2 | F25: =IF(B25="","",VLOOKUP(D25,Tablas!$B$2:$E$13,2,FALSE)) -> 0.26 | G25: =IF(B25="","",VLOOKUP(D25,Tablas!$B$2:$G$13,6,FALSE)) -> 0 | H25: 45324.24 | I25: 5769.00524 | J25: 424347.6737 | K25: 379559.6366 | L25: 339498.7805 | M25: 303666.1722 | N25: 271615.5386 | O25: 242947.709 | P25: 217305.6431 | Q25: 194369.9849 | R25: 173855.0849 | S25: 155505.4426 | T25: 139092.5247 | U25: 124411.9184 | V25: 111280.7856 | W25: 99535.58645 | X25: 89030.04154 | Y25: 1.329271167e+10 | Z25: 667975.4607
A26: =IF(ISBLANK(InfoPro!A19),"",InfoPro!A19) -> SC_942_A1 | B26: =IF(ISBLANK(InfoPro!B19),"",InfoPro!B19) -> PASCUA_60MW | C26: =IF(ISBLANK(InfoPro!E19),"",InfoPro!E19) -> 60 | D26: =IF(ISBLANK(InfoPro!F19),"",InfoPro!F19) -> Solar FV | E26: =IF(ISBLANK(InfoPro!I19),"",YEAR(InfoPro!I19)-$G$3) -> 3 | F26: =IF(B26="","",VLOOKUP(D26,Tablas!$B$2:$E$13,2,FALSE)) -> 0.26 | G26: =IF(B26="","",VLOOKUP(D26,Tablas!$B$2:$G$13,6,FALSE)) -> 0 | H26: 136656 | I26: 17393.98565 | J26: 1144400.914 | K26: 1023614.414 | L26: 915576.3986 | M26: 818941.3225 | N26: 732505.6552 | O26: 655192.8938 | P26: 586040.1554 | Q26: 524186.1855 | R26: 468860.6311 | S26: 419374.4464 | T26: 375111.3116 | U26: 335519.9567 | V26: 300107.2958 | W26: 268432.2861 | X26: 240100.4348 | Y26: 3.584841471e+10 | Z26: 597473.5785
A27: =IF(ISBLANK(InfoPro!A20),"",InfoPro!A20) -> SC_942_A2 | B27: =IF(ISBLANK(InfoPro!B20),"",InfoPro!B20) -> PASCUA_60MW | C27: =IF(ISBLANK(InfoPro!E20),"",InfoPro!E20) -> 60 | D27: =IF(ISBLANK(InfoPro!F20),"",InfoPro!F20) -> Solar FV | E27: =IF(ISBLANK(InfoPro!I20),"",YEAR(InfoPro!I20)-$G$3) -> 3 | F27: =IF(B27="","",VLOOKUP(D27,Tablas!$B$2:$E$13,2,FALSE)) -> 0.26 | G27: =IF(B27="","",VLOOKUP(D27,Tablas!$B$2:$G$13,6,FALSE)) -> 0 | H27: 136656 | I27: 17393.98565 | J27: 1144400.914 | K27: 1023614.414 | L27: 915576.3986 | M27: 818941.3225 | N27: 732505.6552 | O27: 655192.8938 | P27: 586040.1554 | Q27: 524186.1855 | R27: 468860.6311 | S27: 419374.4464 | T27: 375111.3116 | U27: 335519.9567 | V27: 300107.2958 | W27: 268432.2861 | X27: 240100.4348 | Y27: 3.584841471e+10 | Z27: 597473.5785
A28: =IF(ISBLANK(InfoPro!A21),"",InfoPro!A21) -> SC_1763_A1 | B28: =IF(ISBLANK(InfoPro!B21),"",InfoPro!B21) -> Taurus Solar de 22MW (19,5 MW) | C28: =IF(ISBLANK(InfoPro!E21),"",InfoPro!E21) -> 19.5 | D28: =IF(ISBLANK(InfoPro!F21),"",InfoPro!F21) -> Solar FV | E28: =IF(ISBLANK(InfoPro!I21),"",YEAR(InfoPro!I21)-$G$3) -> 2 | F28: =IF(B28="","",VLOOKUP(D28,Tablas!$B$2:$E$13,2,FALSE)) -> 0.26 | G28: =IF(B28="","",VLOOKUP(D28,Tablas!$B$2:$G$13,6,FALSE)) -> 0 | H28: 44413.2 | I28: 5653.045336 | J28: 415818.0723 | K28: 371930.2972 | L28: 332674.6844 | M28: 297562.3295 | N28: 266155.9298 | O28: 238064.3379 | P28: 212937.6905 | Q28: 190463.0505 | R28: 170360.5103 | S28: 152379.7051 | T28: 136296.6951 | U28: 121911.1763 | V28: 109043.9859 | W28: 97534.87114 | X28: 87240.49297 | Y28: 1.302552148e+10 | Z28: 667975.4607
A29: =IF(ISBLANK(InfoPro!A22),"",InfoPro!A22) -> SC_1763_A2 | B29: =IF(ISBLANK(InfoPro!B22),"",InfoPro!B22) -> Taurus Solar de 22MW (19,5 MW) | C29: =IF(ISBLANK(InfoPro!E22),"",InfoPro!E22) -> 19.5 | D29: =IF(ISBLANK(InfoPro!F22),"",InfoPro!F22) -> Solar FV | E29: =IF(ISBLANK(InfoPro!I22),"",YEAR(InfoPro!I22)-$G$3) -> 2 | F29: =IF(B29="","",VLOOKUP(D29,Tablas!$B$2:$E$13,2,FALSE)) -> 0.26 | G29: =IF(B29="","",VLOOKUP(D29,Tablas!$B$2:$G$13,6,FALSE)) -> 0 | H29: 44413.2 | I29: 5653.045336 | J29: =IF($I29="","",(1/(1+$C$4)^(J$7+$E29))*$I29*$C$5) -> 415818.0723 | K29: 371930.2972 | L29: 332674.6844 | M29: 297562.3295 | N29: 266155.9298 | O29: 238064.3379 | P29: 212937.6905 | Q29: 190463.0505 | R29: 170360.5103 | S29: 152379.7051 | T29: 136296.6951 | U29: 121911.1763 | V29: 109043.9859 | W29: 97534.87114 | X29: 87240.49297 | Y29: 1.302552148e+10 | Z29: 667975.4607
A30: =IF(ISBLANK(InfoPro!A23),"",InfoPro!A23) -> SC_828_A1 | B30: =IF(ISBLANK(InfoPro!B23),"",InfoPro!B23) -> PARQUE SOLAR EL VASCO | C30: =IF(ISBLANK(InfoPro!E23),"",InfoPro!E23) -> 60 | D30: =IF(ISBLANK(InfoPro!F23),"",InfoPro!F23) -> Solar FV | E30: =IF(ISBLANK(InfoPro!I23),"",YEAR(InfoPro!I23)-$G$3) -> 3 | F30: =IF(B30="","",VLOOKUP(D30,Tablas!$B$2:$E$13,2,FALSE)) -> 0.26 | G30: =IF(B30="","",VLOOKUP(D30,Tablas!$B$2:$G$13,6,FALSE)) -> 0 | H30: 136656 | I30: 17393.98565 | J30: 1144400.914 | K30: 1023614.414 | L30: 915576.3986 | M30: 818941.3225 | N30: 732505.6552 | O30: 655192.8938 | P30: 586040.1554 | Q30: 524186.1855 | R30: 468860.6311 | S30: 419374.4464 | T30: 375111.3116 | U30: 335519.9567 | V30: 300107.2958 | W30: 268432.2861 | X30: 240100.4348 | Y30: 3.584841471e+10 | Z30: 597473.5785
A31: =IF(ISBLANK(InfoPro!A24),"",InfoPro!A24) -> SC_828_A2 | B31: =IF(ISBLANK(InfoPro!B24),"",InfoPro!B24) -> PARQUE SOLAR EL VASCO | C31: =IF(ISBLANK(InfoPro!E24),"",InfoPro!E24) -> 60 | D31: =IF(ISBLANK(InfoPro!F24),"",InfoPro!F24) -> Solar FV | E31: =IF(ISBLANK(InfoPro!I24),"",YEAR(InfoPro!I24)-$G$3) -> 3 | F31: =IF(B31="","",VLOOKUP(D31,Tablas!$B$2:$E$13,2,FALSE)) -> 0.26 | G31: =IF(B31="","",VLOOKUP(D31,Tablas!$B$2:$G$13,6,FALSE)) -> 0 | H31: 136656 | I31: 17393.98565 | J31: 1144400.914 | K31: 1023614.414 | L31: 915576.3986 | M31: 818941.3225 | N31: 732505.6552 | O31: 655192.8938 | P31: 586040.1554 | Q31: 524186.1855 | R31: 468860.6311 | S31: 419374.4464 | T31: 375111.3116 | U31: 335519.9567 | V31: 300107.2958 | W31: 268432.2861 | X31: 240100.4348 | Y31: 3.584841471e+10 | Z31: 597473.5785
A32: =IF(ISBLANK(InfoPro!A25),"",InfoPro!A25) -> SC_1179_A1 | B32: =IF(ISBLANK(InfoPro!B25),"",InfoPro!B25) -> Montes 90 MW | C32: =IF(ISBLANK(InfoPro!E25),"",InfoPro!E25) -> 90 | D32: =IF(ISBLANK(InfoPro!F25),"",InfoPro!F25) -> Solar FV | E32: =IF(ISBLANK(InfoPro!I25),"",YEAR(InfoPro!I25)-$G$3) -> 3 | F32: =IF(B32="","",VLOOKUP(D32,Tablas!$B$2:$E$13,2,FALSE)) -> 0.26 | G32: =IF(B32="","",VLOOKUP(D32,Tablas!$B$2:$G$13,6,FALSE)) -> 0 | H32: 204984 | I32: 26090.97847 | J32: 1716601.372 | K32: 1535421.62 | L32: 1373364.598 | M32: 1228411.984 | N32: 1098758.483 | O32: 982789.3406 | P32: 879060.2331 | Q32: 786279.2783 | R32: 703290.9466 | S32: 629061.6696 | T32: 562666.9674 | U32: 503279.9351 | V32: 450160.9437 | W32: 402648.4291 | X32: 360150.6521 | Y32: 5.377262206e+10 | Z32: 597473.5785
A33: =IF(ISBLANK(InfoPro!A26),"",InfoPro!A26) -> SC_1179_A2 | B33: =IF(ISBLANK(InfoPro!B26),"",InfoPro!B26) -> Montes 90 MW | C33: =IF(ISBLANK(InfoPro!E26),"",InfoPro!E26) -> 90 | D33: =IF(ISBLANK(InfoPro!F26),"",InfoPro!F26) -> Solar FV | E33: =IF(ISBLANK(InfoPro!I26),"",YEAR(InfoPro!I26)-$G$3) -> 3 | F33: =IF(B33="","",VLOOKUP(D33,Tablas!$B$2:$E$13,2,FALSE)) -> 0.26 | G33: =IF(B33="","",VLOOKUP(D33,Tablas!$B$2:$G$13,6,FALSE)) -> 0 | H33: 204984 | I33: 26090.97847 | J33: 1716601.372 | K33: 1535421.62 | L33: 1373364.598 | M33: 1228411.984 | N33: 1098758.483 | O33: 982789.3406 | P33: 879060.2331 | Q33: 786279.2783 | R33: 703290.9466 | S33: 629061.6696 | T33: 562666.9674 | U33: 503279.9351 | V33: 450160.9437 | W33: 402648.4291 | X33: 360150.6521 | Y33: 5.377262206e+10 | Z33: 597473.5785
A34: =IF(ISBLANK(InfoPro!A27),"",InfoPro!A27) -> SC_1206_A1 | B34: =IF(ISBLANK(InfoPro!B27),"",InfoPro!B27) -> Cerromatoso Solar 300 MW | C34: =IF(ISBLANK(InfoPro!E27),"",InfoPro!E27) -> 300 | D34: =IF(ISBLANK(InfoPro!F27),"",InfoPro!F27) -> Solar FV | E34: =IF(ISBLANK(InfoPro!I27),"",YEAR(InfoPro!I27)-$G$3) -> 5 | F34: =IF(B34="","",VLOOKUP(D34,Tablas!$B$2:$E$13,2,FALSE)) -> 0.26 | G34: =IF(B34="","",VLOOKUP(D34,Tablas!$B$2:$G$13,6,FALSE)) -> 0 | H34: 683280 | I34: 86969.92824 | J34: 4577881.993 | K34: 4094706.613 | L34: 3662528.276 | M34: 3275964.469 | N34: 2930200.777 | O34: 2620930.928 | P34: 2344303.155 | Q34: 2096872.232 | R34: 1875556.558 | S34: 1677599.784 | T34: 1500536.479 | U34: 1342161.43 | V34: 1200502.174 | W34: 1073794.431 | X34: 960460.135 | Y34: 1.434023777e+11 | Z34: 478007.9256
A35: =IF(ISBLANK(InfoPro!A28),"",InfoPro!A28) -> SC_1206_A2 | B35: =IF(ISBLANK(InfoPro!B28),"",InfoPro!B28) -> Cerromatoso Solar 300 MW | C35: =IF(ISBLANK(InfoPro!E28),"",InfoPro!E28) -> 300 | D35: =IF(ISBLANK(InfoPro!F28),"",InfoPro!F28) -> Solar FV | E35: =IF(ISBLANK(InfoPro!I28),"",YEAR(InfoPro!I28)-$G$3) -> 5 | F35: =IF(B35="","",VLOOKUP(D35,Tablas!$B$2:$E$13,2,FALSE)) -> 0.26 | G35: =IF(B35="","",VLOOKUP(D35,Tablas!$B$2:$G$13,6,FALSE)) -> 0 | H35: 683280 | I35: 86969.92824 | J35: 4577881.993 | K35: 4094706.613 | L35: 3662528.276 | M35: 3275964.469 | N35: 2930200.777 | O35: 2620930.928 | P35: 2344303.155 | Q35: 2096872.232 | R35: 1875556.558 | S35: 1677599.784 | T35: 1500536.479 | U35: 1342161.43 | V35: 1200502.174 | W35: 1073794.431 | X35: 960460.135 | Y35: 1.434023777e+11 | Z35: 478007.9256
A36: =IF(ISBLANK(InfoPro!A29),"",InfoPro!A29) -> SC_1372_A1 | B36: =IF(ISBLANK(InfoPro!B29),"",InfoPro!B29) -> Pétalo del Bolívar I Magangué | C36: =IF(ISBLANK(InfoPro!E29),"",InfoPro!E29) -> 9.9 | D36: =IF(ISBLANK(InfoPro!F29),"",InfoPro!F29) -> Solar FV | E36: =IF(ISBLANK(InfoPro!I29),"",YEAR(InfoPro!I29)-$G$3) -> 2 | F36: =IF(B36="","",VLOOKUP(D36,Tablas!$B$2:$E$13,2,FALSE)) -> 0.26 | G36: =IF(B36="","",VLOOKUP(D36,Tablas!$B$2:$G$13,6,FALSE)) -> 0 | H36: 22548.24 | I36: 2870.007632 | J36: 211107.6367 | K36: 188826.1509 | L36: 168896.3782 | M36: 151070.1058 | N36: 135125.3182 | O36: 120863.4331 | P36: 108106.8275 | Q36: 96696.62564 | R36: 86490.72061 | S36: 77362.00413 | T36: 69196.78365 | U36: 61893.36642 | V36: 55360.79286 | W36: 49517.70381 | X36: 44291.3272 | Y36: 6612957061 | Z36: 667975.4607
A37: =IF(ISBLANK(InfoPro!A30),"",InfoPro!A30) -> SC_1372_A2 | B37: =IF(ISBLANK(InfoPro!B30),"",InfoPro!B30) -> Pétalo del Bolívar I Magangué | C37: =IF(ISBLANK(InfoPro!E30),"",InfoPro!E30) -> 9.9 | D37: =IF(ISBLANK(InfoPro!F30),"",InfoPro!F30) -> Solar FV | E37: =IF(ISBLANK(InfoPro!I30),"",YEAR(InfoPro!I30)-$G$3) -> 2 | F37: =IF(B37="","",VLOOKUP(D37,Tablas!$B$2:$E$13,2,FALSE)) -> 0.26 | G37: =IF(B37="","",VLOOKUP(D37,Tablas!$B$2:$G$13,6,FALSE)) -> 0 | H37: 22548.24 | I37: 2870.007632 | J37: 211107.6367 | K37: 188826.1509 | L37: 168896.3782 | M37: 151070.1058 | N37: 135125.3182 | O37: 120863.4331 | P37: 108106.8275 | Q37: 96696.62564 | R37: 86490.72061 | S37: 77362.00413 | T37: 69196.78365 | U37: 61893.36642 | V37: 55360.79286 | W37: 49517.70381 | X37: 44291.3272 | Y37: 6612957061 | Z37: 667975.4607
A38: =IF(ISBLANK(InfoPro!A31),"",InfoPro!A31) -> SC_692_A1 | B38: =IF(ISBLANK(InfoPro!B31),"",InfoPro!B31) -> TermoJobo | C38: =IF(ISBLANK(InfoPro!E31),"",InfoPro!E31) -> 9.9 | D38: =IF(ISBLANK(InfoPro!F31),"",InfoPro!F31) -> Termica a vapor | E38: =IF(ISBLANK(InfoPro!I31),"",YEAR(InfoPro!I31)-$G$3) -> 1 | F38: =IF(B38="","",VLOOKUP(D38,Tablas!$B$2:$E$13,2,FALSE)) -> 0.85 | G38: =IF(B38="","",VLOOKUP(D38,Tablas!$B$2:$G$13,6,FALSE)) -> 0.37 | H38: 73715.4 | I38: -17891.98074 | J38: -1471367.361 | K38: -1316070.985 | L38: -1177165.46 | M38: -1052920.805 | N38: -941789.6291 | O38: -842387.8614 | P38: -753477.5147 | Q38: -673951.2654 | R38: -602818.6631 | S38: -539193.7953 | T38: -482284.2534 | U38: -431381.2642 | V38: -385850.8624 | W38: -345125.995 | X38: -308699.4589 | Y38: -4.609065466e+10 | Z38: -4655621.683
A39: =IF(ISBLANK(InfoPro!A32),"",InfoPro!A32) -> SC_1057_A1 | B39: =IF(ISBLANK(InfoPro!B32),"",InfoPro!B32) -> Río Sinú Solar I 9,9 MW | C39: =IF(ISBLANK(InfoPro!E32),"",InfoPro!E32) -> 9.9 | D39: =IF(ISBLANK(InfoPro!F32),"",InfoPro!F32) -> Solar FV | E39: =IF(ISBLANK(InfoPro!I32),"",YEAR(InfoPro!I32)-$G$3) -> 2 | F39: =IF(B39="","",VLOOKUP(D39,Tablas!$B$2:$E$13,2,FALSE)) -> 0.26 | G39: =IF(B39="","",VLOOKUP(D39,Tablas!$B$2:$G$13,6,FALSE)) -> 0 | H39: 22548.24 | I39: 2870.007632 | J39: =IF($I39="","",(1/(1+$C$4)^(J$7+$E39))*$I39*$C$5) -> 211107.6367 | K39: 188826.1509 | L39: 168896.3782 | M39: 151070.1058 | N39: 135125.3182 | O39: 120863.4331 | P39: 108106.8275 | Q39: 96696.62564 | R39: 86490.72061 | S39: 77362.00413 | T39: 69196.78365 | U39: 61893.36642 | V39: 55360.79286 | W39: 49517.70381 | X39: 44291.3272 | Y39: 6612957061 | Z39: 667975.4607
A40: =IF(ISBLANK(InfoPro!A33),"",InfoPro!A33) -> SC_1057_A2 | B40: =IF(ISBLANK(InfoPro!B33),"",InfoPro!B33) -> Río Sinú Solar I 9,9 MW | C40: =IF(ISBLANK(InfoPro!E33),"",InfoPro!E33) -> 9.9 | D40: =IF(ISBLANK(InfoPro!F33),"",InfoPro!F33) -> Solar FV | E40: =IF(ISBLANK(InfoPro!I33),"",YEAR(InfoPro!I33)-$G$3) -> 2 | F40: =IF(B40="","",VLOOKUP(D40,Tablas!$B$2:$E$13,2,FALSE)) -> 0.26 | G40: =IF(B40="","",VLOOKUP(D40,Tablas!$B$2:$G$13,6,FALSE)) -> 0 | H40: 22548.24 | I40: 2870.007632 | J40: 211107.6367 | K40: 188826.1509 | L40: 168896.3782 | M40: 151070.1058 | N40: 135125.3182 | O40: 120863.4331 | P40: 108106.8275 | Q40: 96696.62564 | R40: 86490.72061 | S40: 77362.00413 | T40: 69196.78365 | U40: 61893.36642 | V40: 55360.79286 | W40: 49517.70381 | X40: 44291.3272 | Y40: 6612957061 | Z40: 667975.4607
A41: =IF(ISBLANK(InfoPro!A34),"",InfoPro!A34) -> SC_1058_A1 | B41: =IF(ISBLANK(InfoPro!B34),"",InfoPro!B34) -> Río Sinú Solar II 9,9 MW | C41: =IF(ISBLANK(InfoPro!E34),"",InfoPro!E34) -> 9.9 | D41: =IF(ISBLANK(InfoPro!F34),"",InfoPro!F34) -> Solar FV | E41: =IF(ISBLANK(InfoPro!I34),"",YEAR(InfoPro!I34)-$G$3) -> 2 | F41: =IF(B41="","",VLOOKUP(D41,Tablas!$B$2:$E$13,2,FALSE)) -> 0.26 | G41: =IF(B41="","",VLOOKUP(D41,Tablas!$B$2:$G$13,6,FALSE)) -> 0 | H41: =IF(C41="","",+C41*F41*24*365) -> 22548.24 | I41: =IF(H41="","",+H41*($C$3-G41)) -> 2870.007632 | J41: 211107.6367 | K41: 188826.1509 | L41: 168896.3782 | M41: 151070.1058 | N41: 135125.3182 | O41: 120863.4331 | P41: 108106.8275 | Q41: 96696.62564 | R41: 86490.72061 | S41: 77362.00413 | T41: 69196.78365 | U41: 61893.36642 | V41: 55360.79286 | W41: 49517.70381 | X41: 44291.3272 | Y41: 6612957061 | Z41: 667975.4607
A42: =IF(ISBLANK(InfoPro!A35),"",InfoPro!A35) -> SC_1058_A2 | B42: =IF(ISBLANK(InfoPro!B35),"",InfoPro!B35) -> Río Sinú Solar II 9,9 MW | C42: =IF(ISBLANK(InfoPro!E35),"",InfoPro!E35) -> 9.9 | D42: =IF(ISBLANK(InfoPro!F35),"",InfoPro!F35) -> Solar FV | E42: =IF(ISBLANK(InfoPro!I35),"",YEAR(InfoPro!I35)-$G$3) -> 2 | F42: =IF(B42="","",VLOOKUP(D42,Tablas!$B$2:$E$13,2,FALSE)) -> 0.26 | G42: =IF(B42="","",VLOOKUP(D42,Tablas!$B$2:$G$13,6,FALSE)) -> 0 | H42: 22548.24 | I42: 2870.007632 | J42: 211107.6367 | K42: 188826.1509 | L42: 168896.3782 | M42: 151070.1058 | N42: 135125.3182 | O42: 120863.4331 | P42: 108106.8275 | Q42: 96696.62564 | R42: 86490.72061 | S42: 77362.00413 | T42: 69196.78365 | U42: 61893.36642 | V42: 55360.79286 | W42: 49517.70381 | X42: 44291.3272 | Y42: 6612957061 | Z42: 667975.4607
A43: =IF(ISBLANK(InfoPro!A36),"",InfoPro!A36) -> SC_855_A1 | B43: =IF(ISBLANK(InfoPro!B36),"",InfoPro!B36) -> El Lirio | C43: =IF(ISBLANK(InfoPro!E36),"",InfoPro!E36) -> 19.9 | D43: =IF(ISBLANK(InfoPro!F36),"",InfoPro!F36) -> Solar FV | E43: =IF(ISBLANK(InfoPro!I36),"",YEAR(InfoPro!I36)-$G$3) -> 2 | F43: =IF(B43="","",VLOOKUP(D43,Tablas!$B$2:$E$13,2,FALSE)) -> 0.26 | G43: =IF(B43="","",VLOOKUP(D43,Tablas!$B$2:$G$13,6,FALSE)) -> 0 | H43: 45324.24 | I43: 5769.00524 | J43: 424347.6737 | K43: 379559.6366 | L43: 339498.7805 | M43: 303666.1722 | N43: 271615.5386 | O43: 242947.709 | P43: 217305.6431 | Q43: 194369.9849 | R43: 173855.0849 | S43: 155505.4426 | T43: 139092.5247 | U43: 124411.9184 | V43: 111280.7856 | W43: 99535.58645 | X43: 89030.04154 | Y43: 1.329271167e+10 | Z43: 667975.4607
A44: =IF(ISBLANK(InfoPro!A37),"",InfoPro!A37) -> SC_855_A2 | B44: =IF(ISBLANK(InfoPro!B37),"",InfoPro!B37) -> El Lirio | C44: =IF(ISBLANK(InfoPro!E37),"",InfoPro!E37) -> 19.9 | D44: =IF(ISBLANK(InfoPro!F37),"",InfoPro!F37) -> Solar FV | E44: =IF(ISBLANK(InfoPro!I37),"",YEAR(InfoPro!I37)-$G$3) -> 2 | F44: =IF(B44="","",VLOOKUP(D44,Tablas!$B$2:$E$13,2,FALSE)) -> 0.26 | G44: =IF(B44="","",VLOOKUP(D44,Tablas!$B$2:$G$13,6,FALSE)) -> 0 | H44: 45324.24 | I44: 5769.00524 | J44: 424347.6737 | K44: 379559.6366 | L44: 339498.7805 | M44: 303666.1722 | N44: 271615.5386 | O44: 242947.709 | P44: 217305.6431 | Q44: 194369.9849 | R44: 173855.0849 | S44: 155505.4426 | T44: 139092.5247 | U44: 124411.9184 | V44: 111280.7856 | W44: 99535.58645 | X44: 89030.04154 | Y44: 1.329271167e+10 | Z44: 667975.4607
A45: =IF(ISBLANK(InfoPro!A38),"",InfoPro!A38) -> SC_630_A1 | B45: =IF(ISBLANK(InfoPro!B38),"",InfoPro!B38) -> TR Solar 14 | C45: =IF(ISBLANK(InfoPro!E38),"",InfoPro!E38) -> 99.9 | D45: =IF(ISBLANK(InfoPro!F38),"",InfoPro!F38) -> Solar FV | E45: =IF(ISBLANK(InfoPro!I38),"",YEAR(InfoPro!I38)-$G$3) -> 3 | F45: =IF(B45="","",VLOOKUP(D45,Tablas!$B$2:$E$13,2,FALSE)) -> 0.26 | G45: =IF(B45="","",VLOOKUP(D45,Tablas!$B$2:$G$13,6,FALSE)) -> 0 | H45: 227532.24 | I45: 28960.9861 | J45: 1905427.523 | K45: 1704317.999 | L45: 1524434.704 | M45: 1363537.302 | N45: 1219621.916 | O45: 1090896.168 | P45: 975756.8588 | Q45: 872769.9989 | R45: 780652.9507 | S45: 698258.4532 | T45: 624560.3338 | U45: 558640.7279 | V45: 499678.6475 | W45: 446939.7563 | X45: 399767.2239 | Y45: 5.968761049e+10 | Z45: 597473.5785
A46: =IF(ISBLANK(InfoPro!A39),"",InfoPro!A39) -> SC_1269_A1 | B46: =IF(ISBLANK(InfoPro!B39),"",InfoPro!B39) -> Centro Solar II 4 MW | C46: =IF(ISBLANK(InfoPro!E39),"",InfoPro!E39) -> 4 | D46: =IF(ISBLANK(InfoPro!F39),"",InfoPro!F39) -> Solar FV | E46: =IF(ISBLANK(InfoPro!I39),"",YEAR(InfoPro!I39)-$G$3) -> 0 | F46: =IF(B46="","",VLOOKUP(D46,Tablas!$B$2:$E$13,2,FALSE)) -> 0.26 | G46: =IF(B46="","",VLOOKUP(D46,Tablas!$B$2:$G$13,6,FALSE)) -> 0 | H46: 9110.4 | I46: 1159.599043 | J46: 106613.536 | K46: 95360.94457 | L46: 85296.01482 | M46: 76293.3943 | N46: 68240.96091 | O46: 61038.42657 | P46: 54596.08817 | Q46: 48833.71035 | R46: 43679.52625 | S46: 39069.34369 | T46: 34945.7457 | U46: 31257.3754 | V46: 27958.29643 | W46: 25007.42077 | X46: 22367.99711 | Y46: 3339674239 | Z46: 834918.5598
A47: =IF(ISBLANK(InfoPro!A40),"",InfoPro!A40) -> SC_1268_A1 | B47: =IF(ISBLANK(InfoPro!B40),"",InfoPro!B40) -> Sol de Ayapel II de 7 MW | C47: =IF(ISBLANK(InfoPro!E40),"",InfoPro!E40) -> 7 | D47: =IF(ISBLANK(InfoPro!F40),"",InfoPro!F40) -> Solar FV | E47: =IF(ISBLANK(InfoPro!I40),"",YEAR(InfoPro!I40)-$G$3) -> 1 | F47: =IF(B47="","",VLOOKUP(D47,Tablas!$B$2:$E$13,2,FALSE)) -> 0.26 | G47: =IF(B47="","",VLOOKUP(D47,Tablas!$B$2:$G$13,6,FALSE)) -> 0 | H47: 15943.2 | I47: 2029.298326 | J47: 166881.653 | K47: 149268.0259 | L47: 133513.44 | M47: 119421.6816 | N47: 106817.2465 | O47: 95543.1543 | P47: 85458.99311 | Q47: 76439.17094 | R47: 68371.35147 | S47: 61155.05498 | T47: 54700.40696 | U47: 48927.01875 | V47: 43762.98636 | W47: 39143.99495 | X47: 35012.51785 | Y47: 5227575956 | Z47: 746796.5651
A48: =IF(ISBLANK(InfoPro!A41),"",InfoPro!A41) -> SC_1268_A2 | B48: =IF(ISBLANK(InfoPro!B41),"",InfoPro!B41) -> Sol de Ayapel II de 7 MW | C48: =IF(ISBLANK(InfoPro!E41),"",InfoPro!E41) -> 7 | D48: =IF(ISBLANK(InfoPro!F41),"",InfoPro!F41) -> Solar FV | E48: =IF(ISBLANK(InfoPro!I41),"",YEAR(InfoPro!I41)-$G$3) -> 1 | F48: =IF(B48="","",VLOOKUP(D48,Tablas!$B$2:$E$13,2,FALSE)) -> 0.26 | G48: =IF(B48="","",VLOOKUP(D48,Tablas!$B$2:$G$13,6,FALSE)) -> 0 | H48: 15943.2 | I48: 2029.298326 | J48: 166881.653 | K48: 149268.0259 | L48: 133513.44 | M48: 119421.6816 | N48: 106817.2465 | O48: 95543.1543 | P48: 85458.99311 | Q48: 76439.17094 | R48: 68371.35147 | S48: 61155.05498 | T48: 54700.40696 | U48: 48927.01875 | V48: 43762.98636 | W48: 39143.99495 | X48: 35012.51785 | Y48: 5227575956 | Z48: 746796.5651
A49: =IF(ISBLANK(InfoPro!A42),"",InfoPro!A42) -> SC_1118_A1 | B49: =IF(ISBLANK(InfoPro!B42),"",InfoPro!B42) -> Boston 9,9 MW | C49: =IF(ISBLANK(InfoPro!E42),"",InfoPro!E42) -> 9.9 | D49: =IF(ISBLANK(InfoPro!F42),"",InfoPro!F42) -> Solar FV | E49: =IF(ISBLANK(InfoPro!I42),"",YEAR(InfoPro!I42)-$G$3) -> 2 | F49: =IF(B49="","",VLOOKUP(D49,Tablas!$B$2:$E$13,2,FALSE)) -> 0.26 | G49: =IF(B49="","",VLOOKUP(D49,Tablas!$B$2:$G$13,6,FALSE)) -> 0 | H49: 22548.24 | I49: 2870.007632 | J49: =IF($I49="","",(1/(1+$C$4)^(J$7+$E49))*$I49*$C$5) -> 211107.6367 | K49: 188826.1509 | L49: 168896.3782 | M49: 151070.1058 | N49: 135125.3182 | O49: 120863.4331 | P49: 108106.8275 | Q49: 96696.62564 | R49: 86490.72061 | S49: 77362.00413 | T49: 69196.78365 | U49: 61893.36642 | V49: 55360.79286 | W49: 49517.70381 | X49: 44291.3272 | Y49: 6612957061 | Z49: 667975.4607
A50: =IF(ISBLANK(InfoPro!A43),"",InfoPro!A43) -> SC_1118_A2 | B50: =IF(ISBLANK(InfoPro!B43),"",InfoPro!B43) -> Boston 9,9 MW | C50: =IF(ISBLANK(InfoPro!E43),"",InfoPro!E43) -> 9.9 | D50: =IF(ISBLANK(InfoPro!F43),"",InfoPro!F43) -> Solar FV | E50: =IF(ISBLANK(InfoPro!I43),"",YEAR(InfoPro!I43)-$G$3) -> 2 | F50: =IF(B50="","",VLOOKUP(D50,Tablas!$B$2:$E$13,2,FALSE)) -> 0.26 | G50: =IF(B50="","",VLOOKUP(D50,Tablas!$B$2:$G$13,6,FALSE)) -> 0 | H50: 22548.24 | I50: 2870.007632 | J50: 211107.6367 | K50: 188826.1509 | L50: 168896.3782 | M50: 151070.1058 | N50: 135125.3182 | O50: 120863.4331 | P50: 108106.8275 | Q50: 96696.62564 | R50: 86490.72061 | S50: 77362.00413 | T50: 69196.78365 | U50: 61893.36642 | V50: 55360.79286 | W50: 49517.70381 | X50: 44291.3272 | Y50: 6612957061 | Z50: 667975.4607
A51: =IF(ISBLANK(InfoPro!A44),"",InfoPro!A44) -> SC_632_A1 | B51: =IF(ISBLANK(InfoPro!B44),"",InfoPro!B44) -> TR Solar 5 | C51: =IF(ISBLANK(InfoPro!E44),"",InfoPro!E44) -> 19.9 | D51: =IF(ISBLANK(InfoPro!F44),"",InfoPro!F44) -> Solar FV | E51: =IF(ISBLANK(InfoPro!I44),"",YEAR(InfoPro!I44)-$G$3) -> 3 | F51: =IF(B51="","",VLOOKUP(D51,Tablas!$B$2:$E$13,2,FALSE)) -> 0.26 | G51: =IF(B51="","",VLOOKUP(D51,Tablas!$B$2:$G$13,6,FALSE)) -> 0 | H51: 45324.24 | I51: 5769.00524 | J51: 379559.6366 | K51: 339498.7805 | L51: 303666.1722 | M51: 271615.5386 | N51: 242947.709 | O51: 217305.6431 | P51: 194369.9849 | Q51: 173855.0849 | R51: 155505.4426 | S51: 139092.5247 | T51: 124411.9184 | U51: 111280.7856 | V51: 99535.58645 | W51: 89030.04154 | X51: 79633.31086 | Y51: 1.188972421e+10 | Z51: 597473.5785
A52: =IF(ISBLANK(InfoPro!A45),"",InfoPro!A45) -> SC_632_A2 | B52: =IF(ISBLANK(InfoPro!B45),"",InfoPro!B45) -> TR Solar 5 | C52: =IF(ISBLANK(InfoPro!E45),"",InfoPro!E45) -> 19.9 | D52: =IF(ISBLANK(InfoPro!F45),"",InfoPro!F45) -> Solar FV | E52: =IF(ISBLANK(InfoPro!I45),"",YEAR(InfoPro!I45)-$G$3) -> 3 | F52: =IF(B52="","",VLOOKUP(D52,Tablas!$B$2:$E$13,2,FALSE)) -> 0.26 | G52: =IF(B52="","",VLOOKUP(D52,Tablas!$B$2:$G$13,6,FALSE)) -> 0 | H52: 45324.24 | I52: 5769.00524 | J52: 379559.6366 | K52: 339498.7805 | L52: 303666.1722 | M52: 271615.5386 | N52: 242947.709 | O52: 217305.6431 | P52: 194369.9849 | Q52: 173855.0849 | R52: 155505.4426 | S52: 139092.5247 | T52: 124411.9184 | U52: 111280.7856 | V52: 99535.58645 | W52: 89030.04154 | X52: 79633.31086 | Y52: 1.188972421e+10 | Z52: 597473.5785
A53: =IF(ISBLANK(InfoPro!A46),"",InfoPro!A46) -> SC_1415_A1 | B53: =IF(ISBLANK(InfoPro!B46),"",InfoPro!B46) -> Efigen C03 99 MW | C53: =IF(ISBLANK(InfoPro!E46),"",InfoPro!E46) -> 99 | D53: =IF(ISBLANK(InfoPro!F46),"",InfoPro!F46) -> Solar FV | E53: =IF(ISBLANK(InfoPro!I46),"",YEAR(InfoPro!I46)-$G$3) -> 2 | F53: =IF(B53="","",VLOOKUP(D53,Tablas!$B$2:$E$13,2,FALSE)) -> 0.26 | G53: =IF(B53="","",VLOOKUP(D53,Tablas!$B$2:$G$13,6,FALSE)) -> 0 | H53: 225482.4 | I53: 28700.07632 | J53: 2111076.367 | K53: 1888261.509 | L53: 1688963.782 | M53: 1510701.058 | N53: 1351253.182 | O53: 1208634.331 | P53: 1081068.275 | Q53: 966966.2564 | R53: 864907.2061 | S53: 773620.0413 | T53: 691967.8365 | U53: 618933.6642 | V53: 553607.9286 | W53: 495177.0381 | X53: 442913.272 | Y53: 6.612957061e+10 | Z53: 667975.4607
A54: =IF(ISBLANK(InfoPro!A47),"",InfoPro!A47) -> SC_1415_A2 | B54: =IF(ISBLANK(InfoPro!B47),"",InfoPro!B47) -> Efigen C03 99 MW | C54: =IF(ISBLANK(InfoPro!E47),"",InfoPro!E47) -> 99 | D54: =IF(ISBLANK(InfoPro!F47),"",InfoPro!F47) -> Solar FV | E54: =IF(ISBLANK(InfoPro!I47),"",YEAR(InfoPro!I47)-$G$3) -> 2 | F54: =IF(B54="","",VLOOKUP(D54,Tablas!$B$2:$E$13,2,FALSE)) -> 0.26 | G54: =IF(B54="","",VLOOKUP(D54,Tablas!$B$2:$G$13,6,FALSE)) -> 0 | H54: 225482.4 | I54: 28700.07632 | J54: 2111076.367 | K54: 1888261.509 | L54: 1688963.782 | M54: 1510701.058 | N54: 1351253.182 | O54: 1208634.331 | P54: 1081068.275 | Q54: 966966.2564 | R54: 864907.2061 | S54: 773620.0413 | T54: 691967.8365 | U54: 618933.6642 | V54: 553607.9286 | W54: 495177.0381 | X54: 442913.272 | Y54: 6.612957061e+10 | Z54: 667975.4607
A55: =IF(ISBLANK(InfoPro!A48),"",InfoPro!A48) -> SC_1420_A1 | B55: =IF(ISBLANK(InfoPro!B48),"",InfoPro!B48) -> Efigen C04 99 MW | C55: =IF(ISBLANK(InfoPro!E48),"",InfoPro!E48) -> 99 | D55: =IF(ISBLANK(InfoPro!F48),"",InfoPro!F48) -> Solar FV | E55: =IF(ISBLANK(InfoPro!I48),"",YEAR(InfoPro!I48)-$G$3) -> 2 | F55: =IF(B55="","",VLOOKUP(D55,Tablas!$B$2:$E$13,2,FALSE)) -> 0.26 | G55: =IF(B55="","",VLOOKUP(D55,Tablas!$B$2:$G$13,6,FALSE)) -> 0 | H55: 225482.4 | I55: 28700.07632 | J55: 2111076.367 | K55: 1888261.509 | L55: 1688963.782 | M55: 1510701.058 | N55: 1351253.182 | O55: 1208634.331 | P55: 1081068.275 | Q55: 966966.2564 | R55: 864907.2061 | S55: 773620.0413 | T55: 691967.8365 | U55: 618933.6642 | V55: 553607.9286 | W55: 495177.0381 | X55: 442913.272 | Y55: 6.612957061e+10 | Z55: 667975.4607
A56: =IF(ISBLANK(InfoPro!A49),"",InfoPro!A49) -> SC_1420_A2 | B56: =IF(ISBLANK(InfoPro!B49),"",InfoPro!B49) -> Efigen C04 99 MW | C56: =IF(ISBLANK(InfoPro!E49),"",InfoPro!E49) -> 99 | D56: =IF(ISBLANK(InfoPro!F49),"",InfoPro!F49) -> Solar FV | E56: =IF(ISBLANK(InfoPro!I49),"",YEAR(InfoPro!I49)-$G$3) -> 2 | F56: =IF(B56="","",VLOOKUP(D56,Tablas!$B$2:$E$13,2,FALSE)) -> 0.26 | G56: =IF(B56="","",VLOOKUP(D56,Tablas!$B$2:$G$13,6,FALSE)) -> 0 | H56: 225482.4 | I56: 28700.07632 | J56: 2111076.367 | K56: 1888261.509 | L56: 1688963.782 | M56: 1510701.058 | N56: 1351253.182 | O56: 1208634.331 | P56: 1081068.275 | Q56: 966966.2564 | R56: 864907.2061 | S56: 773620.0413 | T56: 691967.8365 | U56: 618933.6642 | V56: 553607.9286 | W56: 495177.0381 | X56: 442913.272 | Y56: 6.612957061e+10 | Z56: 667975.4607
A57: =IF(ISBLANK(InfoPro!A50),"",InfoPro!A50) -> SC_1435_A1 | B57: =IF(ISBLANK(InfoPro!B50),"",InfoPro!B50) -> Parque Solar Las Brisas | C57: =IF(ISBLANK(InfoPro!E50),"",InfoPro!E50) -> 9.9 | D57: =IF(ISBLANK(InfoPro!F50),"",InfoPro!F50) -> Solar FV | E57: =IF(ISBLANK(InfoPro!I50),"",YEAR(InfoPro!I50)-$G$3) -> 1 | F57: =IF(B57="","",VLOOKUP(D57,Tablas!$B$2:$E$13,2,FALSE)) -> 0.26 | G57: =IF(B57="","",VLOOKUP(D57,Tablas!$B$2:$G$13,6,FALSE)) -> 0 | H57: 22548.24 | I57: 2870.007632 | J57: 236018.3378 | K57: 211107.6367 | L57: 188826.1509 | M57: 168896.3782 | N57: 151070.1058 | O57: 135125.3182 | P57: 120863.4331 | Q57: 108106.8275 | R57: 96696.62564 | S57: 86490.72061 | T57: 77362.00413 | U57: 69196.78365 | V57: 61893.36642 | W57: 55360.79286 | X57: 49517.70381 | Y57: 7393285994 | Z57: 746796.5651
A58: =IF(ISBLANK(InfoPro!A51),"",InfoPro!A51) -> SC_978_A1 | B58: =IF(ISBLANK(InfoPro!B51),"",InfoPro!B51) -> Borugo Solar | C58: =IF(ISBLANK(InfoPro!E51),"",InfoPro!E51) -> 99.9 | D58: =IF(ISBLANK(InfoPro!F51),"",InfoPro!F51) -> Solar FV | E58: =IF(ISBLANK(InfoPro!I51),"",YEAR(InfoPro!I51)-$G$3) -> 3 | F58: =IF(B58="","",VLOOKUP(D58,Tablas!$B$2:$E$13,2,FALSE)) -> 0.26 | G58: =IF(B58="","",VLOOKUP(D58,Tablas!$B$2:$G$13,6,FALSE)) -> 0 | H58: 227532.24 | I58: 28960.9861 | J58: 1905427.523 | K58: 1704317.999 | L58: 1524434.704 | M58: 1363537.302 | N58: 1219621.916 | O58: 1090896.168 | P58: 975756.8588 | Q58: 872769.9989 | R58: 780652.9507 | S58: 698258.4532 | T58: 624560.3338 | U58: 558640.7279 | V58: 499678.6475 | W58: 446939.7563 | X58: 399767.2239 | Y58: 5.968761049e+10 | Z58: 597473.5785
A59: =IF(ISBLANK(InfoPro!A52),"",InfoPro!A52) -> SC_1520_A1 | B59: =IF(ISBLANK(InfoPro!B52),"",InfoPro!B52) -> Autogenerador Solar Argos Tolcemento - 19.9 MW | C59: =IF(ISBLANK(InfoPro!E52),"",InfoPro!E52) -> 19.9 | D59: =IF(ISBLANK(InfoPro!F52),"",InfoPro!F52) -> Solar FV | E59: =IF(ISBLANK(InfoPro!I52),"",YEAR(InfoPro!I52)-$G$3) -> 1 | F59: =IF(B59="","",VLOOKUP(D59,Tablas!$B$2:$E$13,2,FALSE)) -> 0.26 | G59: =IF(B59="","",VLOOKUP(D59,Tablas!$B$2:$G$13,6,FALSE)) -> 0 | H59: 45324.24 | I59: 5769.00524 | J59: =IF($I59="","",(1/(1+$C$4)^(J$7+$E59))*$I59*$C$5) -> 474420.6992 | K59: 424347.6737 | L59: 379559.6366 | M59: 339498.7805 | N59: 303666.1722 | O59: 271615.5386 | P59: 242947.709 | Q59: 217305.6431 | R59: 194369.9849 | S59: 173855.0849 | T59: 155505.4426 | U59: 139092.5247 | V59: 124411.9184 | W59: 111280.7856 | X59: 99535.58645 | Y59: 1.486125165e+10 | Z59: 746796.5651
A60: =IF(ISBLANK(InfoPro!A53),"",InfoPro!A53) -> SC_1520_A2 | B60: =IF(ISBLANK(InfoPro!B53),"",InfoPro!B53) -> Autogenerador Solar Argos Tolcemento - 19.9 MW | C60: =IF(ISBLANK(InfoPro!E53),"",InfoPro!E53) -> 19.9 | D60: =IF(ISBLANK(InfoPro!F53),"",InfoPro!F53) -> Solar FV | E60: =IF(ISBLANK(InfoPro!I53),"",YEAR(InfoPro!I53)-$G$3) -> 1 | F60: =IF(B60="","",VLOOKUP(D60,Tablas!$B$2:$E$13,2,FALSE)) -> 0.26 | G60: =IF(B60="","",VLOOKUP(D60,Tablas!$B$2:$G$13,6,FALSE)) -> 0 | H60: 45324.24 | I60: 5769.00524 | J60: 474420.6992 | K60: 424347.6737 | L60: 379559.6366 | M60: 339498.7805 | N60: 303666.1722 | O60: 271615.5386 | P60: 242947.709 | Q60: 217305.6431 | R60: 194369.9849 | S60: 173855.0849 | T60: 155505.4426 | U60: 139092.5247 | V60: 124411.9184 | W60: 111280.7856 | X60: 99535.58645 | Y60: 1.486125165e+10 | Z60: 746796.5651
A61: =IF(ISBLANK(InfoPro!A54),"",InfoPro!A54) -> SC_1527_A1 | B61: =IF(ISBLANK(InfoPro!B54),"",InfoPro!B54) -> Nueva Montería Solar III _9,9 MW | C61: =IF(ISBLANK(InfoPro!E54),"",InfoPro!E54) -> 9.9 | D61: =IF(ISBLANK(InfoPro!F54),"",InfoPro!F54) -> Solar FV | E61: =IF(ISBLANK(InfoPro!I54),"",YEAR(InfoPro!I54)-$G$3) -> 2 | F61: =IF(B61="","",VLOOKUP(D61,Tablas!$B$2:$E$13,2,FALSE)) -> 0.26 | G61: =IF(B61="","",VLOOKUP(D61,Tablas!$B$2:$G$13,6,FALSE)) -> 0 | H61: 22548.24 | I61: 2870.007632 | J61: 211107.6367 | K61: 188826.1509 | L61: 168896.3782 | M61: 151070.1058 | N61: 135125.3182 | O61: 120863.4331 | P61: 108106.8275 | Q61: 96696.62564 | R61: 86490.72061 | S61: 77362.00413 | T61: 69196.78365 | U61: 61893.36642 | V61: 55360.79286 | W61: 49517.70381 | X61: 44291.3272 | Y61: 6612957061 | Z61: 667975.4607
A62: =IF(ISBLANK(InfoPro!A55),"",InfoPro!A55) -> SC_1527_A2 | B62: =IF(ISBLANK(InfoPro!B55),"",InfoPro!B55) -> Nueva Montería Solar III _9,9 MW | C62: =IF(ISBLANK(InfoPro!E55),"",InfoPro!E55) -> 9.9 | D62: =IF(ISBLANK(InfoPro!F55),"",InfoPro!F55) -> Solar FV | E62: =IF(ISBLANK(InfoPro!I55),"",YEAR(InfoPro!I55)-$G$3) -> 2 | F62: =IF(B62="","",VLOOKUP(D62,Tablas!$B$2:$E$13,2,FALSE)) -> 0.26 | G62: =IF(B62="","",VLOOKUP(D62,Tablas!$B$2:$G$13,6,FALSE)) -> 0 | H62: 22548.24 | I62: 2870.007632 | J62: 211107.6367 | K62: 188826.1509 | L62: 168896.3782 | M62: 151070.1058 | N62: 135125.3182 | O62: 120863.4331 | P62: 108106.8275 | Q62: 96696.62564 | R62: 86490.72061 | S62: 77362.00413 | T62: 69196.78365 | U62: 61893.36642 | V62: 55360.79286 | W62: 49517.70381 | X62: 44291.3272 | Y62: 6612957061 | Z62: 667975.4607
A63: =IF(ISBLANK(InfoPro!A56),"",InfoPro!A56) -> SC_1395_A1 | B63: =IF(ISBLANK(InfoPro!B56),"",InfoPro!B56) -> San Marcos I 19.9 | C63: =IF(ISBLANK(InfoPro!E56),"",InfoPro!E56) -> 19.9 | D63: =IF(ISBLANK(InfoPro!F56),"",InfoPro!F56) -> Solar FV | E63: =IF(ISBLANK(InfoPro!I56),"",YEAR(InfoPro!I56)-$G$3) -> 3 | F63: =IF(B63="","",VLOOKUP(D63,Tablas!$B$2:$E$13,2,FALSE)) -> 0.26 | G63: =IF(B63="","",VLOOKUP(D63,Tablas!$B$2:$G$13,6,FALSE)) -> 0 | H63: 45324.24 | I63: 5769.00524 | J63: 379559.6366 | K63: 339498.7805 | L63: 303666.1722 | M63: 271615.5386 | N63: 242947.709 | O63: 217305.6431 | P63: 194369.9849 | Q63: 173855.0849 | R63: 155505.4426 | S63: 139092.5247 | T63: 124411.9184 | U63: 111280.7856 | V63: 99535.58645 | W63: 89030.04154 | X63: 79633.31086 | Y63: 1.188972421e+10 | Z63: 597473.5785
A64: =IF(ISBLANK(InfoPro!A57),"",InfoPro!A57) -> SC_1396_A1 | B64: =IF(ISBLANK(InfoPro!B57),"",InfoPro!B57) -> San Marcos II 19.9 | C64: =IF(ISBLANK(InfoPro!E57),"",InfoPro!E57) -> 19.9 | D64: =IF(ISBLANK(InfoPro!F57),"",InfoPro!F57) -> Solar FV | E64: =IF(ISBLANK(InfoPro!I57),"",YEAR(InfoPro!I57)-$G$3) -> 3 | F64: =IF(B64="","",VLOOKUP(D64,Tablas!$B$2:$E$13,2,FALSE)) -> 0.26 | G64: =IF(B64="","",VLOOKUP(D64,Tablas!$B$2:$G$13,6,FALSE)) -> 0 | H64: 45324.24 | I64: 5769.00524 | J64: 379559.6366 | K64: 339498.7805 | L64: 303666.1722 | M64: 271615.5386 | N64: 242947.709 | O64: 217305.6431 | P64: 194369.9849 | Q64: 173855.0849 | R64: 155505.4426 | S64: 139092.5247 | T64: 124411.9184 | U64: 111280.7856 | V64: 99535.58645 | W64: 89030.04154 | X64: 79633.31086 | Y64: 1.188972421e+10 | Z64: 597473.5785
A65: =IF(ISBLANK(InfoPro!A58),"",InfoPro!A58) -> SC_1359_A1 | B65: =IF(ISBLANK(InfoPro!B58),"",InfoPro!B58) -> El Corozo_250MW | C65: =IF(ISBLANK(InfoPro!E58),"",InfoPro!E58) -> 250 | D65: =IF(ISBLANK(InfoPro!F58),"",InfoPro!F58) -> Solar FV | E65: =IF(ISBLANK(InfoPro!I58),"",YEAR(InfoPro!I58)-$G$3) -> 4 | F65: =IF(B65="","",VLOOKUP(D65,Tablas!$B$2:$E$13,2,FALSE)) -> 0.26 | G65: =IF(B65="","",VLOOKUP(D65,Tablas!$B$2:$G$13,6,FALSE)) -> 0 | H65: 569400 | I65: 72474.9402 | J65: 4265060.057 | K65: 3814901.661 | L65: 3412255.511 | M65: 3052106.897 | N65: 2729970.391 | O65: 2441833.981 | P65: 2184109.106 | Q65: 1953585.963 | R65: 1747393.527 | S65: 1562963.798 | T65: 1397999.82 | U65: 1250447.066 | V65: 1118467.859 | W65: 1000418.478 | X65: 894828.6925 | Y65: 1.336032152e+11 | Z65: 534412.8609
A66: =IF(ISBLANK(InfoPro!A59),"",InfoPro!A59) -> SC_1359_A2 | B66: =IF(ISBLANK(InfoPro!B59),"",InfoPro!B59) -> El Corozo_250MW | C66: =IF(ISBLANK(InfoPro!E59),"",InfoPro!E59) -> 250 | D66: =IF(ISBLANK(InfoPro!F59),"",InfoPro!F59) -> Solar FV | E66: =IF(ISBLANK(InfoPro!I59),"",YEAR(InfoPro!I59)-$G$3) -> 4 | F66: =IF(B66="","",VLOOKUP(D66,Tablas!$B$2:$E$13,2,FALSE)) -> 0.26 | G66: =IF(B66="","",VLOOKUP(D66,Tablas!$B$2:$G$13,6,FALSE)) -> 0 | H66: 569400 | I66: 72474.9402 | J66: 4265060.057 | K66: 3814901.661 | L66: 3412255.511 | M66: 3052106.897 | N66: 2729970.391 | O66: 2441833.981 | P66: 2184109.106 | Q66: 1953585.963 | R66: 1747393.527 | S66: 1562963.798 | T66: 1397999.82 | U66: 1250447.066 | V66: 1118467.859 | W66: 1000418.478 | X66: 894828.6925 | Y66: 1.336032152e+11 | Z66: 534412.8609
A67: =IF(ISBLANK(InfoPro!A60),"",InfoPro!A60) -> SC_1598_A1 | B67: =IF(ISBLANK(InfoPro!B60),"",InfoPro!B60) -> PARQUE SOLAR FOTOVOLTAICO MATIMBA de 150MW | C67: =IF(ISBLANK(InfoPro!E60),"",InfoPro!E60) -> 150 | D67: =IF(ISBLANK(InfoPro!F60),"",InfoPro!F60) -> Solar FV | E67: =IF(ISBLANK(InfoPro!I60),"",YEAR(InfoPro!I60)-$G$3) -> 3 | F67: =IF(B67="","",VLOOKUP(D67,Tablas!$B$2:$E$13,2,FALSE)) -> 0.26 | G67: =IF(B67="","",VLOOKUP(D67,Tablas!$B$2:$G$13,6,FALSE)) -> 0 | H67: 341640 | I67: 43484.96412 | J67: 2861002.286 | K67: 2559036.034 | L67: 2288940.996 | M67: 2047353.306 | N67: 1831264.138 | O67: 1637982.234 | P67: 1465100.389 | Q67: 1310465.464 | R67: 1172151.578 | S67: 1048436.116 | T67: 937778.279 | U67: 838799.8918 | V67: 750268.2395 | W67: 671080.7152 | X67: 600251.0869 | Y67: 8.962103677e+10 | Z67: 597473.5785
A68: =IF(ISBLANK(InfoPro!A61),"",InfoPro!A61) -> SC_1598_A2 | B68: =IF(ISBLANK(InfoPro!B61),"",InfoPro!B61) -> PARQUE SOLAR FOTOVOLTAICO MATIMBA de 150MW | C68: =IF(ISBLANK(InfoPro!E61),"",InfoPro!E61) -> 150 | D68: =IF(ISBLANK(InfoPro!F61),"",InfoPro!F61) -> Solar FV | E68: =IF(ISBLANK(InfoPro!I61),"",YEAR(InfoPro!I61)-$G$3) -> 3 | F68: =IF(B68="","",VLOOKUP(D68,Tablas!$B$2:$E$13,2,FALSE)) -> 0.26 | G68: =IF(B68="","",VLOOKUP(D68,Tablas!$B$2:$G$13,6,FALSE)) -> 0 | H68: 341640 | I68: 43484.96412 | J68: 2861002.286 | K68: 2559036.034 | L68: 2288940.996 | M68: 2047353.306 | N68: 1831264.138 | O68: 1637982.234 | P68: 1465100.389 | Q68: 1310465.464 | R68: 1172151.578 | S68: 1048436.116 | T68: 937778.279 | U68: 838799.8918 | V68: 750268.2395 | W68: 671080.7152 | X68: 600251.0869 | Y68: 8.962103677e+10 | Z68: 597473.5785
A69: =IF(ISBLANK(InfoPro!A62),"",InfoPro!A62) -> SC_981_A1 | B69: =IF(ISBLANK(InfoPro!B62),"",InfoPro!B62) -> Yaguarundi Solar | C69: =IF(ISBLANK(InfoPro!E62),"",InfoPro!E62) -> 40 | D69: =IF(ISBLANK(InfoPro!F62),"",InfoPro!F62) -> Solar FV | E69: =IF(ISBLANK(InfoPro!I62),"",YEAR(InfoPro!I62)-$G$3) -> 3 | F69: =IF(B69="","",VLOOKUP(D69,Tablas!$B$2:$E$13,2,FALSE)) -> 0.26 | G69: =IF(B69="","",VLOOKUP(D69,Tablas!$B$2:$G$13,6,FALSE)) -> 0 | H69: 91104 | I69: 11595.99043 | J69: =IF($I69="","",(1/(1+$C$4)^(J$7+$E69))*$I69*$C$5) -> 762933.943 | K69: 682409.6091 | L69: 610384.2657 | M69: 545960.8817 | N69: 488337.1035 | O69: 436795.2625 | P69: 390693.4369 | Q69: 349457.457 | R69: 312573.754 | S69: 279582.9643 | T69: 250074.2077 | U69: 223679.9711 | V69: 200071.5305 | W69: 178954.8574 | X69: 160066.9565 | Y69: 2.389894314e+10 | Z69: 597473.5785
A70: =IF(ISBLANK(InfoPro!A63),"",InfoPro!A63) -> SC_981_A2 | B70: =IF(ISBLANK(InfoPro!B63),"",InfoPro!B63) -> Yaguarundi Solar | C70: =IF(ISBLANK(InfoPro!E63),"",InfoPro!E63) -> 40 | D70: =IF(ISBLANK(InfoPro!F63),"",InfoPro!F63) -> Solar FV | E70: =IF(ISBLANK(InfoPro!I63),"",YEAR(InfoPro!I63)-$G$3) -> 3 | F70: =IF(B70="","",VLOOKUP(D70,Tablas!$B$2:$E$13,2,FALSE)) -> 0.26 | G70: =IF(B70="","",VLOOKUP(D70,Tablas!$B$2:$G$13,6,FALSE)) -> 0 | H70: 91104 | I70: 11595.99043 | J70: 762933.943 | K70: 682409.6091 | L70: 610384.2657 | M70: 545960.8817 | N70: 488337.1035 | O70: 436795.2625 | P70: 390693.4369 | Q70: 349457.457 | R70: 312573.754 | S70: 279582.9643 | T70: 250074.2077 | U70: 223679.9711 | V70: 200071.5305 | W70: 178954.8574 | X70: 160066.9565 | Y70: 2.389894314e+10 | Z70: 597473.5785
A71: =IF(ISBLANK(InfoPro!A64),"",InfoPro!A64) -> SC_1634_A1 | B71: =IF(ISBLANK(InfoPro!B64),"",InfoPro!B64) -> El Tapir Solar 99.9 MW | C71: =IF(ISBLANK(InfoPro!E64),"",InfoPro!E64) -> 99.9 | D71: =IF(ISBLANK(InfoPro!F64),"",InfoPro!F64) -> Solar FV | E71: =IF(ISBLANK(InfoPro!I64),"",YEAR(InfoPro!I64)-$G$3) -> 3 | F71: =IF(B71="","",VLOOKUP(D71,Tablas!$B$2:$E$13,2,FALSE)) -> 0.26 | G71: =IF(B71="","",VLOOKUP(D71,Tablas!$B$2:$G$13,6,FALSE)) -> 0 | H71: 227532.24 | I71: 28960.9861 | J71: 1905427.523 | K71: 1704317.999 | L71: 1524434.704 | M71: 1363537.302 | N71: 1219621.916 | O71: 1090896.168 | P71: 975756.8588 | Q71: 872769.9989 | R71: 780652.9507 | S71: 698258.4532 | T71: 624560.3338 | U71: 558640.7279 | V71: 499678.6475 | W71: 446939.7563 | X71: 399767.2239 | Y71: 5.968761049e+10 | Z71: 597473.5785
A72: =IF(ISBLANK(InfoPro!A65),"",InfoPro!A65) -> SC_782_A1 | B72: =IF(ISBLANK(InfoPro!B65),"",InfoPro!B65) -> Parque Solar El Corozo 60 MW | C72: =IF(ISBLANK(InfoPro!E65),"",InfoPro!E65) -> 60 | D72: =IF(ISBLANK(InfoPro!F65),"",InfoPro!F65) -> Solar FV | E72: =IF(ISBLANK(InfoPro!I65),"",YEAR(InfoPro!I65)-$G$3) -> 3 | F72: =IF(B72="","",VLOOKUP(D72,Tablas!$B$2:$E$13,2,FALSE)) -> 0.26 | G72: =IF(B72="","",VLOOKUP(D72,Tablas!$B$2:$G$13,6,FALSE)) -> 0 | H72: 136656 | I72: 17393.98565 | J72: 1144400.914 | K72: 1023614.414 | L72: 915576.3986 | M72: 818941.3225 | N72: 732505.6552 | O72: 655192.8938 | P72: 586040.1554 | Q72: 524186.1855 | R72: 468860.6311 | S72: 419374.4464 | T72: 375111.3116 | U72: 335519.9567 | V72: 300107.2958 | W72: 268432.2861 | X72: 240100.4348 | Y72: 3.584841471e+10 | Z72: 597473.5785
A73: =IF(ISBLANK(InfoPro!A66),"",InfoPro!A66) -> SC_782_A2 | B73: =IF(ISBLANK(InfoPro!B66),"",InfoPro!B66) -> Parque Solar El Corozo 60 MW | C73: =IF(ISBLANK(InfoPro!E66),"",InfoPro!E66) -> 60 | D73: =IF(ISBLANK(InfoPro!F66),"",InfoPro!F66) -> Solar FV | E73: =IF(ISBLANK(InfoPro!I66),"",YEAR(InfoPro!I66)-$G$3) -> 3 | F73: =IF(B73="","",VLOOKUP(D73,Tablas!$B$2:$E$13,2,FALSE)) -> 0.26 | G73: =IF(B73="","",VLOOKUP(D73,Tablas!$B$2:$G$13,6,FALSE)) -> 0 | H73: =IF(C73="","",+C73*F73*24*365) -> 136656 | I73: =IF(H73="","",+H73*($C$3-G73)) -> 17393.98565 | J73: 1144400.914 | K73: 1023614.414 | L73: 915576.3986 | M73: 818941.3225 | N73: 732505.6552 | O73: 655192.8938 | P73: 586040.1554 | Q73: 524186.1855 | R73: 468860.6311 | S73: 419374.4464 | T73: 375111.3116 | U73: 335519.9567 | V73: 300107.2958 | W73: 268432.2861 | X73: 240100.4348 | Y73: 3.584841471e+10 | Z73: 597473.5785
A74: =IF(ISBLANK(InfoPro!A67),"",InfoPro!A67) -> SC_1762_A1 | B74: =IF(ISBLANK(InfoPro!B67),"",InfoPro!B67) -> SPK CERETÉ SOLAR_19.9MW | C74: =IF(ISBLANK(InfoPro!E67),"",InfoPro!E67) -> 19.9 | D74: =IF(ISBLANK(InfoPro!F67),"",InfoPro!F67) -> Solar FV | E74: =IF(ISBLANK(InfoPro!I67),"",YEAR(InfoPro!I67)-$G$3) -> 3 | F74: =IF(B74="","",VLOOKUP(D74,Tablas!$B$2:$E$13,2,FALSE)) -> 0.26 | G74: =IF(B74="","",VLOOKUP(D74,Tablas!$B$2:$G$13,6,FALSE)) -> 0 | H74: 45324.24 | I74: 5769.00524 | J74: 379559.6366 | K74: 339498.7805 | L74: 303666.1722 | M74: 271615.5386 | N74: 242947.709 | O74: 217305.6431 | P74: 194369.9849 | Q74: 173855.0849 | R74: 155505.4426 | S74: 139092.5247 | T74: 124411.9184 | U74: 111280.7856 | V74: 99535.58645 | W74: 89030.04154 | X74: 79633.31086 | Y74: =IF(X74="","",SUM(J74:X74)*$C$6) -> 1.188972421e+10 | Z74: =IF(C74=0,0,IF(Y74="","",Y74/(C74*1000))) -> 597473.5785
A75: =IF(ISBLANK(InfoPro!A68),"",InfoPro!A68) -> SC_1762_A2 | B75: =IF(ISBLANK(InfoPro!B68),"",InfoPro!B68) -> SPK CERETÉ SOLAR_19.9MW | C75: =IF(ISBLANK(InfoPro!E68),"",InfoPro!E68) -> 19.9 | D75: =IF(ISBLANK(InfoPro!F68),"",InfoPro!F68) -> Solar FV | E75: =IF(ISBLANK(InfoPro!I68),"",YEAR(InfoPro!I68)-$G$3) -> 3 | F75: =IF(B75="","",VLOOKUP(D75,Tablas!$B$2:$E$13,2,FALSE)) -> 0.26 | G75: =IF(B75="","",VLOOKUP(D75,Tablas!$B$2:$G$13,6,FALSE)) -> 0 | H75: 45324.24 | I75: 5769.00524 | J75: 379559.6366 | K75: 339498.7805 | L75: 303666.1722 | M75: 271615.5386 | N75: 242947.709 | O75: 217305.6431 | P75: 194369.9849 | Q75: 173855.0849 | R75: 155505.4426 | S75: 139092.5247 | T75: 124411.9184 | U75: 111280.7856 | V75: 99535.58645 | W75: 89030.04154 | X75: 79633.31086 | Y75: 1.188972421e+10 | Z75: 597473.5785
A76: =IF(ISBLANK(InfoPro!A69),"",InfoPro!A69) -> SC_1782_A1 | B76: =IF(ISBLANK(InfoPro!B69),"",InfoPro!B69) -> Orquídea del Sucre - Toluviejo | C76: =IF(ISBLANK(InfoPro!E69),"",InfoPro!E69) -> 112 | D76: =IF(ISBLANK(InfoPro!F69),"",InfoPro!F69) -> Solar FV | E76: =IF(ISBLANK(InfoPro!I69),"",YEAR(InfoPro!I69)-$G$3) -> 4 | F76: =IF(B76="","",VLOOKUP(D76,Tablas!$B$2:$E$13,2,FALSE)) -> 0.26 | G76: =IF(B76="","",VLOOKUP(D76,Tablas!$B$2:$G$13,6,FALSE)) -> 0 | H76: 255091.2 | I76: 32468.77321 | J76: 1910746.905 | K76: 1709075.944 | L76: 1528690.469 | M76: 1367343.89 | N76: 1223026.735 | O76: 1093941.623 | P76: 978480.8797 | Q76: 875206.5113 | R76: 782832.2999 | S76: 700207.7817 | T76: 626303.9192 | U76: 560200.2855 | V76: 501073.6006 | W76: 448187.4782 | X76: 400883.2542 | Y76: 5.985424042e+10 | Z76: 534412.8609
A77: =IF(ISBLANK(InfoPro!A70),"",InfoPro!A70) -> SC_1782_A2 | B77: =IF(ISBLANK(InfoPro!B70),"",InfoPro!B70) -> Orquídea del Sucre - Toluviejo | C77: =IF(ISBLANK(InfoPro!E70),"",InfoPro!E70) -> 112 | D77: =IF(ISBLANK(InfoPro!F70),"",InfoPro!F70) -> Solar FV | E77: =IF(ISBLANK(InfoPro!I70),"",YEAR(InfoPro!I70)-$G$3) -> 4 | F77: =IF(B77="","",VLOOKUP(D77,Tablas!$B$2:$E$13,2,FALSE)) -> 0.26 | G77: =IF(B77="","",VLOOKUP(D77,Tablas!$B$2:$G$13,6,FALSE)) -> 0 | H77: 255091.2 | I77: 32468.77321 | J77: 1910746.905 | K77: 1709075.944 | L77: 1528690.469 | M77: 1367343.89 | N77: 1223026.735 | O77: 1093941.623 | P77: 978480.8797 | Q77: 875206.5113 | R77: 782832.2999 | S77: 700207.7817 | T77: 626303.9192 | U77: 560200.2855 | V77: 501073.6006 | W77: 448187.4782 | X77: 400883.2542 | Y77: 5.985424042e+10 | Z77: 534412.8609
A78: =IF(ISBLANK(InfoPro!A71),"",InfoPro!A71) -> SC_1784_A1 | B78: =IF(ISBLANK(InfoPro!B71),"",InfoPro!B71) -> Pétalo del Sucre - Sierra Flor 9,9 MW | C78: =IF(ISBLANK(InfoPro!E71),"",InfoPro!E71) -> 9.9 | D78: =IF(ISBLANK(InfoPro!F71),"",InfoPro!F71) -> Solar FV | E78: =IF(ISBLANK(InfoPro!I71),"",YEAR(InfoPro!I71)-$G$3) -> 3 | F78: =IF(B78="","",VLOOKUP(D78,Tablas!$B$2:$E$13,2,FALSE)) -> 0.26 | G78: =IF(B78="","",VLOOKUP(D78,Tablas!$B$2:$G$13,6,FALSE)) -> 0 | H78: 22548.24 | I78: 2870.007632 | J78: 188826.1509 | K78: 168896.3782 | L78: 151070.1058 | M78: 135125.3182 | N78: 120863.4331 | O78: 108106.8275 | P78: 96696.62564 | Q78: 86490.72061 | R78: 77362.00413 | S78: 69196.78365 | T78: 61893.36642 | U78: 55360.79286 | V78: 49517.70381 | W78: 44291.3272 | X78: 39616.57174 | Y78: 5914988427 | Z78: 597473.5785
A79: =IF(ISBLANK(InfoPro!A72),"",InfoPro!A72) -> SC_1784_A2 | B79: =IF(ISBLANK(InfoPro!B72),"",InfoPro!B72) -> Pétalo del Sucre - Sierra Flor 9,9 MW | C79: =IF(ISBLANK(InfoPro!E72),"",InfoPro!E72) -> 9.9 | D79: =IF(ISBLANK(InfoPro!F72),"",InfoPro!F72) -> Solar FV | E79: =IF(ISBLANK(InfoPro!I72),"",YEAR(InfoPro!I72)-$G$3) -> 3 | F79: =IF(B79="","",VLOOKUP(D79,Tablas!$B$2:$E$13,2,FALSE)) -> 0.26 | G79: =IF(B79="","",VLOOKUP(D79,Tablas!$B$2:$G$13,6,FALSE)) -> 0 | H79: 22548.24 | I79: 2870.007632 | J79: =IF($I79="","",(1/(1+$C$4)^(J$7+$E79))*$I79*$C$5) -> 188826.1509 | K79: 168896.3782 | L79: 151070.1058 | M79: 135125.3182 | N79: 120863.4331 | O79: 108106.8275 | P79: 96696.62564 | Q79: 86490.72061 | R79: 77362.00413 | S79: 69196.78365 | T79: 61893.36642 | U79: 55360.79286 | V79: 49517.70381 | W79: 44291.3272 | X79: 39616.57174 | Y79: 5914988427 | Z79: 597473.5785
A80: =IF(ISBLANK(InfoPro!A73),"",InfoPro!A73) -> SC_1715_A1 | B80: =IF(ISBLANK(InfoPro!B73),"",InfoPro!B73) -> Andrómeda Solar de 50 MW (entrega 41 MW) | C80: =IF(ISBLANK(InfoPro!E73),"",InfoPro!E73) -> 41 | D80: =IF(ISBLANK(InfoPro!F73),"",InfoPro!F73) -> Solar FV | E80: =IF(ISBLANK(InfoPro!I73),"",YEAR(InfoPro!I73)-$G$3) -> 3 | F80: =IF(B80="","",VLOOKUP(D80,Tablas!$B$2:$E$13,2,FALSE)) -> 0.26 | G80: =IF(B80="","",VLOOKUP(D80,Tablas!$B$2:$G$13,6,FALSE)) -> 0 | H80: 93381.6 | I80: 11885.89019 | J80: 782007.2915 | K80: 699469.8493 | L80: 625643.8724 | M80: 559609.9037 | N80: 500545.5311 | O80: 447715.1441 | P80: 400460.7729 | Q80: 358193.8934 | R80: 320388.0979 | S80: 286572.5384 | T80: 256326.0629 | U80: 229271.9704 | V80: 205073.3188 | W80: 183428.7288 | X80: 164068.6304 | Y80: 2.449641672e+10 | Z80: 597473.5785
A81: =IF(ISBLANK(InfoPro!A74),"",InfoPro!A74) -> SC_1715_A2 | B81: =IF(ISBLANK(InfoPro!B74),"",InfoPro!B74) -> Andrómeda Solar de 50 MW (entrega 41 MW) | C81: =IF(ISBLANK(InfoPro!E74),"",InfoPro!E74) -> 41 | D81: =IF(ISBLANK(InfoPro!F74),"",InfoPro!F74) -> Solar FV | E81: =IF(ISBLANK(InfoPro!I74),"",YEAR(InfoPro!I74)-$G$3) -> 3 | F81: =IF(B81="","",VLOOKUP(D81,Tablas!$B$2:$E$13,2,FALSE)) -> 0.26 | G81: =IF(B81="","",VLOOKUP(D81,Tablas!$B$2:$G$13,6,FALSE)) -> 0 | H81: 93381.6 | I81: 11885.89019 | J81: 782007.2915 | K81: 699469.8493 | L81: 625643.8724 | M81: 559609.9037 | N81: 500545.5311 | O81: 447715.1441 | P81: 400460.7729 | Q81: 358193.8934 | R81: 320388.0979 | S81: 286572.5384 | T81: 256326.0629 | U81: 229271.9704 | V81: 205073.3188 | W81: 183428.7288 | X81: 164068.6304 | Y81: 2.449641672e+10 | Z81: 597473.5785
A82: =IF(ISBLANK(InfoPro!A75),"",InfoPro!A75) -> SC_1809_A1 | B82: =IF(ISBLANK(InfoPro!B75),"",InfoPro!B75) -> DSE COVEÑAS | C82: =IF(ISBLANK(InfoPro!E75),"",InfoPro!E75) -> 9.9 | D82: =IF(ISBLANK(InfoPro!F75),"",InfoPro!F75) -> Solar FV | E82: =IF(ISBLANK(InfoPro!I75),"",YEAR(InfoPro!I75)-$G$3) -> 2 | F82: =IF(B82="","",VLOOKUP(D82,Tablas!$B$2:$E$13,2,FALSE)) -> 0.26 | G82: =IF(B82="","",VLOOKUP(D82,Tablas!$B$2:$G$13,6,FALSE)) -> 0 | H82: 22548.24 | I82: 2870.007632 | J82: 211107.6367 | K82: 188826.1509 | L82: 168896.3782 | M82: 151070.1058 | N82: 135125.3182 | O82: 120863.4331 | P82: 108106.8275 | Q82: 96696.62564 | R82: 86490.72061 | S82: 77362.00413 | T82: 69196.78365 | U82: 61893.36642 | V82: 55360.79286 | W82: 49517.70381 | X82: 44291.3272 | Y82: 6612957061 | Z82: 667975.4607
A83: =IF(ISBLANK(InfoPro!A76),"",InfoPro!A76) -> SC_1809_A2 | B83: =IF(ISBLANK(InfoPro!B76),"",InfoPro!B76) -> DSE COVEÑAS | C83: =IF(ISBLANK(InfoPro!E76),"",InfoPro!E76) -> 9.9 | D83: =IF(ISBLANK(InfoPro!F76),"",InfoPro!F76) -> Solar FV | E83: =IF(ISBLANK(InfoPro!I76),"",YEAR(InfoPro!I76)-$G$3) -> 2 | F83: =IF(B83="","",VLOOKUP(D83,Tablas!$B$2:$E$13,2,FALSE)) -> 0.26 | G83: =IF(B83="","",VLOOKUP(D83,Tablas!$B$2:$G$13,6,FALSE)) -> 0 | H83: 22548.24 | I83: 2870.007632 | J83: 211107.6367 | K83: 188826.1509 | L83: 168896.3782 | M83: 151070.1058 | N83: 135125.3182 | O83: 120863.4331 | P83: 108106.8275 | Q83: 96696.62564 | R83: 86490.72061 | S83: 77362.00413 | T83: 69196.78365 | U83: 61893.36642 | V83: 55360.79286 | W83: 49517.70381 | X83: 44291.3272 | Y83: 6612957061 | Z83: 667975.4607
A84: =IF(ISBLANK(InfoPro!A77),"",InfoPro!A77) -> SC_1838_A1 | B84: =IF(ISBLANK(InfoPro!B77),"",InfoPro!B77) -> Since Solar I 9,9 MW | C84: =IF(ISBLANK(InfoPro!E77),"",InfoPro!E77) -> 9.9 | D84: =IF(ISBLANK(InfoPro!F77),"",InfoPro!F77) -> Solar FV | E84: =IF(ISBLANK(InfoPro!I77),"",YEAR(InfoPro!I77)-$G$3) -> 2 | F84: =IF(B84="","",VLOOKUP(D84,Tablas!$B$2:$E$13,2,FALSE)) -> 0.26 | G84: =IF(B84="","",VLOOKUP(D84,Tablas!$B$2:$G$13,6,FALSE)) -> 0 | H84: 22548.24 | I84: 2870.007632 | J84: 211107.6367 | K84: 188826.1509 | L84: 168896.3782 | M84: 151070.1058 | N84: 135125.3182 | O84: 120863.4331 | P84: 108106.8275 | Q84: 96696.62564 | R84: 86490.72061 | S84: 77362.00413 | T84: 69196.78365 | U84: 61893.36642 | V84: 55360.79286 | W84: 49517.70381 | X84: 44291.3272 | Y84: 6612957061 | Z84: 667975.4607
A85: =IF(ISBLANK(InfoPro!A78),"",InfoPro!A78) -> SC_1838_A2 | B85: =IF(ISBLANK(InfoPro!B78),"",InfoPro!B78) -> Since Solar I 9,9 MW | C85: =IF(ISBLANK(InfoPro!E78),"",InfoPro!E78) -> 9.9 | D85: =IF(ISBLANK(InfoPro!F78),"",InfoPro!F78) -> Solar FV | E85: =IF(ISBLANK(InfoPro!I78),"",YEAR(InfoPro!I78)-$G$3) -> 2 | F85: =IF(B85="","",VLOOKUP(D85,Tablas!$B$2:$E$13,2,FALSE)) -> 0.26 | G85: =IF(B85="","",VLOOKUP(D85,Tablas!$B$2:$G$13,6,FALSE)) -> 0 | H85: 22548.24 | I85: 2870.007632 | J85: 211107.6367 | K85: 188826.1509 | L85: 168896.3782 | M85: 151070.1058 | N85: 135125.3182 | O85: 120863.4331 | P85: 108106.8275 | Q85: 96696.62564 | R85: 86490.72061 | S85: 77362.00413 | T85: 69196.78365 | U85: 61893.36642 | V85: 55360.79286 | W85: 49517.70381 | X85: 44291.3272 | Y85: 6612957061 | Z85: 667975.4607
A86: =IF(ISBLANK(InfoPro!A79),"",InfoPro!A79) -> SC_1853_A1 | B86: =IF(ISBLANK(InfoPro!B79),"",InfoPro!B79) -> Tolú Solar 9,9 MW | C86: =IF(ISBLANK(InfoPro!E79),"",InfoPro!E79) -> 9.9 | D86: =IF(ISBLANK(InfoPro!F79),"",InfoPro!F79) -> Solar FV | E86: =IF(ISBLANK(InfoPro!I79),"",YEAR(InfoPro!I79)-$G$3) -> 2 | F86: =IF(B86="","",VLOOKUP(D86,Tablas!$B$2:$E$13,2,FALSE)) -> 0.26 | G86: =IF(B86="","",VLOOKUP(D86,Tablas!$B$2:$G$13,6,FALSE)) -> 0 | H86: 22548.24 | I86: 2870.007632 | J86: 211107.6367 | K86: 188826.1509 | L86: 168896.3782 | M86: 151070.1058 | N86: 135125.3182 | O86: 120863.4331 | P86: 108106.8275 | Q86: 96696.62564 | R86: 86490.72061 | S86: 77362.00413 | T86: 69196.78365 | U86: 61893.36642 | V86: 55360.79286 | W86: 49517.70381 | X86: 44291.3272 | Y86: 6612957061 | Z86: 667975.4607
A87: =IF(ISBLANK(InfoPro!A80),"",InfoPro!A80) -> SC_1853_A2 | B87: =IF(ISBLANK(InfoPro!B80),"",InfoPro!B80) -> Tolú Solar 9,9 MW | C87: =IF(ISBLANK(InfoPro!E80),"",InfoPro!E80) -> 9.9 | D87: =IF(ISBLANK(InfoPro!F80),"",InfoPro!F80) -> Solar FV | E87: =IF(ISBLANK(InfoPro!I80),"",YEAR(InfoPro!I80)-$G$3) -> 2 | F87: =IF(B87="","",VLOOKUP(D87,Tablas!$B$2:$E$13,2,FALSE)) -> 0.26 | G87: =IF(B87="","",VLOOKUP(D87,Tablas!$B$2:$G$13,6,FALSE)) -> 0 | H87: 22548.24 | I87: 2870.007632 | J87: 211107.6367 | K87: 188826.1509 | L87: 168896.3782 | M87: 151070.1058 | N87: 135125.3182 | O87: 120863.4331 | P87: 108106.8275 | Q87: 96696.62564 | R87: 86490.72061 | S87: 77362.00413 | T87: 69196.78365 | U87: 61893.36642 | V87: 55360.79286 | W87: 49517.70381 | X87: 44291.3272 | Y87: 6612957061 | Z87: 667975.4607
A88: =IF(ISBLANK(InfoPro!A81),"",InfoPro!A81) -> SC_1882_A1 | B88: =IF(ISBLANK(InfoPro!B81),"",InfoPro!B81) -> Proyecto Solar Oviedo | C88: =IF(ISBLANK(InfoPro!E81),"",InfoPro!E81) -> 9.9 | D88: =IF(ISBLANK(InfoPro!F81),"",InfoPro!F81) -> Solar FV | E88: =IF(ISBLANK(InfoPro!I81),"",YEAR(InfoPro!I81)-$G$3) -> 2 | F88: =IF(B88="","",VLOOKUP(D88,Tablas!$B$2:$E$13,2,FALSE)) -> 0.26 | G88: =IF(B88="","",VLOOKUP(D88,Tablas!$B$2:$G$13,6,FALSE)) -> 0 | H88: 22548.24 | I88: 2870.007632 | J88: 211107.6367 | K88: 188826.1509 | L88: 168896.3782 | M88: 151070.1058 | N88: 135125.3182 | O88: 120863.4331 | P88: 108106.8275 | Q88: 96696.62564 | R88: 86490.72061 | S88: 77362.00413 | T88: 69196.78365 | U88: 61893.36642 | V88: 55360.79286 | W88: 49517.70381 | X88: 44291.3272 | Y88: 6612957061 | Z88: 667975.4607
A89: =IF(ISBLANK(InfoPro!A82),"",InfoPro!A82) -> SC_1882_A2 | B89: =IF(ISBLANK(InfoPro!B82),"",InfoPro!B82) -> Proyecto Solar Oviedo | C89: =IF(ISBLANK(InfoPro!E82),"",InfoPro!E82) -> 9.9 | D89: =IF(ISBLANK(InfoPro!F82),"",InfoPro!F82) -> Solar FV | E89: =IF(ISBLANK(InfoPro!I82),"",YEAR(InfoPro!I82)-$G$3) -> 2 | F89: =IF(B89="","",VLOOKUP(D89,Tablas!$B$2:$E$13,2,FALSE)) -> 0.26 | G89: =IF(B89="","",VLOOKUP(D89,Tablas!$B$2:$G$13,6,FALSE)) -> 0 | H89: 22548.24 | I89: 2870.007632 | J89: =IF($I89="","",(1/(1+$C$4)^(J$7+$E89))*$I89*$C$5) -> 211107.6367 | K89: 188826.1509 | L89: 168896.3782 | M89: 151070.1058 | N89: 135125.3182 | O89: 120863.4331 | P89: 108106.8275 | Q89: 96696.62564 | R89: 86490.72061 | S89: 77362.00413 | T89: 69196.78365 | U89: 61893.36642 | V89: 55360.79286 | W89: 49517.70381 | X89: 44291.3272 | Y89: 6612957061 | Z89: 667975.4607
A90: =IF(ISBLANK(InfoPro!A83),"",InfoPro!A83) -> SC_1913_A1 | B90: =IF(ISBLANK(InfoPro!B83),"",InfoPro!B83) -> PS Noe | C90: =IF(ISBLANK(InfoPro!E83),"",InfoPro!E83) -> 9.9 | D90: =IF(ISBLANK(InfoPro!F83),"",InfoPro!F83) -> Solar FV | E90: =IF(ISBLANK(InfoPro!I83),"",YEAR(InfoPro!I83)-$G$3) -> 2 | F90: =IF(B90="","",VLOOKUP(D90,Tablas!$B$2:$E$13,2,FALSE)) -> 0.26 | G90: =IF(B90="","",VLOOKUP(D90,Tablas!$B$2:$G$13,6,FALSE)) -> 0 | H90: 22548.24 | I90: 2870.007632 | J90: 211107.6367 | K90: 188826.1509 | L90: 168896.3782 | M90: 151070.1058 | N90: 135125.3182 | O90: 120863.4331 | P90: 108106.8275 | Q90: 96696.62564 | R90: 86490.72061 | S90: 77362.00413 | T90: 69196.78365 | U90: 61893.36642 | V90: 55360.79286 | W90: 49517.70381 | X90: 44291.3272 | Y90: 6612957061 | Z90: 667975.4607
A91: =IF(ISBLANK(InfoPro!A84),"",InfoPro!A84) -> SC_1913_A2 | B91: =IF(ISBLANK(InfoPro!B84),"",InfoPro!B84) -> PS Noe | C91: =IF(ISBLANK(InfoPro!E84),"",InfoPro!E84) -> 9.9 | D91: =IF(ISBLANK(InfoPro!F84),"",InfoPro!F84) -> Solar FV | E91: =IF(ISBLANK(InfoPro!I84),"",YEAR(InfoPro!I84)-$G$3) -> 2 | F91: =IF(B91="","",VLOOKUP(D91,Tablas!$B$2:$E$13,2,FALSE)) -> 0.26 | G91: =IF(B91="","",VLOOKUP(D91,Tablas!$B$2:$G$13,6,FALSE)) -> 0 | H91: 22548.24 | I91: 2870.007632 | J91: 211107.6367 | K91: 188826.1509 | L91: 168896.3782 | M91: 151070.1058 | N91: 135125.3182 | O91: 120863.4331 | P91: 108106.8275 | Q91: 96696.62564 | R91: 86490.72061 | S91: 77362.00413 | T91: 69196.78365 | U91: 61893.36642 | V91: 55360.79286 | W91: 49517.70381 | X91: 44291.3272 | Y91: 6612957061 | Z91: 667975.4607
A92: =IF(ISBLANK(InfoPro!A85),"",InfoPro!A85) -> SC_1491_A1 | B92: =IF(ISBLANK(InfoPro!B85),"",InfoPro!B85) -> SABANA SOLAR_90MW | C92: =IF(ISBLANK(InfoPro!E85),"",InfoPro!E85) -> 90 | D92: =IF(ISBLANK(InfoPro!F85),"",InfoPro!F85) -> Solar FV | E92: =IF(ISBLANK(InfoPro!I85),"",YEAR(InfoPro!I85)-$G$3) -> 2 | F92: =IF(B92="","",VLOOKUP(D92,Tablas!$B$2:$E$13,2,FALSE)) -> 0.26 | G92: =IF(B92="","",VLOOKUP(D92,Tablas!$B$2:$G$13,6,FALSE)) -> 0 | H92: 204984 | I92: 26090.97847 | J92: 1919160.334 | K92: 1716601.372 | L92: 1535421.62 | M92: 1373364.598 | N92: 1228411.984 | O92: 1098758.483 | P92: 982789.3406 | Q92: 879060.2331 | R92: 786279.2783 | S92: 703290.9466 | T92: 629061.6696 | U92: 562666.9674 | V92: 503279.9351 | W92: 450160.9437 | X92: 402648.4291 | Y92: 6.011779146e+10 | Z92: 667975.4607
A93: =IF(ISBLANK(InfoPro!A86),"",InfoPro!A86) -> SC_1491_A2 | B93: =IF(ISBLANK(InfoPro!B86),"",InfoPro!B86) -> SABANA SOLAR_90MW | C93: =IF(ISBLANK(InfoPro!E86),"",InfoPro!E86) -> 90 | D93: =IF(ISBLANK(InfoPro!F86),"",InfoPro!F86) -> Solar FV | E93: =IF(ISBLANK(InfoPro!I86),"",YEAR(InfoPro!I86)-$G$3) -> 2 | F93: =IF(B93="","",VLOOKUP(D93,Tablas!$B$2:$E$13,2,FALSE)) -> 0.26 | G93: =IF(B93="","",VLOOKUP(D93,Tablas!$B$2:$G$13,6,FALSE)) -> 0 | H93: 204984 | I93: 26090.97847 | J93: 1919160.334 | K93: 1716601.372 | L93: 1535421.62 | M93: 1373364.598 | N93: 1228411.984 | O93: 1098758.483 | P93: 982789.3406 | Q93: 879060.2331 | R93: 786279.2783 | S93: 703290.9466 | T93: 629061.6696 | U93: 562666.9674 | V93: 503279.9351 | W93: 450160.9437 | X93: 402648.4291 | Y93: 6.011779146e+10 | Z93: 667975.4607
A94: =IF(ISBLANK(InfoPro!A87),"",InfoPro!A87) -> SC_1894_A1 | B94: =IF(ISBLANK(InfoPro!B87),"",InfoPro!B87) -> Aquila Solar | C94: =IF(ISBLANK(InfoPro!E87),"",InfoPro!E87) -> 47 | D94: =IF(ISBLANK(InfoPro!F87),"",InfoPro!F87) -> Solar FV | E94: =IF(ISBLANK(InfoPro!I87),"",YEAR(InfoPro!I87)-$G$3) -> 2 | F94: =IF(B94="","",VLOOKUP(D94,Tablas!$B$2:$E$13,2,FALSE)) -> 0.26 | G94: =IF(B94="","",VLOOKUP(D94,Tablas!$B$2:$G$13,6,FALSE)) -> 0 | H94: 107047.2 | I94: 13625.28876 | J94: 1002228.174 | K94: 896447.383 | L94: 801831.2907 | M94: 717201.5122 | N94: 641504.036 | O94: 573796.0966 | P94: 513234.4334 | Q94: 459064.7884 | R94: 410612.512 | S94: 367274.161 | T94: 328509.983 | U94: 293837.1941 | V94: 262823.9661 | W94: 235084.0484 | X94: 210271.9574 | Y94: 3.139484665e+10 | Z94: 667975.4607
A95: =IF(ISBLANK(InfoPro!A88),"",InfoPro!A88) -> SC_1894_A2 | B95: =IF(ISBLANK(InfoPro!B88),"",InfoPro!B88) -> Aquila Solar | C95: =IF(ISBLANK(InfoPro!E88),"",InfoPro!E88) -> 47 | D95: =IF(ISBLANK(InfoPro!F88),"",InfoPro!F88) -> Solar FV | E95: =IF(ISBLANK(InfoPro!I88),"",YEAR(InfoPro!I88)-$G$3) -> 2 | F95: =IF(B95="","",VLOOKUP(D95,Tablas!$B$2:$E$13,2,FALSE)) -> 0.26 | G95: =IF(B95="","",VLOOKUP(D95,Tablas!$B$2:$G$13,6,FALSE)) -> 0 | H95: =IF(C95="","",+C95*F95*24*365) -> 107047.2 | I95: 13625.28876 | J95: 1002228.174 | K95: 896447.383 | L95: 801831.2907 | M95: 717201.5122 | N95: 641504.036 | O95: 573796.0966 | P95: 513234.4334 | Q95: 459064.7884 | R95: 410612.512 | S95: 367274.161 | T95: 328509.983 | U95: 293837.1941 | V95: 262823.9661 | W95: 235084.0484 | X95: 210271.9574 | Y95: 3.139484665e+10 | Z95: 667975.4607
A96: =IF(ISBLANK(InfoPro!A89),"",InfoPro!A89) -> SC_1887_A1 | B96: =IF(ISBLANK(InfoPro!B89),"",InfoPro!B89) -> Boston Solar | C96: =IF(ISBLANK(InfoPro!E89),"",InfoPro!E89) -> 100 | D96: =IF(ISBLANK(InfoPro!F89),"",InfoPro!F89) -> Solar FV | E96: =IF(ISBLANK(InfoPro!I89),"",YEAR(InfoPro!I89)-$G$3) -> 3 | F96: =IF(B96="","",VLOOKUP(D96,Tablas!$B$2:$E$13,2,FALSE)) -> 0.26 | G96: =IF(B96="","",VLOOKUP(D96,Tablas!$B$2:$G$13,6,FALSE)) -> 0 | H96: 227760 | I96: 28989.97608 | J96: 1907334.857 | K96: 1706024.023 | L96: 1525960.664 | M96: 1364902.204 | N96: 1220842.759 | O96: 1091988.156 | P96: 976733.5924 | Q96: 873643.6425 | R96: 781434.3851 | S96: 698957.4106 | T96: 625185.5194 | U96: 559199.9279 | V96: 500178.8264 | W96: 447387.1434 | X96: 400167.3913 | Y96: 5.974735785e+10 | Z96: 597473.5785
A97: =IF(ISBLANK(InfoPro!A90),"",InfoPro!A90) -> SC_1887_A2 | B97: =IF(ISBLANK(InfoPro!B90),"",InfoPro!B90) -> Boston Solar | C97: =IF(ISBLANK(InfoPro!E90),"",InfoPro!E90) -> 100 | D97: =IF(ISBLANK(InfoPro!F90),"",InfoPro!F90) -> Solar FV | E97: =IF(ISBLANK(InfoPro!I90),"",YEAR(InfoPro!I90)-$G$3) -> 3 | F97: =IF(B97="","",VLOOKUP(D97,Tablas!$B$2:$E$13,2,FALSE)) -> 0.26 | G97: =IF(B97="","",VLOOKUP(D97,Tablas!$B$2:$G$13,6,FALSE)) -> 0 | H97: 227760 | I97: 28989.97608 | J97: 1907334.857 | K97: 1706024.023 | L97: 1525960.664 | M97: 1364902.204 | N97: 1220842.759 | O97: 1091988.156 | P97: 976733.5924 | Q97: 873643.6425 | R97: 781434.3851 | S97: 698957.4106 | T97: 625185.5194 | U97: 559199.9279 | V97: 500178.8264 | W97: 447387.1434 | X97: 400167.3913 | Y97: 5.974735785e+10 | Z97: 597473.5785
A98: =IF(ISBLANK(InfoPro!A91),"",InfoPro!A91) -> SC_2104_A1 | B98: =IF(ISBLANK(InfoPro!B91),"",InfoPro!B91) -> El Dorado - 300 MW | C98: =IF(ISBLANK(InfoPro!E91),"",InfoPro!E91) -> 300 | D98: =IF(ISBLANK(InfoPro!F91),"",InfoPro!F91) -> Solar FV | E98: =IF(ISBLANK(InfoPro!I91),"",YEAR(InfoPro!I91)-$G$3) -> 3 | F98: =IF(B98="","",VLOOKUP(D98,Tablas!$B$2:$E$13,2,FALSE)) -> 0.26 | G98: =IF(B98="","",VLOOKUP(D98,Tablas!$B$2:$G$13,6,FALSE)) -> 0 | H98: 683280 | I98: 86969.92824 | J98: 5722004.572 | K98: 5118072.068 | L98: 4577881.993 | M98: 4094706.613 | N98: 3662528.276 | O98: 3275964.469 | P98: 2930200.777 | Q98: 2620930.928 | R98: 2344303.155 | S98: 2096872.232 | T98: 1875556.558 | U98: 1677599.784 | V98: 1500536.479 | W98: 1342161.43 | X98: 1200502.174 | Y98: 1.792420735e+11 | Z98: 597473.5785
A99: =IF(ISBLANK(InfoPro!A92),"",InfoPro!A92) -> SC_2104_A2 | B99: =IF(ISBLANK(InfoPro!B92),"",InfoPro!B92) -> El Dorado - 300 MW | C99: =IF(ISBLANK(InfoPro!E92),"",InfoPro!E92) -> 300 | D99: =IF(ISBLANK(InfoPro!F92),"",InfoPro!F92) -> Solar FV | E99: =IF(ISBLANK(InfoPro!I92),"",YEAR(InfoPro!I92)-$G$3) -> 3 | F99: =IF(B99="","",VLOOKUP(D99,Tablas!$B$2:$E$13,2,FALSE)) -> 0.26 | G99: =IF(B99="","",VLOOKUP(D99,Tablas!$B$2:$G$13,6,FALSE)) -> 0 | H99: 683280 | I99: 86969.92824 | J99: =IF($I99="","",(1/(1+$C$4)^(J$7+$E99))*$I99*$C$5) -> 5722004.572 | K99: 5118072.068 | L99: 4577881.993 | M99: 4094706.613 | N99: 3662528.276 | O99: 3275964.469 | P99: 2930200.777 | Q99: 2620930.928 | R99: 2344303.155 | S99: 2096872.232 | T99: 1875556.558 | U99: 1677599.784 | V99: 1500536.479 | W99: 1342161.43 | X99: 1200502.174 | Y99: 1.792420735e+11 | Z99: 597473.5785
A100: =IF(ISBLANK(InfoPro!A93),"",InfoPro!A93) -> SC_2028_A1 | B100: =IF(ISBLANK(InfoPro!B93),"",InfoPro!B93) -> Parque Solar Fandango | C100: =IF(ISBLANK(InfoPro!E93),"",InfoPro!E93) -> 19.9 | D100: =IF(ISBLANK(InfoPro!F93),"",InfoPro!F93) -> Solar FV | E100: =IF(ISBLANK(InfoPro!I93),"",YEAR(InfoPro!I93)-$G$3) -> 2 | F100: =IF(B100="","",VLOOKUP(D100,Tablas!$B$2:$E$13,2,FALSE)) -> 0.26 | G100: =IF(B100="","",VLOOKUP(D100,Tablas!$B$2:$G$13,6,FALSE)) -> 0 | H100: 45324.24 | I100: 5769.00524 | J100: 424347.6737 | K100: 379559.6366 | L100: 339498.7805 | M100: 303666.1722 | N100: 271615.5386 | O100: 242947.709 | P100: 217305.6431 | Q100: 194369.9849 | R100: 173855.0849 | S100: 155505.4426 | T100: 139092.5247 | U100: 124411.9184 | V100: 111280.7856 | W100: 99535.58645 | X100: 89030.04154 | Y100: 1.329271167e+10 | Z100: 667975.4607
A101: =IF(ISBLANK(InfoPro!A94),"",InfoPro!A94) -> SC_2028_A2 | B101: =IF(ISBLANK(InfoPro!B94),"",InfoPro!B94) -> Parque Solar Fandango | C101: =IF(ISBLANK(InfoPro!E94),"",InfoPro!E94) -> 19.9 | D101: =IF(ISBLANK(InfoPro!F94),"",InfoPro!F94) -> Solar FV | E101: =IF(ISBLANK(InfoPro!I94),"",YEAR(InfoPro!I94)-$G$3) -> 2 | F101: =IF(B101="","",VLOOKUP(D101,Tablas!$B$2:$E$13,2,FALSE)) -> 0.26 | G101: =IF(B101="","",VLOOKUP(D101,Tablas!$B$2:$G$13,6,FALSE)) -> 0 | H101: 45324.24 | I101: 5769.00524 | J101: 424347.6737 | K101: 379559.6366 | L101: 339498.7805 | M101: 303666.1722 | N101: 271615.5386 | O101: 242947.709 | P101: 217305.6431 | Q101: 194369.9849 | R101: 173855.0849 | S101: 155505.4426 | T101: 139092.5247 | U101: 124411.9184 | V101: 111280.7856 | W101: 99535.58645 | X101: 89030.04154 | Y101: 1.329271167e+10 | Z101: 667975.4607
A102: =IF(ISBLANK(InfoPro!A95),"",InfoPro!A95) -> SC_2015_A1 | B102: =IF(ISBLANK(InfoPro!B95),"",InfoPro!B95) -> Parque Solar El Bongo | C102: =IF(ISBLANK(InfoPro!E95),"",InfoPro!E95) -> 19.9 | D102: =IF(ISBLANK(InfoPro!F95),"",InfoPro!F95) -> Solar FV | E102: =IF(ISBLANK(InfoPro!I95),"",YEAR(InfoPro!I95)-$G$3) -> 2 | F102: =IF(B102="","",VLOOKUP(D102,Tablas!$B$2:$E$13,2,FALSE)) -> 0.26 | G102: =IF(B102="","",VLOOKUP(D102,Tablas!$B$2:$G$13,6,FALSE)) -> 0 | H102: 45324.24 | I102: 5769.00524 | J102: 424347.6737 | K102: 379559.6366 | L102: 339498.7805 | M102: 303666.1722 | N102: 271615.5386 | O102: 242947.709 | P102: 217305.6431 | Q102: 194369.9849 | R102: 173855.0849 | S102: 155505.4426 | T102: 139092.5247 | U102: 124411.9184 | V102: 111280.7856 | W102: 99535.58645 | X102: 89030.04154 | Y102: 1.329271167e+10 | Z102: 667975.4607
A103: =IF(ISBLANK(InfoPro!A96),"",InfoPro!A96) -> SC_2015_A2 | B103: =IF(ISBLANK(InfoPro!B96),"",InfoPro!B96) -> Parque Solar El Bongo | C103: =IF(ISBLANK(InfoPro!E96),"",InfoPro!E96) -> 19.9 | D103: =IF(ISBLANK(InfoPro!F96),"",InfoPro!F96) -> Solar FV | E103: =IF(ISBLANK(InfoPro!I96),"",YEAR(InfoPro!I96)-$G$3) -> 2 | F103: =IF(B103="","",VLOOKUP(D103,Tablas!$B$2:$E$13,2,FALSE)) -> 0.26 | G103: =IF(B103="","",VLOOKUP(D103,Tablas!$B$2:$G$13,6,FALSE)) -> 0 | H103: 45324.24 | I103: 5769.00524 | J103: 424347.6737 | K103: 379559.6366 | L103: 339498.7805 | M103: 303666.1722 | N103: 271615.5386 | O103: 242947.709 | P103: 217305.6431 | Q103: 194369.9849 | R103: 173855.0849 | S103: 155505.4426 | T103: 139092.5247 | U103: 124411.9184 | V103: 111280.7856 | W103: 99535.58645 | X103: 89030.04154 | Y103: 1.329271167e+10 | Z103: 667975.4607
A104: =IF(ISBLANK(InfoPro!A97),"",InfoPro!A97) -> SC_2049_A1 | B104: =IF(ISBLANK(InfoPro!B97),"",InfoPro!B97) -> Parque Solar Sinú | C104: =IF(ISBLANK(InfoPro!E97),"",InfoPro!E97) -> 9.9 | D104: =IF(ISBLANK(InfoPro!F97),"",InfoPro!F97) -> Solar FV | E104: =IF(ISBLANK(InfoPro!I97),"",YEAR(InfoPro!I97)-$G$3) -> 2 | F104: =IF(B104="","",VLOOKUP(D104,Tablas!$B$2:$E$13,2,FALSE)) -> 0.26 | G104: =IF(B104="","",VLOOKUP(D104,Tablas!$B$2:$G$13,6,FALSE)) -> 0 | H104: 22548.24 | I104: 2870.007632 | J104: 211107.6367 | K104: 188826.1509 | L104: 168896.3782 | M104: 151070.1058 | N104: 135125.3182 | O104: 120863.4331 | P104: 108106.8275 | Q104: 96696.62564 | R104: 86490.72061 | S104: 77362.00413 | T104: 69196.78365 | U104: 61893.36642 | V104: 55360.79286 | W104: 49517.70381 | X104: 44291.3272 | Y104: 6612957061 | Z104: 667975.4607
A105: =IF(ISBLANK(InfoPro!A98),"",InfoPro!A98) -> SC_2049_A2 | B105: =IF(ISBLANK(InfoPro!B98),"",InfoPro!B98) -> Parque Solar Sinú | C105: =IF(ISBLANK(InfoPro!E98),"",InfoPro!E98) -> 9.9 | D105: =IF(ISBLANK(InfoPro!F98),"",InfoPro!F98) -> Solar FV | E105: =IF(ISBLANK(InfoPro!I98),"",YEAR(InfoPro!I98)-$G$3) -> 2 | F105: =IF(B105="","",VLOOKUP(D105,Tablas!$B$2:$E$13,2,FALSE)) -> 0.26 | G105: =IF(B105="","",VLOOKUP(D105,Tablas!$B$2:$G$13,6,FALSE)) -> 0 | H105: 22548.24 | I105: =IF(H105="","",+H105*($C$3-G105)) -> 2870.007632 | J105: 211107.6367 | K105: 188826.1509 | L105: 168896.3782 | M105: 151070.1058 | N105: 135125.3182 | O105: 120863.4331 | P105: 108106.8275 | Q105: 96696.62564 | R105: 86490.72061 | S105: 77362.00413 | T105: 69196.78365 | U105: 61893.36642 | V105: 55360.79286 | W105: 49517.70381 | X105: 44291.3272 | Y105: 6612957061 | Z105: 667975.4607
A106: =IF(ISBLANK(InfoPro!A99),"",InfoPro!A99) -> SC_2042_A1 | B106: =IF(ISBLANK(InfoPro!B99),"",InfoPro!B99) -> Parque Solar La Uvita | C106: =IF(ISBLANK(InfoPro!E99),"",InfoPro!E99) -> 19.9 | D106: =IF(ISBLANK(InfoPro!F99),"",InfoPro!F99) -> Solar FV | E106: =IF(ISBLANK(InfoPro!I99),"",YEAR(InfoPro!I99)-$G$3) -> 2 | F106: =IF(B106="","",VLOOKUP(D106,Tablas!$B$2:$E$13,2,FALSE)) -> 0.26 | G106: =IF(B106="","",VLOOKUP(D106,Tablas!$B$2:$G$13,6,FALSE)) -> 0 | H106: 45324.24 | I106: 5769.00524 | J106: 424347.6737 | K106: 379559.6366 | L106: 339498.7805 | M106: 303666.1722 | N106: 271615.5386 | O106: 242947.709 | P106: 217305.6431 | Q106: 194369.9849 | R106: 173855.0849 | S106: 155505.4426 | T106: 139092.5247 | U106: 124411.9184 | V106: 111280.7856 | W106: 99535.58645 | X106: 89030.04154 | Y106: 1.329271167e+10 | Z106: 667975.4607
A107: =IF(ISBLANK(InfoPro!A100),"",InfoPro!A100) -> SC_2042_A2 | B107: =IF(ISBLANK(InfoPro!B100),"",InfoPro!B100) -> Parque Solar La Uvita | C107: =IF(ISBLANK(InfoPro!E100),"",InfoPro!E100) -> 19.9 | D107: =IF(ISBLANK(InfoPro!F100),"",InfoPro!F100) -> Solar FV | E107: =IF(ISBLANK(InfoPro!I100),"",YEAR(InfoPro!I100)-$G$3) -> 2 | F107: =IF(B107="","",VLOOKUP(D107,Tablas!$B$2:$E$13,2,FALSE)) -> 0.26 | G107: =IF(B107="","",VLOOKUP(D107,Tablas!$B$2:$G$13,6,FALSE)) -> 0 | H107: 45324.24 | I107: 5769.00524 | J107: 424347.6737 | K107: 379559.6366 | L107: 339498.7805 | M107: 303666.1722 | N107: 271615.5386 | O107: 242947.709 | P107: 217305.6431 | Q107: 194369.9849 | R107: 173855.0849 | S107: 155505.4426 | T107: 139092.5247 | U107: 124411.9184 | V107: 111280.7856 | W107: 99535.58645 | X107: 89030.04154 | Y107: 1.329271167e+10 | Z107: 667975.4607
A108: =IF(ISBLANK(InfoPro!A101),"",InfoPro!A101) -> SC_2111_A1 | B108: =IF(ISBLANK(InfoPro!B101),"",InfoPro!B101) -> PROYECTO QUIMARÍ SOLAR_90MW | C108: =IF(ISBLANK(InfoPro!E101),"",InfoPro!E101) -> 90 | D108: =IF(ISBLANK(InfoPro!F101),"",InfoPro!F101) -> Solar FV | E108: =IF(ISBLANK(InfoPro!I101),"",YEAR(InfoPro!I101)-$G$3) -> 2 | F108: =IF(B108="","",VLOOKUP(D108,Tablas!$B$2:$E$13,2,FALSE)) -> 0.26 | G108: =IF(B108="","",VLOOKUP(D108,Tablas!$B$2:$G$13,6,FALSE)) -> 0 | H108: 204984 | I108: 26090.97847 | J108: 1919160.334 | K108: 1716601.372 | L108: 1535421.62 | M108: 1373364.598 | N108: 1228411.984 | O108: 1098758.483 | P108: 982789.3406 | Q108: 879060.2331 | R108: 786279.2783 | S108: 703290.9466 | T108: 629061.6696 | U108: 562666.9674 | V108: 503279.9351 | W108: 450160.9437 | X108: 402648.4291 | Y108: 6.011779146e+10 | Z108: 667975.4607
A109: =IF(ISBLANK(InfoPro!A102),"",InfoPro!A102) -> SC_2111_A2 | B109: =IF(ISBLANK(InfoPro!B102),"",InfoPro!B102) -> PROYECTO QUIMARÍ SOLAR_90MW | C109: =IF(ISBLANK(InfoPro!E102),"",InfoPro!E102) -> 90 | D109: =IF(ISBLANK(InfoPro!F102),"",InfoPro!F102) -> Solar FV | E109: =IF(ISBLANK(InfoPro!I102),"",YEAR(InfoPro!I102)-$G$3) -> 2 | F109: =IF(B109="","",VLOOKUP(D109,Tablas!$B$2:$E$13,2,FALSE)) -> 0.26 | G109: =IF(B109="","",VLOOKUP(D109,Tablas!$B$2:$G$13,6,FALSE)) -> 0 | H109: =IF(C109="","",+C109*F109*24*365) -> 204984 | I109: =IF(H109="","",+H109*($C$3-G109)) -> 26090.97847 | J109: 1919160.334 | K109: 1716601.372 | L109: 1535421.62 | M109: 1373364.598 | N109: 1228411.984 | O109: 1098758.483 | P109: 982789.3406 | Q109: 879060.2331 | R109: 786279.2783 | S109: 703290.9466 | T109: 629061.6696 | U109: 562666.9674 | V109: 503279.9351 | W109: 450160.9437 | X109: 402648.4291 | Y109: =IF(X109="","",SUM(J109:X109)*$C$6) -> 6.011779146e+10 | Z109: =IF(C109=0,0,IF(Y109="","",Y109/(C109*1000))) -> 667975.4607
A110: =IF(ISBLANK(InfoPro!A103),"",InfoPro!A103) -> SC_2173_A1 | B110: =IF(ISBLANK(InfoPro!B103),"",InfoPro!B103) -> Nueva Montería Solar I 9,9 MW | C110: =IF(ISBLANK(InfoPro!E103),"",InfoPro!E103) -> 9.9 | D110: =IF(ISBLANK(InfoPro!F103),"",InfoPro!F103) -> Solar FV | E110: =IF(ISBLANK(InfoPro!I103),"",YEAR(InfoPro!I103)-$G$3) -> 2 | F110: =IF(B110="","",VLOOKUP(D110,Tablas!$B$2:$E$13,2,FALSE)) -> 0.26 | G110: =IF(B110="","",VLOOKUP(D110,Tablas!$B$2:$G$13,6,FALSE)) -> 0 | H110: 22548.24 | I110: 2870.007632 | J110: 211107.6367 | K110: 188826.1509 | L110: 168896.3782 | M110: 151070.1058 | N110: 135125.3182 | O110: 120863.4331 | P110: 108106.8275 | Q110: 96696.62564 | R110: 86490.72061 | S110: 77362.00413 | T110: 69196.78365 | U110: 61893.36642 | V110: 55360.79286 | W110: 49517.70381 | X110: 44291.3272 | Y110: 6612957061 | Z110: 667975.4607
A111: =IF(ISBLANK(InfoPro!A104),"",InfoPro!A104) -> SC_2173_A2 | B111: =IF(ISBLANK(InfoPro!B104),"",InfoPro!B104) -> Nueva Montería Solar I 9,9 MW | C111: =IF(ISBLANK(InfoPro!E104),"",InfoPro!E104) -> 9.9 | D111: =IF(ISBLANK(InfoPro!F104),"",InfoPro!F104) -> Solar FV | E111: =IF(ISBLANK(InfoPro!I104),"",YEAR(InfoPro!I104)-$G$3) -> 2 | F111: =IF(B111="","",VLOOKUP(D111,Tablas!$B$2:$E$13,2,FALSE)) -> 0.26 | G111: =IF(B111="","",VLOOKUP(D111,Tablas!$B$2:$G$13,6,FALSE)) -> 0 | H111: =IF(C111="","",+C111*F111*24*365) -> 22548.24 | I111: =IF(H111="","",+H111*($C$3-G111)) -> 2870.007632 | J111: 211107.6367 | K111: 188826.1509 | L111: 168896.3782 | M111: 151070.1058 | N111: 135125.3182 | O111: 120863.4331 | P111: 108106.8275 | Q111: 96696.62564 | R111: 86490.72061 | S111: 77362.00413 | T111: 69196.78365 | U111: 61893.36642 | V111: 55360.79286 | W111: 49517.70381 | X111: 44291.3272 | Y111: =IF(X111="","",SUM(J111:X111)*$C$6) -> 6612957061 | Z111: =IF(C111=0,0,IF(Y111="","",Y111/(C111*1000))) -> 667975.4607
A112: =IF(ISBLANK(InfoPro!A105),"",InfoPro!A105) -> SC_2174_A1 | B112: =IF(ISBLANK(InfoPro!B105),"",InfoPro!B105) -> Nueva Montería Solar I 9,9 MW | C112: =IF(ISBLANK(InfoPro!E105),"",InfoPro!E105) -> 9.9 | D112: =IF(ISBLANK(InfoPro!F105),"",InfoPro!F105) -> Solar FV | E112: =IF(ISBLANK(InfoPro!I105),"",YEAR(InfoPro!I105)-$G$3) -> 2 | F112: =IF(B112="","",VLOOKUP(D112,Tablas!$B$2:$E$13,2,FALSE)) -> 0.26 | G112: =IF(B112="","",VLOOKUP(D112,Tablas!$B$2:$G$13,6,FALSE)) -> 0 | H112: 22548.24 | I112: 2870.007632 | J112: 211107.6367 | K112: 188826.1509 | L112: 168896.3782 | M112: 151070.1058 | N112: 135125.3182 | O112: 120863.4331 | P112: 108106.8275 | Q112: 96696.62564 | R112: 86490.72061 | S112: 77362.00413 | T112: 69196.78365 | U112: 61893.36642 | V112: 55360.79286 | W112: 49517.70381 | X112: 44291.3272 | Y112: 6612957061 | Z112: 667975.4607
A113: =IF(ISBLANK(InfoPro!A106),"",InfoPro!A106) -> SC_2174_A2 | B113: =IF(ISBLANK(InfoPro!B106),"",InfoPro!B106) -> Nueva Montería Solar I 9,9 MW | C113: =IF(ISBLANK(InfoPro!E106),"",InfoPro!E106) -> 9.9 | D113: =IF(ISBLANK(InfoPro!F106),"",InfoPro!F106) -> Solar FV | E113: =IF(ISBLANK(InfoPro!I106),"",YEAR(InfoPro!I106)-$G$3) -> 2 | F113: =IF(B113="","",VLOOKUP(D113,Tablas!$B$2:$E$13,2,FALSE)) -> 0.26 | G113: =IF(B113="","",VLOOKUP(D113,Tablas!$B$2:$G$13,6,FALSE)) -> 0 | H113: 22548.24 | I113: 2870.007632 | J113: 211107.6367 | K113: 188826.1509 | L113: 168896.3782 | M113: 151070.1058 | N113: 135125.3182 | O113: 120863.4331 | P113: 108106.8275 | Q113: 96696.62564 | R113: 86490.72061 | S113: 77362.00413 | T113: 69196.78365 | U113: 61893.36642 | V113: 55360.79286 | W113: 49517.70381 | X113: 44291.3272 | Y113: 6612957061 | Z113: 667975.4607
A114: =IF(ISBLANK(InfoPro!A107),"",InfoPro!A107) -> SC_2016_A1 | B114: =IF(ISBLANK(InfoPro!B107),"",InfoPro!B107) -> Hidalgo Solar 80 MW | C114: =IF(ISBLANK(InfoPro!E107),"",InfoPro!E107) -> 80 | D114: =IF(ISBLANK(InfoPro!F107),"",InfoPro!F107) -> Solar FV | E114: =IF(ISBLANK(InfoPro!I107),"",YEAR(InfoPro!I107)-$G$3) -> 2 | F114: =IF(B114="","",VLOOKUP(D114,Tablas!$B$2:$E$13,2,FALSE)) -> 0.26 | G114: =IF(B114="","",VLOOKUP(D114,Tablas!$B$2:$G$13,6,FALSE)) -> 0 | H114: 182208 | I114: 23191.98086 | J114: 1705920.296 | K114: 1525867.886 | L114: 1364819.218 | M114: 1220768.531 | N114: 1091921.763 | O114: 976674.207 | P114: 873590.525 | Q114: 781386.8739 | R114: 698914.914 | S114: 625147.5081 | T114: 559165.9285 | U114: 500148.4155 | V114: 447359.9423 | W114: 400143.0611 | X114: 357909.7147 | Y114: 5.343803686e+10 | Z114: 667975.4607
A115: =IF(ISBLANK(InfoPro!A108),"",InfoPro!A108) -> SC_2016_A2 | B115: =IF(ISBLANK(InfoPro!B108),"",InfoPro!B108) -> Hidalgo Solar 80 MW | C115: =IF(ISBLANK(InfoPro!E108),"",InfoPro!E108) -> 80 | D115: =IF(ISBLANK(InfoPro!F108),"",InfoPro!F108) -> Solar FV | E115: =IF(ISBLANK(InfoPro!I108),"",YEAR(InfoPro!I108)-$G$3) -> 2 | F115: =IF(B115="","",VLOOKUP(D115,Tablas!$B$2:$E$13,2,FALSE)) -> 0.26 | G115: =IF(B115="","",VLOOKUP(D115,Tablas!$B$2:$G$13,6,FALSE)) -> 0 | H115: 182208 | I115: 23191.98086 | J115: =IF($I115="","",(1/(1+$C$4)^(J$7+$E115))*$I115*$C$5) -> 1705920.296 | K115: 1525867.886 | L115: 1364819.218 | M115: 1220768.531 | N115: 1091921.763 | O115: 976674.207 | P115: 873590.525 | Q115: 781386.8739 | R115: 698914.914 | S115: 625147.5081 | T115: 559165.9285 | U115: 500148.4155 | V115: 447359.9423 | W115: 400143.0611 | X115: 357909.7147 | Y115: 5.343803686e+10 | Z115: 667975.4607
A116: =IF(ISBLANK(InfoPro!A109),"",InfoPro!A109) -> SC_2016_A3 | B116: =IF(ISBLANK(InfoPro!B109),"",InfoPro!B109) -> Hidalgo Solar 80 MW | C116: =IF(ISBLANK(InfoPro!E109),"",InfoPro!E109) -> 80 | D116: =IF(ISBLANK(InfoPro!F109),"",InfoPro!F109) -> Solar FV | E116: =IF(ISBLANK(InfoPro!I109),"",YEAR(InfoPro!I109)-$G$3) -> 2 | F116: =IF(B116="","",VLOOKUP(D116,Tablas!$B$2:$E$13,2,FALSE)) -> 0.26 | G116: =IF(B116="","",VLOOKUP(D116,Tablas!$B$2:$G$13,6,FALSE)) -> 0 | H116: 182208 | I116: 23191.98086 | J116: 1705920.296 | K116: 1525867.886 | L116: 1364819.218 | M116: 1220768.531 | N116: 1091921.763 | O116: 976674.207 | P116: 873590.525 | Q116: 781386.8739 | R116: 698914.914 | S116: 625147.5081 | T116: 559165.9285 | U116: 500148.4155 | V116: 447359.9423 | W116: 400143.0611 | X116: 357909.7147 | Y116: 5.343803686e+10 | Z116: 667975.4607
A117: =IF(ISBLANK(InfoPro!A110),"",InfoPro!A110) -> SC_2135_A1 | B117: =IF(ISBLANK(InfoPro!B110),"",InfoPro!B110) -> DSE SIERRAFLOR | C117: =IF(ISBLANK(InfoPro!E110),"",InfoPro!E110) -> 99.9 | D117: =IF(ISBLANK(InfoPro!F110),"",InfoPro!F110) -> Solar FV | E117: =IF(ISBLANK(InfoPro!I110),"",YEAR(InfoPro!I110)-$G$3) -> 3 | F117: =IF(B117="","",VLOOKUP(D117,Tablas!$B$2:$E$13,2,FALSE)) -> 0.26 | G117: =IF(B117="","",VLOOKUP(D117,Tablas!$B$2:$G$13,6,FALSE)) -> 0 | H117: 227532.24 | I117: 28960.9861 | J117: 1905427.523 | K117: 1704317.999 | L117: 1524434.704 | M117: 1363537.302 | N117: 1219621.916 | O117: 1090896.168 | P117: 975756.8588 | Q117: 872769.9989 | R117: 780652.9507 | S117: 698258.4532 | T117: 624560.3338 | U117: 558640.7279 | V117: 499678.6475 | W117: 446939.7563 | X117: 399767.2239 | Y117: 5.968761049e+10 | Z117: 597473.5785
A118: =IF(ISBLANK(InfoPro!A111),"",InfoPro!A111) -> SC_2135_A2 | B118: =IF(ISBLANK(InfoPro!B111),"",InfoPro!B111) -> DSE SIERRAFLOR | C118: =IF(ISBLANK(InfoPro!E111),"",InfoPro!E111) -> 99.9 | D118: =IF(ISBLANK(InfoPro!F111),"",InfoPro!F111) -> Solar FV | E118: =IF(ISBLANK(InfoPro!I111),"",YEAR(InfoPro!I111)-$G$3) -> 3 | F118: =IF(B118="","",VLOOKUP(D118,Tablas!$B$2:$E$13,2,FALSE)) -> 0.26 | G118: =IF(B118="","",VLOOKUP(D118,Tablas!$B$2:$G$13,6,FALSE)) -> 0 | H118: 227532.24 | I118: 28960.9861 | J118: 1905427.523 | K118: 1704317.999 | L118: 1524434.704 | M118: 1363537.302 | N118: 1219621.916 | O118: 1090896.168 | P118: 975756.8588 | Q118: 872769.9989 | R118: 780652.9507 | S118: 698258.4532 | T118: 624560.3338 | U118: 558640.7279 | V118: 499678.6475 | W118: 446939.7563 | X118: 399767.2239 | Y118: 5.968761049e+10 | Z118: 597473.5785
A119: =IF(ISBLANK(InfoPro!A112),"",InfoPro!A112) -> SC_1821_A1 | B119: =IF(ISBLANK(InfoPro!B112),"",InfoPro!B112) -> Balay Solar | C119: =IF(ISBLANK(InfoPro!E112),"",InfoPro!E112) -> 70 | D119: =IF(ISBLANK(InfoPro!F112),"",InfoPro!F112) -> Solar FV | E119: =IF(ISBLANK(InfoPro!I112),"",YEAR(InfoPro!I112)-$G$3) -> 4 | F119: =IF(B119="","",VLOOKUP(D119,Tablas!$B$2:$E$13,2,FALSE)) -> 0.26 | G119: =IF(B119="","",VLOOKUP(D119,Tablas!$B$2:$G$13,6,FALSE)) -> 0 | H119: 159432 | I119: 20292.98326 | J119: 1194216.816 | K119: 1068172.465 | L119: 955431.543 | M119: 854589.9311 | N119: 764391.7094 | O119: 683713.5147 | P119: 611550.5498 | Q119: 547004.0696 | R119: 489270.1875 | S119: 437629.8636 | T119: 391439.9495 | U119: 350125.1785 | V119: 313171.0004 | W119: 280117.1739 | X119: 250552.0339 | Y119: 3.740890026e+10 | Z119: 534412.8609
A120: =IF(ISBLANK(InfoPro!A113),"",InfoPro!A113) -> SC_1821_A2 | B120: =IF(ISBLANK(InfoPro!B113),"",InfoPro!B113) -> Balay Solar | C120: =IF(ISBLANK(InfoPro!E113),"",InfoPro!E113) -> 70 | D120: =IF(ISBLANK(InfoPro!F113),"",InfoPro!F113) -> Solar FV | E120: =IF(ISBLANK(InfoPro!I113),"",YEAR(InfoPro!I113)-$G$3) -> 4 | F120: =IF(B120="","",VLOOKUP(D120,Tablas!$B$2:$E$13,2,FALSE)) -> 0.26 | G120: =IF(B120="","",VLOOKUP(D120,Tablas!$B$2:$G$13,6,FALSE)) -> 0 | H120: 159432 | I120: 20292.98326 | J120: 1194216.816 | K120: 1068172.465 | L120: 955431.543 | M120: 854589.9311 | N120: 764391.7094 | O120: 683713.5147 | P120: 611550.5498 | Q120: 547004.0696 | R120: 489270.1875 | S120: 437629.8636 | T120: 391439.9495 | U120: 350125.1785 | V120: 313171.0004 | W120: 280117.1739 | X120: 250552.0339 | Y120: 3.740890026e+10 | Z120: 534412.8609
A121: =IF(ISBLANK(InfoPro!A114),"",InfoPro!A114) -> SC_1859_A1 | B121: =IF(ISBLANK(InfoPro!B114),"",InfoPro!B114) -> PV Altamira_99MW | C121: =IF(ISBLANK(InfoPro!E114),"",InfoPro!E114) -> 99 | D121: =IF(ISBLANK(InfoPro!F114),"",InfoPro!F114) -> Solar FV | E121: =IF(ISBLANK(InfoPro!I114),"",YEAR(InfoPro!I114)-$G$3) -> 4 | F121: =IF(B121="","",VLOOKUP(D121,Tablas!$B$2:$E$13,2,FALSE)) -> 0.26 | G121: =IF(B121="","",VLOOKUP(D121,Tablas!$B$2:$G$13,6,FALSE)) -> 0 | H121: 225482.4 | I121: 28700.07632 | J121: 1688963.782 | K121: 1510701.058 | L121: 1351253.182 | M121: 1208634.331 | N121: 1081068.275 | O121: 966966.2564 | P121: 864907.2061 | Q121: 773620.0413 | R121: 691967.8365 | S121: 618933.6642 | T121: 553607.9286 | U121: 495177.0381 | V121: 442913.272 | W121: 396165.7174 | X121: 354352.1622 | Y121: 5.290687323e+10 | Z121: 534412.8609
A122: =IF(ISBLANK(InfoPro!A115),"",InfoPro!A115) -> SC_1859_A2 | B122: =IF(ISBLANK(InfoPro!B115),"",InfoPro!B115) -> PV Altamira_99MW | C122: =IF(ISBLANK(InfoPro!E115),"",InfoPro!E115) -> 99 | D122: =IF(ISBLANK(InfoPro!F115),"",InfoPro!F115) -> Solar FV | E122: =IF(ISBLANK(InfoPro!I115),"",YEAR(InfoPro!I115)-$G$3) -> 4 | F122: =IF(B122="","",VLOOKUP(D122,Tablas!$B$2:$E$13,2,FALSE)) -> 0.26 | G122: =IF(B122="","",VLOOKUP(D122,Tablas!$B$2:$G$13,6,FALSE)) -> 0 | H122: 225482.4 | I122: 28700.07632 | J122: 1688963.782 | K122: 1510701.058 | L122: 1351253.182 | M122: 1208634.331 | N122: 1081068.275 | O122: 966966.2564 | P122: 864907.2061 | Q122: 773620.0413 | R122: 691967.8365 | S122: 618933.6642 | T122: 553607.9286 | U122: 495177.0381 | V122: 442913.272 | W122: 396165.7174 | X122: 354352.1622 | Y122: 5.290687323e+10 | Z122: 534412.8609
A123: =IF(ISBLANK(InfoPro!A116),"",InfoPro!A116) -> SC_1843_A1 | B123: =IF(ISBLANK(InfoPro!B116),"",InfoPro!B116) -> KOS de 19.9 MW | C123: =IF(ISBLANK(InfoPro!E116),"",InfoPro!E116) -> 19.9 | D123: =IF(ISBLANK(InfoPro!F116),"",InfoPro!F116) -> Solar FV | E123: =IF(ISBLANK(InfoPro!I116),"",YEAR(InfoPro!I116)-$G$3) -> 2 | F123: =IF(B123="","",VLOOKUP(D123,Tablas!$B$2:$E$13,2,FALSE)) -> 0.26 | G123: =IF(B123="","",VLOOKUP(D123,Tablas!$B$2:$G$13,6,FALSE)) -> 0 | H123: 45324.24 | I123: 5769.00524 | J123: 424347.6737 | K123: 379559.6366 | L123: 339498.7805 | M123: 303666.1722 | N123: 271615.5386 | O123: 242947.709 | P123: 217305.6431 | Q123: 194369.9849 | R123: 173855.0849 | S123: 155505.4426 | T123: 139092.5247 | U123: 124411.9184 | V123: 111280.7856 | W123: 99535.58645 | X123: 89030.04154 | Y123: 1.329271167e+10 | Z123: 667975.4607
A124: =IF(ISBLANK(InfoPro!A117),"",InfoPro!A117) -> SC_1843_A2 | B124: =IF(ISBLANK(InfoPro!B117),"",InfoPro!B117) -> KOS de 19.9 MW | C124: =IF(ISBLANK(InfoPro!E117),"",InfoPro!E117) -> 19.9 | D124: =IF(ISBLANK(InfoPro!F117),"",InfoPro!F117) -> Solar FV | E124: =IF(ISBLANK(InfoPro!I117),"",YEAR(InfoPro!I117)-$G$3) -> 2 | F124: =IF(B124="","",VLOOKUP(D124,Tablas!$B$2:$E$13,2,FALSE)) -> 0.26 | G124: =IF(B124="","",VLOOKUP(D124,Tablas!$B$2:$G$13,6,FALSE)) -> 0 | H124: 45324.24 | I124: 5769.00524 | J124: 424347.6737 | K124: 379559.6366 | L124: 339498.7805 | M124: 303666.1722 | N124: 271615.5386 | O124: 242947.709 | P124: 217305.6431 | Q124: 194369.9849 | R124: 173855.0849 | S124: 155505.4426 | T124: 139092.5247 | U124: 124411.9184 | V124: 111280.7856 | W124: 99535.58645 | X124: 89030.04154 | Y124: 1.329271167e+10 | Z124: 667975.4607
A125: =IF(ISBLANK(InfoPro!A118),"",InfoPro!A118) -> SC_2012_A1 | B125: =IF(ISBLANK(InfoPro!B118),"",InfoPro!B118) -> Parqu Solar Fotovoltaico Rocio del Sol 50 MW | C125: =IF(ISBLANK(InfoPro!E118),"",InfoPro!E118) -> 50 | D125: =IF(ISBLANK(InfoPro!F118),"",InfoPro!F118) -> Solar FV | E125: =IF(ISBLANK(InfoPro!I118),"",YEAR(InfoPro!I118)-$G$3) -> 3 | F125: =IF(B125="","",VLOOKUP(D125,Tablas!$B$2:$E$13,2,FALSE)) -> 0.26 | G125: =IF(B125="","",VLOOKUP(D125,Tablas!$B$2:$G$13,6,FALSE)) -> 0 | H125: 113880 | I125: 14494.98804 | J125: 953667.4287 | K125: 853012.0114 | L125: 762980.3322 | M125: 682451.1021 | N125: 610421.3794 | O125: 545994.0781 | P125: 488366.7962 | Q125: 436821.8213 | R125: 390717.1926 | S125: 349478.7053 | T125: 312592.7597 | U125: 279599.9639 | V125: 250089.4132 | W125: 223693.5717 | X125: 200083.6956 | Y125: 2.987367892e+10 | Z125: 597473.5785
A126: =IF(ISBLANK(InfoPro!A119),"",InfoPro!A119) -> SC_2012_A2 | B126: =IF(ISBLANK(InfoPro!B119),"",InfoPro!B119) -> Parqu Solar Fotovoltaico Rocio del Sol 50 MW | C126: =IF(ISBLANK(InfoPro!E119),"",InfoPro!E119) -> 50 | D126: =IF(ISBLANK(InfoPro!F119),"",InfoPro!F119) -> Solar FV | E126: =IF(ISBLANK(InfoPro!I119),"",YEAR(InfoPro!I119)-$G$3) -> 3 | F126: =IF(B126="","",VLOOKUP(D126,Tablas!$B$2:$E$13,2,FALSE)) -> 0.26 | G126: =IF(B126="","",VLOOKUP(D126,Tablas!$B$2:$G$13,6,FALSE)) -> 0 | H126: 113880 | I126: 14494.98804 | J126: 953667.4287 | K126: 853012.0114 | L126: 762980.3322 | M126: 682451.1021 | N126: 610421.3794 | O126: 545994.0781 | P126: 488366.7962 | Q126: 436821.8213 | R126: 390717.1926 | S126: 349478.7053 | T126: 312592.7597 | U126: 279599.9639 | V126: 250089.4132 | W126: 223693.5717 | X126: 200083.6956 | Y126: 2.987367892e+10 | Z126: 597473.5785
A127: =IF(ISBLANK(InfoPro!A120),"",InfoPro!A120) -> SC_1807_A1 | B127: =IF(ISBLANK(InfoPro!B120),"",InfoPro!B120) -> Parque Solar Canis 49,9 MW | C127: =IF(ISBLANK(InfoPro!E120),"",InfoPro!E120) -> 49.9 | D127: =IF(ISBLANK(InfoPro!F120),"",InfoPro!F120) -> Solar FV | E127: =IF(ISBLANK(InfoPro!I120),"",YEAR(InfoPro!I120)-$G$3) -> 2 | F127: =IF(B127="","",VLOOKUP(D127,Tablas!$B$2:$E$13,2,FALSE)) -> 0.26 | G127: =IF(B127="","",VLOOKUP(D127,Tablas!$B$2:$G$13,6,FALSE)) -> 0 | H127: 113652.24 | I127: 14465.99806 | J127: 1064067.785 | K127: 951760.0938 | L127: 851305.9873 | M127: 761454.3715 | N127: 681086.1999 | O127: 609200.5366 | P127: 544902.09 | Q127: 487390.0626 | R127: 435948.1776 | S127: 389935.7582 | T127: 348779.7479 | U127: 311967.5742 | V127: 279040.764 | W127: 249589.2344 | X127: 223246.1846 | Y127: 3.333197549e+10 | Z127: 667975.4607
A128: =IF(ISBLANK(InfoPro!A121),"",InfoPro!A121) -> SC_1807_A2 | B128: =IF(ISBLANK(InfoPro!B121),"",InfoPro!B121) -> Parque Solar Canis 49,9 MW | C128: =IF(ISBLANK(InfoPro!E121),"",InfoPro!E121) -> 49.9 | D128: =IF(ISBLANK(InfoPro!F121),"",InfoPro!F121) -> Solar FV | E128: =IF(ISBLANK(InfoPro!I121),"",YEAR(InfoPro!I121)-$G$3) -> 2 | F128: =IF(B128="","",VLOOKUP(D128,Tablas!$B$2:$E$13,2,FALSE)) -> 0.26 | G128: =IF(B128="","",VLOOKUP(D128,Tablas!$B$2:$G$13,6,FALSE)) -> 0 | H128: 113652.24 | I128: 14465.99806 | J128: 1064067.785 | K128: 951760.0938 | L128: 851305.9873 | M128: 761454.3715 | N128: 681086.1999 | O128: 609200.5366 | P128: 544902.09 | Q128: 487390.0626 | R128: 435948.1776 | S128: 389935.7582 | T128: 348779.7479 | U128: 311967.5742 | V128: 279040.764 | W128: 249589.2344 | X128: 223246.1846 | Y128: 3.333197549e+10 | Z128: 667975.4607
A129: =IF(ISBLANK(InfoPro!A122),"",InfoPro!A122) -> SC_1918_A1 | B129: =IF(ISBLANK(InfoPro!B122),"",InfoPro!B122) -> Casiopea 40 MW | C129: =IF(ISBLANK(InfoPro!E122),"",InfoPro!E122) -> 40 | D129: =IF(ISBLANK(InfoPro!F122),"",InfoPro!F122) -> Solar FV | E129: =IF(ISBLANK(InfoPro!I122),"",YEAR(InfoPro!I122)-$G$3) -> 2 | F129: =IF(B129="","",VLOOKUP(D129,Tablas!$B$2:$E$13,2,FALSE)) -> 0.26 | G129: =IF(B129="","",VLOOKUP(D129,Tablas!$B$2:$G$13,6,FALSE)) -> 0 | H129: 91104 | I129: 11595.99043 | J129: 852960.1482 | K129: 762933.943 | L129: 682409.6091 | M129: 610384.2657 | N129: 545960.8817 | O129: 488337.1035 | P129: 436795.2625 | Q129: 390693.4369 | R129: 349457.457 | S129: 312573.754 | T129: 279582.9643 | U129: 250074.2077 | V129: 223679.9711 | W129: 200071.5305 | X129: 178954.8574 | Y129: 2.671901843e+10 | Z129: 667975.4607
A130: =IF(ISBLANK(InfoPro!A123),"",InfoPro!A123) -> SC_1918_A2 | B130: =IF(ISBLANK(InfoPro!B123),"",InfoPro!B123) -> Casiopea 40 MW | C130: =IF(ISBLANK(InfoPro!E123),"",InfoPro!E123) -> 40 | D130: =IF(ISBLANK(InfoPro!F123),"",InfoPro!F123) -> Solar FV | E130: =IF(ISBLANK(InfoPro!I123),"",YEAR(InfoPro!I123)-$G$3) -> 2 | F130: =IF(B130="","",VLOOKUP(D130,Tablas!$B$2:$E$13,2,FALSE)) -> 0.26 | G130: =IF(B130="","",VLOOKUP(D130,Tablas!$B$2:$G$13,6,FALSE)) -> 0 | H130: 91104 | I130: 11595.99043 | J130: 852960.1482 | K130: 762933.943 | L130: 682409.6091 | M130: 610384.2657 | N130: 545960.8817 | O130: 488337.1035 | P130: 436795.2625 | Q130: 390693.4369 | R130: 349457.457 | S130: 312573.754 | T130: 279582.9643 | U130: 250074.2077 | V130: 223679.9711 | W130: 200071.5305 | X130: 178954.8574 | Y130: 2.671901843e+10 | Z130: 667975.4607
A131: =IF(ISBLANK(InfoPro!A124),"",InfoPro!A124) -> SC_1813_A1 | B131: =IF(ISBLANK(InfoPro!B124),"",InfoPro!B124) -> Parque de generación Cefeo | C131: =IF(ISBLANK(InfoPro!E124),"",InfoPro!E124) -> 19.9 | D131: =IF(ISBLANK(InfoPro!F124),"",InfoPro!F124) -> Solar FV | E131: =IF(ISBLANK(InfoPro!I124),"",YEAR(InfoPro!I124)-$G$3) -> 2 | F131: =IF(B131="","",VLOOKUP(D131,Tablas!$B$2:$E$13,2,FALSE)) -> 0.26 | G131: =IF(B131="","",VLOOKUP(D131,Tablas!$B$2:$G$13,6,FALSE)) -> 0 | H131: 45324.24 | I131: 5769.00524 | J131: 424347.6737 | K131: 379559.6366 | L131: 339498.7805 | M131: 303666.1722 | N131: 271615.5386 | O131: 242947.709 | P131: 217305.6431 | Q131: 194369.9849 | R131: 173855.0849 | S131: 155505.4426 | T131: 139092.5247 | U131: 124411.9184 | V131: 111280.7856 | W131: 99535.58645 | X131: 89030.04154 | Y131: 1.329271167e+10 | Z131: 667975.4607
A132: =IF(ISBLANK(InfoPro!A125),"",InfoPro!A125) -> SC_1813_A2 | B132: =IF(ISBLANK(InfoPro!B125),"",InfoPro!B125) -> Parque de generación Cefeo | C132: =IF(ISBLANK(InfoPro!E125),"",InfoPro!E125) -> 19.9 | D132: =IF(ISBLANK(InfoPro!F125),"",InfoPro!F125) -> Solar FV | E132: =IF(ISBLANK(InfoPro!I125),"",YEAR(InfoPro!I125)-$G$3) -> 2 | F132: =IF(B132="","",VLOOKUP(D132,Tablas!$B$2:$E$13,2,FALSE)) -> 0.26 | G132: =IF(B132="","",VLOOKUP(D132,Tablas!$B$2:$G$13,6,FALSE)) -> 0 | H132: 45324.24 | I132: 5769.00524 | J132: =IF($I132="","",(1/(1+$C$4)^(J$7+$E132))*$I132*$C$5) -> 424347.6737 | K132: 379559.6366 | L132: 339498.7805 | M132: 303666.1722 | N132: 271615.5386 | O132: 242947.709 | P132: 217305.6431 | Q132: 194369.9849 | R132: 173855.0849 | S132: 155505.4426 | T132: 139092.5247 | U132: 124411.9184 | V132: 111280.7856 | W132: 99535.58645 | X132: 89030.04154 | Y132: 1.329271167e+10 | Z132: 667975.4607
A133: =IF(ISBLANK(InfoPro!A126),"",InfoPro!A126) -> SC_1949_A1 | B133: =IF(ISBLANK(InfoPro!B126),"",InfoPro!B126) -> Solar Planeta Rica | C133: =IF(ISBLANK(InfoPro!E126),"",InfoPro!E126) -> 19.9 | D133: =IF(ISBLANK(InfoPro!F126),"",InfoPro!F126) -> Solar FV | E133: =IF(ISBLANK(InfoPro!I126),"",YEAR(InfoPro!I126)-$G$3) -> 3 | F133: =IF(B133="","",VLOOKUP(D133,Tablas!$B$2:$E$13,2,FALSE)) -> 0.26 | G133: =IF(B133="","",VLOOKUP(D133,Tablas!$B$2:$G$13,6,FALSE)) -> 0 | H133: 45324.24 | I133: 5769.00524 | J133: 379559.6366 | K133: 339498.7805 | L133: 303666.1722 | M133: 271615.5386 | N133: 242947.709 | O133: 217305.6431 | P133: 194369.9849 | Q133: 173855.0849 | R133: 155505.4426 | S133: 139092.5247 | T133: 124411.9184 | U133: 111280.7856 | V133: 99535.58645 | W133: 89030.04154 | X133: 79633.31086 | Y133: 1.188972421e+10 | Z133: 597473.5785
A134: =IF(ISBLANK(InfoPro!A127),"",InfoPro!A127) -> SC_1949_A2 | B134: =IF(ISBLANK(InfoPro!B127),"",InfoPro!B127) -> Solar Planeta Rica | C134: =IF(ISBLANK(InfoPro!E127),"",InfoPro!E127) -> 19.9 | D134: =IF(ISBLANK(InfoPro!F127),"",InfoPro!F127) -> Solar FV | E134: =IF(ISBLANK(InfoPro!I127),"",YEAR(InfoPro!I127)-$G$3) -> 3 | F134: =IF(B134="","",VLOOKUP(D134,Tablas!$B$2:$E$13,2,FALSE)) -> 0.26 | G134: =IF(B134="","",VLOOKUP(D134,Tablas!$B$2:$G$13,6,FALSE)) -> 0 | H134: 45324.24 | I134: 5769.00524 | J134: 379559.6366 | K134: 339498.7805 | L134: 303666.1722 | M134: 271615.5386 | N134: 242947.709 | O134: 217305.6431 | P134: 194369.9849 | Q134: 173855.0849 | R134: 155505.4426 | S134: 139092.5247 | T134: 124411.9184 | U134: 111280.7856 | V134: 99535.58645 | W134: 89030.04154 | X134: 79633.31086 | Y134: 1.188972421e+10 | Z134: 597473.5785
A135: =IF(ISBLANK(InfoPro!A128),"",InfoPro!A128) -> SC_1970_A1 | B135: =IF(ISBLANK(InfoPro!B128),"",InfoPro!B128) -> Parque Solar Montería | C135: =IF(ISBLANK(InfoPro!E128),"",InfoPro!E128) -> 99 | D135: =IF(ISBLANK(InfoPro!F128),"",InfoPro!F128) -> Solar FV | E135: =IF(ISBLANK(InfoPro!I128),"",YEAR(InfoPro!I128)-$G$3) -> 3 | F135: =IF(B135="","",VLOOKUP(D135,Tablas!$B$2:$E$13,2,FALSE)) -> 0.26 | G135: =IF(B135="","",VLOOKUP(D135,Tablas!$B$2:$G$13,6,FALSE)) -> 0 | H135: 225482.4 | I135: 28700.07632 | J135: 1888261.509 | K135: 1688963.782 | L135: 1510701.058 | M135: 1351253.182 | N135: 1208634.331 | O135: 1081068.275 | P135: 966966.2564 | Q135: 864907.2061 | R135: 773620.0413 | S135: 691967.8365 | T135: 618933.6642 | U135: 553607.9286 | V135: 495177.0381 | W135: 442913.272 | X135: 396165.7174 | Y135: 5.914988427e+10 | Z135: 597473.5785
A136: =IF(ISBLANK(InfoPro!A129),"",InfoPro!A129) -> SC_1970_A2 | B136: =IF(ISBLANK(InfoPro!B129),"",InfoPro!B129) -> Parque Solar Montería | C136: =IF(ISBLANK(InfoPro!E129),"",InfoPro!E129) -> 99 | D136: =IF(ISBLANK(InfoPro!F129),"",InfoPro!F129) -> Solar FV | E136: =IF(ISBLANK(InfoPro!I129),"",YEAR(InfoPro!I129)-$G$3) -> 3 | F136: =IF(B136="","",VLOOKUP(D136,Tablas!$B$2:$E$13,2,FALSE)) -> 0.26 | G136: =IF(B136="","",VLOOKUP(D136,Tablas!$B$2:$G$13,6,FALSE)) -> 0 | H136: 225482.4 | I136: 28700.07632 | J136: 1888261.509 | K136: 1688963.782 | L136: 1510701.058 | M136: 1351253.182 | N136: 1208634.331 | O136: 1081068.275 | P136: 966966.2564 | Q136: 864907.2061 | R136: 773620.0413 | S136: 691967.8365 | T136: 618933.6642 | U136: 553607.9286 | V136: 495177.0381 | W136: 442913.272 | X136: 396165.7174 | Y136: 5.914988427e+10 | Z136: 597473.5785
A137: =IF(ISBLANK(InfoPro!A130),"",InfoPro!A130) -> SC_2072_A1 | B137: =IF(ISBLANK(InfoPro!B130),"",InfoPro!B130) -> Porvenir - 9.9 MW | C137: =IF(ISBLANK(InfoPro!E130),"",InfoPro!E130) -> 9.9 | D137: =IF(ISBLANK(InfoPro!F130),"",InfoPro!F130) -> Solar FV | E137: =IF(ISBLANK(InfoPro!I130),"",YEAR(InfoPro!I130)-$G$3) -> 2 | F137: =IF(B137="","",VLOOKUP(D137,Tablas!$B$2:$E$13,2,FALSE)) -> 0.26 | G137: =IF(B137="","",VLOOKUP(D137,Tablas!$B$2:$G$13,6,FALSE)) -> 0 | H137: 22548.24 | I137: 2870.007632 | J137: 211107.6367 | K137: 188826.1509 | L137: 168896.3782 | M137: 151070.1058 | N137: 135125.3182 | O137: 120863.4331 | P137: 108106.8275 | Q137: 96696.62564 | R137: 86490.72061 | S137: 77362.00413 | T137: 69196.78365 | U137: 61893.36642 | V137: 55360.79286 | W137: 49517.70381 | X137: 44291.3272 | Y137: 6612957061 | Z137: 667975.4607
A138: =IF(ISBLANK(InfoPro!A131),"",InfoPro!A131) -> SC_2204_A1 | B138: =IF(ISBLANK(InfoPro!B131),"",InfoPro!B131) -> Parque Solar Ciénaga Grande - 19.9 MW | C138: =IF(ISBLANK(InfoPro!E131),"",InfoPro!E131) -> 19.9 | D138: =IF(ISBLANK(InfoPro!F131),"",InfoPro!F131) -> Solar FV | E138: =IF(ISBLANK(InfoPro!I131),"",YEAR(InfoPro!I131)-$G$3) -> 2 | F138: =IF(B138="","",VLOOKUP(D138,Tablas!$B$2:$E$13,2,FALSE)) -> 0.26 | G138: =IF(B138="","",VLOOKUP(D138,Tablas!$B$2:$G$13,6,FALSE)) -> 0 | H138: 45324.24 | I138: 5769.00524 | J138: 424347.6737 | K138: 379559.6366 | L138: 339498.7805 | M138: 303666.1722 | N138: 271615.5386 | O138: 242947.709 | P138: 217305.6431 | Q138: 194369.9849 | R138: 173855.0849 | S138: 155505.4426 | T138: 139092.5247 | U138: 124411.9184 | V138: 111280.7856 | W138: 99535.58645 | X138: 89030.04154 | Y138: 1.329271167e+10 | Z138: 667975.4607
A139: =IF(ISBLANK(InfoPro!A132),"",InfoPro!A132) -> SC_2204_A2 | B139: =IF(ISBLANK(InfoPro!B132),"",InfoPro!B132) -> Parque Solar Ciénaga Grande - 19.9 MW | C139: =IF(ISBLANK(InfoPro!E132),"",InfoPro!E132) -> 19.9 | D139: =IF(ISBLANK(InfoPro!F132),"",InfoPro!F132) -> Solar FV | E139: =IF(ISBLANK(InfoPro!I132),"",YEAR(InfoPro!I132)-$G$3) -> 2 | F139: =IF(B139="","",VLOOKUP(D139,Tablas!$B$2:$E$13,2,FALSE)) -> 0.26 | G139: =IF(B139="","",VLOOKUP(D139,Tablas!$B$2:$G$13,6,FALSE)) -> 0 | H139: 45324.24 | I139: 5769.00524 | J139: 424347.6737 | K139: 379559.6366 | L139: 339498.7805 | M139: 303666.1722 | N139: 271615.5386 | O139: 242947.709 | P139: 217305.6431 | Q139: 194369.9849 | R139: 173855.0849 | S139: 155505.4426 | T139: 139092.5247 | U139: 124411.9184 | V139: 111280.7856 | W139: 99535.58645 | X139: 89030.04154 | Y139: 1.329271167e+10 | Z139: 667975.4607
A140: =IF(ISBLANK(InfoPro!A133),"",InfoPro!A133) -> SC_2166_A1 | B140: =IF(ISBLANK(InfoPro!B133),"",InfoPro!B133) -> Parque fotovoltaico Delphinus | C140: =IF(ISBLANK(InfoPro!E133),"",InfoPro!E133) -> 19.9 | D140: =IF(ISBLANK(InfoPro!F133),"",InfoPro!F133) -> Solar FV | E140: =IF(ISBLANK(InfoPro!I133),"",YEAR(InfoPro!I133)-$G$3) -> 2 | F140: =IF(B140="","",VLOOKUP(D140,Tablas!$B$2:$E$13,2,FALSE)) -> 0.26 | G140: =IF(B140="","",VLOOKUP(D140,Tablas!$B$2:$G$13,6,FALSE)) -> 0 | H140: 45324.24 | I140: 5769.00524 | J140: 424347.6737 | K140: 379559.6366 | L140: 339498.7805 | M140: 303666.1722 | N140: 271615.5386 | O140: 242947.709 | P140: 217305.6431 | Q140: 194369.9849 | R140: 173855.0849 | S140: 155505.4426 | T140: 139092.5247 | U140: 124411.9184 | V140: 111280.7856 | W140: 99535.58645 | X140: 89030.04154 | Y140: 1.329271167e+10 | Z140: 667975.4607
A141: =IF(ISBLANK(InfoPro!A134),"",InfoPro!A134) -> SC_2166_A2 | B141: =IF(ISBLANK(InfoPro!B134),"",InfoPro!B134) -> Parque fotovoltaico Delphinus | C141: =IF(ISBLANK(InfoPro!E134),"",InfoPro!E134) -> 19.9 | D141: =IF(ISBLANK(InfoPro!F134),"",InfoPro!F134) -> Solar FV | E141: =IF(ISBLANK(InfoPro!I134),"",YEAR(InfoPro!I134)-$G$3) -> 2 | F141: =IF(B141="","",VLOOKUP(D141,Tablas!$B$2:$E$13,2,FALSE)) -> 0.26 | G141: =IF(B141="","",VLOOKUP(D141,Tablas!$B$2:$G$13,6,FALSE)) -> 0 | H141: 45324.24 | I141: 5769.00524 | J141: 424347.6737 | K141: 379559.6366 | L141: 339498.7805 | M141: 303666.1722 | N141: 271615.5386 | O141: 242947.709 | P141: 217305.6431 | Q141: 194369.9849 | R141: 173855.0849 | S141: 155505.4426 | T141: 139092.5247 | U141: 124411.9184 | V141: 111280.7856 | W141: 99535.58645 | X141: 89030.04154 | Y141: 1.329271167e+10 | Z141: 667975.4607
A142: =IF(ISBLANK(InfoPro!A135),"",InfoPro!A135) -> SC_1923_A1 | B142: =IF(ISBLANK(InfoPro!B135),"",InfoPro!B135) -> Parque Solar Fotovoltaico Chunú I 50 MW | C142: =IF(ISBLANK(InfoPro!E135),"",InfoPro!E135) -> 50 | D142: =IF(ISBLANK(InfoPro!F135),"",InfoPro!F135) -> Solar FV | E142: =IF(ISBLANK(InfoPro!I135),"",YEAR(InfoPro!I135)-$G$3) -> 4 | F142: =IF(B142="","",VLOOKUP(D142,Tablas!$B$2:$E$13,2,FALSE)) -> 0.26 | G142: =IF(B142="","",VLOOKUP(D142,Tablas!$B$2:$G$13,6,FALSE)) -> 0 | H142: 113880 | I142: 14494.98804 | J142: 853012.0114 | K142: 762980.3322 | L142: 682451.1021 | M142: 610421.3794 | N142: 545994.0781 | O142: 488366.7962 | P142: 436821.8213 | Q142: 390717.1926 | R142: 349478.7053 | S142: 312592.7597 | T142: 279599.9639 | U142: 250089.4132 | V142: 223693.5717 | W142: 200083.6956 | X142: 178965.7385 | Y142: 2.672064304e+10 | Z142: 534412.8609
A143: =IF(ISBLANK(InfoPro!A136),"",InfoPro!A136) -> SC_1923_A2 | B143: =IF(ISBLANK(InfoPro!B136),"",InfoPro!B136) -> Parque Solar Fotovoltaico Chunú I 50 MW | C143: =IF(ISBLANK(InfoPro!E136),"",InfoPro!E136) -> 50 | D143: =IF(ISBLANK(InfoPro!F136),"",InfoPro!F136) -> Solar FV | E143: =IF(ISBLANK(InfoPro!I136),"",YEAR(InfoPro!I136)-$G$3) -> 4 | F143: =IF(B143="","",VLOOKUP(D143,Tablas!$B$2:$E$13,2,FALSE)) -> 0.26 | G143: =IF(B143="","",VLOOKUP(D143,Tablas!$B$2:$G$13,6,FALSE)) -> 0 | H143: 113880 | I143: 14494.98804 | J143: 853012.0114 | K143: 762980.3322 | L143: 682451.1021 | M143: 610421.3794 | N143: 545994.0781 | O143: 488366.7962 | P143: 436821.8213 | Q143: 390717.1926 | R143: 349478.7053 | S143: 312592.7597 | T143: 279599.9639 | U143: 250089.4132 | V143: 223693.5717 | W143: 200083.6956 | X143: 178965.7385 | Y143: 2.672064304e+10 | Z143: 534412.8609
A144: =IF(ISBLANK(InfoPro!A137),"",InfoPro!A137) -> SC_1937_A1 | B144: =IF(ISBLANK(InfoPro!B137),"",InfoPro!B137) -> Parque Solar Fotovoltaico ChInú II 50 MW | C144: =IF(ISBLANK(InfoPro!E137),"",InfoPro!E137) -> 50 | D144: =IF(ISBLANK(InfoPro!F137),"",InfoPro!F137) -> Solar FV | E144: =IF(ISBLANK(InfoPro!I137),"",YEAR(InfoPro!I137)-$G$3) -> 4 | F144: =IF(B144="","",VLOOKUP(D144,Tablas!$B$2:$E$13,2,FALSE)) -> 0.26 | G144: =IF(B144="","",VLOOKUP(D144,Tablas!$B$2:$G$13,6,FALSE)) -> 0 | H144: 113880 | I144: 14494.98804 | J144: 853012.0114 | K144: 762980.3322 | L144: 682451.1021 | M144: 610421.3794 | N144: 545994.0781 | O144: 488366.7962 | P144: 436821.8213 | Q144: 390717.1926 | R144: 349478.7053 | S144: 312592.7597 | T144: 279599.9639 | U144: 250089.4132 | V144: 223693.5717 | W144: 200083.6956 | X144: 178965.7385 | Y144: 2.672064304e+10 | Z144: 534412.8609
A145: =IF(ISBLANK(InfoPro!A138),"",InfoPro!A138) -> SC_1937_A2 | B145: =IF(ISBLANK(InfoPro!B138),"",InfoPro!B138) -> Parque Solar Fotovoltaico ChInú II 50 MW | C145: =IF(ISBLANK(InfoPro!E138),"",InfoPro!E138) -> 50 | D145: =IF(ISBLANK(InfoPro!F138),"",InfoPro!F138) -> Solar FV | E145: =IF(ISBLANK(InfoPro!I138),"",YEAR(InfoPro!I138)-$G$3) -> 4 | F145: =IF(B145="","",VLOOKUP(D145,Tablas!$B$2:$E$13,2,FALSE)) -> 0.26 | G145: =IF(B145="","",VLOOKUP(D145,Tablas!$B$2:$G$13,6,FALSE)) -> 0 | H145: 113880 | I145: 14494.98804 | J145: 853012.0114 | K145: 762980.3322 | L145: 682451.1021 | M145: 610421.3794 | N145: 545994.0781 | O145: 488366.7962 | P145: 436821.8213 | Q145: 390717.1926 | R145: 349478.7053 | S145: 312592.7597 | T145: 279599.9639 | U145: 250089.4132 | V145: 223693.5717 | W145: 200083.6956 | X145: 178965.7385 | Y145: 2.672064304e+10 | Z145: 534412.8609
A146: =IF(ISBLANK(InfoPro!A139),"",InfoPro!A139) -> SC_1810_A1 | B146: =IF(ISBLANK(InfoPro!B139),"",InfoPro!B139) -> Parque Solar Coveñas 50 MW | C146: =IF(ISBLANK(InfoPro!E139),"",InfoPro!E139) -> 50 | D146: =IF(ISBLANK(InfoPro!F139),"",InfoPro!F139) -> Solar FV | E146: =IF(ISBLANK(InfoPro!I139),"",YEAR(InfoPro!I139)-$G$3) -> 4 | F146: =IF(B146="","",VLOOKUP(D146,Tablas!$B$2:$E$13,2,FALSE)) -> 0.26 | G146: =IF(B146="","",VLOOKUP(D146,Tablas!$B$2:$G$13,6,FALSE)) -> 0 | H146: 113880 | I146: 14494.98804 | J146: 853012.0114 | K146: 762980.3322 | L146: 682451.1021 | M146: 610421.3794 | N146: 545994.0781 | O146: 488366.7962 | P146: 436821.8213 | Q146: 390717.1926 | R146: 349478.7053 | S146: 312592.7597 | T146: 279599.9639 | U146: 250089.4132 | V146: 223693.5717 | W146: 200083.6956 | X146: 178965.7385 | Y146: 2.672064304e+10 | Z146: 534412.8609
A147: =IF(ISBLANK(InfoPro!A140),"",InfoPro!A140) -> SC_1810_A2 | B147: =IF(ISBLANK(InfoPro!B140),"",InfoPro!B140) -> Parque Solar Coveñas 50 MW | C147: =IF(ISBLANK(InfoPro!E140),"",InfoPro!E140) -> 50 | D147: =IF(ISBLANK(InfoPro!F140),"",InfoPro!F140) -> Solar FV | E147: =IF(ISBLANK(InfoPro!I140),"",YEAR(InfoPro!I140)-$G$3) -> 4 | F147: =IF(B147="","",VLOOKUP(D147,Tablas!$B$2:$E$13,2,FALSE)) -> 0.26 | G147: =IF(B147="","",VLOOKUP(D147,Tablas!$B$2:$G$13,6,FALSE)) -> 0 | H147: 113880 | I147: 14494.98804 | J147: 853012.0114 | K147: 762980.3322 | L147: 682451.1021 | M147: 610421.3794 | N147: 545994.0781 | O147: 488366.7962 | P147: 436821.8213 | Q147: 390717.1926 | R147: 349478.7053 | S147: 312592.7597 | T147: 279599.9639 | U147: 250089.4132 | V147: 223693.5717 | W147: 200083.6956 | X147: 178965.7385 | Y147: 2.672064304e+10 | Z147: 534412.8609
A148: =IF(ISBLANK(InfoPro!A141),"",InfoPro!A141) -> SC_1835_A1 | B148: =IF(ISBLANK(InfoPro!B141),"",InfoPro!B141) -> Parque Solar Coveñas II 50 MW | C148: =IF(ISBLANK(InfoPro!E141),"",InfoPro!E141) -> 50 | D148: =IF(ISBLANK(InfoPro!F141),"",InfoPro!F141) -> Solar FV | E148: =IF(ISBLANK(InfoPro!I141),"",YEAR(InfoPro!I141)-$G$3) -> 4 | F148: =IF(B148="","",VLOOKUP(D148,Tablas!$B$2:$E$13,2,FALSE)) -> 0.26 | G148: =IF(B148="","",VLOOKUP(D148,Tablas!$B$2:$G$13,6,FALSE)) -> 0 | H148: 113880 | I148: 14494.98804 | J148: 853012.0114 | K148: 762980.3322 | L148: 682451.1021 | M148: 610421.3794 | N148: 545994.0781 | O148: 488366.7962 | P148: 436821.8213 | Q148: 390717.1926 | R148: 349478.7053 | S148: 312592.7597 | T148: 279599.9639 | U148: 250089.4132 | V148: 223693.5717 | W148: 200083.6956 | X148: 178965.7385 | Y148: 2.672064304e+10 | Z148: 534412.8609
A149: =IF(ISBLANK(InfoPro!A142),"",InfoPro!A142) -> SC_1835_A2 | B149: =IF(ISBLANK(InfoPro!B142),"",InfoPro!B142) -> Parque Solar Coveñas II 50 MW | C149: =IF(ISBLANK(InfoPro!E142),"",InfoPro!E142) -> 50 | D149: =IF(ISBLANK(InfoPro!F142),"",InfoPro!F142) -> Solar FV | E149: =IF(ISBLANK(InfoPro!I142),"",YEAR(InfoPro!I142)-$G$3) -> 4 | F149: =IF(B149="","",VLOOKUP(D149,Tablas!$B$2:$E$13,2,FALSE)) -> 0.26 | G149: =IF(B149="","",VLOOKUP(D149,Tablas!$B$2:$G$13,6,FALSE)) -> 0 | H149: 113880 | I149: 14494.98804 | J149: =IF($I149="","",(1/(1+$C$4)^(J$7+$E149))*$I149*$C$5) -> 853012.0114 | K149: 762980.3322 | L149: 682451.1021 | M149: 610421.3794 | N149: 545994.0781 | O149: 488366.7962 | P149: 436821.8213 | Q149: 390717.1926 | R149: 349478.7053 | S149: 312592.7597 | T149: 279599.9639 | U149: 250089.4132 | V149: 223693.5717 | W149: 200083.6956 | X149: 178965.7385 | Y149: 2.672064304e+10 | Z149: 534412.8609
A150: =IF(ISBLANK(InfoPro!A143),"",InfoPro!A143) -> SC_1873_A1 | B150: =IF(ISBLANK(InfoPro!B143),"",InfoPro!B143) -> Cusumbo Solar | C150: =IF(ISBLANK(InfoPro!E143),"",InfoPro!E143) -> 99.9 | D150: =IF(ISBLANK(InfoPro!F143),"",InfoPro!F143) -> Solar FV | E150: =IF(ISBLANK(InfoPro!I143),"",YEAR(InfoPro!I143)-$G$3) -> 3 | F150: =IF(B150="","",VLOOKUP(D150,Tablas!$B$2:$E$13,2,FALSE)) -> 0.26 | G150: =IF(B150="","",VLOOKUP(D150,Tablas!$B$2:$G$13,6,FALSE)) -> 0 | H150: 227532.24 | I150: 28960.9861 | J150: 1905427.523 | K150: 1704317.999 | L150: 1524434.704 | M150: 1363537.302 | N150: 1219621.916 | O150: 1090896.168 | P150: 975756.8588 | Q150: 872769.9989 | R150: 780652.9507 | S150: 698258.4532 | T150: 624560.3338 | U150: 558640.7279 | V150: 499678.6475 | W150: 446939.7563 | X150: 399767.2239 | Y150: 5.968761049e+10 | Z150: 597473.5785
A151: =IF(ISBLANK(InfoPro!A144),"",InfoPro!A144) -> SC_1873_A2 | B151: =IF(ISBLANK(InfoPro!B144),"",InfoPro!B144) -> Cusumbo Solar | C151: =IF(ISBLANK(InfoPro!E144),"",InfoPro!E144) -> 99.9 | D151: =IF(ISBLANK(InfoPro!F144),"",InfoPro!F144) -> Solar FV | E151: =IF(ISBLANK(InfoPro!I144),"",YEAR(InfoPro!I144)-$G$3) -> 3 | F151: =IF(B151="","",VLOOKUP(D151,Tablas!$B$2:$E$13,2,FALSE)) -> 0.26 | G151: =IF(B151="","",VLOOKUP(D151,Tablas!$B$2:$G$13,6,FALSE)) -> 0 | H151: 227532.24 | I151: 28960.9861 | J151: 1905427.523 | K151: 1704317.999 | L151: 1524434.704 | M151: 1363537.302 | N151: 1219621.916 | O151: 1090896.168 | P151: 975756.8588 | Q151: 872769.9989 | R151: 780652.9507 | S151: 698258.4532 | T151: 624560.3338 | U151: 558640.7279 | V151: 499678.6475 | W151: 446939.7563 | X151: 399767.2239 | Y151: 5.968761049e+10 | Z151: 597473.5785
A152: =IF(ISBLANK(InfoPro!A145),"",InfoPro!A145) -> SC_2067_A1 | B152: =IF(ISBLANK(InfoPro!B145),"",InfoPro!B145) -> TIERRALTA 70 MW | C152: =IF(ISBLANK(InfoPro!E145),"",InfoPro!E145) -> 70 | D152: =IF(ISBLANK(InfoPro!F145),"",InfoPro!F145) -> Solar FV | E152: =IF(ISBLANK(InfoPro!I145),"",YEAR(InfoPro!I145)-$G$3) -> 4 | F152: =IF(B152="","",VLOOKUP(D152,Tablas!$B$2:$E$13,2,FALSE)) -> 0.26 | G152: =IF(B152="","",VLOOKUP(D152,Tablas!$B$2:$G$13,6,FALSE)) -> 0 | H152: =IF(C152="","",+C152*F152*24*365) -> 159432 | I152: =IF(H152="","",+H152*($C$3-G152)) -> 20292.98326 | J152: 1194216.816 | K152: 1068172.465 | L152: 955431.543 | M152: 854589.9311 | N152: 764391.7094 | O152: 683713.5147 | P152: 611550.5498 | Q152: 547004.0696 | R152: 489270.1875 | S152: 437629.8636 | T152: 391439.9495 | U152: 350125.1785 | V152: 313171.0004 | W152: 280117.1739 | X152: 250552.0339 | Y152: =IF(X152="","",SUM(J152:X152)*$C$6) -> 3.740890026e+10 | Z152: =IF(C152=0,0,IF(Y152="","",Y152/(C152*1000))) -> 534412.8609
A153: =IF(ISBLANK(InfoPro!A146),"",InfoPro!A146) -> SC_2067_A2 | B153: =IF(ISBLANK(InfoPro!B146),"",InfoPro!B146) -> TIERRALTA 70 MW | C153: =IF(ISBLANK(InfoPro!E146),"",InfoPro!E146) -> 70 | D153: =IF(ISBLANK(InfoPro!F146),"",InfoPro!F146) -> Solar FV | E153: =IF(ISBLANK(InfoPro!I146),"",YEAR(InfoPro!I146)-$G$3) -> 4 | F153: =IF(B153="","",VLOOKUP(D153,Tablas!$B$2:$E$13,2,FALSE)) -> 0.26 | G153: =IF(B153="","",VLOOKUP(D153,Tablas!$B$2:$G$13,6,FALSE)) -> 0 | H153: 159432 | I153: 20292.98326 | J153: =IF($I153="","",(1/(1+$C$4)^(J$7+$E153))*$I153*$C$5) -> 1194216.816 | K153: 1068172.465 | L153: 955431.543 | M153: 854589.9311 | N153: 764391.7094 | O153: 683713.5147 | P153: 611550.5498 | Q153: 547004.0696 | R153: 489270.1875 | S153: 437629.8636 | T153: 391439.9495 | U153: 350125.1785 | V153: 313171.0004 | W153: 280117.1739 | X153: 250552.0339 | Y153: 3.740890026e+10 | Z153: 534412.8609
A154: =IF(ISBLANK(InfoPro!A147),"",InfoPro!A147) -> SC_1942_A1 | B154: =IF(ISBLANK(InfoPro!B147),"",InfoPro!B147) -> San Jorge Fotovoltaico 135 MW | C154: =IF(ISBLANK(InfoPro!E147),"",InfoPro!E147) -> 135 | D154: =IF(ISBLANK(InfoPro!F147),"",InfoPro!F147) -> Solar FV | E154: =IF(ISBLANK(InfoPro!I147),"",YEAR(InfoPro!I147)-$G$3) -> 2 | F154: =IF(B154="","",VLOOKUP(D154,Tablas!$B$2:$E$13,2,FALSE)) -> 0.26 | G154: =IF(B154="","",VLOOKUP(D154,Tablas!$B$2:$G$13,6,FALSE)) -> 0 | H154: 307476 | I154: 39136.46771 | J154: 2878740.5 | K154: 2574902.057 | L154: 2303132.431 | M154: 2060046.897 | N154: 1842617.976 | O154: 1648137.724 | P154: 1474184.011 | Q154: 1318590.35 | R154: 1179418.917 | S154: 1054936.42 | T154: 943592.5044 | U154: 844000.4511 | V154: 754919.9026 | W154: 675241.4156 | X154: 603972.6436 | Y154: 9.01766872e+10 | Z154: 667975.4607
A155: =IF(ISBLANK(InfoPro!A148),"",InfoPro!A148) -> SC_1942_A2 | B155: =IF(ISBLANK(InfoPro!B148),"",InfoPro!B148) -> San Jorge Fotovoltaico 135 MW | C155: =IF(ISBLANK(InfoPro!E148),"",InfoPro!E148) -> 135 | D155: =IF(ISBLANK(InfoPro!F148),"",InfoPro!F148) -> Solar FV | E155: =IF(ISBLANK(InfoPro!I148),"",YEAR(InfoPro!I148)-$G$3) -> 2 | F155: =IF(B155="","",VLOOKUP(D155,Tablas!$B$2:$E$13,2,FALSE)) -> 0.26 | G155: =IF(B155="","",VLOOKUP(D155,Tablas!$B$2:$G$13,6,FALSE)) -> 0 | H155: 307476 | I155: 39136.46771 | J155: 2878740.5 | K155: 2574902.057 | L155: 2303132.431 | M155: 2060046.897 | N155: 1842617.976 | O155: 1648137.724 | P155: 1474184.011 | Q155: 1318590.35 | R155: 1179418.917 | S155: 1054936.42 | T155: 943592.5044 | U155: 844000.4511 | V155: 754919.9026 | W155: 675241.4156 | X155: 603972.6436 | Y155: 9.01766872e+10 | Z155: 667975.4607
A156: =IF(ISBLANK(InfoPro!A149),"",InfoPro!A149) -> SC_2107_A1 | B156: =IF(ISBLANK(InfoPro!B149),"",InfoPro!B149) -> Parque Solar Aries | C156: =IF(ISBLANK(InfoPro!E149),"",InfoPro!E149) -> 175 | D156: =IF(ISBLANK(InfoPro!F149),"",InfoPro!F149) -> Solar FV | E156: =IF(ISBLANK(InfoPro!I149),"",YEAR(InfoPro!I149)-$G$3) -> 3 | F156: =IF(B156="","",VLOOKUP(D156,Tablas!$B$2:$E$13,2,FALSE)) -> 0.26 | G156: =IF(B156="","",VLOOKUP(D156,Tablas!$B$2:$G$13,6,FALSE)) -> 0 | H156: 398580 | I156: 50732.45814 | J156: 3337836 | K156: 2985542.04 | L156: 2670431.163 | M156: 2388578.857 | N156: 2136474.828 | O156: 1910979.273 | P156: 1709283.787 | Q156: 1528876.374 | R156: 1367510.174 | S156: 1223175.469 | T156: 1094074.659 | U156: 978599.8738 | V156: 875312.9461 | W156: 782927.501 | X156: 700292.9347 | Y156: 1.045578762e+11 | Z156: 597473.5785
A157: =IF(ISBLANK(InfoPro!A150),"",InfoPro!A150) -> SC_2107_A2 | B157: =IF(ISBLANK(InfoPro!B150),"",InfoPro!B150) -> Parque Solar Aries | C157: =IF(ISBLANK(InfoPro!E150),"",InfoPro!E150) -> 175 | D157: =IF(ISBLANK(InfoPro!F150),"",InfoPro!F150) -> Solar FV | E157: =IF(ISBLANK(InfoPro!I150),"",YEAR(InfoPro!I150)-$G$3) -> 3 | F157: =IF(B157="","",VLOOKUP(D157,Tablas!$B$2:$E$13,2,FALSE)) -> 0.26 | G157: =IF(B157="","",VLOOKUP(D157,Tablas!$B$2:$G$13,6,FALSE)) -> 0 | H157: 398580 | I157: 50732.45814 | J157: 3337836 | K157: 2985542.04 | L157: 2670431.163 | M157: 2388578.857 | N157: 2136474.828 | O157: 1910979.273 | P157: 1709283.787 | Q157: 1528876.374 | R157: 1367510.174 | S157: 1223175.469 | T157: 1094074.659 | U157: 978599.8738 | V157: 875312.9461 | W157: 782927.501 | X157: 700292.9347 | Y157: 1.045578762e+11 | Z157: 597473.5785
A158: =IF(ISBLANK(InfoPro!A151),"",InfoPro!A151) -> SC_2031 _A1 | B158: =IF(ISBLANK(InfoPro!B151),"",InfoPro!B151) -> PSF Cispata_70MW | C158: =IF(ISBLANK(InfoPro!E151),"",InfoPro!E151) -> 70 | D158: =IF(ISBLANK(InfoPro!F151),"",InfoPro!F151) -> Solar FV | E158: =IF(ISBLANK(InfoPro!I151),"",YEAR(InfoPro!I151)-$G$3) -> 3 | F158: =IF(B158="","",VLOOKUP(D158,Tablas!$B$2:$E$13,2,FALSE)) -> 0.26 | G158: =IF(B158="","",VLOOKUP(D158,Tablas!$B$2:$G$13,6,FALSE)) -> 0 | H158: 159432 | I158: 20292.98326 | J158: 1335134.4 | K158: 1194216.816 | L158: 1068172.465 | M158: 955431.543 | N158: 854589.9311 | O158: 764391.7094 | P158: 683713.5147 | Q158: 611550.5498 | R158: 547004.0696 | S158: 489270.1875 | T158: 437629.8636 | U158: 391439.9495 | V158: 350125.1785 | W158: 313171.0004 | X158: 280117.1739 | Y158: 4.182315049e+10 | Z158: 597473.5785
A159: =IF(ISBLANK(InfoPro!A152),"",InfoPro!A152) -> SC_2136_A1 | B159: =IF(ISBLANK(InfoPro!B152),"",InfoPro!B152) -> Yaguarundi Solar II 40 MW | C159: =IF(ISBLANK(InfoPro!E152),"",InfoPro!E152) -> 40 | D159: =IF(ISBLANK(InfoPro!F152),"",InfoPro!F152) -> Solar FV | E159: =IF(ISBLANK(InfoPro!I152),"",YEAR(InfoPro!I152)-$G$3) -> 3 | F159: =IF(B159="","",VLOOKUP(D159,Tablas!$B$2:$E$13,2,FALSE)) -> 0.26 | G159: =IF(B159="","",VLOOKUP(D159,Tablas!$B$2:$G$13,6,FALSE)) -> 0 | H159: 91104 | I159: 11595.99043 | J159: 762933.943 | K159: 682409.6091 | L159: 610384.2657 | M159: 545960.8817 | N159: 488337.1035 | O159: 436795.2625 | P159: 390693.4369 | Q159: 349457.457 | R159: 312573.754 | S159: 279582.9643 | T159: 250074.2077 | U159: 223679.9711 | V159: 200071.5305 | W159: 178954.8574 | X159: 160066.9565 | Y159: 2.389894314e+10 | Z159: 597473.5785
A160: =IF(ISBLANK(InfoPro!A153),"",InfoPro!A153) -> SC_2136_A2 | B160: =IF(ISBLANK(InfoPro!B153),"",InfoPro!B153) -> Yaguarundi Solar II 40 MW | C160: =IF(ISBLANK(InfoPro!E153),"",InfoPro!E153) -> 40 | D160: =IF(ISBLANK(InfoPro!F153),"",InfoPro!F153) -> Solar FV | E160: =IF(ISBLANK(InfoPro!I153),"",YEAR(InfoPro!I153)-$G$3) -> 3 | F160: =IF(B160="","",VLOOKUP(D160,Tablas!$B$2:$E$13,2,FALSE)) -> 0.26 | G160: =IF(B160="","",VLOOKUP(D160,Tablas!$B$2:$G$13,6,FALSE)) -> 0 | H160: 91104 | I160: 11595.99043 | J160: 762933.943 | K160: 682409.6091 | L160: 610384.2657 | M160: 545960.8817 | N160: 488337.1035 | O160: 436795.2625 | P160: 390693.4369 | Q160: 349457.457 | R160: 312573.754 | S160: 279582.9643 | T160: 250074.2077 | U160: 223679.9711 | V160: 200071.5305 | W160: 178954.8574 | X160: 160066.9565 | Y160: 2.389894314e+10 | Z160: 597473.5785
A161: =IF(ISBLANK(InfoPro!A154),"",InfoPro!A154) -> SC_2180_A1 | B161: =IF(ISBLANK(InfoPro!B154),"",InfoPro!B154) -> Yaguarundi Solar III 40 MW | C161: =IF(ISBLANK(InfoPro!E154),"",InfoPro!E154) -> 40 | D161: =IF(ISBLANK(InfoPro!F154),"",InfoPro!F154) -> Solar FV | E161: =IF(ISBLANK(InfoPro!I154),"",YEAR(InfoPro!I154)-$G$3) -> 3 | F161: =IF(B161="","",VLOOKUP(D161,Tablas!$B$2:$E$13,2,FALSE)) -> 0.26 | G161: =IF(B161="","",VLOOKUP(D161,Tablas!$B$2:$G$13,6,FALSE)) -> 0 | H161: 91104 | I161: 11595.99043 | J161: 762933.943 | K161: 682409.6091 | L161: 610384.2657 | M161: 545960.8817 | N161: 488337.1035 | O161: 436795.2625 | P161: 390693.4369 | Q161: 349457.457 | R161: 312573.754 | S161: 279582.9643 | T161: 250074.2077 | U161: 223679.9711 | V161: 200071.5305 | W161: 178954.8574 | X161: 160066.9565 | Y161: 2.389894314e+10 | Z161: 597473.5785
A162: =IF(ISBLANK(InfoPro!A155),"",InfoPro!A155) -> SC_2180_A2 | B162: =IF(ISBLANK(InfoPro!B155),"",InfoPro!B155) -> Yaguarundi Solar III 40 MW | C162: =IF(ISBLANK(InfoPro!E155),"",InfoPro!E155) -> 40 | D162: =IF(ISBLANK(InfoPro!F155),"",InfoPro!F155) -> Solar FV | E162: =IF(ISBLANK(InfoPro!I155),"",YEAR(InfoPro!I155)-$G$3) -> 3 | F162: =IF(B162="","",VLOOKUP(D162,Tablas!$B$2:$E$13,2,FALSE)) -> 0.26 | G162: =IF(B162="","",VLOOKUP(D162,Tablas!$B$2:$G$13,6,FALSE)) -> 0 | H162: 91104 | I162: 11595.99043 | J162: 762933.943 | K162: 682409.6091 | L162: 610384.2657 | M162: 545960.8817 | N162: 488337.1035 | O162: 436795.2625 | P162: 390693.4369 | Q162: 349457.457 | R162: 312573.754 | S162: 279582.9643 | T162: 250074.2077 | U162: 223679.9711 | V162: 200071.5305 | W162: 178954.8574 | X162: 160066.9565 | Y162: 2.389894314e+10 | Z162: 597473.5785
A163: =IF(ISBLANK(InfoPro!A156),"",InfoPro!A156) -> SC_2185_A1 | B163: =IF(ISBLANK(InfoPro!B156),"",InfoPro!B156) -> Yaguarundi Solar IV 40 MW | C163: =IF(ISBLANK(InfoPro!E156),"",InfoPro!E156) -> 40 | D163: =IF(ISBLANK(InfoPro!F156),"",InfoPro!F156) -> Solar FV | E163: =IF(ISBLANK(InfoPro!I156),"",YEAR(InfoPro!I156)-$G$3) -> 3 | F163: =IF(B163="","",VLOOKUP(D163,Tablas!$B$2:$E$13,2,FALSE)) -> 0.26 | G163: =IF(B163="","",VLOOKUP(D163,Tablas!$B$2:$G$13,6,FALSE)) -> 0 | H163: 91104 | I163: 11595.99043 | J163: 762933.943 | K163: 682409.6091 | L163: 610384.2657 | M163: 545960.8817 | N163: 488337.1035 | O163: 436795.2625 | P163: 390693.4369 | Q163: 349457.457 | R163: 312573.754 | S163: 279582.9643 | T163: 250074.2077 | U163: 223679.9711 | V163: 200071.5305 | W163: 178954.8574 | X163: 160066.9565 | Y163: 2.389894314e+10 | Z163: 597473.5785
A164: =IF(ISBLANK(InfoPro!A157),"",InfoPro!A157) -> SC_2185_A2 | B164: =IF(ISBLANK(InfoPro!B157),"",InfoPro!B157) -> Yaguarundi Solar IV 40 MW | C164: =IF(ISBLANK(InfoPro!E157),"",InfoPro!E157) -> 40 | D164: =IF(ISBLANK(InfoPro!F157),"",InfoPro!F157) -> Solar FV | E164: =IF(ISBLANK(InfoPro!I157),"",YEAR(InfoPro!I157)-$G$3) -> 3 | F164: =IF(B164="","",VLOOKUP(D164,Tablas!$B$2:$E$13,2,FALSE)) -> 0.26 | G164: =IF(B164="","",VLOOKUP(D164,Tablas!$B$2:$G$13,6,FALSE)) -> 0 | H164: 91104 | I164: 11595.99043 | J164: 762933.943 | K164: 682409.6091 | L164: 610384.2657 | M164: 545960.8817 | N164: 488337.1035 | O164: 436795.2625 | P164: 390693.4369 | Q164: 349457.457 | R164: 312573.754 | S164: 279582.9643 | T164: 250074.2077 | U164: 223679.9711 | V164: 200071.5305 | W164: 178954.8574 | X164: 160066.9565 | Y164: 2.389894314e+10 | Z164: 597473.5785
A165: =IF(ISBLANK(InfoPro!A158),"",InfoPro!A158) -> SC_1926_A1 | B165: =IF(ISBLANK(InfoPro!B158),"",InfoPro!B158) -> Bongos I 9.90 MW | C165: =IF(ISBLANK(InfoPro!E158),"",InfoPro!E158) -> 9.9 | D165: =IF(ISBLANK(InfoPro!F158),"",InfoPro!F158) -> Solar FV | E165: =IF(ISBLANK(InfoPro!I158),"",YEAR(InfoPro!I158)-$G$3) -> 1 | F165: =IF(B165="","",VLOOKUP(D165,Tablas!$B$2:$E$13,2,FALSE)) -> 0.26 | G165: =IF(B165="","",VLOOKUP(D165,Tablas!$B$2:$G$13,6,FALSE)) -> 0 | H165: 22548.24 | I165: 2870.007632 | J165: 236018.3378 | K165: 211107.6367 | L165: 188826.1509 | M165: 168896.3782 | N165: 151070.1058 | O165: 135125.3182 | P165: 120863.4331 | Q165: 108106.8275 | R165: 96696.62564 | S165: 86490.72061 | T165: 77362.00413 | U165: 69196.78365 | V165: 61893.36642 | W165: 55360.79286 | X165: 49517.70381 | Y165: 7393285994 | Z165: 746796.5651
A166: =IF(ISBLANK(InfoPro!A159),"",InfoPro!A159) -> SC_1926_A2 | B166: =IF(ISBLANK(InfoPro!B159),"",InfoPro!B159) -> Bongos I 9.90 MW | C166: =IF(ISBLANK(InfoPro!E159),"",InfoPro!E159) -> 9.9 | D166: =IF(ISBLANK(InfoPro!F159),"",InfoPro!F159) -> Solar FV | E166: =IF(ISBLANK(InfoPro!I159),"",YEAR(InfoPro!I159)-$G$3) -> 1 | F166: =IF(B166="","",VLOOKUP(D166,Tablas!$B$2:$E$13,2,FALSE)) -> 0.26 | G166: =IF(B166="","",VLOOKUP(D166,Tablas!$B$2:$G$13,6,FALSE)) -> 0 | H166: 22548.24 | I166: 2870.007632 | J166: 236018.3378 | K166: 211107.6367 | L166: 188826.1509 | M166: 168896.3782 | N166: 151070.1058 | O166: 135125.3182 | P166: 120863.4331 | Q166: 108106.8275 | R166: 96696.62564 | S166: 86490.72061 | T166: 77362.00413 | U166: 69196.78365 | V166: 61893.36642 | W166: 55360.79286 | X166: 49517.70381 | Y166: 7393285994 | Z166: 746796.5651
A167: =IF(ISBLANK(InfoPro!A160),"",InfoPro!A160) -> SC_1825_A1 | B167: =IF(ISBLANK(InfoPro!B160),"",InfoPro!B160) -> PROYECTO DE GENERACIÓN ELÉCTRICA EL JOBO_200MW | C167: =IF(ISBLANK(InfoPro!E160),"",InfoPro!E160) -> 200 | D167: =IF(ISBLANK(InfoPro!F160),"",InfoPro!F160) -> Termica a vapor | E167: =IF(ISBLANK(InfoPro!I160),"",YEAR(InfoPro!I160)-$G$3) -> 3 | F167: =IF(B167="","",VLOOKUP(D167,Tablas!$B$2:$E$13,2,FALSE)) -> 0.85 | G167: =IF(B167="","",VLOOKUP(D167,Tablas!$B$2:$G$13,6,FALSE)) -> 0.37 | H167: 1489200 | I167: -361454.1564 | J167: -23781120.41 | K167: -21271127.38 | L167: -19026053.11 | M167: -17017936.59 | N167: -15221767.97 | O167: -13615177.08 | P167: -12178154.81 | Q167: -10892803.95 | R167: -9743116.23 | S167: -8714773.014 | T167: -7794966.918 | U167: -6972242.324 | V167: -6236352.705 | W167: -5578133.009 | X167: -4989385.518 | Y167: -7.449447619e+11 | Z167: -3724723.809
A168: =IF(ISBLANK(InfoPro!A161),"",InfoPro!A161) -> SC_1897_A1 | B168: =IF(ISBLANK(InfoPro!B161),"",InfoPro!B161) -> La Florecita 90 MW | C168: =IF(ISBLANK(InfoPro!E161),"",InfoPro!E161) -> 90 | D168: =IF(ISBLANK(InfoPro!F161),"",InfoPro!F161) -> Solar FV | E168: =IF(ISBLANK(InfoPro!I161),"",YEAR(InfoPro!I161)-$G$3) -> 3 | F168: =IF(B168="","",VLOOKUP(D168,Tablas!$B$2:$E$13,2,FALSE)) -> 0.26 | G168: =IF(B168="","",VLOOKUP(D168,Tablas!$B$2:$G$13,6,FALSE)) -> 0 | H168: 204984 | I168: 26090.97847 | J168: 1716601.372 | K168: 1535421.62 | L168: 1373364.598 | M168: 1228411.984 | N168: 1098758.483 | O168: 982789.3406 | P168: 879060.2331 | Q168: 786279.2783 | R168: 703290.9466 | S168: 629061.6696 | T168: 562666.9674 | U168: 503279.9351 | V168: 450160.9437 | W168: 402648.4291 | X168: 360150.6521 | Y168: 5.377262206e+10 | Z168: 597473.5785
A169: =IF(ISBLANK(InfoPro!A162),"",InfoPro!A162) -> SC_1897_A2 | B169: =IF(ISBLANK(InfoPro!B162),"",InfoPro!B162) -> La Florecita 90 MW | C169: =IF(ISBLANK(InfoPro!E162),"",InfoPro!E162) -> 90 | D169: =IF(ISBLANK(InfoPro!F162),"",InfoPro!F162) -> Solar FV | E169: =IF(ISBLANK(InfoPro!I162),"",YEAR(InfoPro!I162)-$G$3) -> 3 | F169: =IF(B169="","",VLOOKUP(D169,Tablas!$B$2:$E$13,2,FALSE)) -> 0.26 | G169: =IF(B169="","",VLOOKUP(D169,Tablas!$B$2:$G$13,6,FALSE)) -> 0 | H169: 204984 | I169: 26090.97847 | J169: 1716601.372 | K169: 1535421.62 | L169: 1373364.598 | M169: 1228411.984 | N169: 1098758.483 | O169: 982789.3406 | P169: 879060.2331 | Q169: 786279.2783 | R169: 703290.9466 | S169: 629061.6696 | T169: 562666.9674 | U169: 503279.9351 | V169: 450160.9437 | W169: 402648.4291 | X169: 360150.6521 | Y169: 5.377262206e+10 | Z169: 597473.5785
A170: =IF(ISBLANK(InfoPro!A163),"",InfoPro!A163) -> SC_2014_A1 | B170: =IF(ISBLANK(InfoPro!B163),"",InfoPro!B163) -> Lotería 2 | C170: =IF(ISBLANK(InfoPro!E163),"",InfoPro!E163) -> 9.9 | D170: =IF(ISBLANK(InfoPro!F163),"",InfoPro!F163) -> Solar FV | E170: =IF(ISBLANK(InfoPro!I163),"",YEAR(InfoPro!I163)-$G$3) -> 1 | F170: =IF(B170="","",VLOOKUP(D170,Tablas!$B$2:$E$13,2,FALSE)) -> 0.26 | G170: =IF(B170="","",VLOOKUP(D170,Tablas!$B$2:$G$13,6,FALSE)) -> 0 | H170: 22548.24 | I170: 2870.007632 | J170: =IF($I170="","",(1/(1+$C$4)^(J$7+$E170))*$I170*$C$5) -> 236018.3378 | K170: 211107.6367 | L170: 188826.1509 | M170: 168896.3782 | N170: 151070.1058 | O170: 135125.3182 | P170: 120863.4331 | Q170: 108106.8275 | R170: 96696.62564 | S170: 86490.72061 | T170: 77362.00413 | U170: 69196.78365 | V170: 61893.36642 | W170: 55360.79286 | X170: 49517.70381 | Y170: 7393285994 | Z170: 746796.5651
A171: =IF(ISBLANK(InfoPro!A164),"",InfoPro!A164) -> SC_2014_A2 | B171: =IF(ISBLANK(InfoPro!B164),"",InfoPro!B164) -> Lotería 2 | C171: =IF(ISBLANK(InfoPro!E164),"",InfoPro!E164) -> 9.9 | D171: =IF(ISBLANK(InfoPro!F164),"",InfoPro!F164) -> Solar FV | E171: =IF(ISBLANK(InfoPro!I164),"",YEAR(InfoPro!I164)-$G$3) -> 1 | F171: =IF(B171="","",VLOOKUP(D171,Tablas!$B$2:$E$13,2,FALSE)) -> 0.26 | G171: =IF(B171="","",VLOOKUP(D171,Tablas!$B$2:$G$13,6,FALSE)) -> 0 | H171: 22548.24 | I171: 2870.007632 | J171: 236018.3378 | K171: 211107.6367 | L171: 188826.1509 | M171: 168896.3782 | N171: 151070.1058 | O171: 135125.3182 | P171: 120863.4331 | Q171: 108106.8275 | R171: 96696.62564 | S171: 86490.72061 | T171: 77362.00413 | U171: 69196.78365 | V171: 61893.36642 | W171: 55360.79286 | X171: 49517.70381 | Y171: 7393285994 | Z171: 746796.5651
A172: =IF(ISBLANK(InfoPro!A165),"",InfoPro!A165) -> SC_2017_A1 | B172: =IF(ISBLANK(InfoPro!B165),"",InfoPro!B165) -> LOTERÍA 1 | C172: =IF(ISBLANK(InfoPro!E165),"",InfoPro!E165) -> 9.9 | D172: =IF(ISBLANK(InfoPro!F165),"",InfoPro!F165) -> Solar FV | E172: =IF(ISBLANK(InfoPro!I165),"",YEAR(InfoPro!I165)-$G$3) -> 1 | F172: =IF(B172="","",VLOOKUP(D172,Tablas!$B$2:$E$13,2,FALSE)) -> 0.26 | G172: =IF(B172="","",VLOOKUP(D172,Tablas!$B$2:$G$13,6,FALSE)) -> 0 | H172: 22548.24 | I172: 2870.007632 | J172: 236018.3378 | K172: 211107.6367 | L172: 188826.1509 | M172: 168896.3782 | N172: 151070.1058 | O172: 135125.3182 | P172: 120863.4331 | Q172: 108106.8275 | R172: 96696.62564 | S172: 86490.72061 | T172: 77362.00413 | U172: 69196.78365 | V172: 61893.36642 | W172: 55360.79286 | X172: 49517.70381 | Y172: 7393285994 | Z172: 746796.5651
A173: =IF(ISBLANK(InfoPro!A166),"",InfoPro!A166) -> SC_2017_A2 | B173: =IF(ISBLANK(InfoPro!B166),"",InfoPro!B166) -> LOTERÍA 1 | C173: =IF(ISBLANK(InfoPro!E166),"",InfoPro!E166) -> 9.9 | D173: =IF(ISBLANK(InfoPro!F166),"",InfoPro!F166) -> Solar FV | E173: =IF(ISBLANK(InfoPro!I166),"",YEAR(InfoPro!I166)-$G$3) -> 1 | F173: =IF(B173="","",VLOOKUP(D173,Tablas!$B$2:$E$13,2,FALSE)) -> 0.26 | G173: =IF(B173="","",VLOOKUP(D173,Tablas!$B$2:$G$13,6,FALSE)) -> 0 | H173: 22548.24 | I173: 2870.007632 | J173: 236018.3378 | K173: 211107.6367 | L173: 188826.1509 | M173: 168896.3782 | N173: 151070.1058 | O173: 135125.3182 | P173: 120863.4331 | Q173: 108106.8275 | R173: 96696.62564 | S173: 86490.72061 | T173: 77362.00413 | U173: 69196.78365 | V173: 61893.36642 | W173: 55360.79286 | X173: 49517.70381 | Y173: 7393285994 | Z173: 746796.5651
A174: =IF(ISBLANK(InfoPro!A167),"",InfoPro!A167) -> SC_2165_A1 | B174: =IF(ISBLANK(InfoPro!B167),"",InfoPro!B167) -> Autogeneración Solar Fotovoltaica 9.9 MW (entrega de excedentes de 0) | C174: =IF(ISBLANK(InfoPro!E167),"",InfoPro!E167) -> 0 | D174: =IF(ISBLANK(InfoPro!F167),"",InfoPro!F167) -> Solar FV | E174: =IF(ISBLANK(InfoPro!I167),"",YEAR(InfoPro!I167)-$G$3) -> 0 | F174: =IF(B174="","",VLOOKUP(D174,Tablas!$B$2:$E$13,2,FALSE)) -> 0.26 | G174: =IF(B174="","",VLOOKUP(D174,Tablas!$B$2:$G$13,6,FALSE)) -> 0 | H174: 0 | I174: 0 | J174: 0 | K174: 0 | L174: 0 | M174: 0 | N174: 0 | O174: 0 | P174: 0 | Q174: 0 | R174: 0 | S174: 0 | T174: 0 | U174: 0 | V174: 0 | W174: 0 | X174: 0 | Y174: 0 | Z174: 0
A175: =IF(ISBLANK(InfoPro!A168),"",InfoPro!A168) -> SC_1820 _A1 | B175: =IF(ISBLANK(InfoPro!B168),"",InfoPro!B168) -> NAIOT | C175: =IF(ISBLANK(InfoPro!E168),"",InfoPro!E168) -> 19.9 | D175: =IF(ISBLANK(InfoPro!F168),"",InfoPro!F168) -> Solar FV | E175: =IF(ISBLANK(InfoPro!I168),"",YEAR(InfoPro!I168)-$G$3) -> 1 | F175: =IF(B175="","",VLOOKUP(D175,Tablas!$B$2:$E$13,2,FALSE)) -> 0.26 | G175: =IF(B175="","",VLOOKUP(D175,Tablas!$B$2:$G$13,6,FALSE)) -> 0 | H175: 45324.24 | I175: 5769.00524 | J175: 474420.6992 | K175: 424347.6737 | L175: 379559.6366 | M175: 339498.7805 | N175: 303666.1722 | O175: 271615.5386 | P175: 242947.709 | Q175: 217305.6431 | R175: 194369.9849 | S175: 173855.0849 | T175: 155505.4426 | U175: 139092.5247 | V175: 124411.9184 | W175: 111280.7856 | X175: 99535.58645 | Y175: 1.486125165e+10 | Z175: 746796.5651
A176: =IF(ISBLANK(InfoPro!A169),"",InfoPro!A169) -> SC_1820 _A2 | B176: =IF(ISBLANK(InfoPro!B169),"",InfoPro!B169) -> NAIOT | C176: =IF(ISBLANK(InfoPro!E169),"",InfoPro!E169) -> 19.9 | D176: =IF(ISBLANK(InfoPro!F169),"",InfoPro!F169) -> Solar FV | E176: =IF(ISBLANK(InfoPro!I169),"",YEAR(InfoPro!I169)-$G$3) -> 1 | F176: =IF(B176="","",VLOOKUP(D176,Tablas!$B$2:$E$13,2,FALSE)) -> 0.26 | G176: =IF(B176="","",VLOOKUP(D176,Tablas!$B$2:$G$13,6,FALSE)) -> 0 | H176: 45324.24 | I176: 5769.00524 | J176: 474420.6992 | K176: 424347.6737 | L176: 379559.6366 | M176: 339498.7805 | N176: 303666.1722 | O176: 271615.5386 | P176: 242947.709 | Q176: 217305.6431 | R176: 194369.9849 | S176: 173855.0849 | T176: 155505.4426 | U176: 139092.5247 | V176: 124411.9184 | W176: 111280.7856 | X176: 99535.58645 | Y176: 1.486125165e+10 | Z176: 746796.5651
A177: =IF(ISBLANK(InfoPro!A170),"",InfoPro!A170) -> SC_2325_A1 | B177: =IF(ISBLANK(InfoPro!B170),"",InfoPro!B170) -> PROYECTO FOTOVOLTAICO MONTERROSO DE 99,9 MW | C177: =IF(ISBLANK(InfoPro!E170),"",InfoPro!E170) -> 99.9 | D177: =IF(ISBLANK(InfoPro!F170),"",InfoPro!F170) -> Solar FV | E177: =IF(ISBLANK(InfoPro!I170),"",YEAR(InfoPro!I170)-$G$3) -> 3 | F177: =IF(B177="","",VLOOKUP(D177,Tablas!$B$2:$E$13,2,FALSE)) -> 0.26 | G177: =IF(B177="","",VLOOKUP(D177,Tablas!$B$2:$G$13,6,FALSE)) -> 0 | H177: 227532.24 | I177: 28960.9861 | J177: 1905427.523 | K177: 1704317.999 | L177: 1524434.704 | M177: 1363537.302 | N177: 1219621.916 | O177: 1090896.168 | P177: 975756.8588 | Q177: 872769.9989 | R177: 780652.9507 | S177: 698258.4532 | T177: 624560.3338 | U177: 558640.7279 | V177: 499678.6475 | W177: 446939.7563 | X177: 399767.2239 | Y177: 5.968761049e+10 | Z177: 597473.5785
A178: =IF(ISBLANK(InfoPro!A171),"",InfoPro!A171) -> SC_2325_A2 | B178: =IF(ISBLANK(InfoPro!B171),"",InfoPro!B171) -> PROYECTO FOTOVOLTAICO MONTERROSO DE 99,9 MW | C178: =IF(ISBLANK(InfoPro!E171),"",InfoPro!E171) -> 99.9 | D178: =IF(ISBLANK(InfoPro!F171),"",InfoPro!F171) -> Solar FV | E178: =IF(ISBLANK(InfoPro!I171),"",YEAR(InfoPro!I171)-$G$3) -> 3 | F178: =IF(B178="","",VLOOKUP(D178,Tablas!$B$2:$E$13,2,FALSE)) -> 0.26 | G178: =IF(B178="","",VLOOKUP(D178,Tablas!$B$2:$G$13,6,FALSE)) -> 0 | H178: =IF(C178="","",+C178*F178*24*365) -> 227532.24 | I178: =IF(H178="","",+H178*($C$3-G178)) -> 28960.9861 | J178: 1905427.523 | K178: 1704317.999 | L178: 1524434.704 | M178: 1363537.302 | N178: 1219621.916 | O178: 1090896.168 | P178: 975756.8588 | Q178: 872769.9989 | R178: 780652.9507 | S178: 698258.4532 | T178: 624560.3338 | U178: 558640.7279 | V178: 499678.6475 | W178: 446939.7563 | X178: 399767.2239 | Y178: =IF(X178="","",SUM(J178:X178)*$C$6) -> 5.968761049e+10 | Z178: =IF(C178=0,0,IF(Y178="","",Y178/(C178*1000))) -> 597473.5785
A179: =IF(ISBLANK(InfoPro!A172),"",InfoPro!A172) ->  | B179: =IF(ISBLANK(InfoPro!B172),"",InfoPro!B172) ->  | C179: =IF(ISBLANK(InfoPro!E172),"",InfoPro!E172) ->  | D179: =IF(ISBLANK(InfoPro!F172),"",InfoPro!F172) ->  | E179: =IF(ISBLANK(InfoPro!I172),"",YEAR(InfoPro!I172)-$G$3) ->  | F179: =IF(B179="","",VLOOKUP(D179,Tablas!$B$2:$E$13,2,FALSE)) ->  | G179: =IF(B179="","",VLOOKUP(D179,Tablas!$B$2:$G$13,6,FALSE)) -> 
A180: =IF(ISBLANK(InfoPro!A173),"",InfoPro!A173) ->  | B180: =IF(ISBLANK(InfoPro!B173),"",InfoPro!B173) ->  | C180: =IF(ISBLANK(InfoPro!E173),"",InfoPro!E173) ->  | D180: =IF(ISBLANK(InfoPro!F173),"",InfoPro!F173) ->  | E180: =IF(ISBLANK(InfoPro!I173),"",YEAR(InfoPro!I173)-$G$3) ->  | F180: =IF(B180="","",VLOOKUP(D180,Tablas!$B$2:$E$13,2,FALSE)) ->  | G180: =IF(B180="","",VLOOKUP(D180,Tablas!$B$2:$G$13,6,FALSE)) -> 

Sheet EC-RP
B2: Precio promedio de bolsa | C2: 192057 | D2: COP/MWh
B3: Tasa de descuento | C3: 0.118 | F3: Año de Referencia | H3: 2023
F4: Mínimo | H4: =MIN(Z8:Z350) -> -3849395.118
J6: 0 | K6: 1 | L6: 2 | M6: 3 | N6: 4 | O6: 5 | P6: 6 | Q6: 7 | R6: 8 | S6: 9 | T6: 10 | U6: 11 | V6: 12 | W6: 13 | X6: 14
A7: Codigo | B7: Nombre | C7: capacidad | D7: Tecnologia | E7: Año de entrada | F7: FP | G7: Precio de oferta | H7: Desviacion | I7: Produccion media/a MWh/a | J7: Flujo Descontado 0 | K7: Flujo Descontado 1 | L7: Flujo Descontado 2 | M7: Flujo Descontado 3 | N7: Flujo Descontado 4 | O7: Flujo Descontado 5 | P7: Flujo Descontado 6 | Q7: Flujo Descontado 7 | R7: Flujo Descontado 8 | S7: Flujo Descontado 9 | T7: Flujo Descontado 10 | U7: Flujo Descontado 11 | V7: Flujo Descontado 12 | W7: Flujo Descontado 13 | X7: Flujo Descontado 14 | Y7: VPN | Z7: Beneficio/kW
A8: =IF(ISBLANK(InfoPro!A2),"",InfoPro!A2) -> SC_44_A1 | B8: =IF(ISBLANK(InfoPro!B2),"",InfoPro!B2) -> El Floral 1 | C8: =IF(ISBLANK(InfoPro!E2),"",InfoPro!E2) -> 19.9 | D8: =IF(ISBLANK(InfoPro!F2),"",InfoPro!F2) -> Solar FV | E8: =IF(ISBLANK(InfoPro!I2),"",YEAR(InfoPro!I2)-$H$3) -> 2 | F8: =IF(B8="","",VLOOKUP(D8,Tablas!$B$2:$E$13,2,FALSE)) -> 0.26 | G8: =IF(B8="","",VLOOKUP(D8,Tablas!$B$2:$H$13,7,FALSE)) -> 83577.2 | H8: =IF(B8="","",($C$2-(G8))/$C$2) -> 0.564831274 | I8: =IF(C8="","",+C8*F8*24*365) -> 45324.24 | J8: =IF($I8="","",(1/(1+$C$3)^(J$6+$E8))*$I8*$C$2*$H8) -> 3933650758 | K8: =IF($I8="","",(1/(1+$C$3)^(K$6+$E8))*$I8*$C$2*$H8) -> 3518471161 | L8: 3147111951 | M8: 2814948078 | N8: 2517842646 | O8: 2252095390 | P8: 2014396592 | Q8: 1801785860 | R8: 1611615260 | S8: 1441516332 | T8: 1289370601 | U8: 1153283186 | V8: 1031559200 | W8: 922682647.6 | X8: =IF($I8="","",(1/(1+$C$3)^(X$6+$E8))*$I8*$C$2*$H8) -> 825297538.1 | Y8: =IF(X8="","",SUM(J8:X8)) -> 3.02756272e+10 | Z8: =IF(C8=0,0,IF(Y8="","",Y8/(C8*1000))) -> 1521388.302
A9: =IF(ISBLANK(InfoPro!A3),"",InfoPro!A3) -> SC_47_A1 | B9: =IF(ISBLANK(InfoPro!B3),"",InfoPro!B3) -> El Floral II - 19.9 MW | C9: =IF(ISBLANK(InfoPro!E3),"",InfoPro!E3) -> 19.9 | D9: =IF(ISBLANK(InfoPro!F3),"",InfoPro!F3) -> Solar FV | E9: =IF(ISBLANK(InfoPro!I3),"",YEAR(InfoPro!I3)-$H$3) -> 2 | F9: =IF(B9="","",VLOOKUP(D9,Tablas!$B$2:$E$13,2,FALSE)) -> 0.26 | G9: =IF(B9="","",VLOOKUP(D9,Tablas!$B$2:$H$13,7,FALSE)) -> 83577.2 | H9: =IF(B9="","",($C$2-(G9))/$C$2) -> 0.564831274 | I9: =IF(C9="","",+C9*F9*24*365) -> 45324.24 | J9: 3933650758 | K9: 3518471161 | L9: 3147111951 | M9: 2814948078 | N9: 2517842646 | O9: 2252095390 | P9: 2014396592 | Q9: 1801785860 | R9: 1611615260 | S9: 1441516332 | T9: 1289370601 | U9: 1153283186 | V9: 1031559200 | W9: 922682647.6 | X9: 825297538.1 | Y9: =IF(X9="","",SUM(J9:X9)) -> 3.02756272e+10 | Z9: =IF(C9=0,0,IF(Y9="","",Y9/(C9*1000))) -> 1521388.302
A10: =IF(ISBLANK(InfoPro!A4),"",InfoPro!A4) -> SC_408_A1 | B10: =IF(ISBLANK(InfoPro!B4),"",InfoPro!B4) -> El Jardín 40 MW | C10: =IF(ISBLANK(InfoPro!E4),"",InfoPro!E4) -> 40 | D10: =IF(ISBLANK(InfoPro!F4),"",InfoPro!F4) -> Solar FV | E10: =IF(ISBLANK(InfoPro!I4),"",YEAR(InfoPro!I4)-$H$3) -> 2 | F10: =IF(B10="","",VLOOKUP(D10,Tablas!$B$2:$E$13,2,FALSE)) -> 0.26 | G10: =IF(B10="","",VLOOKUP(D10,Tablas!$B$2:$H$13,7,FALSE)) -> 83577.2 | H10: 0.564831274 | I10: 91104 | J10: 7906835695 | K10: 7072303842 | L10: 6325853168 | M10: 5658187091 | N10: 5060990242 | O10: 4526824904 | P10: 4049038376 | Q10: 3621680121 | R10: 3239427658 | S10: 2897520266 | T10: 2591699701 | U10: 2318157157 | V10: 2073485829 | W10: 1854638488 | X10: 1658889524 | Y10: 6.085553206e+10 | Z10: =IF(C10=0,0,IF(Y10="","",Y10/(C10*1000))) -> 1521388.302
A11: =IF(ISBLANK(InfoPro!A5),"",InfoPro!A5) -> SC_454_A1 | B11: =IF(ISBLANK(InfoPro!B5),"",InfoPro!B5) -> PARQUE SOLAR SAN RAFAEL - 300 MW | C11: =IF(ISBLANK(InfoPro!E5),"",InfoPro!E5) -> 300 | D11: =IF(ISBLANK(InfoPro!F5),"",InfoPro!F5) -> Solar FV | E11: =IF(ISBLANK(InfoPro!I5),"",YEAR(InfoPro!I5)-$H$3) -> 3 | F11: =IF(B11="","",VLOOKUP(D11,Tablas!$B$2:$E$13,2,FALSE)) -> 0.26 | G11: =IF(B11="","",VLOOKUP(D11,Tablas!$B$2:$H$13,7,FALSE)) -> 83577.2 | H11: 0.564831274 | I11: 683280 | J11: 5.304227881e+10 | K11: 4.744389876e+10 | L11: 4.243640318e+10 | M11: 3.795742682e+10 | N11: 3.395118678e+10 | O11: 3.036778782e+10 | P11: 2.716260091e+10 | Q11: 2.429570743e+10 | R11: 2.1731402e+10 | S11: 1.943774776e+10 | T11: 1.738617868e+10 | U11: 1.555114372e+10 | V11: 1.390978866e+10 | W11: 1.244167143e+10 | X11: 1.112850754e+10 | Y11: 4.082437303e+11 | Z11: 1360812.434
A12: =IF(ISBLANK(InfoPro!A6),"",InfoPro!A6) -> SC_454_A2 | B12: =IF(ISBLANK(InfoPro!B6),"",InfoPro!B6) -> PARQUE SOLAR SAN RAFAEL - 300 MW | C12: =IF(ISBLANK(InfoPro!E6),"",InfoPro!E6) -> 300 | D12: =IF(ISBLANK(InfoPro!F6),"",InfoPro!F6) -> Solar FV | E12: =IF(ISBLANK(InfoPro!I6),"",YEAR(InfoPro!I6)-$H$3) -> 3 | F12: =IF(B12="","",VLOOKUP(D12,Tablas!$B$2:$E$13,2,FALSE)) -> 0.26 | G12: =IF(B12="","",VLOOKUP(D12,Tablas!$B$2:$H$13,7,FALSE)) -> 83577.2 | H12: 0.564831274 | I12: 683280 | J12: 5.304227881e+10 | K12: 4.744389876e+10 | L12: 4.243640318e+10 | M12: 3.795742682e+10 | N12: 3.395118678e+10 | O12: 3.036778782e+10 | P12: 2.716260091e+10 | Q12: 2.429570743e+10 | R12: 2.1731402e+10 | S12: 1.943774776e+10 | T12: 1.738617868e+10 | U12: 1.555114372e+10 | V12: 1.390978866e+10 | W12: 1.244167143e+10 | X12: 1.112850754e+10 | Y12: 4.082437303e+11 | Z12: 1360812.434
A13: =IF(ISBLANK(InfoPro!A7),"",InfoPro!A7) -> SC_483_A1 | B13: =IF(ISBLANK(InfoPro!B7),"",InfoPro!B7) -> PARQUE SOLAR LOMAS 39.9 MW | C13: =IF(ISBLANK(InfoPro!E7),"",InfoPro!E7) -> 39.9 | D13: =IF(ISBLANK(InfoPro!F7),"",InfoPro!F7) -> Solar FV | E13: =IF(ISBLANK(InfoPro!I7),"",YEAR(InfoPro!I7)-$H$3) -> 2 | F13: =IF(B13="","",VLOOKUP(D13,Tablas!$B$2:$E$13,2,FALSE)) -> 0.26 | G13: =IF(B13="","",VLOOKUP(D13,Tablas!$B$2:$H$13,7,FALSE)) -> 83577.2 | H13: 0.564831274 | I13: 90876.24 | J13: 7887068606 | K13: 7054623082 | L13: 6310038535 | M13: 5644041623 | N13: 5048337767 | O13: 4515507842 | P13: 4038915780 | Q13: 3612625921 | R13: 3231329088 | S13: 2890276466 | T13: 2585220452 | U13: 2312361764 | V13: 2068302115 | W13: 1850001891 | X13: 1654742300 | Y13: 6.070339323e+10 | Z13: 1521388.302
A14: =IF(ISBLANK(InfoPro!A8),"",InfoPro!A8) -> SC_586_A1 | B14: =IF(ISBLANK(InfoPro!B8),"",InfoPro!B8) -> Orquídea del Sucre - Sierra Flor 60 MW | C14: =IF(ISBLANK(InfoPro!E8),"",InfoPro!E8) -> 60 | D14: =IF(ISBLANK(InfoPro!F8),"",InfoPro!F8) -> Solar FV | E14: =IF(ISBLANK(InfoPro!I8),"",YEAR(InfoPro!I8)-$H$3) -> 4 | F14: =IF(B14="","",VLOOKUP(D14,Tablas!$B$2:$E$13,2,FALSE)) -> 0.26 | G14: =IF(B14="","",VLOOKUP(D14,Tablas!$B$2:$H$13,7,FALSE)) -> 83577.2 | H14: 0.564831274 | I14: 136656 | J14: 9488779752 | K14: 8487280637 | L14: 7591485364 | M14: 6790237356 | N14: 6073557563 | O14: 5432520182 | P14: 4859141486 | Q14: 4346280399 | R14: 3887549552 | S14: 3477235735 | T14: 3110228744 | U14: 2781957731 | V14: 2488334286 | W14: 2225701508 | X14: 1990788468 | Y14: 7.303107876e+10 | Z14: 1217184.646
A15: =IF(ISBLANK(InfoPro!A9),"",InfoPro!A9) -> SC_586_A2 | B15: =IF(ISBLANK(InfoPro!B9),"",InfoPro!B9) -> Orquídea del Sucre - Sierra Flor 60 MW | C15: =IF(ISBLANK(InfoPro!E9),"",InfoPro!E9) -> 60 | D15: =IF(ISBLANK(InfoPro!F9),"",InfoPro!F9) -> Solar FV | E15: =IF(ISBLANK(InfoPro!I9),"",YEAR(InfoPro!I9)-$H$3) -> 4 | F15: =IF(B15="","",VLOOKUP(D15,Tablas!$B$2:$E$13,2,FALSE)) -> 0.26 | G15: =IF(B15="","",VLOOKUP(D15,Tablas!$B$2:$H$13,7,FALSE)) -> 83577.2 | H15: 0.564831274 | I15: 136656 | J15: 9488779752 | K15: 8487280637 | L15: 7591485364 | M15: 6790237356 | N15: 6073557563 | O15: 5432520182 | P15: 4859141486 | Q15: 4346280399 | R15: 3887549552 | S15: 3477235735 | T15: 3110228744 | U15: 2781957731 | V15: 2488334286 | W15: 2225701508 | X15: 1990788468 | Y15: 7.303107876e+10 | Z15: 1217184.646
A16: =IF(ISBLANK(InfoPro!A10),"",InfoPro!A10) -> SC_681_A1 | B16: =IF(ISBLANK(InfoPro!B10),"",InfoPro!B10) -> PARQUE SOLARLAS LAS PALMAS de 90MW | C16: =IF(ISBLANK(InfoPro!E10),"",InfoPro!E10) -> 90 | D16: =IF(ISBLANK(InfoPro!F10),"",InfoPro!F10) -> Solar FV | E16: =IF(ISBLANK(InfoPro!I10),"",YEAR(InfoPro!I10)-$H$3) -> 2 | F16: =IF(B16="","",VLOOKUP(D16,Tablas!$B$2:$E$13,2,FALSE)) -> 0.26 | G16: =IF(B16="","",VLOOKUP(D16,Tablas!$B$2:$H$13,7,FALSE)) -> 83577.2 | H16: 0.564831274 | I16: 204984 | J16: 1.779038031e+10 | K16: 1.591268364e+10 | L16: 1.423316963e+10 | M16: 1.273092095e+10 | N16: 1.138722805e+10 | O16: 1.018535603e+10 | P16: 9110336345 | Q16: 8148780273 | R16: 7288712230 | S16: 6519420599 | T16: 5831324328 | U16: 5215853603 | V16: 4665343115 | W16: 4172936597 | X16: 3732501428 | Y16: 1.369249471e+11 | Z16: 1521388.302
A17: =IF(ISBLANK(InfoPro!A11),"",InfoPro!A11) -> SC_681_A2 | B17: =IF(ISBLANK(InfoPro!B11),"",InfoPro!B11) -> PARQUE SOLARLAS LAS PALMAS de 90MW | C17: =IF(ISBLANK(InfoPro!E11),"",InfoPro!E11) -> 90 | D17: =IF(ISBLANK(InfoPro!F11),"",InfoPro!F11) -> Solar FV | E17: =IF(ISBLANK(InfoPro!I11),"",YEAR(InfoPro!I11)-$H$3) -> 2 | F17: =IF(B17="","",VLOOKUP(D17,Tablas!$B$2:$E$13,2,FALSE)) -> 0.26 | G17: =IF(B17="","",VLOOKUP(D17,Tablas!$B$2:$H$13,7,FALSE)) -> 83577.2 | H17: 0.564831274 | I17: 204984 | J17: 1.779038031e+10 | K17: 1.591268364e+10 | L17: 1.423316963e+10 | M17: 1.273092095e+10 | N17: 1.138722805e+10 | O17: 1.018535603e+10 | P17: 9110336345 | Q17: 8148780273 | R17: 7288712230 | S17: 6519420599 | T17: 5831324328 | U17: 5215853603 | V17: 4665343115 | W17: 4172936597 | X17: 3732501428 | Y17: 1.369249471e+11 | Z17: 1521388.302
A18: =IF(ISBLANK(InfoPro!A12),"",InfoPro!A12) -> SC_720_A1 | B18: =IF(ISBLANK(InfoPro!B12),"",InfoPro!B12) -> El Jazmín | C18: =IF(ISBLANK(InfoPro!E12),"",InfoPro!E12) -> 19.9 | D18: =IF(ISBLANK(InfoPro!F12),"",InfoPro!F12) -> Solar FV | E18: =IF(ISBLANK(InfoPro!I12),"",YEAR(InfoPro!I12)-$H$3) -> 2 | F18: =IF(B18="","",VLOOKUP(D18,Tablas!$B$2:$E$13,2,FALSE)) -> 0.26 | G18: =IF(B18="","",VLOOKUP(D18,Tablas!$B$2:$H$13,7,FALSE)) -> 83577.2 | H18: 0.564831274 | I18: 45324.24 | J18: =IF($I18="","",(1/(1+$C$3)^(J$6+$E18))*$I18*$C$2*$H18) -> 3933650758 | K18: 3518471161 | L18: 3147111951 | M18: 2814948078 | N18: 2517842646 | O18: 2252095390 | P18: 2014396592 | Q18: 1801785860 | R18: 1611615260 | S18: 1441516332 | T18: 1289370601 | U18: 1153283186 | V18: 1031559200 | W18: 922682647.6 | X18: 825297538.1 | Y18: 3.02756272e+10 | Z18: 1521388.302
A19: =IF(ISBLANK(InfoPro!A13),"",InfoPro!A13) -> SC_720_A2 | B19: =IF(ISBLANK(InfoPro!B13),"",InfoPro!B13) -> El Jazmín | C19: =IF(ISBLANK(InfoPro!E13),"",InfoPro!E13) -> 19.9 | D19: =IF(ISBLANK(InfoPro!F13),"",InfoPro!F13) -> Solar FV | E19: =IF(ISBLANK(InfoPro!I13),"",YEAR(InfoPro!I13)-$H$3) -> 2 | F19: =IF(B19="","",VLOOKUP(D19,Tablas!$B$2:$E$13,2,FALSE)) -> 0.26 | G19: =IF(B19="","",VLOOKUP(D19,Tablas!$B$2:$H$13,7,FALSE)) -> 83577.2 | H19: 0.564831274 | I19: 45324.24 | J19: 3933650758 | K19: 3518471161 | L19: 3147111951 | M19: 2814948078 | N19: 2517842646 | O19: 2252095390 | P19: 2014396592 | Q19: 1801785860 | R19: 1611615260 | S19: 1441516332 | T19: 1289370601 | U19: 1153283186 | V19: 1031559200 | W19: 922682647.6 | X19: 825297538.1 | Y19: 3.02756272e+10 | Z19: 1521388.302
A20: =IF(ISBLANK(InfoPro!A14),"",InfoPro!A14) -> SC_713_A1 | B20: =IF(ISBLANK(InfoPro!B14),"",InfoPro!B14) -> Crucero - 300MW | C20: =IF(ISBLANK(InfoPro!E14),"",InfoPro!E14) -> 300 | D20: =IF(ISBLANK(InfoPro!F14),"",InfoPro!F14) -> Solar FV | E20: =IF(ISBLANK(InfoPro!I14),"",YEAR(InfoPro!I14)-$H$3) -> 4 | F20: =IF(B20="","",VLOOKUP(D20,Tablas!$B$2:$E$13,2,FALSE)) -> 0.26 | G20: =IF(B20="","",VLOOKUP(D20,Tablas!$B$2:$H$13,7,FALSE)) -> 83577.2 | H20: 0.564831274 | I20: 683280 | J20: 4.744389876e+10 | K20: 4.243640318e+10 | L20: 3.795742682e+10 | M20: 3.395118678e+10 | N20: 3.036778782e+10 | O20: 2.716260091e+10 | P20: 2.429570743e+10 | Q20: 2.1731402e+10 | R20: 1.943774776e+10 | S20: 1.738617868e+10 | T20: 1.555114372e+10 | U20: 1.390978866e+10 | V20: 1.244167143e+10 | W20: 1.112850754e+10 | X20: 9953942342 | Y20: 3.651553938e+11 | Z20: 1217184.646
A21: =IF(ISBLANK(InfoPro!A15),"",InfoPro!A15) -> SC_836_A1 | B21: =IF(ISBLANK(InfoPro!B15),"",InfoPro!B15) -> BONGO DEL SINÚ DE 19.9 MW | C21: =IF(ISBLANK(InfoPro!E15),"",InfoPro!E15) -> 19.9 | D21: =IF(ISBLANK(InfoPro!F15),"",InfoPro!F15) -> Solar FV | E21: =IF(ISBLANK(InfoPro!I15),"",YEAR(InfoPro!I15)-$H$3) -> 2 | F21: =IF(B21="","",VLOOKUP(D21,Tablas!$B$2:$E$13,2,FALSE)) -> 0.26 | G21: =IF(B21="","",VLOOKUP(D21,Tablas!$B$2:$H$13,7,FALSE)) -> 83577.2 | H21: 0.564831274 | I21: 45324.24 | J21: 3933650758 | K21: 3518471161 | L21: 3147111951 | M21: 2814948078 | N21: 2517842646 | O21: 2252095390 | P21: 2014396592 | Q21: 1801785860 | R21: 1611615260 | S21: 1441516332 | T21: 1289370601 | U21: 1153283186 | V21: 1031559200 | W21: 922682647.6 | X21: 825297538.1 | Y21: 3.02756272e+10 | Z21: 1521388.302
A22: =IF(ISBLANK(InfoPro!A16),"",InfoPro!A16) -> SC_836_A2 | B22: =IF(ISBLANK(InfoPro!B16),"",InfoPro!B16) -> BONGO DEL SINÚ DE 19.9 MW | C22: =IF(ISBLANK(InfoPro!E16),"",InfoPro!E16) -> 19.9 | D22: =IF(ISBLANK(InfoPro!F16),"",InfoPro!F16) -> Solar FV | E22: =IF(ISBLANK(InfoPro!I16),"",YEAR(InfoPro!I16)-$H$3) -> 2 | F22: =IF(B22="","",VLOOKUP(D22,Tablas!$B$2:$E$13,2,FALSE)) -> 0.26 | G22: =IF(B22="","",VLOOKUP(D22,Tablas!$B$2:$H$13,7,FALSE)) -> 83577.2 | H22: 0.564831274 | I22: 45324.24 | J22: 3933650758 | K22: 3518471161 | L22: 3147111951 | M22: 2814948078 | N22: 2517842646 | O22: 2252095390 | P22: 2014396592 | Q22: 1801785860 | R22: 1611615260 | S22: 1441516332 | T22: 1289370601 | U22: 1153283186 | V22: 1031559200 | W22: 922682647.6 | X22: 825297538.1 | Y22: 3.02756272e+10 | Z22: 1521388.302
A23: =IF(ISBLANK(InfoPro!A17),"",InfoPro!A17) -> SC_778_A1 | B23: =IF(ISBLANK(InfoPro!B17),"",InfoPro!B17) -> KOS 19.9 | C23: =IF(ISBLANK(InfoPro!E17),"",InfoPro!E17) -> 19.9 | D23: =IF(ISBLANK(InfoPro!F17),"",InfoPro!F17) -> Solar FV | E23: =IF(ISBLANK(InfoPro!I17),"",YEAR(InfoPro!I17)-$H$3) -> 2 | F23: =IF(B23="","",VLOOKUP(D23,Tablas!$B$2:$E$13,2,FALSE)) -> 0.26 | G23: =IF(B23="","",VLOOKUP(D23,Tablas!$B$2:$H$13,7,FALSE)) -> 83577.2 | H23: 0.564831274 | I23: 45324.24 | J23: 3933650758 | K23: 3518471161 | L23: 3147111951 | M23: 2814948078 | N23: 2517842646 | O23: 2252095390 | P23: 2014396592 | Q23: 1801785860 | R23: 1611615260 | S23: 1441516332 | T23: 1289370601 | U23: 1153283186 | V23: 1031559200 | W23: 922682647.6 | X23: 825297538.1 | Y23: 3.02756272e+10 | Z23: 1521388.302
A24: =IF(ISBLANK(InfoPro!A18),"",InfoPro!A18) -> SC_778_A2 | B24: =IF(ISBLANK(InfoPro!B18),"",InfoPro!B18) -> KOS 19.9 | C24: =IF(ISBLANK(InfoPro!E18),"",InfoPro!E18) -> 19.9 | D24: =IF(ISBLANK(InfoPro!F18),"",InfoPro!F18) -> Solar FV | E24: =IF(ISBLANK(InfoPro!I18),"",YEAR(InfoPro!I18)-$H$3) -> 2 | F24: =IF(B24="","",VLOOKUP(D24,Tablas!$B$2:$E$13,2,FALSE)) -> 0.26 | G24: =IF(B24="","",VLOOKUP(D24,Tablas!$B$2:$H$13,7,FALSE)) -> 83577.2 | H24: 0.564831274 | I24: 45324.24 | J24: 3933650758 | K24: 3518471161 | L24: 3147111951 | M24: 2814948078 | N24: 2517842646 | O24: 2252095390 | P24: 2014396592 | Q24: 1801785860 | R24: 1611615260 | S24: 1441516332 | T24: 1289370601 | U24: 1153283186 | V24: 1031559200 | W24: 922682647.6 | X24: 825297538.1 | Y24: 3.02756272e+10 | Z24: 1521388.302
A25: =IF(ISBLANK(InfoPro!A19),"",InfoPro!A19) -> SC_942_A1 | B25: =IF(ISBLANK(InfoPro!B19),"",InfoPro!B19) -> PASCUA_60MW | C25: =IF(ISBLANK(InfoPro!E19),"",InfoPro!E19) -> 60 | D25: =IF(ISBLANK(InfoPro!F19),"",InfoPro!F19) -> Solar FV | E25: =IF(ISBLANK(InfoPro!I19),"",YEAR(InfoPro!I19)-$H$3) -> 3 | F25: =IF(B25="","",VLOOKUP(D25,Tablas!$B$2:$E$13,2,FALSE)) -> 0.26 | G25: =IF(B25="","",VLOOKUP(D25,Tablas!$B$2:$H$13,7,FALSE)) -> 83577.2 | H25: 0.564831274 | I25: 136656 | J25: 1.060845576e+10 | K25: 9488779752 | L25: 8487280637 | M25: 7591485364 | N25: 6790237356 | O25: 6073557563 | P25: 5432520182 | Q25: 4859141486 | R25: 4346280399 | S25: 3887549552 | T25: 3477235735 | U25: 3110228744 | V25: 2781957731 | W25: 2488334286 | X25: 2225701508 | Y25: 8.164874606e+10 | Z25: 1360812.434
A26: =IF(ISBLANK(InfoPro!A20),"",InfoPro!A20) -> SC_942_A2 | B26: =IF(ISBLANK(InfoPro!B20),"",InfoPro!B20) -> PASCUA_60MW | C26: =IF(ISBLANK(InfoPro!E20),"",InfoPro!E20) -> 60 | D26: =IF(ISBLANK(InfoPro!F20),"",InfoPro!F20) -> Solar FV | E26: =IF(ISBLANK(InfoPro!I20),"",YEAR(InfoPro!I20)-$H$3) -> 3 | F26: =IF(B26="","",VLOOKUP(D26,Tablas!$B$2:$E$13,2,FALSE)) -> 0.26 | G26: =IF(B26="","",VLOOKUP(D26,Tablas!$B$2:$H$13,7,FALSE)) -> 83577.2 | H26: 0.564831274 | I26: 136656 | J26: 1.060845576e+10 | K26: 9488779752 | L26: 8487280637 | M26: 7591485364 | N26: 6790237356 | O26: 6073557563 | P26: 5432520182 | Q26: 4859141486 | R26: 4346280399 | S26: 3887549552 | T26: 3477235735 | U26: 3110228744 | V26: 2781957731 | W26: 2488334286 | X26: 2225701508 | Y26: 8.164874606e+10 | Z26: 1360812.434
A27: =IF(ISBLANK(InfoPro!A21),"",InfoPro!A21) -> SC_1763_A1 | B27: =IF(ISBLANK(InfoPro!B21),"",InfoPro!B21) -> Taurus Solar de 22MW (19,5 MW) | C27: =IF(ISBLANK(InfoPro!E21),"",InfoPro!E21) -> 19.5 | D27: =IF(ISBLANK(InfoPro!F21),"",InfoPro!F21) -> Solar FV | E27: =IF(ISBLANK(InfoPro!I21),"",YEAR(InfoPro!I21)-$H$3) -> 2 | F27: =IF(B27="","",VLOOKUP(D27,Tablas!$B$2:$E$13,2,FALSE)) -> 0.26 | G27: =IF(B27="","",VLOOKUP(D27,Tablas!$B$2:$H$13,7,FALSE)) -> 83577.2 | H27: 0.564831274 | I27: 44413.2 | J27: 3854582401 | K27: 3447748123 | L27: 3083853419 | M27: 2758366207 | N27: 2467232743 | O27: 2206827141 | P27: 1973906208 | Q27: 1765569059 | R27: 1579220983 | S27: 1412541130 | T27: 1263453604 | U27: 1130101614 | V27: 1010824342 | W27: 904136262.7 | X27: 808708642.8 | Y27: 2.966707188e+10 | Z27: 1521388.302
A28: =IF(ISBLANK(InfoPro!A22),"",InfoPro!A22) -> SC_1763_A2 | B28: =IF(ISBLANK(InfoPro!B22),"",InfoPro!B22) -> Taurus Solar de 22MW (19,5 MW) | C28: =IF(ISBLANK(InfoPro!E22),"",InfoPro!E22) -> 19.5 | D28: =IF(ISBLANK(InfoPro!F22),"",InfoPro!F22) -> Solar FV | E28: =IF(ISBLANK(InfoPro!I22),"",YEAR(InfoPro!I22)-$H$3) -> 2 | F28: =IF(B28="","",VLOOKUP(D28,Tablas!$B$2:$E$13,2,FALSE)) -> 0.26 | G28: =IF(B28="","",VLOOKUP(D28,Tablas!$B$2:$H$13,7,FALSE)) -> 83577.2 | H28: 0.564831274 | I28: 44413.2 | J28: =IF($I28="","",(1/(1+$C$3)^(J$6+$E28))*$I28*$C$2*$H28) -> 3854582401 | K28: 3447748123 | L28: 3083853419 | M28: 2758366207 | N28: 2467232743 | O28: 2206827141 | P28: 1973906208 | Q28: 1765569059 | R28: 1579220983 | S28: 1412541130 | T28: 1263453604 | U28: 1130101614 | V28: 1010824342 | W28: 904136262.7 | X28: 808708642.8 | Y28: 2.966707188e+10 | Z28: 1521388.302
A29: =IF(ISBLANK(InfoPro!A23),"",InfoPro!A23) -> SC_828_A1 | B29: =IF(ISBLANK(InfoPro!B23),"",InfoPro!B23) -> PARQUE SOLAR EL VASCO | C29: =IF(ISBLANK(InfoPro!E23),"",InfoPro!E23) -> 60 | D29: =IF(ISBLANK(InfoPro!F23),"",InfoPro!F23) -> Solar FV | E29: =IF(ISBLANK(InfoPro!I23),"",YEAR(InfoPro!I23)-$H$3) -> 3 | F29: =IF(B29="","",VLOOKUP(D29,Tablas!$B$2:$E$13,2,FALSE)) -> 0.26 | G29: =IF(B29="","",VLOOKUP(D29,Tablas!$B$2:$H$13,7,FALSE)) -> 83577.2 | H29: 0.564831274 | I29: 136656 | J29: 1.060845576e+10 | K29: 9488779752 | L29: 8487280637 | M29: 7591485364 | N29: 6790237356 | O29: 6073557563 | P29: 5432520182 | Q29: 4859141486 | R29: 4346280399 | S29: 3887549552 | T29: 3477235735 | U29: 3110228744 | V29: 2781957731 | W29: 2488334286 | X29: 2225701508 | Y29: 8.164874606e+10 | Z29: 1360812.434
A30: =IF(ISBLANK(InfoPro!A24),"",InfoPro!A24) -> SC_828_A2 | B30: =IF(ISBLANK(InfoPro!B24),"",InfoPro!B24) -> PARQUE SOLAR EL VASCO | C30: =IF(ISBLANK(InfoPro!E24),"",InfoPro!E24) -> 60 | D30: =IF(ISBLANK(InfoPro!F24),"",InfoPro!F24) -> Solar FV | E30: =IF(ISBLANK(InfoPro!I24),"",YEAR(InfoPro!I24)-$H$3) -> 3 | F30: =IF(B30="","",VLOOKUP(D30,Tablas!$B$2:$E$13,2,FALSE)) -> 0.26 | G30: =IF(B30="","",VLOOKUP(D30,Tablas!$B$2:$H$13,7,FALSE)) -> 83577.2 | H30: 0.564831274 | I30: 136656 | J30: 1.060845576e+10 | K30: 9488779752 | L30: 8487280637 | M30: 7591485364 | N30: 6790237356 | O30: 6073557563 | P30: 5432520182 | Q30: 4859141486 | R30: 4346280399 | S30: 3887549552 | T30: 3477235735 | U30: 3110228744 | V30: 2781957731 | W30: 2488334286 | X30: 2225701508 | Y30: 8.164874606e+10 | Z30: 1360812.434
A31: =IF(ISBLANK(InfoPro!A25),"",InfoPro!A25) -> SC_1179_A1 | B31: =IF(ISBLANK(InfoPro!B25),"",InfoPro!B25) -> Montes 90 MW | C31: =IF(ISBLANK(InfoPro!E25),"",InfoPro!E25) -> 90 | D31: =IF(ISBLANK(InfoPro!F25),"",InfoPro!F25) -> Solar FV | E31: =IF(ISBLANK(InfoPro!I25),"",YEAR(InfoPro!I25)-$H$3) -> 3 | F31: =IF(B31="","",VLOOKUP(D31,Tablas!$B$2:$E$13,2,FALSE)) -> 0.26 | G31: =IF(B31="","",VLOOKUP(D31,Tablas!$B$2:$H$13,7,FALSE)) -> 83577.2 | H31: 0.564831274 | I31: 204984 | J31: 1.591268364e+10 | K31: 1.423316963e+10 | L31: 1.273092095e+10 | M31: 1.138722805e+10 | N31: 1.018535603e+10 | O31: 9110336345 | P31: 8148780273 | Q31: 7288712230 | R31: 6519420599 | S31: 5831324328 | T31: 5215853603 | U31: 4665343115 | V31: 4172936597 | W31: 3732501428 | X31: 3338552262 | Y31: 1.224731191e+11 | Z31: 1360812.434
A32: =IF(ISBLANK(InfoPro!A26),"",InfoPro!A26) -> SC_1179_A2 | B32: =IF(ISBLANK(InfoPro!B26),"",InfoPro!B26) -> Montes 90 MW | C32: =IF(ISBLANK(InfoPro!E26),"",InfoPro!E26) -> 90 | D32: =IF(ISBLANK(InfoPro!F26),"",InfoPro!F26) -> Solar FV | E32: =IF(ISBLANK(InfoPro!I26),"",YEAR(InfoPro!I26)-$H$3) -> 3 | F32: =IF(B32="","",VLOOKUP(D32,Tablas!$B$2:$E$13,2,FALSE)) -> 0.26 | G32: =IF(B32="","",VLOOKUP(D32,Tablas!$B$2:$H$13,7,FALSE)) -> 83577.2 | H32: 0.564831274 | I32: 204984 | J32: 1.591268364e+10 | K32: 1.423316963e+10 | L32: 1.273092095e+10 | M32: 1.138722805e+10 | N32: 1.018535603e+10 | O32: 9110336345 | P32: 8148780273 | Q32: 7288712230 | R32: 6519420599 | S32: 5831324328 | T32: 5215853603 | U32: 4665343115 | V32: 4172936597 | W32: 3732501428 | X32: 3338552262 | Y32: 1.224731191e+11 | Z32: 1360812.434
A33: =IF(ISBLANK(InfoPro!A27),"",InfoPro!A27) -> SC_1206_A1 | B33: =IF(ISBLANK(InfoPro!B27),"",InfoPro!B27) -> Cerromatoso Solar 300 MW | C33: =IF(ISBLANK(InfoPro!E27),"",InfoPro!E27) -> 300 | D33: =IF(ISBLANK(InfoPro!F27),"",InfoPro!F27) -> Solar FV | E33: =IF(ISBLANK(InfoPro!I27),"",YEAR(InfoPro!I27)-$H$3) -> 5 | F33: =IF(B33="","",VLOOKUP(D33,Tablas!$B$2:$E$13,2,FALSE)) -> 0.26 | G33: =IF(B33="","",VLOOKUP(D33,Tablas!$B$2:$H$13,7,FALSE)) -> 83577.2 | H33: 0.564831274 | I33: 683280 | J33: 4.243640318e+10 | K33: 3.795742682e+10 | L33: 3.395118678e+10 | M33: 3.036778782e+10 | N33: 2.716260091e+10 | O33: 2.429570743e+10 | P33: 2.1731402e+10 | Q33: 1.943774776e+10 | R33: 1.738617868e+10 | S33: 1.555114372e+10 | T33: 1.390978866e+10 | U33: 1.244167143e+10 | V33: 1.112850754e+10 | W33: 9953942342 | X33: 8903347354 | Y33: 3.266148424e+11 | Z33: 1088716.141
A34: =IF(ISBLANK(InfoPro!A28),"",InfoPro!A28) -> SC_1206_A2 | B34: =IF(ISBLANK(InfoPro!B28),"",InfoPro!B28) -> Cerromatoso Solar 300 MW | C34: =IF(ISBLANK(InfoPro!E28),"",InfoPro!E28) -> 300 | D34: =IF(ISBLANK(InfoPro!F28),"",InfoPro!F28) -> Solar FV | E34: =IF(ISBLANK(InfoPro!I28),"",YEAR(InfoPro!I28)-$H$3) -> 5 | F34: =IF(B34="","",VLOOKUP(D34,Tablas!$B$2:$E$13,2,FALSE)) -> 0.26 | G34: =IF(B34="","",VLOOKUP(D34,Tablas!$B$2:$H$13,7,FALSE)) -> 83577.2 | H34: 0.564831274 | I34: 683280 | J34: 4.243640318e+10 | K34: 3.795742682e+10 | L34: 3.395118678e+10 | M34: 3.036778782e+10 | N34: 2.716260091e+10 | O34: 2.429570743e+10 | P34: 2.1731402e+10 | Q34: 1.943774776e+10 | R34: 1.738617868e+10 | S34: 1.555114372e+10 | T34: 1.390978866e+10 | U34: 1.244167143e+10 | V34: 1.112850754e+10 | W34: 9953942342 | X34: 8903347354 | Y34: 3.266148424e+11 | Z34: 1088716.141
A35: =IF(ISBLANK(InfoPro!A29),"",InfoPro!A29) -> SC_1372_A1 | B35: =IF(ISBLANK(InfoPro!B29),"",InfoPro!B29) -> Pétalo del Bolívar I Magangué | C35: =IF(ISBLANK(InfoPro!E29),"",InfoPro!E29) -> 9.9 | D35: =IF(ISBLANK(InfoPro!F29),"",InfoPro!F29) -> Solar FV | E35: =IF(ISBLANK(InfoPro!I29),"",YEAR(InfoPro!I29)-$H$3) -> 2 | F35: =IF(B35="","",VLOOKUP(D35,Tablas!$B$2:$E$13,2,FALSE)) -> 0.26 | G35: =IF(B35="","",VLOOKUP(D35,Tablas!$B$2:$H$13,7,FALSE)) -> 83577.2 | H35: 0.564831274 | I35: 22548.24 | J35: 1956941835 | K35: 1750395201 | L35: 1565648659 | M35: 1400401305 | N35: 1252595085 | O35: 1120389164 | P35: 1002136998 | Q35: 896365830 | R35: 801758345.3 | S35: 717136265.9 | T35: 641445676.1 | U35: 573743896.3 | V35: 513187742.7 | W35: 459023025.7 | X35: 410575157.1 | Y35: 1.506174419e+10 | Z35: 1521388.302
A36: =IF(ISBLANK(InfoPro!A30),"",InfoPro!A30) -> SC_1372_A2 | B36: =IF(ISBLANK(InfoPro!B30),"",InfoPro!B30) -> Pétalo del Bolívar I Magangué | C36: =IF(ISBLANK(InfoPro!E30),"",InfoPro!E30) -> 9.9 | D36: =IF(ISBLANK(InfoPro!F30),"",InfoPro!F30) -> Solar FV | E36: =IF(ISBLANK(InfoPro!I30),"",YEAR(InfoPro!I30)-$H$3) -> 2 | F36: =IF(B36="","",VLOOKUP(D36,Tablas!$B$2:$E$13,2,FALSE)) -> 0.26 | G36: =IF(B36="","",VLOOKUP(D36,Tablas!$B$2:$H$13,7,FALSE)) -> 83577.2 | H36: 0.564831274 | I36: 22548.24 | J36: 1956941835 | K36: 1750395201 | L36: 1565648659 | M36: 1400401305 | N36: 1252595085 | O36: 1120389164 | P36: 1002136998 | Q36: 896365830 | R36: 801758345.3 | S36: 717136265.9 | T36: 641445676.1 | U36: 573743896.3 | V36: 513187742.7 | W36: 459023025.7 | X36: 410575157.1 | Y36: 1.506174419e+10 | Z36: 1521388.302
A37: =IF(ISBLANK(InfoPro!A31),"",InfoPro!A31) -> SC_692_A1 | B37: =IF(ISBLANK(InfoPro!B31),"",InfoPro!B31) -> TermoJobo | C37: =IF(ISBLANK(InfoPro!E31),"",InfoPro!E31) -> 9.9 | D37: =IF(ISBLANK(InfoPro!F31),"",InfoPro!F31) -> Termica a vapor | E37: =IF(ISBLANK(InfoPro!I31),"",YEAR(InfoPro!I31)-$H$3) -> 1 | F37: =IF(B37="","",VLOOKUP(D37,Tablas!$B$2:$E$13,2,FALSE)) -> 0.85 | G37: =IF(B37="","",VLOOKUP(D37,Tablas!$B$2:$H$13,7,FALSE)) -> 267152.5 | H37: -0.3910063158 | I37: 73715.4 | J37: -4951426494 | K37: -4428825129 | L37: -3961382048 | M37: -3543275534 | N37: -3169298331 | O37: -2834792783 | P37: -2535592829 | Q37: -2267972119 | R37: -2028597602 | S37: -1814488016 | T37: -1622976759 | U37: -1451678675 | V37: -1298460353 | W37: -1161413554 | X37: -1038831444 | Y37: -3.810901167e+10 | Z37: -3849395.118
A38: =IF(ISBLANK(InfoPro!A32),"",InfoPro!A32) -> SC_1057_A1 | B38: =IF(ISBLANK(InfoPro!B32),"",InfoPro!B32) -> Río Sinú Solar I 9,9 MW | C38: =IF(ISBLANK(InfoPro!E32),"",InfoPro!E32) -> 9.9 | D38: =IF(ISBLANK(InfoPro!F32),"",InfoPro!F32) -> Solar FV | E38: =IF(ISBLANK(InfoPro!I32),"",YEAR(InfoPro!I32)-$H$3) -> 2 | F38: =IF(B38="","",VLOOKUP(D38,Tablas!$B$2:$E$13,2,FALSE)) -> 0.26 | G38: =IF(B38="","",VLOOKUP(D38,Tablas!$B$2:$H$13,7,FALSE)) -> 83577.2 | H38: 0.564831274 | I38: 22548.24 | J38: =IF($I38="","",(1/(1+$C$3)^(J$6+$E38))*$I38*$C$2*$H38) -> 1956941835 | K38: 1750395201 | L38: 1565648659 | M38: 1400401305 | N38: 1252595085 | O38: 1120389164 | P38: 1002136998 | Q38: 896365830 | R38: 801758345.3 | S38: 717136265.9 | T38: 641445676.1 | U38: 573743896.3 | V38: 513187742.7 | W38: 459023025.7 | X38: 410575157.1 | Y38: 1.506174419e+10 | Z38: 1521388.302
A39: =IF(ISBLANK(InfoPro!A33),"",InfoPro!A33) -> SC_1057_A2 | B39: =IF(ISBLANK(InfoPro!B33),"",InfoPro!B33) -> Río Sinú Solar I 9,9 MW | C39: =IF(ISBLANK(InfoPro!E33),"",InfoPro!E33) -> 9.9 | D39: =IF(ISBLANK(InfoPro!F33),"",InfoPro!F33) -> Solar FV | E39: =IF(ISBLANK(InfoPro!I33),"",YEAR(InfoPro!I33)-$H$3) -> 2 | F39: =IF(B39="","",VLOOKUP(D39,Tablas!$B$2:$E$13,2,FALSE)) -> 0.26 | G39: =IF(B39="","",VLOOKUP(D39,Tablas!$B$2:$H$13,7,FALSE)) -> 83577.2 | H39: 0.564831274 | I39: 22548.24 | J39: 1956941835 | K39: 1750395201 | L39: 1565648659 | M39: 1400401305 | N39: 1252595085 | O39: 1120389164 | P39: 1002136998 | Q39: 896365830 | R39: 801758345.3 | S39: 717136265.9 | T39: 641445676.1 | U39: 573743896.3 | V39: 513187742.7 | W39: 459023025.7 | X39: 410575157.1 | Y39: 1.506174419e+10 | Z39: 1521388.302
A40: =IF(ISBLANK(InfoPro!A34),"",InfoPro!A34) -> SC_1058_A1 | B40: =IF(ISBLANK(InfoPro!B34),"",InfoPro!B34) -> Río Sinú Solar II 9,9 MW | C40: =IF(ISBLANK(InfoPro!E34),"",InfoPro!E34) -> 9.9 | D40: =IF(ISBLANK(InfoPro!F34),"",InfoPro!F34) -> Solar FV | E40: =IF(ISBLANK(InfoPro!I34),"",YEAR(InfoPro!I34)-$H$3) -> 2 | F40: =IF(B40="","",VLOOKUP(D40,Tablas!$B$2:$E$13,2,FALSE)) -> 0.26 | G40: =IF(B40="","",VLOOKUP(D40,Tablas!$B$2:$H$13,7,FALSE)) -> 83577.2 | H40: 0.564831274 | I40: =IF(C40="","",+C40*F40*24*365) -> 22548.24 | J40: 1956941835 | K40: 1750395201 | L40: 1565648659 | M40: 1400401305 | N40: 1252595085 | O40: 1120389164 | P40: 1002136998 | Q40: 896365830 | R40: 801758345.3 | S40: 717136265.9 | T40: 641445676.1 | U40: 573743896.3 | V40: 513187742.7 | W40: 459023025.7 | X40: 410575157.1 | Y40: 1.506174419e+10 | Z40: 1521388.302
A41: =IF(ISBLANK(InfoPro!A35),"",InfoPro!A35) -> SC_1058_A2 | B41: =IF(ISBLANK(InfoPro!B35),"",InfoPro!B35) -> Río Sinú Solar II 9,9 MW | C41: =IF(ISBLANK(InfoPro!E35),"",InfoPro!E35) -> 9.9 | D41: =IF(ISBLANK(InfoPro!F35),"",InfoPro!F35) -> Solar FV | E41: =IF(ISBLANK(InfoPro!I35),"",YEAR(InfoPro!I35)-$H$3) -> 2 | F41: =IF(B41="","",VLOOKUP(D41,Tablas!$B$2:$E$13,2,FALSE)) -> 0.26 | G41: =IF(B41="","",VLOOKUP(D41,Tablas!$B$2:$H$13,7,FALSE)) -> 83577.2 | H41: 0.564831274 | I41: 22548.24 | J41: 1956941835 | K41: 1750395201 | L41: 1565648659 | M41: 1400401305 | N41: 1252595085 | O41: 1120389164 | P41: 1002136998 | Q41: 896365830 | R41: 801758345.3 | S41: 717136265.9 | T41: 641445676.1 | U41: 573743896.3 | V41: 513187742.7 | W41: 459023025.7 | X41: 410575157.1 | Y41: 1.506174419e+10 | Z41: 1521388.302
A42: =IF(ISBLANK(InfoPro!A36),"",InfoPro!A36) -> SC_855_A1 | B42: =IF(ISBLANK(InfoPro!B36),"",InfoPro!B36) -> El Lirio | C42: =IF(ISBLANK(InfoPro!E36),"",InfoPro!E36) -> 19.9 | D42: =IF(ISBLANK(InfoPro!F36),"",InfoPro!F36) -> Solar FV | E42: =IF(ISBLANK(InfoPro!I36),"",YEAR(InfoPro!I36)-$H$3) -> 2 | F42: =IF(B42="","",VLOOKUP(D42,Tablas!$B$2:$E$13,2,FALSE)) -> 0.26 | G42: =IF(B42="","",VLOOKUP(D42,Tablas!$B$2:$H$13,7,FALSE)) -> 83577.2 | H42: 0.564831274 | I42: 45324.24 | J42: 3933650758 | K42: 3518471161 | L42: 3147111951 | M42: 2814948078 | N42: 2517842646 | O42: 2252095390 | P42: 2014396592 | Q42: 1801785860 | R42: 1611615260 | S42: 1441516332 | T42: 1289370601 | U42: 1153283186 | V42: 1031559200 | W42: 922682647.6 | X42: 825297538.1 | Y42: 3.02756272e+10 | Z42: 1521388.302
A43: =IF(ISBLANK(InfoPro!A37),"",InfoPro!A37) -> SC_855_A2 | B43: =IF(ISBLANK(InfoPro!B37),"",InfoPro!B37) -> El Lirio | C43: =IF(ISBLANK(InfoPro!E37),"",InfoPro!E37) -> 19.9 | D43: =IF(ISBLANK(InfoPro!F37),"",InfoPro!F37) -> Solar FV | E43: =IF(ISBLANK(InfoPro!I37),"",YEAR(InfoPro!I37)-$H$3) -> 2 | F43: =IF(B43="","",VLOOKUP(D43,Tablas!$B$2:$E$13,2,FALSE)) -> 0.26 | G43: =IF(B43="","",VLOOKUP(D43,Tablas!$B$2:$H$13,7,FALSE)) -> 83577.2 | H43: 0.564831274 | I43: 45324.24 | J43: 3933650758 | K43: 3518471161 | L43: 3147111951 | M43: 2814948078 | N43: 2517842646 | O43: 2252095390 | P43: 2014396592 | Q43: 1801785860 | R43: 1611615260 | S43: 1441516332 | T43: 1289370601 | U43: 1153283186 | V43: 1031559200 | W43: 922682647.6 | X43: 825297538.1 | Y43: 3.02756272e+10 | Z43: 1521388.302
A44: =IF(ISBLANK(InfoPro!A38),"",InfoPro!A38) -> SC_630_A1 | B44: =IF(ISBLANK(InfoPro!B38),"",InfoPro!B38) -> TR Solar 14 | C44: =IF(ISBLANK(InfoPro!E38),"",InfoPro!E38) -> 99.9 | D44: =IF(ISBLANK(InfoPro!F38),"",InfoPro!F38) -> Solar FV | E44: =IF(ISBLANK(InfoPro!I38),"",YEAR(InfoPro!I38)-$H$3) -> 3 | F44: =IF(B44="","",VLOOKUP(D44,Tablas!$B$2:$E$13,2,FALSE)) -> 0.26 | G44: =IF(B44="","",VLOOKUP(D44,Tablas!$B$2:$H$13,7,FALSE)) -> 83577.2 | H44: 0.564831274 | I44: 227532.24 | J44: 1.766307884e+10 | K44: 1.579881829e+10 | L44: 1.413132226e+10 | M44: 1.263982313e+10 | N44: 1.13057452e+10 | O44: 1.011247334e+10 | P44: 9045146103 | Q44: 8090470575 | R44: 7236556865 | S44: 6472770004 | T44: 5789597499 | U44: 5178530858 | V44: 4631959623 | W44: 4143076586 | X44: 3705793010 | Y44: 1.359451622e+11 | Z44: 1360812.434
A45: =IF(ISBLANK(InfoPro!A39),"",InfoPro!A39) -> SC_1269_A1 | B45: =IF(ISBLANK(InfoPro!B39),"",InfoPro!B39) -> Centro Solar II 4 MW | C45: =IF(ISBLANK(InfoPro!E39),"",InfoPro!E39) -> 4 | D45: =IF(ISBLANK(InfoPro!F39),"",InfoPro!F39) -> Solar FV | E45: =IF(ISBLANK(InfoPro!I39),"",YEAR(InfoPro!I39)-$H$3) -> 0 | F45: =IF(B45="","",VLOOKUP(D45,Tablas!$B$2:$E$13,2,FALSE)) -> 0.26 | G45: =IF(B45="","",VLOOKUP(D45,Tablas!$B$2:$H$13,7,FALSE)) -> 83577.2 | H45: 0.564831274 | I45: 9110.4 | J45: 988294369.9 | K45: 883984230.7 | L45: 790683569.5 | M45: 707230384.2 | N45: 632585316.8 | O45: 565818709.1 | P45: 506099024.2 | Q45: 452682490.4 | R45: 404903837.6 | S45: 362168012.1 | T45: 323942765.8 | U45: 289752026.6 | V45: 259169970.1 | W45: 231815715.7 | X45: 207348582.9 | Y45: 7606479006 | Z45: 1901619.751
A46: =IF(ISBLANK(InfoPro!A40),"",InfoPro!A40) -> SC_1268_A1 | B46: =IF(ISBLANK(InfoPro!B40),"",InfoPro!B40) -> Sol de Ayapel II de 7 MW | C46: =IF(ISBLANK(InfoPro!E40),"",InfoPro!E40) -> 7 | D46: =IF(ISBLANK(InfoPro!F40),"",InfoPro!F40) -> Solar FV | E46: =IF(ISBLANK(InfoPro!I40),"",YEAR(InfoPro!I40)-$H$3) -> 1 | F46: =IF(B46="","",VLOOKUP(D46,Tablas!$B$2:$E$13,2,FALSE)) -> 0.26 | G46: =IF(B46="","",VLOOKUP(D46,Tablas!$B$2:$H$13,7,FALSE)) -> 83577.2 | H46: 0.564831274 | I46: 15943.2 | J46: 1546972404 | K46: 1383696247 | L46: 1237653172 | M46: 1107024304 | N46: 990182740.9 | O46: 885673292.4 | P46: 792194358.2 | Q46: 708581715.7 | R46: 633794021.2 | S46: 566899840.1 | T46: 507066046.6 | U46: 453547447.8 | V46: 405677502.5 | W46: 362860020.1 | X46: 324561735.3 | Y46: 1.190638485e+10 | Z46: 1700912.121
A47: =IF(ISBLANK(InfoPro!A41),"",InfoPro!A41) -> SC_1268_A2 | B47: =IF(ISBLANK(InfoPro!B41),"",InfoPro!B41) -> Sol de Ayapel II de 7 MW | C47: =IF(ISBLANK(InfoPro!E41),"",InfoPro!E41) -> 7 | D47: =IF(ISBLANK(InfoPro!F41),"",InfoPro!F41) -> Solar FV | E47: =IF(ISBLANK(InfoPro!I41),"",YEAR(InfoPro!I41)-$H$3) -> 1 | F47: =IF(B47="","",VLOOKUP(D47,Tablas!$B$2:$E$13,2,FALSE)) -> 0.26 | G47: =IF(B47="","",VLOOKUP(D47,Tablas!$B$2:$H$13,7,FALSE)) -> 83577.2 | H47: 0.564831274 | I47: 15943.2 | J47: 1546972404 | K47: 1383696247 | L47: 1237653172 | M47: 1107024304 | N47: 990182740.9 | O47: 885673292.4 | P47: 792194358.2 | Q47: 708581715.7 | R47: 633794021.2 | S47: 566899840.1 | T47: 507066046.6 | U47: 453547447.8 | V47: 405677502.5 | W47: 362860020.1 | X47: 324561735.3 | Y47: 1.190638485e+10 | Z47: 1700912.121
A48: =IF(ISBLANK(InfoPro!A42),"",InfoPro!A42) -> SC_1118_A1 | B48: =IF(ISBLANK(InfoPro!B42),"",InfoPro!B42) -> Boston 9,9 MW | C48: =IF(ISBLANK(InfoPro!E42),"",InfoPro!E42) -> 9.9 | D48: =IF(ISBLANK(InfoPro!F42),"",InfoPro!F42) -> Solar FV | E48: =IF(ISBLANK(InfoPro!I42),"",YEAR(InfoPro!I42)-$H$3) -> 2 | F48: =IF(B48="","",VLOOKUP(D48,Tablas!$B$2:$E$13,2,FALSE)) -> 0.26 | G48: =IF(B48="","",VLOOKUP(D48,Tablas!$B$2:$H$13,7,FALSE)) -> 83577.2 | H48: 0.564831274 | I48: 22548.24 | J48: =IF($I48="","",(1/(1+$C$3)^(J$6+$E48))*$I48*$C$2*$H48) -> 1956941835 | K48: 1750395201 | L48: 1565648659 | M48: 1400401305 | N48: 1252595085 | O48: 1120389164 | P48: 1002136998 | Q48: 896365830 | R48: 801758345.3 | S48: 717136265.9 | T48: 641445676.1 | U48: 573743896.3 | V48: 513187742.7 | W48: 459023025.7 | X48: 410575157.1 | Y48: 1.506174419e+10 | Z48: 1521388.302
A49: =IF(ISBLANK(InfoPro!A43),"",InfoPro!A43) -> SC_1118_A2 | B49: =IF(ISBLANK(InfoPro!B43),"",InfoPro!B43) -> Boston 9,9 MW | C49: =IF(ISBLANK(InfoPro!E43),"",InfoPro!E43) -> 9.9 | D49: =IF(ISBLANK(InfoPro!F43),"",InfoPro!F43) -> Solar FV | E49: =IF(ISBLANK(InfoPro!I43),"",YEAR(InfoPro!I43)-$H$3) -> 2 | F49: =IF(B49="","",VLOOKUP(D49,Tablas!$B$2:$E$13,2,FALSE)) -> 0.26 | G49: =IF(B49="","",VLOOKUP(D49,Tablas!$B$2:$H$13,7,FALSE)) -> 83577.2 | H49: 0.564831274 | I49: 22548.24 | J49: 1956941835 | K49: 1750395201 | L49: 1565648659 | M49: 1400401305 | N49: 1252595085 | O49: 1120389164 | P49: 1002136998 | Q49: 896365830 | R49: 801758345.3 | S49: 717136265.9 | T49: 641445676.1 | U49: 573743896.3 | V49: 513187742.7 | W49: 459023025.7 | X49: 410575157.1 | Y49: 1.506174419e+10 | Z49: 1521388.302
A50: =IF(ISBLANK(InfoPro!A44),"",InfoPro!A44) -> SC_632_A1 | B50: =IF(ISBLANK(InfoPro!B44),"",InfoPro!B44) -> TR Solar 5 | C50: =IF(ISBLANK(InfoPro!E44),"",InfoPro!E44) -> 19.9 | D50: =IF(ISBLANK(InfoPro!F44),"",InfoPro!F44) -> Solar FV | E50: =IF(ISBLANK(InfoPro!I44),"",YEAR(InfoPro!I44)-$H$3) -> 3 | F50: =IF(B50="","",VLOOKUP(D50,Tablas!$B$2:$E$13,2,FALSE)) -> 0.26 | G50: =IF(B50="","",VLOOKUP(D50,Tablas!$B$2:$H$13,7,FALSE)) -> 83577.2 | H50: 0.564831274 | I50: 45324.24 | J50: 3518471161 | K50: 3147111951 | L50: 2814948078 | M50: 2517842646 | N50: 2252095390 | O50: 2014396592 | P50: 1801785860 | Q50: 1611615260 | R50: 1441516332 | S50: 1289370601 | T50: 1153283186 | U50: 1031559200 | V50: 922682647.6 | W50: 825297538.1 | X50: 738191000.1 | Y50: 2.708016744e+10 | Z50: 1360812.434
A51: =IF(ISBLANK(InfoPro!A45),"",InfoPro!A45) -> SC_632_A2 | B51: =IF(ISBLANK(InfoPro!B45),"",InfoPro!B45) -> TR Solar 5 | C51: =IF(ISBLANK(InfoPro!E45),"",InfoPro!E45) -> 19.9 | D51: =IF(ISBLANK(InfoPro!F45),"",InfoPro!F45) -> Solar FV | E51: =IF(ISBLANK(InfoPro!I45),"",YEAR(InfoPro!I45)-$H$3) -> 3 | F51: =IF(B51="","",VLOOKUP(D51,Tablas!$B$2:$E$13,2,FALSE)) -> 0.26 | G51: =IF(B51="","",VLOOKUP(D51,Tablas!$B$2:$H$13,7,FALSE)) -> 83577.2 | H51: 0.564831274 | I51: 45324.24 | J51: 3518471161 | K51: 3147111951 | L51: 2814948078 | M51: 2517842646 | N51: 2252095390 | O51: 2014396592 | P51: 1801785860 | Q51: 1611615260 | R51: 1441516332 | S51: 1289370601 | T51: 1153283186 | U51: 1031559200 | V51: 922682647.6 | W51: 825297538.1 | X51: 738191000.1 | Y51: 2.708016744e+10 | Z51: 1360812.434
A52: =IF(ISBLANK(InfoPro!A46),"",InfoPro!A46) -> SC_1415_A1 | B52: =IF(ISBLANK(InfoPro!B46),"",InfoPro!B46) -> Efigen C03 99 MW | C52: =IF(ISBLANK(InfoPro!E46),"",InfoPro!E46) -> 99 | D52: =IF(ISBLANK(InfoPro!F46),"",InfoPro!F46) -> Solar FV | E52: =IF(ISBLANK(InfoPro!I46),"",YEAR(InfoPro!I46)-$H$3) -> 2 | F52: =IF(B52="","",VLOOKUP(D52,Tablas!$B$2:$E$13,2,FALSE)) -> 0.26 | G52: =IF(B52="","",VLOOKUP(D52,Tablas!$B$2:$H$13,7,FALSE)) -> 83577.2 | H52: 0.564831274 | I52: 225482.4 | J52: 1.956941835e+10 | K52: 1.750395201e+10 | L52: 1.565648659e+10 | M52: 1.400401305e+10 | N52: 1.252595085e+10 | O52: 1.120389164e+10 | P52: 1.002136998e+10 | Q52: 8963658300 | R52: 8017583453 | S52: 7171362659 | T52: 6414456761 | U52: 5737438963 | V52: 5131877427 | W52: 4590230257 | X52: 4105751571 | Y52: 1.506174419e+11 | Z52: 1521388.302
A53: =IF(ISBLANK(InfoPro!A47),"",InfoPro!A47) -> SC_1415_A2 | B53: =IF(ISBLANK(InfoPro!B47),"",InfoPro!B47) -> Efigen C03 99 MW | C53: =IF(ISBLANK(InfoPro!E47),"",InfoPro!E47) -> 99 | D53: =IF(ISBLANK(InfoPro!F47),"",InfoPro!F47) -> Solar FV | E53: =IF(ISBLANK(InfoPro!I47),"",YEAR(InfoPro!I47)-$H$3) -> 2 | F53: =IF(B53="","",VLOOKUP(D53,Tablas!$B$2:$E$13,2,FALSE)) -> 0.26 | G53: =IF(B53="","",VLOOKUP(D53,Tablas!$B$2:$H$13,7,FALSE)) -> 83577.2 | H53: 0.564831274 | I53: 225482.4 | J53: 1.956941835e+10 | K53: 1.750395201e+10 | L53: 1.565648659e+10 | M53: 1.400401305e+10 | N53: 1.252595085e+10 | O53: 1.120389164e+10 | P53: 1.002136998e+10 | Q53: 8963658300 | R53: 8017583453 | S53: 7171362659 | T53: 6414456761 | U53: 5737438963 | V53: 5131877427 | W53: 4590230257 | X53: 4105751571 | Y53: 1.506174419e+11 | Z53: 1521388.302
A54: =IF(ISBLANK(InfoPro!A48),"",InfoPro!A48) -> SC_1420_A1 | B54: =IF(ISBLANK(InfoPro!B48),"",InfoPro!B48) -> Efigen C04 99 MW | C54: =IF(ISBLANK(InfoPro!E48),"",InfoPro!E48) -> 99 | D54: =IF(ISBLANK(InfoPro!F48),"",InfoPro!F48) -> Solar FV | E54: =IF(ISBLANK(InfoPro!I48),"",YEAR(InfoPro!I48)-$H$3) -> 2 | F54: =IF(B54="","",VLOOKUP(D54,Tablas!$B$2:$E$13,2,FALSE)) -> 0.26 | G54: =IF(B54="","",VLOOKUP(D54,Tablas!$B$2:$H$13,7,FALSE)) -> 83577.2 | H54: 0.564831274 | I54: 225482.4 | J54: 1.956941835e+10 | K54: 1.750395201e+10 | L54: 1.565648659e+10 | M54: 1.400401305e+10 | N54: 1.252595085e+10 | O54: 1.120389164e+10 | P54: 1.002136998e+10 | Q54: 8963658300 | R54: 8017583453 | S54: 7171362659 | T54: 6414456761 | U54: 5737438963 | V54: 5131877427 | W54: 4590230257 | X54: 4105751571 | Y54: 1.506174419e+11 | Z54: 1521388.302
A55: =IF(ISBLANK(InfoPro!A49),"",InfoPro!A49) -> SC_1420_A2 | B55: =IF(ISBLANK(InfoPro!B49),"",InfoPro!B49) -> Efigen C04 99 MW | C55: =IF(ISBLANK(InfoPro!E49),"",InfoPro!E49) -> 99 | D55: =IF(ISBLANK(InfoPro!F49),"",InfoPro!F49) -> Solar FV | E55: =IF(ISBLANK(InfoPro!I49),"",YEAR(InfoPro!I49)-$H$3) -> 2 | F55: =IF(B55="","",VLOOKUP(D55,Tablas!$B$2:$E$13,2,FALSE)) -> 0.26 | G55: =IF(B55="","",VLOOKUP(D55,Tablas!$B$2:$H$13,7,FALSE)) -> 83577.2 | H55: 0.564831274 | I55: 225482.4 | J55: 1.956941835e+10 | K55: 1.750395201e+10 | L55: 1.565648659e+10 | M55: 1.400401305e+10 | N55: 1.252595085e+10 | O55: 1.120389164e+10 | P55: 1.002136998e+10 | Q55: 8963658300 | R55: 8017583453 | S55: 7171362659 | T55: 6414456761 | U55: 5737438963 | V55: 5131877427 | W55: 4590230257 | X55: 4105751571 | Y55: 1.506174419e+11 | Z55: 1521388.302
A56: =IF(ISBLANK(InfoPro!A50),"",InfoPro!A50) -> SC_1435_A1 | B56: =IF(ISBLANK(InfoPro!B50),"",InfoPro!B50) -> Parque Solar Las Brisas | C56: =IF(ISBLANK(InfoPro!E50),"",InfoPro!E50) -> 9.9 | D56: =IF(ISBLANK(InfoPro!F50),"",InfoPro!F50) -> Solar FV | E56: =IF(ISBLANK(InfoPro!I50),"",YEAR(InfoPro!I50)-$H$3) -> 1 | F56: =IF(B56="","",VLOOKUP(D56,Tablas!$B$2:$E$13,2,FALSE)) -> 0.26 | G56: =IF(B56="","",VLOOKUP(D56,Tablas!$B$2:$H$13,7,FALSE)) -> 83577.2 | H56: 0.564831274 | I56: 22548.24 | J56: 2187860971 | K56: 1956941835 | L56: 1750395201 | M56: 1565648659 | N56: 1400401305 | O56: 1252595085 | P56: 1120389164 | Q56: 1002136998 | R56: 896365830 | S56: 801758345.3 | T56: 717136265.9 | U56: 641445676.1 | V56: 573743896.3 | W56: 513187742.7 | X56: 459023025.7 | Y56: 1.683903e+10 | Z56: 1700912.121
A57: =IF(ISBLANK(InfoPro!A51),"",InfoPro!A51) -> SC_978_A1 | B57: =IF(ISBLANK(InfoPro!B51),"",InfoPro!B51) -> Borugo Solar | C57: =IF(ISBLANK(InfoPro!E51),"",InfoPro!E51) -> 99.9 | D57: =IF(ISBLANK(InfoPro!F51),"",InfoPro!F51) -> Solar FV | E57: =IF(ISBLANK(InfoPro!I51),"",YEAR(InfoPro!I51)-$H$3) -> 3 | F57: =IF(B57="","",VLOOKUP(D57,Tablas!$B$2:$E$13,2,FALSE)) -> 0.26 | G57: =IF(B57="","",VLOOKUP(D57,Tablas!$B$2:$H$13,7,FALSE)) -> 83577.2 | H57: 0.564831274 | I57: 227532.24 | J57: 1.766307884e+10 | K57: 1.579881829e+10 | L57: 1.413132226e+10 | M57: 1.263982313e+10 | N57: 1.13057452e+10 | O57: 1.011247334e+10 | P57: 9045146103 | Q57: 8090470575 | R57: 7236556865 | S57: 6472770004 | T57: 5789597499 | U57: 5178530858 | V57: 4631959623 | W57: 4143076586 | X57: 3705793010 | Y57: 1.359451622e+11 | Z57: 1360812.434
A58: =IF(ISBLANK(InfoPro!A52),"",InfoPro!A52) -> SC_1520_A1 | B58: =IF(ISBLANK(InfoPro!B52),"",InfoPro!B52) -> Autogenerador Solar Argos Tolcemento - 19.9 MW | C58: =IF(ISBLANK(InfoPro!E52),"",InfoPro!E52) -> 19.9 | D58: =IF(ISBLANK(InfoPro!F52),"",InfoPro!F52) -> Solar FV | E58: =IF(ISBLANK(InfoPro!I52),"",YEAR(InfoPro!I52)-$H$3) -> 1 | F58: =IF(B58="","",VLOOKUP(D58,Tablas!$B$2:$E$13,2,FALSE)) -> 0.26 | G58: =IF(B58="","",VLOOKUP(D58,Tablas!$B$2:$H$13,7,FALSE)) -> 83577.2 | H58: 0.564831274 | I58: 45324.24 | J58: =IF($I58="","",(1/(1+$C$3)^(J$6+$E58))*$I58*$C$2*$H58) -> 4397821548 | K58: 3933650758 | L58: 3518471161 | M58: 3147111951 | N58: 2814948078 | O58: 2517842646 | P58: 2252095390 | Q58: 2014396592 | R58: 1801785860 | S58: 1611615260 | T58: 1441516332 | U58: 1289370601 | V58: 1153283186 | W58: 1031559200 | X58: 922682647.6 | Y58: 3.384815121e+10 | Z58: 1700912.121
A59: =IF(ISBLANK(InfoPro!A53),"",InfoPro!A53) -> SC_1520_A2 | B59: =IF(ISBLANK(InfoPro!B53),"",InfoPro!B53) -> Autogenerador Solar Argos Tolcemento - 19.9 MW | C59: =IF(ISBLANK(InfoPro!E53),"",InfoPro!E53) -> 19.9 | D59: =IF(ISBLANK(InfoPro!F53),"",InfoPro!F53) -> Solar FV | E59: =IF(ISBLANK(InfoPro!I53),"",YEAR(InfoPro!I53)-$H$3) -> 1 | F59: =IF(B59="","",VLOOKUP(D59,Tablas!$B$2:$E$13,2,FALSE)) -> 0.26 | G59: =IF(B59="","",VLOOKUP(D59,Tablas!$B$2:$H$13,7,FALSE)) -> 83577.2 | H59: 0.564831274 | I59: 45324.24 | J59: 4397821548 | K59: 3933650758 | L59: 3518471161 | M59: 3147111951 | N59: 2814948078 | O59: 2517842646 | P59: 2252095390 | Q59: 2014396592 | R59: 1801785860 | S59: 1611615260 | T59: 1441516332 | U59: 1289370601 | V59: 1153283186 | W59: 1031559200 | X59: 922682647.6 | Y59: 3.384815121e+10 | Z59: 1700912.121
A60: =IF(ISBLANK(InfoPro!A54),"",InfoPro!A54) -> SC_1527_A1 | B60: =IF(ISBLANK(InfoPro!B54),"",InfoPro!B54) -> Nueva Montería Solar III _9,9 MW | C60: =IF(ISBLANK(InfoPro!E54),"",InfoPro!E54) -> 9.9 | D60: =IF(ISBLANK(InfoPro!F54),"",InfoPro!F54) -> Solar FV | E60: =IF(ISBLANK(InfoPro!I54),"",YEAR(InfoPro!I54)-$H$3) -> 2 | F60: =IF(B60="","",VLOOKUP(D60,Tablas!$B$2:$E$13,2,FALSE)) -> 0.26 | G60: =IF(B60="","",VLOOKUP(D60,Tablas!$B$2:$H$13,7,FALSE)) -> 83577.2 | H60: 0.564831274 | I60: 22548.24 | J60: 1956941835 | K60: 1750395201 | L60: 1565648659 | M60: 1400401305 | N60: 1252595085 | O60: 1120389164 | P60: 1002136998 | Q60: 896365830 | R60: 801758345.3 | S60: 717136265.9 | T60: 641445676.1 | U60: 573743896.3 | V60: 513187742.7 | W60: 459023025.7 | X60: 410575157.1 | Y60: 1.506174419e+10 | Z60: 1521388.302
A61: =IF(ISBLANK(InfoPro!A55),"",InfoPro!A55) -> SC_1527_A2 | B61: =IF(ISBLANK(InfoPro!B55),"",InfoPro!B55) -> Nueva Montería Solar III _9,9 MW | C61: =IF(ISBLANK(InfoPro!E55),"",InfoPro!E55) -> 9.9 | D61: =IF(ISBLANK(InfoPro!F55),"",InfoPro!F55) -> Solar FV | E61: =IF(ISBLANK(InfoPro!I55),"",YEAR(InfoPro!I55)-$H$3) -> 2 | F61: =IF(B61="","",VLOOKUP(D61,Tablas!$B$2:$E$13,2,FALSE)) -> 0.26 | G61: =IF(B61="","",VLOOKUP(D61,Tablas!$B$2:$H$13,7,FALSE)) -> 83577.2 | H61: 0.564831274 | I61: 22548.24 | J61: 1956941835 | K61: 1750395201 | L61: 1565648659 | M61: 1400401305 | N61: 1252595085 | O61: 1120389164 | P61: 1002136998 | Q61: 896365830 | R61: 801758345.3 | S61: 717136265.9 | T61: 641445676.1 | U61: 573743896.3 | V61: 513187742.7 | W61: 459023025.7 | X61: 410575157.1 | Y61: 1.506174419e+10 | Z61: 1521388.302
A62: =IF(ISBLANK(InfoPro!A56),"",InfoPro!A56) -> SC_1395_A1 | B62: =IF(ISBLANK(InfoPro!B56),"",InfoPro!B56) -> San Marcos I 19.9 | C62: =IF(ISBLANK(InfoPro!E56),"",InfoPro!E56) -> 19.9 | D62: =IF(ISBLANK(InfoPro!F56),"",InfoPro!F56) -> Solar FV | E62: =IF(ISBLANK(InfoPro!I56),"",YEAR(InfoPro!I56)-$H$3) -> 3 | F62: =IF(B62="","",VLOOKUP(D62,Tablas!$B$2:$E$13,2,FALSE)) -> 0.26 | G62: =IF(B62="","",VLOOKUP(D62,Tablas!$B$2:$H$13,7,FALSE)) -> 83577.2 | H62: 0.564831274 | I62: 45324.24 | J62: 3518471161 | K62: 3147111951 | L62: 2814948078 | M62: 2517842646 | N62: 2252095390 | O62: 2014396592 | P62: 1801785860 | Q62: 1611615260 | R62: 1441516332 | S62: 1289370601 | T62: 1153283186 | U62: 1031559200 | V62: 922682647.6 | W62: 825297538.1 | X62: 738191000.1 | Y62: 2.708016744e+10 | Z62: 1360812.434
A63: =IF(ISBLANK(InfoPro!A57),"",InfoPro!A57) -> SC_1396_A1 | B63: =IF(ISBLANK(InfoPro!B57),"",InfoPro!B57) -> San Marcos II 19.9 | C63: =IF(ISBLANK(InfoPro!E57),"",InfoPro!E57) -> 19.9 | D63: =IF(ISBLANK(InfoPro!F57),"",InfoPro!F57) -> Solar FV | E63: =IF(ISBLANK(InfoPro!I57),"",YEAR(InfoPro!I57)-$H$3) -> 3 | F63: =IF(B63="","",VLOOKUP(D63,Tablas!$B$2:$E$13,2,FALSE)) -> 0.26 | G63: =IF(B63="","",VLOOKUP(D63,Tablas!$B$2:$H$13,7,FALSE)) -> 83577.2 | H63: 0.564831274 | I63: 45324.24 | J63: 3518471161 | K63: 3147111951 | L63: 2814948078 | M63: 2517842646 | N63: 2252095390 | O63: 2014396592 | P63: 1801785860 | Q63: 1611615260 | R63: 1441516332 | S63: 1289370601 | T63: 1153283186 | U63: 1031559200 | V63: 922682647.6 | W63: 825297538.1 | X63: 738191000.1 | Y63: 2.708016744e+10 | Z63: 1360812.434
A64: =IF(ISBLANK(InfoPro!A58),"",InfoPro!A58) -> SC_1359_A1 | B64: =IF(ISBLANK(InfoPro!B58),"",InfoPro!B58) -> El Corozo_250MW | C64: =IF(ISBLANK(InfoPro!E58),"",InfoPro!E58) -> 250 | D64: =IF(ISBLANK(InfoPro!F58),"",InfoPro!F58) -> Solar FV | E64: =IF(ISBLANK(InfoPro!I58),"",YEAR(InfoPro!I58)-$H$3) -> 4 | F64: =IF(B64="","",VLOOKUP(D64,Tablas!$B$2:$E$13,2,FALSE)) -> 0.26 | G64: =IF(B64="","",VLOOKUP(D64,Tablas!$B$2:$H$13,7,FALSE)) -> 83577.2 | H64: 0.564831274 | I64: 569400 | J64: 3.95365823e+10 | K64: 3.536366932e+10 | L64: 3.163118902e+10 | M64: 2.829265565e+10 | N64: 2.530648985e+10 | O64: 2.263550076e+10 | P64: 2.024642286e+10 | Q64: 1.810950166e+10 | R64: 1.619812313e+10 | S64: 1.448848223e+10 | T64: 1.295928643e+10 | U64: 1.159149055e+10 | V64: 1.036805952e+10 | W64: 9273756282 | X64: 8294951952 | Y64: 3.042961615e+11 | Z64: 1217184.646
A65: =IF(ISBLANK(InfoPro!A59),"",InfoPro!A59) -> SC_1359_A2 | B65: =IF(ISBLANK(InfoPro!B59),"",InfoPro!B59) -> El Corozo_250MW | C65: =IF(ISBLANK(InfoPro!E59),"",InfoPro!E59) -> 250 | D65: =IF(ISBLANK(InfoPro!F59),"",InfoPro!F59) -> Solar FV | E65: =IF(ISBLANK(InfoPro!I59),"",YEAR(InfoPro!I59)-$H$3) -> 4 | F65: =IF(B65="","",VLOOKUP(D65,Tablas!$B$2:$E$13,2,FALSE)) -> 0.26 | G65: =IF(B65="","",VLOOKUP(D65,Tablas!$B$2:$H$13,7,FALSE)) -> 83577.2 | H65: 0.564831274 | I65: 569400 | J65: 3.95365823e+10 | K65: 3.536366932e+10 | L65: 3.163118902e+10 | M65: 2.829265565e+10 | N65: 2.530648985e+10 | O65: 2.263550076e+10 | P65: 2.024642286e+10 | Q65: 1.810950166e+10 | R65: 1.619812313e+10 | S65: 1.448848223e+10 | T65: 1.295928643e+10 | U65: 1.159149055e+10 | V65: 1.036805952e+10 | W65: 9273756282 | X65: 8294951952 | Y65: 3.042961615e+11 | Z65: 1217184.646
A66: =IF(ISBLANK(InfoPro!A60),"",InfoPro!A60) -> SC_1598_A1 | B66: =IF(ISBLANK(InfoPro!B60),"",InfoPro!B60) -> PARQUE SOLAR FOTOVOLTAICO MATIMBA de 150MW | C66: =IF(ISBLANK(InfoPro!E60),"",InfoPro!E60) -> 150 | D66: =IF(ISBLANK(InfoPro!F60),"",InfoPro!F60) -> Solar FV | E66: =IF(ISBLANK(InfoPro!I60),"",YEAR(InfoPro!I60)-$H$3) -> 3 | F66: =IF(B66="","",VLOOKUP(D66,Tablas!$B$2:$E$13,2,FALSE)) -> 0.26 | G66: =IF(B66="","",VLOOKUP(D66,Tablas!$B$2:$H$13,7,FALSE)) -> 83577.2 | H66: 0.564831274 | I66: 341640 | J66: 2.652113941e+10 | K66: 2.372194938e+10 | L66: 2.121820159e+10 | M66: 1.897871341e+10 | N66: 1.697559339e+10 | O66: 1.518389391e+10 | P66: 1.358130045e+10 | Q66: 1.214785372e+10 | R66: 1.0865701e+10 | S66: 9718873880 | T66: 8693089338 | U66: 7775571859 | V66: 6954894328 | W66: 6220835714 | X66: 5564253769 | Y66: 2.041218651e+11 | Z66: 1360812.434
